Workbook

Sheet Elolap

Sheet Tamogatastartalom
L1: =IF(COUNT(M7:M210)>0,IF(SUM(M7:M210)<C36,"A folyósítások összege kevesebb, mint a hitelösszeg",IF(SUM(M7:M210)>C36,"A folyósítások összege több, mint a hitelösszeg","")),"") ->  | T1: =IF(COUNT(U7:U210)>0,IF(SUM(U7:U210)<C36,"A törlesztések összege kevesebb, mint a hitelösszeg",IF(SUM(U7:U210)>C36,"A törlesztések összege több, mint a hitelösszeg","")),"") -> 
B3: Ügyfél neve | F3: Hitel futamidejére jutó támogatás mértéke (EUR) | L3: Egyedi folyósítás dátuma | M3: Folyósítás összege | T3: Egyedi törlesztés dátuma | U3: Tőkeamortizáció egyedi törlesztés esetén | V3: periódusközi kamatszámítás | AA3: maradék kamatszámítás | AK3: Piaci konstrukció | AN3: Támogatott konstruckió | AR3: Támogatástartalom | AU3: Támogatástartalom + egyéb kedvezmények | AW3: folyósítás piaci | AZ3: folyósítás támogatott | BC3: periódusközi piaci | BF3: periódusközi támogatott | BI3: egyedi maradék piaci | BL3: egyedi maradék támogatott | BO3: piaci konstrukció | BR3: támogatott konstrukció | BU3: Támogatástartalom FV | BX3: Támogatástartalom PV
D4: -0.04 | F4: 12 hónapig | G4: =IF($C$35="EUR",BX5,(BX5)/C37) -> 8348.520615 | P4: kamat | Q4: támogatott | V4: dátumtól | W4: tőke | X4: kamat | Y4: támogatott | AA4: dátumtól | AB4: amort | AC4: tőke | AD4: maradék | AE4: t maradék | AI4: Periodus | AJ4: Dátum | AK4: Tőke | AL4: Tőkeamt. | AM4: Kamatfiz. | AN4: Tőke | AO4: Tőkeamt. | AP4: Kamatfiz. | AR4: FV | AS4: PV | AW4: 1 | AX4: 2 | AY4: 3 | AZ4: 1 | BA4: 2 | BB4: 3 | BC4: 1 | BD4: 2 | BE4: 3 | BF4: 1 | BG4: 2 | BH4: 3 | BI4: 1 | BJ4: 2 | BK4: 3 | BL4: 1 | BM4: 2 | BN4: 3 | BO4: 1 | BP4: 2 | BQ4: 3 | BR4: 1 | BS4: 2 | BT4: 3 | BU4: 1 | BV4: 2 | BW4: 3 | BX4: 1 | BY4: 2 | BZ4: 3
B5: Refinanszírozás esetén a pénzügyi intézmény neve | F5: 13 - 36 hónapig | G5: =IF($C$35="EUR",BY5,(BY5)/C37) -> 14343.83486 | P5: =SUM(P7:P187) -> -4222602.74 | Q5: =SUM(Q7:Q187) -> -975205.4795 | X5: =SUM(X7:X187) -> 0 | Y5: =SUM(Y7:Y187) -> 0 | AD5: =SUM(AD7:AD187) -> -11404109.59 | AE5: =SUM(AE7:AE187) -> -3302054.795 | AK5: =+AK7 -> 150000000 | AL5: =SUM(AL7:AL187) -> 0 | AM5: =SUM(AM7:AM187) -> -11404109.59 | AN5: =+AN7 -> 150000000 | AO5: =SUM(AO7:AO187) -> 0 | AP5: =SUM(AP7:AP187) -> -3302054.795 | AR5: =SUM(AR7:AR187) -> 8102054.795 | AS5: =SUM(AS7:AS187) -> 8009414.114 | AU5: =AS5 -> 8009414.114 | AW5: =SUM(AW7:AW210) -> -3760273.973 | AX5: =SUM(AX7:AX210) -> -462328.7671 | AY5: 0 | AZ5: =SUM(AZ7:AZ210) -> -827260.274 | BA5: =SUM(BA7:BA210) -> -147945.2055 | BB5: 0 | BC5: =SUM(BC7:BC210) -> 0 | BD5: =SUM(BD7:BD210) -> 0 | BE5: 0 | BF5: =SUM(BF7:BF210) -> 0 | BG5: =SUM(BG7:BG210) -> 0 | BH5: 0 | BI5: =SUM(BI7:BI210) -> -3760273.973 | BJ5: =SUM(BJ7:BJ210) -> -7500000 | BK5: -143835.6164 | BL5: =SUM(BL7:BL210) -> -827260.274 | BM5: =SUM(BM7:BM210) -> -2400000 | BN5: -74794.52055 | BO5: =SUM(BO7:BO210) -> -3760273.973 | BP5: =SUM(BP7:BP210) -> -7500000 | BQ5: -143835.6164 | BR5: =SUM(BR7:BR210) -> -827260.274 | BS5: =SUM(BS7:BS210) -> -2400000 | BT5: -74794.52055 | BU5: =SUM(BU7:BU210) -> 2933013.699 | BV5: 5100000 | BW5: 69041.09589 | BX5: =SUM(BX7:BX210) -> 2921982.215 | BY5: 5020342.201 | BZ5: 67089.69841
F6: 37 - 72 hónapig | G6: =IF($C$35="EUR",BZ5,(BZ5)/C37) -> 191.6848526 | J6: Törlesztésiidőszak vége? | AI6: 0 | AJ6: =MAX(C39,MIN(L7:L210)) -> 2016-01-01
B7: Kalkulátort kitöltő ügyintéző neve és az elérhetősége | F7: Hitelre jutó támogatás mindösszesen (EUR) | G7: =IF($C$35="EUR",AU5,(AU5)/C37) -> 22884.04033 | J7: =AI7>$D$15 -> FALSE | N7: =C39 -> 2016-01-01 | O7: =IF(ISBLANK(L7),C36,0) -> 150000000 | P7: =IF(AND(ISBLANK(L6),AH7<>1),0,IFERROR(-O7*piacikamat/365*(IF(ISBLANK(L7),$C$40,L7)-N7),"")) -> -4222602.74 | Q7: =IF(AND(ISBLANK(L6),AH7<>1),0,IFERROR(IF(IF(ISBLANK(L7),$C$40,L7)<=$D$28,-O7*tenylegeskamat1/365*(IF(ISBLANK(L7),$C$40,L7)-N7),IF(IF(ISBLANK(L7),$C$40,L7)<=$D$29,IF(N7>$D$28,-O7*tenylegeskamat2/365*(IF(ISBLANK(L7),$C$40,L7)-N7),(-O7*tenylegeskamat1/365*($D$28-N7))+(-O7*tenylegeskamat2/365*(IF(ISBLANK(L7),$C$40,L7)-$D$28))),IF(N7>$D$29,-O7*tenylegeskamat3/365*(IF(ISBLANK(L7),$C$40,L7)-N7),IF(N7<=$D$28,(-O7*tenylegeskamat1/365*($D$28-N7))+((-O7*tenylegeskamat2/365*($D$29-$D$28)))+(-O7*tenylegeskamat3/365*(IF(ISBLANK(L7),$C$40,L7)-$D$29)),(-O7*tenylegeskamat2/365*($D$29-N7))+(-O7*tenylegeskamat3/365*(IF(ISBLANK(L7),$C$40,L7)-$D$29)))))),"")) -> -975205.4795 | R7: =IFERROR(IF(ISBLANK(L7),$C$40,L7)-N7,"") -> 411 | V7: =IF(ISNA(MAX(T6,INDEX(AJ$6:AJ$210,MATCH(T7-1,AJ$6:AJ$210,1)))),"",MAX(T6,INDEX(AJ$6:AJ$210,MATCH(T7-1,AJ$6:AJ$210,1)))) ->  | W7: =IF(ISNA(MIN(IF(OR(ISBLANK(W6),W6=""),INDEX(AK$7:AK$210,MATCH(T7,AJ$7:AJ$210,1)),W6-U6),INDEX(AK$7:AK$210,MATCH(T7,AJ$7:AJ$210,1)))),"",MIN(IF(OR(ISBLANK(W6),W6=""),INDEX(AK$7:AK$210,MATCH(T7,AJ$7:AJ$210,1)),W6-U6),INDEX(AK$7:AK$210,MATCH(T7,AJ$7:AJ$210,1)))) ->  | X7: =IFERROR(-W7*piacikamat/365*(T7-V7),"") ->  | Y7: =IFERROR(IF(T7<=$D$28,-W7*tenylegeskamat1/365*(T7-V7),IF(T7<=$D$29,IF(V7>$D$28,-W7*tenylegeskamat2/365*(T7-V7),(-W7*tenylegeskamat1/365*($D$28-V7))+(-W7*tenylegeskamat2/365*(T7-$D$28))),IF(V7>$D$29,-W7*tenylegeskamat3/365*(T7-V7),IF(V7<=$D$28,(-W7*tenylegeskamat1/365*($D$28-V7))+(-W7*tenylegeskamat2/365*($D$29-$D$28))+(-W7*tenylegeskamat3/365*(T7-$D$29)),(-W7*tenylegeskamat2/365*($D$29-V7))+(-W7*tenylegeskamat3/365*(T7-$D$29)))))),"") ->  | Z7: =IFERROR(T7-V7,"") ->  | AA7: =MAX(AJ6,IF(ISNA(INDEX(T$7:T$210,MATCH(AJ7,T$7:T$210,1))),0,INDEX(T$7:T$210,MATCH(AJ7,T$7:T$210,1)))) -> 2016-01-01 | AB7: =IF(ISNA(INDEX(U$7:U$210,MATCH(AJ7,T$7:T$210,1))),0,INDEX(U$7:U$210,MATCH(AJ7,T$7:T$210,1))) -> 0 | AC7: =IF(ISNA(INDEX(W$7:W$210,MATCH(AJ7,T$7:T$210,1))),AK7,INDEX(W$7:W$210,MATCH(AJ7,T$7:T$210,1))) -> 150000000 | AD7: =IFERROR(-(AC7-AB7)*piacikamat/365*(AJ7-AA7),0) -> -4222602.74 | AE7: =IFERROR(IF(AJ7<=$D$28,-(AC7-AB7)*tenylegeskamat1/365*(AJ7-AA7),IF(AJ7<=$D$29,IF(AA7>$D$28,-(AC7-AB7)*tenylegeskamat2/365*(AJ7-AA7),(-(AC7-AB7)*tenylegeskamat1/365*($D$28-AA7))+(-(AC7-AB7)*tenylegeskamat2/365*(AJ7-$D$28))),IF(AA7>$D$29,-(AC7-AB7)*tenylegeskamat3/365*(AJ7-AA7),IF(AA7<=$D$28,(-(AC7-AB7)*tenylegeskamat1/365*($D$28-AA7))+(-(AC7-AB7)*tenylegeskamat2/365*($D$29-$D$28))+(-(AC7-AB7)*tenylegeskamat3/365*(AJ7-$D$29)),(-(AC7-AB7)*tenylegeskamat2/365*($D$29-AA7))+(-(AC7-AB7)*tenylegeskamat3/365*(AJ7-$D$29)))))),0) -> -975205.4795 | AF7: =IFERROR(AJ7-AA7,"") -> 411 | AH7: 1 | AI7: =+IF(C41-C40<>0,1,"") -> 1 | AJ7: =C40 -> 2017-02-15 | AK7: =IF(+C36<>0,C36,IF(AI7>0,C36*J7,"")) -> 150000000 | AL7: =IF(torlesztes="Egyedi",-SUMIFS(U$7:U$210,T$7:T$210,">"&AJ6,T$7:T$210,"<="&AJ7),IFERROR(IF(torlesztes="Egyenlő tőke",IF(COUNT($AK$7:AK7)>$D$15,"",-$AK$5/$D$15),0),"")) -> 0 | AM7: =SUM(P7:P210) -> -4222602.74 | AN7: =+AK7 -> 150000000 | AO7: =IF(torlesztes="Egyedi",-SUMIFS(U$7:U$210,T$7:T$210,">"&AJ6,T$7:T$210,"<="&AJ7),IFERROR(IF(torlesztes="Egyenlő tőke",IF(COUNT($AN$7:AN7)>$D$15,"",-$AK$5/$D$15),0),"")) -> 0 | AP7: =SUM(Q7:Q210) -> -975205.4795 | AR7: =IFERROR(MAX((ABS(AM7)-ABS(AP7)),0),"") -> 3247397.26 | AS7: =IFERROR(AR7/(1+($C$15+1%)/365*(AJ7-C38)),"") -> 3235183.335 | AT7: =IFERROR(AJ7-AJ6,"") -> 411 | AW7: =IF(AND(ISBLANK(L6),AH7<>1),0,IFERROR(IF(IF(ISBLANK(L7),$C$40,L7)<=$D$28,-O7*piacikamat/365*(IF(ISBLANK(L7),$C$40,L7)-N7),IF(IF(ISBLANK(L7),$C$40,L7)<=$D$29,IF(N7>$D$28,0,(-O7*piacikamat/365*($D$28-N7))),IF(N7>$D$29,0,IF(N7<=$D$28,(-O7*piacikamat/365*($D$28-N7)),0)))),"")) -> -3760273.973 | AX7: =IF(AND(ISBLANK(L6),AH7<>1),0,IFERROR(IF(IF(ISBLANK(L7),$C$40,L7)<=$D$28,0,IF(IF(ISBLANK(L7),$C$40,L7)<=$D$29,IF(N7>$D$28,-O7*piacikamat/365*(IF(ISBLANK(L7),$C$40,L7)-N7),(-O7*piacikamat/365*(IF(ISBLANK(L7),$C$40,L7)-$D$28))),IF(N7>$D$29,0,IF(N7<=$D$28,(-O7*piacikamat/365*($D$29-$D$28)),(-O7*piacikamat/365*($D$29-N7)))))),"")) -> -462328.7671 | AY7: =IF(AND(ISBLANK(L6),AH7<>1),0,IFERROR(IF(IF(ISBLANK(L7),$C$40,L7)<=$D$28,0,IF(IF(ISBLANK(L7),$C$40,L7)<=$D$29,IF(N7>$D$28,0,0),IF(N7>$D$29,-O7*piacikamat/365*(IF(ISBLANK(L7),$C$40,L7)-N7),IF(N7<=$D$28,(-O7*piacikamat/365*(IF(ISBLANK(L7),$C$40,L7)-$D$29)),(-O7*piacikamat/365*(IF(ISBLANK(L7),$C$40,L7)-$D$29)))))),"")) -> 0 | AZ7: =IF(AND(ISBLANK(L6),AH7<>1),0,IFERROR(IF(IF(ISBLANK(L7),$C$40,L7)<=$D$28,-O7*tenylegeskamat1/365*(IF(ISBLANK(L7),$C$40,L7)-N7),IF(IF(ISBLANK(L7),$C$40,L7)<=$D$29,IF(N7>$D$28,0,(-O7*tenylegeskamat1/365*($D$28-N7))),IF(N7>$D$29,0,IF(N7<=$D$28,(-O7*tenylegeskamat1/365*($D$28-N7)),0)))),"")) -> -827260.274 | BA7: =IF(AND(ISBLANK(L6),AH7<>1),0,IFERROR(IF(IF(ISBLANK(L7),$C$40,L7)<=$D$28,0,IF(IF(ISBLANK(L7),$C$40,L7)<=$D$29,IF(N7>$D$28,-O7*tenylegeskamat2/365*(IF(ISBLANK(L7),$C$40,L7)-N7),(-O7*tenylegeskamat2/365*(IF(ISBLANK(L7),$C$40,L7)-$D$28))),IF(N7>$D$29,0,IF(N7<=$D$28,((-O7*tenylegeskamat2/365*($D$29-$D$28))),(-O7*tenylegeskamat2/365*($D$29-N7)))))),"")) -> -147945.2055 | BB7: =IF(AND(ISBLANK(L6),AH7<>1),0,IFERROR(IF(IF(ISBLANK(L7),$C$40,L7)<=$D$28,0,IF(IF(ISBLANK(L7),$C$40,L7)<=$D$29,IF(N7>$D$28,0,0),IF(N7>$D$29,-O7*tenylegeskamat3/365*(IF(ISBLANK(L7),$C$40,L7)-N7),IF(N7<=$D$28,(-O7*tenylegeskamat3/365*(IF(ISBLANK(L7),$C$40,L7)-$D$29)),(-O7*tenylegeskamat3/365*(IF(ISBLANK(L7),$C$40,L7)-$D$29)))))),"")) -> 0 | BC7: =IFERROR(IF(T7<=$D$28,-W7*piacikamat/365*(T7-V7),IF(T7<=$D$29,IF(V7>$D$28,0,(-W7*piacikamat/365*($D$28-V7))),IF(V7>$D$29,0,IF(V7<=$D$28,(-W7*piacikamat/365*($D$28-V7)),0)))),"") ->  | BD7: =IFERROR(IF(T7<=$D$28,0,IF(T7<=$D$29,IF(V7>$D$28,-W7*piacikamat/365*(T7-V7),(-W7*piacikamat/365*(T7-$D$28))),IF(V7>$D$29,0,IF(V7<=$D$28,(-W7*piacikamat/365*($D$29-$D$28)),(-W7*piacikamat/365*($D$29-V7)))))),"") -> 0 | BE7: =IFERROR(IF(T7<=$D$28,0,IF(T7<=$D$29,IF(V7>$D$28,0,0),IF(V7>$D$29,-W7*piacikamat/365*(T7-V7),IF(V7<=$D$28,(-W7*piacikamat/365*(T7-$D$29)),(-W7*piacikamat/365*(T7-$D$29)))))),"") -> 0 | BF7: =IFERROR(IF(T7<=$D$28,-W7*tenylegeskamat1/365*(T7-V7),IF(T7<=$D$29,IF(V7>$D$28,0,(-W7*tenylegeskamat1/365*($D$28-V7))),IF(V7>$D$29,0,IF(V7<=$D$28,(-W7*tenylegeskamat1/365*($D$28-V7)),0)))),"") ->  | BG7: =IFERROR(IF(T7<=$D$28,0,IF(T7<=$D$29,IF(V7>$D$28,-W7*tenylegeskamat2/365*(T7-V7),(-W7*tenylegeskamat2/365*(T7-$D$28))),IF(V7>$D$29,0,IF(V7<=$D$28,(-W7*tenylegeskamat2/365*($D$29-$D$28)),(-W7*tenylegeskamat2/365*($D$29-V7)))))),"") -> 0 | BH7: =IFERROR(IF(T7<=$D$28,0,IF(T7<=$D$29,IF(V7>$D$28,0,0),IF(V7>$D$29,-W7*tenylegeskamat3/365*(T7-V7),IF(V7<=$D$28,(-W7*tenylegeskamat3/365*(T7-$D$29)),(-W7*tenylegeskamat3/365*(T7-$D$29)))))),"") -> 0 | BI7: =IFERROR(IF(AJ7<=$D$28,-(AC7-AB7)*piacikamat/365*(AJ7-AA7),IF(AJ7<=$D$29,IF(AA7>$D$28,0,(-(AC7-AB7)*piacikamat/365*($D$28-AA7))),IF(AA7>$D$29,0,IF(AA7<=$D$28,(-(AC7-AB7)*piacikamat/365*($D$28-AA7)),0)))),0) -> -3760273.973 | BJ7: =IFERROR(IF(AJ7<=$D$28,0,IF(AJ7<=$D$29,IF(AA7>$D$28,-(AC7-AB7)*piacikamat/365*(AJ7-AA7),(-(AC7-AB7)*piacikamat/365*(AJ7-$D$28))),IF(AA7>$D$29,0,IF(AA7<=$D$28,(-(AC7-AB7)*piacikamat/365*($D$29-$D$28)),(-(AC7-AB7)*piacikamat/365*($D$29-AA7)))))),0) -> -462328.7671 | BK7: =IFERROR(IF(AJ7<=$D$28,0,IF(AJ7<=$D$29,IF(AA7>$D$28,0,0),IF(AA7>$D$29,-(AC7-AB7)*piacikamat/365*(AJ7-AA7),IF(AA7<=$D$28,(-(AC7-AB7)*piacikamat/365*(AJ7-$D$29)),(-(AC7-AB7)*piacikamat/365*(AJ7-$D$29)))))),0) -> 0 | BL7: =IFERROR(IF(AJ7<=$D$28,-(AC7-AB7)*tenylegeskamat1/365*(AJ7-AA7),IF(AJ7<=$D$29,IF(AA7>$D$28,0,(-(AC7-AB7)*tenylegeskamat1/365*($D$28-AA7))),IF(AA7>$D$29,0,IF(AA7<=$D$28,(-(AC7-AB7)*tenylegeskamat1/365*($D$28-AA7)),0)))),0) -> -827260.274 | BM7: =IFERROR(IF(AJ7<=$D$28,0,IF(AJ7<=$D$29,IF(AA7>$D$28,-(AC7-AB7)*tenylegeskamat2/365*(AJ7-AA7),(-(AC7-AB7)*tenylegeskamat2/365*(AJ7-$D$28))),IF(AA7>$D$29,0,IF(AA7<=$D$28,(-(AC7-AB7)*tenylegeskamat2/365*($D$29-$D$28)),(-(AC7-AB7)*tenylegeskamat2/365*($D$29-AA7)))))),0) -> -147945.2055 | BN7: =IFERROR(IF(AJ7<=$D$28,0,IF(AJ7<=$D$29,IF(AA7>$D$28,0,0),IF(AA7>$D$29,-(AC7-AB7)*tenylegeskamat3/365*(AJ7-AA7),IF(AA7<=$D$28,(-(AC7-AB7)*tenylegeskamat3/365*(AJ7-$D$29)),(-(AC7-AB7)*tenylegeskamat3/365*(AJ7-$D$29)))))),0) -> 0 | BO7: =SUM(AW7:AW210) -> -3760273.973 | BP7: =SUM(AX7:AX210) -> -462328.7671 | BQ7: =SUM(AY7:AY210) -> 0 | BR7: =SUM(AZ7:AZ210) -> -827260.274 | BS7: =SUM(BA7:BA210) -> -147945.2055 | BT7: 0 | BU7: =IFERROR(MAX((ABS(BO7)-ABS(BR7)),0),"") -> 2933013.699 | BV7: =IFERROR(MAX((ABS(BP7)-ABS(BS7)),0),"") -> 314383.5616 | BW7: =IFERROR(MAX((ABS(BQ7)-ABS(BT7)),0),"") -> 0 | BX7: =IFERROR(BU7/(1+($C$15+1%)/365*(AJ7-C38)),"") -> 2921982.215 | BY7: =IFERROR(BV7/(1+($C$15+1%)/365*(AJ7-C38)),"") -> 313201.1202 | BZ7: =IFERROR(BW7/(1+($C$15+1%)/365*(AJ7-C38)),"") -> 0
F8: Hitelre jutó támogatás intenzítása (EUR) | G8: =G7/eurelszamolhato -> 0.005721010082 | J8: =AI8>$D$15 -> FALSE | N8: =IF(ISBLANK(L7),"",L7) ->  | O8: =IF(ISBLANK(L7),0,M7+O7) -> 0 | P8: 0 | Q8: 0 | AA8: 2017-02-15 | AB8: 0 | AC8: 150000000 | AD8: -287671.2329 | AE8: -92054.79452 | AF8: 28 | AH8: 2 | AI8: =IF(COUNT(AJ8)=1,AI7+1,"") -> 2 | AJ8: =IF(OR(AJ7=$C$41,AJ7=""),"",IFERROR(IF(EDATE($C$40,(AH8-1)*12/$D$19)<=$C$41,EDATE($C$40,(AH8-1)*12/$D$19),$C$41),"")) -> 2017-03-15 | AK8: =+IF(COUNT(AK7)<>0,SUM(AK7:AL7)*(1-J8),"") -> 150000000 | AL8: =IF(torlesztes="Egyedi",-SUMIFS(U$7:U$210,T$7:T$210,">"&AJ7,T$7:T$210,"<="&AJ8),IFERROR(IF(torlesztes="Egyenlő tőke",IF(COUNT($AK$7:AK8)>$D$15,"",-$AK$5/$D$15),0),"")) -> 0 | AM8: =IF(torlesztes="Egyedi",SUMIFS(X$7:X$210,T$7:T$210,">"&AJ7,T$7:T$210,"<="&AJ8)+AD8,IFERROR(-AK8*piacikamat/365*(AJ8-AJ7),"")) -> -287671.2329 | AN8: =+IF(COUNT(AN7)<>0,SUM(AN7:AO7)*(1-J8),"") -> 150000000 | AO8: =IF(torlesztes="Egyedi",-SUMIFS(U$7:U$210,T$7:T$210,">"&AJ7,T$7:T$210,"<="&AJ8),IFERROR(IF(torlesztes="Egyenlő tőke",IF(COUNT($AN$7:AN8)>$D$15,"",-$AK$5/$D$15),0),"")) -> 0 | AP8: =IF(torlesztes="Egyedi",SUMIFS(Y$7:Y$210,T$7:T$210,">"&AJ7,T$7:T$210,"<="&AJ8)+AE8,IFERROR(IF(AJ8<=$D$28,-AN8*tenylegeskamat1/365*(AJ8-AJ7),IF(AJ8<=$D$29,IF(AJ7>$D$28,-AK8*tenylegeskamat2/365*(AJ8-AJ7),(-AN8*tenylegeskamat1/365*($D$28-AJ7))+(-AN8*tenylegeskamat2/365*(AJ8-$D$28))),IF(AJ7>$D$29,-AK8*tenylegeskamat3/365*(AJ8-AJ7),IF(AJ7<=$D$28,(-AN8*tenylegeskamat1/365*($D$28-AJ7))+(-AN8*tenylegeskamat2/365*($D$29-$D$28))+(-AN8*tenylegeskamat3/365*(AJ8-$D$29)),(-AN8*tenylegeskamat2/365*($D$29-AJ7))+(-AN8*tenylegeskamat3/365*(AJ8-$D$29)))))),"")) -> -92054.79452 | AR8: =IFERROR(MAX((ABS(AM8)-ABS(AP8)),0),"") -> 195616.4384 | AS8: =IFERROR(AR8/POWER(1+($C$15+1%)/$D$19,AI8-1)/(1+($C$15+1%)/365*($AJ$7-$C$38)),"") -> 194669.8047 | AT8: 28 | AW8: 0 | AX8: 0 | AY8: 0 | AZ8: 0 | BA8: 0 | BB8: 0 | BD8: 0 | BE8: 0 | BG8: 0 | BH8: 0 | BI8: 0 | BJ8: -287671.2329 | BK8: 0 | BL8: 0 | BM8: -92054.79452 | BN8: 0 | BO8: =IF(torlesztes="Egyedi",SUMIFS(BC$7:BC$210,T$7:T$210,">"&AJ7,T$7:T$210,"<="&AJ8)+BI8,IFERROR(IF(AJ8<=$D$28,-AK8*piacikamat/365*(AJ8-AJ7),IF(AJ8<=$D$29,IF(AJ7>$D$28,0,(-AK8*piacikamat/365*($D$28-AJ7))),IF(AJ7>$D$29,0,IF(AJ7<=$D$28,(-AK8*piacikamat/365*($D$28-AJ7)),0)))),"")) -> 0 | BP8: =IF(torlesztes="Egyedi",SUMIFS(BD$7:BD$210,T$7:T$210,">"&AJ7,T$7:T$210,"<="&AJ8)+BJ8,IFERROR(IF(AJ8<=$D$28,0,IF(AJ8<=$D$29,IF(AJ7>$D$28,-AK8*piacikamat/365*(AJ8-AJ7),(-AK8*piacikamat/365*(AJ8-$D$28))),IF(AJ7>$D$29,0,IF(AJ7<=$D$28,(-AK8*piacikamat/365*($D$29-$D$28)),(-AK8*piacikamat/365*($D$29-AJ7)))))),"")) -> -287671.2329 | BQ8: =IF(torlesztes="Egyedi",SUMIFS(BE$7:BE$210,T$7:T$210,">"&AJ7,T$7:T$210,"<="&AJ8)+BK8,IFERROR(IF(AJ8<=$D$28,0,IF(AJ8<=$D$29,IF(AJ7>$D$28,0,0),IF(AJ7>$D$29,-AK8*piacikamat/365*(AJ8-AJ7),IF(AJ7<=$D$28,(-AK8*piacikamat/365*(AJ8-$D$29)),(-AK8*piacikamat/365*(AJ8-$D$29)))))),"")) -> 0 | BR8: =IF(torlesztes="Egyedi",SUMIFS(BF$7:BF$210,T$7:T$210,">"&AJ7,T$7:T$210,"<="&AJ8)+BL8,IFERROR(IF(AJ8<=$D$28,-AN8*tenylegeskamat1/365*(AJ8-AJ7),IF(AJ8<=$D$29,IF(AJ7>$D$28,0,(-AN8*tenylegeskamat1/365*($D$28-AJ7))),IF(AJ7>$D$29,0,IF(AJ7<=$D$28,(-AN8*tenylegeskamat1/365*($D$28-AJ7)),0)))),"")) -> 0 | BS8: =IF(torlesztes="Egyedi",SUMIFS(BG$7:BG$210,T$7:T$210,">"&AJ7,T$7:T$210,"<="&AJ8)+BM8,IFERROR(IF(AJ8<=$D$28,0,IF(AJ8<=$D$29,IF(AJ7>$D$28,-AK8*tenylegeskamat2/365*(AJ8-AJ7),(-AN8*tenylegeskamat2/365*(AJ8-$D$28))),IF(AJ7>$D$29,0,IF(AJ7<=$D$28,(-AN8*tenylegeskamat2/365*($D$29-$D$28)),(-AN8*tenylegeskamat2/365*($D$29-AJ7)))))),"")) -> -92054.79452 | BT8: =IF(torlesztes="Egyedi",SUMIFS(BH$7:BH$210,T$7:T$210,">"&AJ7,T$7:T$210,"<="&AJ8)+BN8,IFERROR(IF(AJ8<=$D$28,0,IF(AJ8<=$D$29,IF(AJ7>$D$28,0,0),IF(AJ7>$D$29,-AK8*tenylegeskamat3/365*(AJ8-AJ7),IF(AJ7<=$D$28,(-AN8*tenylegeskamat3/365*(AJ8-$D$29)),(-AN8*tenylegeskamat3/365*(AJ8-$D$29)))))),"")) -> 0 | BU8: =IFERROR(MAX((ABS(BO8)-ABS(BR8)),0),"") -> 0 | BV8: =IFERROR(MAX((ABS(BP8)-ABS(BS8)),0),"") -> 195616.4384 | BW8: =IFERROR(MAX((ABS(BQ8)-ABS(BT8)),0),"") -> 0 | BX8: =IFERROR(BU8/POWER(1+($C$15+1%)/$D$19,AI8-1)/(1+($C$15+1%)/365*($AJ$7-$C$38)),"") -> 0 | BY8: =IFERROR(BV8/POWER(1+($C$15+1%)/$D$19,AI8-1)/(1+($C$15+1%)/365*($AJ$7-$C$38)),"") -> 194669.8047 | BZ8: =IFERROR(BW8/POWER(1+($C$15+1%)/$D$19,AI8-1)/(1+($C$15+1%)/365*($AJ$7-$C$38)),"") -> 0
D9: Makrohoz kellenek (ne töröld ki!): | J9: FALSE | N9: =IF(ISBLANK(L8),"",L8) ->  | O9: =IF(ISBLANK(L8),0,M8+O8) -> 0 | P9: 0 | Q9: 0 | AA9: 2017-03-15 | AB9: 0 | AC9: 150000000 | AD9: -318493.1507 | AE9: -101917.8082 | AF9: 31 | AH9: 3 | AI9: =IF(COUNT(AJ9)=1,AI8+1,"") -> 3 | AJ9: 2017-04-15 | AK9: 150000000 | AL9: =IF(torlesztes="Egyedi",-SUMIFS(U$7:U$210,T$7:T$210,">"&AJ8,T$7:T$210,"<="&AJ9),IFERROR(IF(torlesztes="Egyenlő tőke",IF(COUNT($AK$7:AK9)>$D$15,"",-$AK$5/$D$15),0),"")) -> 0 | AM9: -318493.1507 | AN9: 150000000 | AO9: =IF(torlesztes="Egyedi",-SUMIFS(U$7:U$210,T$7:T$210,">"&AJ8,T$7:T$210,"<="&AJ9),IFERROR(IF(torlesztes="Egyenlő tőke",IF(COUNT($AN$7:AN9)>$D$15,"",-$AK$5/$D$15),0),"")) -> 0 | AP9: -101917.8082 | AR9: 216575.3425 | AS9: 215294.0486 | AT9: 31 | AW9: 0 | AX9: 0 | AY9: 0 | AZ9: 0 | BA9: 0 | BB9: 0 | BD9: 0 | BE9: 0 | BG9: 0 | BH9: 0 | BI9: 0 | BJ9: -318493.1507 | BK9: 0 | BL9: 0 | BM9: -101917.8082 | BN9: 0 | BO9: 0 | BP9: -318493.1507 | BQ9: 0 | BR9: 0 | BS9: -101917.8082 | BT9: 0 | BU9: 0 | BV9: 216575.3425 | BW9: 0 | BX9: 0 | BY9: 215294.0486 | BZ9: 0
B10: Kamatozás módja | C10: Változó fix | D10: =+C21/D19 -> 0.002083333333 | F10: Korábban megítélt támogatások adatai | J10: FALSE | O10: 0 | P10: 0 | Q10: 0 | AA10: 2017-04-15 | AB10: 0 | AC10: 150000000 | AD10: -308219.1781 | AE10: -98630.13699 | AF10: 30 | AH10: 4 | AI10: =IF(COUNT(AJ10)=1,AI9+1,"") -> 4 | AJ10: 2017-05-15 | AK10: 150000000 | AL10: =IF(torlesztes="Egyedi",-SUMIFS(U$7:U$210,T$7:T$210,">"&AJ9,T$7:T$210,"<="&AJ10),IFERROR(IF(torlesztes="Egyenlő tőke",IF(COUNT($AK$7:AK10)>$D$15,"",-$AK$5/$D$15),0),"")) -> 0 | AM10: -308219.1781 | AN10: 150000000 | AO10: =IF(torlesztes="Egyedi",-SUMIFS(U$7:U$210,T$7:T$210,">"&AJ9,T$7:T$210,"<="&AJ10),IFERROR(IF(torlesztes="Egyenlő tőke",IF(COUNT($AN$7:AN10)>$D$15,"",-$AK$5/$D$15),0),"")) -> 0 | AP10: -98630.13699 | AR10: 209589.0411 | AS10: 208123.612 | AT10: 30 | AW10: 0 | AX10: 0 | AY10: 0 | AZ10: 0 | BA10: 0 | BB10: 0 | BD10: 0 | BE10: 0 | BG10: 0 | BH10: 0 | BI10: 0 | BJ10: -308219.1781 | BK10: 0 | BL10: 0 | BM10: -98630.13699 | BN10: 0 | BO10: 0 | BP10: -308219.1781 | BQ10: 0 | BR10: 0 | BS10: -98630.13699 | BT10: 0 | BU10: 0 | BV10: 209589.0411 | BW10: 0 | BX10: 0 | BY10: 208123.612 | BZ10: 0
B11: A hiteligénylés melyik rendelethez kötődik? | C11: GBER 14, 17-es jogcímek | D11: =VLOOKUP(C18,Adatok!E4:H9,4,FALSE)/10000 -> 0.04 | F11: Korábban megítélt állami támogatások rendeleti alapja | G11: ABER | J11: FALSE | O11: 0 | P11: 0 | Q11: 0 | AA11: 2017-05-15 | AB11: 0 | AC11: 150000000 | AD11: -318493.1507 | AE11: -101917.8082 | AF11: 31 | AH11: 5 | AI11: 5 | AJ11: 2017-06-15 | AK11: 150000000 | AL11: =IF(torlesztes="Egyedi",-SUMIFS(U$7:U$210,T$7:T$210,">"&AJ10,T$7:T$210,"<="&AJ11),IFERROR(IF(torlesztes="Egyenlő tőke",IF(COUNT($AK$7:AK11)>$D$15,"",-$AK$5/$D$15),0),"")) -> 0 | AM11: -318493.1507 | AN11: 150000000 | AO11: =IF(torlesztes="Egyedi",-SUMIFS(U$7:U$210,T$7:T$210,">"&AJ10,T$7:T$210,"<="&AJ11),IFERROR(IF(torlesztes="Egyenlő tőke",IF(COUNT($AN$7:AN11)>$D$15,"",-$AK$5/$D$15),0),"")) -> 0 | AP11: -101917.8082 | AR11: 216575.3425 | AS11: 214828.335 | AT11: 31 | AW11: 0 | AX11: 0 | AY11: 0 | AZ11: 0 | BA11: 0 | BB11: 0 | BD11: 0 | BE11: 0 | BG11: 0 | BH11: 0 | BI11: 0 | BJ11: -318493.1507 | BK11: 0 | BL11: 0 | BM11: -101917.8082 | BN11: 0 | BO11: 0 | BP11: -318493.1507 | BQ11: 0 | BR11: 0 | BS11: -101917.8082 | BT11: 0 | BU11: 0 | BV11: 216575.3425 | BW11: 0 | BX11: 0 | BY11: 214828.335 | BZ11: 0
D12: 0.0001 | F12: Korábban megítélt állami támogatások jogcíme | J12: FALSE | O12: 0 | P12: 0 | Q12: 0 | AA12: 2017-06-15 | AB12: 0 | AC12: 150000000 | AD12: -308219.1781 | AE12: -98630.13699 | AF12: 30 | AH12: 6 | AI12: 6 | AJ12: 2017-07-15 | AK12: 150000000 | AL12: =IF(torlesztes="Egyedi",-SUMIFS(U$7:U$210,T$7:T$210,">"&AJ11,T$7:T$210,"<="&AJ12),IFERROR(IF(torlesztes="Egyenlő tőke",IF(COUNT($AK$7:AK12)>$D$15,"",-$AK$5/$D$15),0),"")) -> 0 | AM12: -308219.1781 | AN12: 150000000 | AO12: =IF(torlesztes="Egyedi",-SUMIFS(U$7:U$210,T$7:T$210,">"&AJ11,T$7:T$210,"<="&AJ12),IFERROR(IF(torlesztes="Egyenlő tőke",IF(COUNT($AN$7:AN12)>$D$15,"",-$AK$5/$D$15),0),"")) -> 0 | AP12: -98630.13699 | AR12: 209589.0411 | AS12: 207673.4092 | AT12: 30 | AW12: 0 | AX12: 0 | AY12: 0 | AZ12: 0 | BA12: 0 | BB12: 0 | BD12: 0 | BE12: 0 | BG12: 0 | BH12: 0 | BI12: 0 | BJ12: -308219.1781 | BK12: 0 | BL12: 0 | BM12: -98630.13699 | BN12: 0 | BO12: 0 | BP12: -308219.1781 | BQ12: 0 | BR12: 0 | BS12: -98630.13699 | BT12: 0 | BU12: 0 | BV12: 209589.0411 | BW12: 0 | BX12: 0 | BY12: 207673.4092 | BZ12: 0
B13: Egyéni referencia kamatláb meghatározása | F13: Korábban megítélt állami támogatás összege (EUR) | G13: 10000 | J13: FALSE | O13: 0 | P13: 0 | Q13: 0 | AA13: 2017-07-15 | AB13: 0 | AC13: 150000000 | AD13: -318493.1507 | AE13: -101917.8082 | AF13: 31 | AH13: 7 | AI13: 7 | AJ13: 2017-08-15 | AK13: 150000000 | AL13: =IF(torlesztes="Egyedi",-SUMIFS(U$7:U$210,T$7:T$210,">"&AJ12,T$7:T$210,"<="&AJ13),IFERROR(IF(torlesztes="Egyenlő tőke",IF(COUNT($AK$7:AK13)>$D$15,"",-$AK$5/$D$15),0),"")) -> 0 | AM13: -318493.1507 | AN13: 150000000 | AO13: =IF(torlesztes="Egyedi",-SUMIFS(U$7:U$210,T$7:T$210,">"&AJ12,T$7:T$210,"<="&AJ13),IFERROR(IF(torlesztes="Egyenlő tőke",IF(COUNT($AN$7:AN13)>$D$15,"",-$AK$5/$D$15),0),"")) -> 0 | AP13: -101917.8082 | AR13: 216575.3425 | AS13: 214363.6289 | AT13: 31 | AW13: 0 | AX13: 0 | AY13: 0 | AZ13: 0 | BA13: 0 | BB13: 0 | BD13: 0 | BE13: 0 | BG13: 0 | BH13: 0 | BI13: 0 | BJ13: -318493.1507 | BK13: 0 | BL13: 0 | BM13: -101917.8082 | BN13: 0 | BO13: 0 | BP13: -318493.1507 | BQ13: 0 | BR13: 0 | BS13: -101917.8082 | BT13: 0 | BU13: 0 | BV13: 216575.3425 | BW13: 0 | BX13: 0 | BY13: 214363.6289 | BZ13: 0
B14: Hitel devizaneme | C14: HUF | J14: FALSE | O14: 0 | P14: 0 | Q14: 0 | AA14: 2017-08-15 | AB14: 0 | AC14: 150000000 | AD14: -318493.1507 | AE14: -101917.8082 | AF14: 31 | AH14: 8 | AI14: 8 | AJ14: 2017-09-15 | AK14: 150000000 | AL14: =IF(torlesztes="Egyedi",-SUMIFS(U$7:U$210,T$7:T$210,">"&AJ13,T$7:T$210,"<="&AJ14),IFERROR(IF(torlesztes="Egyenlő tőke",IF(COUNT($AK$7:AK14)>$D$15,"",-$AK$5/$D$15),0),"")) -> 0 | AM14: -318493.1507 | AN14: 150000000 | AO14: =IF(torlesztes="Egyedi",-SUMIFS(U$7:U$210,T$7:T$210,">"&AJ13,T$7:T$210,"<="&AJ14),IFERROR(IF(torlesztes="Egyenlő tőke",IF(COUNT($AN$7:AN14)>$D$15,"",-$AK$5/$D$15),0),"")) -> 0 | AP14: -101917.8082 | AR14: 216575.3425 | AS14: 214131.653 | AT14: 31 | AW14: 0 | AX14: 0 | AY14: 0 | AZ14: 0 | BA14: 0 | BB14: 0 | BD14: 0 | BE14: 0 | BG14: 0 | BH14: 0 | BI14: 0 | BJ14: -318493.1507 | BK14: 0 | BL14: 0 | BM14: -101917.8082 | BN14: 0 | BO14: 0 | BP14: -318493.1507 | BQ14: 0 | BR14: 0 | BS14: -101917.8082 | BT14: 0 | BU14: 0 | BV14: 216575.3425 | BW14: 0 | BX14: 0 | BY14: 214131.653 | BZ14: 0
B15: Referencia alapkamat | C15: =VLOOKUP(C14,Adatok!A5:B7,2,0) -> 0.003 | D15: =COUNT(AI7:AI210) -> 24 | F15: Teljes(kumulált) támogatás intenzítása | J15: FALSE | O15: 0 | P15: 0 | Q15: 0 | AA15: 2017-09-15 | AB15: 0 | AC15: 150000000 | AD15: -308219.1781 | AE15: -98630.13699 | AF15: 30 | AH15: 9 | AI15: 9 | AJ15: 2017-10-15 | AK15: 150000000 | AL15: =IF(torlesztes="Egyedi",-SUMIFS(U$7:U$210,T$7:T$210,">"&AJ14,T$7:T$210,"<="&AJ15),IFERROR(IF(torlesztes="Egyenlő tőke",IF(COUNT($AK$7:AK15)>$D$15,"",-$AK$5/$D$15),0),"")) -> 0 | AM15: -308219.1781 | AN15: 150000000 | AO15: =IF(torlesztes="Egyedi",-SUMIFS(U$7:U$210,T$7:T$210,">"&AJ14,T$7:T$210,"<="&AJ15),IFERROR(IF(torlesztes="Egyenlő tőke",IF(COUNT($AN$7:AN15)>$D$15,"",-$AK$5/$D$15),0),"")) -> 0 | AP15: -98630.13699 | AR15: 209589.0411 | AS15: 206999.9304 | AT15: 30 | AW15: 0 | AX15: 0 | AY15: 0 | AZ15: 0 | BA15: 0 | BB15: 0 | BD15: 0 | BE15: 0 | BG15: 0 | BH15: 0 | BI15: 0 | BJ15: -308219.1781 | BK15: 0 | BL15: 0 | BM15: -98630.13699 | BN15: 0 | BO15: 0 | BP15: -308219.1781 | BQ15: 0 | BR15: 0 | BS15: -98630.13699 | BT15: 0 | BU15: 0 | BV15: 209589.0411 | BW15: 0 | BX15: 0 | BY15: 206999.9304 | BZ15: 0
B16: Van hitelfelvevői múltja vagy mérleg alapú hitelminősítése a hitelfelvevőnek? | C16: Van | F16: =IF(G16<C36,"Nem lehet kisebb, mint a hitelösszeg","Beruházás elszámolható költsége ("&C35&")") -> Beruházás elszámolható költsége (HUF) | G16: 1400000000 | J16: FALSE | O16: 0 | P16: 0 | Q16: 0 | AA16: 2017-10-15 | AB16: 0 | AC16: 150000000 | AD16: -318493.1507 | AE16: -101917.8082 | AF16: 31 | AH16: 10 | AI16: =IF(COUNT(AJ16)=1,AI15+1,"") -> 10 | AJ16: 2017-11-15 | AK16: 150000000 | AL16: =IF(torlesztes="Egyedi",-SUMIFS(U$7:U$210,T$7:T$210,">"&AJ15,T$7:T$210,"<="&AJ16),IFERROR(IF(torlesztes="Egyenlő tőke",IF(COUNT($AK$7:AK16)>$D$15,"",-$AK$5/$D$15),0),"")) -> 0 | AM16: -318493.1507 | AN16: 150000000 | AO16: =IF(torlesztes="Egyedi",-SUMIFS(U$7:U$210,T$7:T$210,">"&AJ15,T$7:T$210,"<="&AJ16),IFERROR(IF(torlesztes="Egyenlő tőke",IF(COUNT($AN$7:AN16)>$D$15,"",-$AK$5/$D$15),0),"")) -> 0 | AP16: -101917.8082 | AR16: 216575.3425 | AS16: 213668.4539 | AT16: 31 | AW16: 0 | AX16: 0 | AY16: 0 | AZ16: 0 | BA16: 0 | BB16: 0 | BD16: 0 | BE16: 0 | BG16: 0 | BH16: 0 | BI16: 0 | BJ16: -318493.1507 | BK16: 0 | BL16: 0 | BM16: -101917.8082 | BN16: 0 | BO16: 0 | BP16: -318493.1507 | BQ16: 0 | BR16: 0 | BS16: -101917.8082 | BT16: 0 | BU16: 0 | BV16: 216575.3425 | BW16: 0 | BX16: 0 | BY16: 213668.4539 | BZ16: 0
B17: Cégbesorolás | F17: Beruházás elszámolható költsége (EUR) | G17: =G16/IF(C35<>"EUR",arfolyam,1) -> 4000000 | J17: FALSE | O17: 0 | P17: 0 | Q17: 0 | AA17: 2017-11-15 | AB17: 0 | AC17: 150000000 | AD17: -308219.1781 | AE17: -98630.13699 | AF17: 30 | AH17: 11 | AI17: =IF(COUNT(AJ17)=1,AI16+1,"") -> 11 | AJ17: 2017-12-15 | AK17: 150000000 | AL17: =IF(torlesztes="Egyedi",-SUMIFS(U$7:U$210,T$7:T$210,">"&AJ16,T$7:T$210,"<="&AJ17),IFERROR(IF(torlesztes="Egyenlő tőke",IF(COUNT($AK$7:AK17)>$D$15,"",-$AK$5/$D$15),0),"")) -> 0 | AM17: -308219.1781 | AN17: 150000000 | AO17: =IF(torlesztes="Egyedi",-SUMIFS(U$7:U$210,T$7:T$210,">"&AJ16,T$7:T$210,"<="&AJ17),IFERROR(IF(torlesztes="Egyenlő tőke",IF(COUNT($AN$7:AN17)>$D$15,"",-$AK$5/$D$15),0),"")) -> 0 | AP17: -98630.13699 | AR17: 209589.0411 | AS17: 206552.1583 | AT17: 30 | AW17: 0 | AX17: 0 | AY17: 0 | AZ17: 0 | BA17: 0 | BB17: 0 | BD17: 0 | BE17: 0 | BG17: 0 | BH17: 0 | BI17: 0 | BJ17: -308219.1781 | BK17: 0 | BL17: 0 | BM17: -98630.13699 | BN17: 0 | BO17: 0 | BP17: -308219.1781 | BQ17: 0 | BR17: 0 | BS17: -98630.13699 | BT17: 0 | BU17: 0 | BV17: 209589.0411 | BW17: 0 | BX17: 0 | BY17: 206552.1583 | BZ17: 0
B18: Adósminősítés | C18: Kielégítő | F18: Adott beruházási költséghez kapcsolódó teljes támogatás összege (EUR) | G18: =G7+IF(C11="Egyéb támogatások: pl. Egyéb GBER, ABER, EMVA",G13,C54+C55+C57+C58+C50) -> 37884.04033 | J18: FALSE | O18: 0 | P18: 0 | Q18: 0 | AA18: 2017-12-15 | AB18: 0 | AC18: 150000000 | AD18: -318493.1507 | AE18: -101917.8082 | AF18: 31 | AH18: 12 | AI18: 12 | AJ18: 2018-01-15 | AK18: 150000000 | AL18: =IF(torlesztes="Egyedi",-SUMIFS(U$7:U$210,T$7:T$210,">"&AJ17,T$7:T$210,"<="&AJ18),IFERROR(IF(torlesztes="Egyenlő tőke",IF(COUNT($AK$7:AK18)>$D$15,"",-$AK$5/$D$15),0),"")) -> 0 | AM18: -318493.1507 | AN18: 150000000 | AO18: =IF(torlesztes="Egyedi",-SUMIFS(U$7:U$210,T$7:T$210,">"&AJ17,T$7:T$210,"<="&AJ18),IFERROR(IF(torlesztes="Egyenlő tőke",IF(COUNT($AN$7:AN18)>$D$15,"",-$AK$5/$D$15),0),"")) -> 0 | AP18: -101917.8082 | AR18: 216575.3425 | AS18: 213206.2568 | AT18: 31 | AW18: 0 | AX18: 0 | AY18: 0 | AZ18: 0 | BA18: 0 | BB18: 0 | BD18: 0 | BE18: 0 | BG18: 0 | BH18: 0 | BI18: 0 | BJ18: -318493.1507 | BK18: 0 | BL18: 0 | BM18: -101917.8082 | BN18: 0 | BO18: 0 | BP18: -318493.1507 | BQ18: 0 | BR18: 0 | BS18: -101917.8082 | BT18: 0 | BU18: 0 | BV18: 216575.3425 | BW18: 0 | BX18: 0 | BY18: 213206.2568 | BZ18: 0
B19: Fedezettség | C19: Általános | D19: =VLOOKUP($C$43,Adatok!P3:Q5,2,0) -> 12 | F19: Teljes támogatás intenzítása | G19: =G18/eurelszamolhato -> 0.009471010082 | J19: FALSE | O19: 0 | P19: 0 | Q19: 0 | AA19: 2018-01-15 | AB19: 0 | AC19: 150000000 | AD19: -318493.1507 | AE19: -101917.8082 | AF19: 31 | AH19: 13 | AI19: 13 | AJ19: 2018-02-15 | AK19: 150000000 | AL19: =IF(torlesztes="Egyedi",-SUMIFS(U$7:U$210,T$7:T$210,">"&AJ18,T$7:T$210,"<="&AJ19),IFERROR(IF(torlesztes="Egyenlő tőke",IF(COUNT($AK$7:AK19)>$D$15,"",-$AK$5/$D$15),0),"")) -> 0 | AM19: -318493.1507 | AN19: 150000000 | AO19: =IF(torlesztes="Egyedi",-SUMIFS(U$7:U$210,T$7:T$210,">"&AJ18,T$7:T$210,"<="&AJ19),IFERROR(IF(torlesztes="Egyenlő tőke",IF(COUNT($AN$7:AN19)>$D$15,"",-$AK$5/$D$15),0),"")) -> 0 | AP19: -101917.8082 | AR19: 216575.3425 | AS19: 212975.5333 | AT19: 31 | AW19: 0 | AX19: 0 | AY19: 0 | AZ19: 0 | BA19: 0 | BB19: 0 | BD19: 0 | BE19: 0 | BG19: 0 | BH19: 0 | BI19: 0 | BJ19: -318493.1507 | BK19: 0 | BL19: 0 | BM19: -101917.8082 | BN19: 0 | BO19: 0 | BP19: -318493.1507 | BQ19: 0 | BR19: 0 | BS19: -101917.8082 | BT19: 0 | BU19: 0 | BV19: 216575.3425 | BW19: 0 | BX19: 0 | BY19: 212975.5333 | BZ19: 0
B20: Kockázati felár (bázispont) | C20: =IF(C16="Van",OFFSET(Adatok!$E$4,MATCH(C18,Adatok!$E$5:$E$9,0),MATCH(C19,Adatok!$F$4:$H$4,0),),MAX(OFFSET(Adatok!$E$4,MATCH(C18,Adatok!$E$5:$E$9,0),MATCH(C19,Adatok!$F$4:$H$4,0),),400)) -> 220 | J20: FALSE | O20: 0 | P20: 0 | Q20: 0 | AA20: 2018-02-15 | AB20: 0 | AC20: 150000000 | AD20: -287671.2329 | AE20: -92054.79452 | AF20: 28 | AH20: 14 | AI20: 14 | AJ20: 2018-03-15 | AK20: 150000000 | AL20: =IF(torlesztes="Egyedi",-SUMIFS(U$7:U$210,T$7:T$210,">"&AJ19,T$7:T$210,"<="&AJ20),IFERROR(IF(torlesztes="Egyenlő tőke",IF(COUNT($AK$7:AK20)>$D$15,"",-$AK$5/$D$15),0),"")) -> 0 | AM20: -287671.2329 | AN20: 150000000 | AO20: =IF(torlesztes="Egyedi",-SUMIFS(U$7:U$210,T$7:T$210,">"&AJ19,T$7:T$210,"<="&AJ20),IFERROR(IF(torlesztes="Egyenlő tőke",IF(COUNT($AN$7:AN20)>$D$15,"",-$AK$5/$D$15),0),"")) -> 0 | AP20: -92054.79452 | AR20: 195616.4384 | AS20: 192156.8279 | AT20: 28 | AW20: 0 | AX20: 0 | AY20: 0 | AZ20: 0 | BA20: 0 | BB20: 0 | BD20: 0 | BE20: 0 | BG20: 0 | BH20: 0 | BI20: 0 | BJ20: -287671.2329 | BK20: 0 | BL20: 0 | BM20: -92054.79452 | BN20: 0 | BO20: 0 | BP20: -287671.2329 | BQ20: 0 | BR20: 0 | BS20: -92054.79452 | BT20: 0 | BU20: 0 | BV20: 195616.4384 | BW20: 0 | BX20: 0 | BY20: 192156.8279 | BZ20: 0
B21: Egyéni referencia kamatláb | C21: =+(C15+C20/10000) -> 0.025 | F21: Maximális támogatási mértékek | J21: FALSE | O21: 0 | P21: 0 | Q21: 0 | AA21: 2018-03-15 | AB21: 0 | AC21: 150000000 | AD21: -318493.1507 | AE21: -101917.8082 | AF21: 31 | AH21: 15 | AI21: 15 | AJ21: 2018-04-15 | AK21: 150000000 | AL21: =IF(torlesztes="Egyedi",-SUMIFS(U$7:U$210,T$7:T$210,">"&AJ20,T$7:T$210,"<="&AJ21),IFERROR(IF(torlesztes="Egyenlő tőke",IF(COUNT($AK$7:AK21)>$D$15,"",-$AK$5/$D$15),0),"")) -> 0 | AM21: -318493.1507 | AN21: 150000000 | AO21: =IF(torlesztes="Egyedi",-SUMIFS(U$7:U$210,T$7:T$210,">"&AJ20,T$7:T$210,"<="&AJ21),IFERROR(IF(torlesztes="Egyenlő tőke",IF(COUNT($AN$7:AN21)>$D$15,"",-$AK$5/$D$15),0),"")) -> 0 | AP21: -101917.8082 | AR21: 216575.3425 | AS21: 212514.8351 | AT21: 31 | AW21: 0 | AX21: 0 | AY21: 0 | AZ21: 0 | BA21: 0 | BB21: 0 | BD21: 0 | BE21: 0 | BG21: 0 | BH21: 0 | BI21: 0 | BJ21: -318493.1507 | BK21: 0 | BL21: 0 | BM21: -101917.8082 | BN21: 0 | BO21: 0 | BP21: -318493.1507 | BQ21: 0 | BR21: 0 | BS21: -101917.8082 | BT21: 0 | BU21: 0 | BV21: 216575.3425 | BW21: 0 | BX21: 0 | BY21: 212514.8351 | BZ21: 0
B22: Ügyleti kamat meghatározása | G22: 14-es cikk | H22: 17-es cikk | J22: FALSE | O22: 0 | P22: 0 | Q22: 0 | AA22: 2018-04-15 | AB22: 0 | AC22: 150000000 | AD22: -308219.1781 | AE22: -98630.13699 | AF22: 30 | AH22: 16 | AI22: 16 | AJ22: 2018-05-15 | AK22: 150000000 | AL22: =IF(torlesztes="Egyedi",-SUMIFS(U$7:U$210,T$7:T$210,">"&AJ21,T$7:T$210,"<="&AJ22),IFERROR(IF(torlesztes="Egyenlő tőke",IF(COUNT($AK$7:AK22)>$D$15,"",-$AK$5/$D$15),0),"")) -> 0 | AM22: -308219.1781 | AN22: 150000000 | AO22: =IF(torlesztes="Egyedi",-SUMIFS(U$7:U$210,T$7:T$210,">"&AJ21,T$7:T$210,"<="&AJ22),IFERROR(IF(torlesztes="Egyenlő tőke",IF(COUNT($AN$7:AN22)>$D$15,"",-$AK$5/$D$15),0),"")) -> 0 | AP22: -98630.13699 | AR22: 209589.0411 | AS22: 205436.9611 | AT22: 30 | AW22: 0 | AX22: 0 | AY22: 0 | AZ22: 0 | BA22: 0 | BB22: 0 | BD22: 0 | BE22: 0 | BG22: 0 | BH22: 0 | BI22: 0 | BJ22: -308219.1781 | BK22: 0 | BL22: 0 | BM22: -98630.13699 | BN22: 0 | BO22: 0 | BP22: -308219.1781 | BQ22: 0 | BR22: 0 | BS22: -98630.13699 | BT22: 0 | BU22: 0 | BV22: 209589.0411 | BW22: 0 | BX22: 0 | BY22: 205436.9611 | BZ22: 0
B23: Vállalat méretet | C23: KKV | F23: Maximális támogatásintenzitás (%) | G23: =IF(tizennegyeskizarok=0,"Nem jogosult",IF(ttmax14es=0,0,(G25+C54+C55)/(forintelszamolhato/Tamogatastartalom!C37))) -> 0.55 | H23: =IF(tizenheteskizarok=0,"Nem jogosult",IF(ttmax17es=0,0,(H25+C57+C58)/(eurelszamolhato))) -> 0.2 | J23: FALSE | O23: 0 | P23: 0 | Q23: 0 | AA23: 2018-05-15 | AB23: 0 | AC23: 150000000 | AD23: -318493.1507 | AE23: -101917.8082 | AF23: 31 | AH23: 17 | AI23: 17 | AJ23: 2018-06-15 | AK23: 150000000 | AL23: =IF(torlesztes="Egyedi",-SUMIFS(U$7:U$210,T$7:T$210,">"&AJ22,T$7:T$210,"<="&AJ23),IFERROR(IF(torlesztes="Egyenlő tőke",IF(COUNT($AK$7:AK23)>$D$15,"",-$AK$5/$D$15),0),"")) -> 0 | AM23: -318493.1507 | AN23: 150000000 | AO23: =IF(torlesztes="Egyedi",-SUMIFS(U$7:U$210,T$7:T$210,">"&AJ22,T$7:T$210,"<="&AJ23),IFERROR(IF(torlesztes="Egyenlő tőke",IF(COUNT($AN$7:AN23)>$D$15,"",-$AK$5/$D$15),0),"")) -> 0 | AP23: -101917.8082 | AR23: 216575.3425 | AS23: 212055.1334 | AT23: 31 | AW23: 0 | AX23: 0 | AY23: 0 | AZ23: 0 | BA23: 0 | BB23: 0 | BD23: 0 | BE23: 0 | BG23: 0 | BH23: 0 | BI23: 0 | BJ23: -318493.1507 | BK23: 0 | BL23: 0 | BM23: -101917.8082 | BN23: 0 | BO23: 0 | BP23: -318493.1507 | BQ23: 0 | BR23: 0 | BS23: -101917.8082 | BT23: 0 | BU23: 0 | BV23: 216575.3425 | BW23: 0 | BX23: 0 | BY23: 212055.1334 | BZ23: 0
B24: Hitel futamideje | C24: max. 72 hónap | F24: Maximális hitelösszeg (EUR) | G24: =IF(tizennegyeskizarok=0,"Nem jogosult",hitelpertamogatasarany*Tamogatastartalom!G25) -> 40920596.1 | H24: =IF(tizenheteskizarok=0,"Nem jogosult",hitelpertamogatasarany*H25) -> 14982369.28 | J24: FALSE | O24: 0 | P24: 0 | Q24: 0 | AA24: 2018-06-15 | AB24: 0 | AC24: 150000000 | AD24: -308219.1781 | AE24: -98630.13699 | AF24: 30 | AH24: 18 | AI24: 18 | AJ24: 2018-07-15 | AK24: 150000000 | AL24: =IF(torlesztes="Egyedi",-SUMIFS(U$7:U$210,T$7:T$210,">"&AJ23,T$7:T$210,"<="&AJ24),IFERROR(IF(torlesztes="Egyenlő tőke",IF(COUNT($AK$7:AK24)>$D$15,"",-$AK$5/$D$15),0),"")) -> 0 | AM24: -308219.1781 | AN24: 150000000 | AO24: =IF(torlesztes="Egyedi",-SUMIFS(U$7:U$210,T$7:T$210,">"&AJ23,T$7:T$210,"<="&AJ24),IFERROR(IF(torlesztes="Egyenlő tőke",IF(COUNT($AN$7:AN24)>$D$15,"",-$AK$5/$D$15),0),"")) -> 0 | AP24: -98630.13699 | AR24: 209589.0411 | AS24: 204992.5699 | AT24: 30 | AW24: 0 | AX24: 0 | AY24: 0 | AZ24: 0 | BA24: 0 | BB24: 0 | BD24: 0 | BE24: 0 | BG24: 0 | BH24: 0 | BI24: 0 | BJ24: -308219.1781 | BK24: 0 | BL24: 0 | BM24: -98630.13699 | BN24: 0 | BO24: 0 | BP24: -308219.1781 | BQ24: 0 | BR24: 0 | BS24: -98630.13699 | BT24: 0 | BU24: 0 | BV24: 209589.0411 | BW24: 0 | BX24: 0 | BY24: 204992.5699 | BZ24: 0
B25: Referencia alapkamat | C25: =refkam -> 0.003 | F25: Maximális hitelösszeghez tartozó támogatástartalom (EUR) | G25: =IF(tizennegyeskizarok=0,"Nem jogosult",MIN(MAX((Szamitasok!B16*(Szamitasok!B10+0.5*Szamitasok!B11)-C54-C55),0),Szamitasok!B17)) -> 2185000 | H25: =IF(tizenheteskizarok=0,"Nem jogosult",MAX(MIN(((((eurelszamolhato)*vallmeret)-C57-C58)),7.5*1000000),0)) -> 800000 | J25: FALSE | O25: 0 | P25: 0 | Q25: 0 | AA25: 2018-07-15 | AB25: 0 | AC25: 150000000 | AD25: -318493.1507 | AE25: -101917.8082 | AF25: 31 | AH25: 19 | AI25: 19 | AJ25: 2018-08-15 | AK25: 150000000 | AL25: =IF(torlesztes="Egyedi",-SUMIFS(U$7:U$210,T$7:T$210,">"&AJ24,T$7:T$210,"<="&AJ25),IFERROR(IF(torlesztes="Egyenlő tőke",IF(COUNT($AK$7:AK25)>$D$15,"",-$AK$5/$D$15),0),"")) -> 0 | AM25: -318493.1507 | AN25: 150000000 | AO25: =IF(torlesztes="Egyedi",-SUMIFS(U$7:U$210,T$7:T$210,">"&AJ24,T$7:T$210,"<="&AJ25),IFERROR(IF(torlesztes="Egyenlő tőke",IF(COUNT($AN$7:AN25)>$D$15,"",-$AK$5/$D$15),0),"")) -> 0 | AP25: -101917.8082 | AR25: 216575.3425 | AS25: 211596.4261 | AT25: 31 | AW25: 0 | AX25: 0 | AY25: 0 | AZ25: 0 | BA25: 0 | BB25: 0 | BD25: 0 | BE25: 0 | BG25: 0 | BH25: 0 | BI25: 0 | BJ25: -318493.1507 | BK25: 0 | BL25: 0 | BM25: -101917.8082 | BN25: 0 | BO25: 0 | BP25: -318493.1507 | BQ25: 0 | BR25: 0 | BS25: -101917.8082 | BT25: 0 | BU25: 0 | BV25: 216575.3425 | BW25: 0 | BX25: 0 | BY25: 211596.4261 | BZ25: 0
B26: =IF(C10="Változó fix","Kockázati felár (bázispont) ha a futamidő max 12 hónap","Kockázati felár (bázispont)") -> Kockázati felár (bázispont) ha a futamidő max 12 hónap | C26: =IF(C10="Változó fix",VLOOKUP(C$23,Adatok!I$13:L$14,2,0),OFFSET(Adatok!$I$15,MATCH(C23,Adatok!$I$16:$I$17,0),MATCH(C24,Adatok!$J$15:$O$15,0))) -> 25 | J26: FALSE | O26: 0 | P26: 0 | Q26: 0 | AA26: 2018-08-15 | AB26: 0 | AC26: 150000000 | AD26: -318493.1507 | AE26: -101917.8082 | AF26: 31 | AH26: 20 | AI26: 20 | AJ26: 2018-09-15 | AK26: 150000000 | AL26: =IF(torlesztes="Egyedi",-SUMIFS(U$7:U$210,T$7:T$210,">"&AJ25,T$7:T$210,"<="&AJ26),IFERROR(IF(torlesztes="Egyenlő tőke",IF(COUNT($AK$7:AK26)>$D$15,"",-$AK$5/$D$15),0),"")) -> 0 | AM26: -318493.1507 | AN26: 150000000 | AO26: =IF(torlesztes="Egyedi",-SUMIFS(U$7:U$210,T$7:T$210,">"&AJ25,T$7:T$210,"<="&AJ26),IFERROR(IF(torlesztes="Egyenlő tőke",IF(COUNT($AN$7:AN26)>$D$15,"",-$AK$5/$D$15),0),"")) -> 0 | AP26: -101917.8082 | AR26: 216575.3425 | AS26: 211367.4448 | AT26: 31 | AW26: 0 | AX26: 0 | AY26: 0 | AZ26: 0 | BA26: 0 | BB26: 0 | BD26: 0 | BE26: 0 | BG26: 0 | BH26: 0 | BI26: 0 | BJ26: -318493.1507 | BK26: 0 | BL26: 0 | BM26: -101917.8082 | BN26: 0 | BO26: 0 | BP26: -318493.1507 | BQ26: 0 | BR26: 0 | BS26: -101917.8082 | BT26: 0 | BU26: 0 | BV26: 216575.3425 | BW26: 0 | BX26: 0 | BY26: 211367.4448 | BZ26: 0
B27: Kockázati felár (bps) 13 - 36 hónapig | C27: =IF(C10="Változó fix",VLOOKUP(C$23,Adatok!I$13:L$14,3,0),OFFSET(Adatok!$I$15,MATCH(C23,Adatok!$I$16:$I$17,0),MATCH(C24,Adatok!$J$15:$O$15,0))) -> 50 | F27: Hitelösszeg (EUR) | I27: =IF(C35="EUR",+C36,C36/C37) -> 428571.4286 | J27: FALSE | O27: 0 | P27: 0 | Q27: 0 | AA27: 2018-09-15 | AB27: 0 | AC27: 150000000 | AD27: -308219.1781 | AE27: -98630.13699 | AF27: 30 | AH27: 21 | AI27: 21 | AJ27: 2018-10-15 | AK27: 150000000 | AL27: =IF(torlesztes="Egyedi",-SUMIFS(U$7:U$210,T$7:T$210,">"&AJ26,T$7:T$210,"<="&AJ27),IFERROR(IF(torlesztes="Egyenlő tőke",IF(COUNT($AK$7:AK27)>$D$15,"",-$AK$5/$D$15),0),"")) -> 0 | AM27: -308219.1781 | AN27: 150000000 | AO27: =IF(torlesztes="Egyedi",-SUMIFS(U$7:U$210,T$7:T$210,">"&AJ26,T$7:T$210,"<="&AJ27),IFERROR(IF(torlesztes="Egyenlő tőke",IF(COUNT($AN$7:AN27)>$D$15,"",-$AK$5/$D$15),0),"")) -> 0 | AP27: -98630.13699 | AR27: 209589.0411 | AS27: 204327.785 | AT27: 30 | AW27: 0 | AX27: 0 | AY27: 0 | AZ27: 0 | BA27: 0 | BB27: 0 | BD27: 0 | BE27: 0 | BG27: 0 | BH27: 0 | BI27: 0 | BJ27: -308219.1781 | BK27: 0 | BL27: 0 | BM27: -98630.13699 | BN27: 0 | BO27: 0 | BP27: -308219.1781 | BQ27: 0 | BR27: 0 | BS27: -98630.13699 | BT27: 0 | BU27: 0 | BV27: 209589.0411 | BW27: 0 | BX27: 0 | BY27: 204327.785 | BZ27: 0
B28: Kockázati felár (bps) 37 - 72 hónapig | C28: =IF(C10="Változó fix",VLOOKUP(C$23,Adatok!I$13:L$14,4,0),OFFSET(Adatok!$I$15,MATCH(C23,Adatok!$I$16:$I$17,0),MATCH(C24,Adatok!$J$15:$O$15,0))) -> 100 | D28: =DATE(YEAR($C$39)+1,MONTH($C$39),DAY($C$39)) -> 2017-01-01 | F28: Ténylegesen felvett hitel támogatástartalma (EUR) | I28: =IF($C$35="EUR",AU5,(AU5)/C37) -> 22884.04033 | J28: FALSE | O28: 0 | P28: 0 | Q28: 0 | AA28: 2018-10-15 | AB28: 0 | AC28: 150000000 | AD28: -318493.1507 | AE28: -101917.8082 | AF28: 31 | AH28: 22 | AI28: 22 | AJ28: 2018-11-15 | AK28: 150000000 | AL28: =IF(torlesztes="Egyedi",-SUMIFS(U$7:U$210,T$7:T$210,">"&AJ27,T$7:T$210,"<="&AJ28),IFERROR(IF(torlesztes="Egyenlő tőke",IF(COUNT($AK$7:AK28)>$D$15,"",-$AK$5/$D$15),0),"")) -> 0 | AM28: -318493.1507 | AN28: 150000000 | AO28: =IF(torlesztes="Egyedi",-SUMIFS(U$7:U$210,T$7:T$210,">"&AJ27,T$7:T$210,"<="&AJ28),IFERROR(IF(torlesztes="Egyenlő tőke",IF(COUNT($AN$7:AN28)>$D$15,"",-$AK$5/$D$15),0),"")) -> 0 | AP28: -101917.8082 | AR28: 216575.3425 | AS28: 210910.2251 | AT28: 31 | AW28: 0 | AX28: 0 | AY28: 0 | AZ28: 0 | BA28: 0 | BB28: 0 | BD28: 0 | BE28: 0 | BG28: 0 | BH28: 0 | BI28: 0 | BJ28: -318493.1507 | BK28: 0 | BL28: 0 | BM28: -101917.8082 | BN28: 0 | BO28: 0 | BP28: -318493.1507 | BQ28: 0 | BR28: 0 | BS28: -101917.8082 | BT28: 0 | BU28: 0 | BV28: 216575.3425 | BW28: 0 | BX28: 0 | BY28: 210910.2251 | BZ28: 0
B29: =IF(C10="Változó fix","Ügyfél kamat 12 hónapig","Ügyfél kamat") -> Ügyfél kamat 12 hónapig | C29: =MAX(C25+C26/10000,0.001) -> 0.0055 | D29: =DATE(YEAR($C$39)+3,MONTH($C$39),DAY($C$39)) -> 2019-01-01 | F29: ="Hitelösszeg ("&C35&")" -> Hitelösszeg (HUF) | I29: =I27*C37 -> 150000000 | J29: FALSE | O29: 0 | P29: 0 | Q29: 0 | AA29: 2018-11-15 | AB29: 0 | AC29: 150000000 | AD29: -308219.1781 | AE29: -98630.13699 | AF29: 30 | AH29: 23 | AI29: =IF(COUNT(AJ29)=1,AI28+1,"") -> 23 | AJ29: 2018-12-15 | AK29: 150000000 | AL29: =IF(torlesztes="Egyedi",-SUMIFS(U$7:U$210,T$7:T$210,">"&AJ28,T$7:T$210,"<="&AJ29),IFERROR(IF(torlesztes="Egyenlő tőke",IF(COUNT($AK$7:AK29)>$D$15,"",-$AK$5/$D$15),0),"")) -> 0 | AM29: -308219.1781 | AN29: 150000000 | AO29: =IF(torlesztes="Egyedi",-SUMIFS(U$7:U$210,T$7:T$210,">"&AJ28,T$7:T$210,"<="&AJ29),IFERROR(IF(torlesztes="Egyenlő tőke",IF(COUNT($AN$7:AN29)>$D$15,"",-$AK$5/$D$15),0),"")) -> 0 | AP29: -98630.13699 | AR29: 209589.0411 | AS29: 203885.7931 | AT29: 30 | AW29: 0 | AX29: 0 | AY29: 0 | AZ29: 0 | BA29: 0 | BB29: 0 | BD29: 0 | BE29: 0 | BG29: 0 | BH29: 0 | BI29: 0 | BJ29: -308219.1781 | BK29: 0 | BL29: 0 | BM29: -98630.13699 | BN29: 0 | BO29: 0 | BP29: -308219.1781 | BQ29: 0 | BR29: 0 | BS29: -98630.13699 | BT29: 0 | BU29: 0 | BV29: 209589.0411 | BW29: 0 | BX29: 0 | BY29: 203885.7931 | BZ29: 0
B30: Ügyfél kamat 13 - 36 hónapig | C30: =C25+C27/10000 -> 0.008 | F30: Támogatásintenzitás (14-es cikk) | I30: =IFERROR((I28+C54+C55)/(eurelszamolhato),0) -> 0.009471010082 | J30: FALSE | O30: 0 | P30: 0 | Q30: 0 | AA30: 2018-12-15 | AB30: 0 | AC30: 150000000 | AD30: -318493.1507 | AE30: -130684.9315 | AF30: 31 | AH30: 24 | AI30: 24 | AJ30: 2019-01-15 | AK30: 150000000 | AL30: =IF(torlesztes="Egyedi",-SUMIFS(U$7:U$210,T$7:T$210,">"&AJ29,T$7:T$210,"<="&AJ30),IFERROR(IF(torlesztes="Egyenlő tőke",IF(COUNT($AK$7:AK30)>$D$15,"",-$AK$5/$D$15),0),"")) -> 0 | AM30: -318493.1507 | AN30: 150000000 | AO30: =IF(torlesztes="Egyedi",-SUMIFS(U$7:U$210,T$7:T$210,">"&AJ29,T$7:T$210,"<="&AJ30),IFERROR(IF(torlesztes="Egyenlő tőke",IF(COUNT($AN$7:AN30)>$D$15,"",-$AK$5/$D$15),0),"")) -> 0 | AP30: -130684.9315 | AR30: 187808.2192 | AS30: 182499.9534 | AT30: 31 | AW30: 0 | AX30: 0 | AY30: 0 | AZ30: 0 | BA30: 0 | BB30: 0 | BD30: 0 | BE30: 0 | BG30: 0 | BH30: 0 | BI30: 0 | BJ30: -174657.5342 | BK30: -143835.6164 | BL30: 0 | BM30: -55890.41096 | BN30: -74794.52055 | BO30: 0 | BP30: -174657.5342 | BQ30: -143835.6164 | BR30: 0 | BS30: -55890.41096 | BT30: -74794.52055 | BU30: 0 | BV30: 118767.1233 | BW30: 69041.09589 | BX30: 0 | BY30: 115410.255 | BZ30: 67089.69841
B31: Ügyfél kamat 37 - 72 hónapig | C31: =C25+C28/10000 -> 0.013 | F31: Támogatásintenzitás (17-es cikk) | I31: =IFERROR((I28+C57+C58)/(eurelszamolhato),0) -> 0.005721010082 | J31: TRUE | O31: 0 | P31: 0 | Q31: 0 | AA31: 2019-01-15 | AB31: 0 | AC31: 0 | AD31: 0 | AE31: 0 | AH31: 25 | AK31: 0 | AL31: =IF(torlesztes="Egyedi",-SUMIFS(U$7:U$210,T$7:T$210,">"&AJ30,T$7:T$210,"<="&AJ31),IFERROR(IF(torlesztes="Egyenlő tőke",IF(COUNT($AK$7:AK31)>$D$15,"",-$AK$5/$D$15),0),"")) -> 0 | AM31: 0 | AN31: 0 | AO31: =IF(torlesztes="Egyedi",-SUMIFS(U$7:U$210,T$7:T$210,">"&AJ30,T$7:T$210,"<="&AJ31),IFERROR(IF(torlesztes="Egyenlő tőke",IF(COUNT($AN$7:AN31)>$D$15,"",-$AK$5/$D$15),0),"")) -> 0 | AP31: 0 | AR31: 0 | AW31: 0 | AX31: 0 | AY31: 0 | AZ31: 0 | BA31: 0 | BB31: 0 | BD31: 0 | BE31: 0 | BG31: 0 | BH31: 0 | BI31: 0 | BJ31: 0 | BK31: 0 | BL31: 0 | BM31: 0 | BN31: 0 | BO31: 0 | BP31: 0 | BQ31: 0 | BR31: 0 | BS31: 0 | BT31: 0 | BU31: 0 | BV31: 0 | BW31: 0
J32: TRUE | O32: 0 | P32: 0 | Q32: 0 | AA32: 00:00:00 | AB32: 0 | AC32: 0 | AD32: 0 | AE32: 0 | AH32: 26 | AK32: 0 | AL32: =IF(torlesztes="Egyedi",-SUMIFS(U$7:U$210,T$7:T$210,">"&AJ31,T$7:T$210,"<="&AJ32),IFERROR(IF(torlesztes="Egyenlő tőke",IF(COUNT($AK$7:AK32)>$D$15,"",-$AK$5/$D$15),0),"")) -> 0 | AM32: 0 | AN32: 0 | AO32: =IF(torlesztes="Egyedi",-SUMIFS(U$7:U$210,T$7:T$210,">"&AJ31,T$7:T$210,"<="&AJ32),IFERROR(IF(torlesztes="Egyenlő tőke",IF(COUNT($AN$7:AN32)>$D$15,"",-$AK$5/$D$15),0),"")) -> 0 | AP32: 0 | AR32: 0 | AW32: 0 | AX32: 0 | AY32: 0 | AZ32: 0 | BA32: 0 | BB32: 0 | BD32: 0 | BE32: 0 | BG32: 0 | BH32: 0 | BI32: 0 | BJ32: 0 | BK32: 0 | BL32: 0 | BM32: 0 | BN32: 0 | BO32: 0 | BP32: 0 | BQ32: 0 | BR32: 0 | BS32: 0 | BT32: 0 | BU32: 0 | BV32: 0 | BW32: 0
B33: Hitelkarakterisztika | J33: TRUE | O33: 0 | P33: 0 | Q33: 0 | AA33: 00:00:00 | AB33: 0 | AC33: 0 | AD33: 0 | AE33: 0 | AH33: 27 | AK33: 0 | AL33: =IF(torlesztes="Egyedi",-SUMIFS(U$7:U$210,T$7:T$210,">"&AJ32,T$7:T$210,"<="&AJ33),IFERROR(IF(torlesztes="Egyenlő tőke",IF(COUNT($AK$7:AK33)>$D$15,"",-$AK$5/$D$15),0),"")) -> 0 | AM33: 0 | AN33: 0 | AO33: =IF(torlesztes="Egyedi",-SUMIFS(U$7:U$210,T$7:T$210,">"&AJ32,T$7:T$210,"<="&AJ33),IFERROR(IF(torlesztes="Egyenlő tőke",IF(COUNT($AN$7:AN33)>$D$15,"",-$AK$5/$D$15),0),"")) -> 0 | AP33: 0 | AR33: 0 | AW33: 0 | AX33: 0 | AY33: 0 | AZ33: 0 | BA33: 0 | BB33: 0 | BD33: 0 | BE33: 0 | BG33: 0 | BH33: 0 | BI33: 0 | BJ33: 0 | BK33: 0 | BL33: 0 | BM33: 0 | BN33: 0 | BO33: 0 | BP33: 0 | BQ33: 0 | BR33: 0 | BS33: 0 | BT33: 0 | BU33: 0 | BV33: 0 | BW33: 0
B34: Hitel fajtája/célja | C34: Beruházási hitel | J34: TRUE | O34: 0 | P34: 0 | Q34: 0 | AA34: 00:00:00 | AB34: 0 | AC34: 0 | AD34: 0 | AE34: 0 | AH34: 28 | AK34: 0 | AL34: =IF(torlesztes="Egyedi",-SUMIFS(U$7:U$210,T$7:T$210,">"&AJ33,T$7:T$210,"<="&AJ34),IFERROR(IF(torlesztes="Egyenlő tőke",IF(COUNT($AK$7:AK34)>$D$15,"",-$AK$5/$D$15),0),"")) -> 0 | AM34: 0 | AN34: 0 | AO34: =IF(torlesztes="Egyedi",-SUMIFS(U$7:U$210,T$7:T$210,">"&AJ33,T$7:T$210,"<="&AJ34),IFERROR(IF(torlesztes="Egyenlő tőke",IF(COUNT($AN$7:AN34)>$D$15,"",-$AK$5/$D$15),0),"")) -> 0 | AP34: 0 | AR34: 0 | AW34: 0 | AX34: 0 | AY34: 0 | AZ34: 0 | BA34: 0 | BB34: 0 | BD34: 0 | BE34: 0 | BG34: 0 | BH34: 0 | BI34: 0 | BJ34: 0 | BK34: 0 | BL34: 0 | BM34: 0 | BN34: 0 | BO34: 0 | BP34: 0 | BQ34: 0 | BR34: 0 | BS34: 0 | BT34: 0 | BU34: 0 | BV34: 0 | BW34: 0
B35: Hitel devizaneme | C35: =C14 -> HUF | J35: TRUE | O35: 0 | P35: 0 | Q35: 0 | AA35: 00:00:00 | AB35: 0 | AC35: 0 | AD35: 0 | AE35: 0 | AH35: 29 | AK35: 0 | AL35: =IF(torlesztes="Egyedi",-SUMIFS(U$7:U$210,T$7:T$210,">"&AJ34,T$7:T$210,"<="&AJ35),IFERROR(IF(torlesztes="Egyenlő tőke",IF(COUNT($AK$7:AK35)>$D$15,"",-$AK$5/$D$15),0),"")) -> 0 | AM35: 0 | AN35: 0 | AO35: =IF(torlesztes="Egyedi",-SUMIFS(U$7:U$210,T$7:T$210,">"&AJ34,T$7:T$210,"<="&AJ35),IFERROR(IF(torlesztes="Egyenlő tőke",IF(COUNT($AN$7:AN35)>$D$15,"",-$AK$5/$D$15),0),"")) -> 0 | AP35: 0 | AR35: 0 | AW35: 0 | AX35: 0 | AY35: 0 | AZ35: 0 | BA35: 0 | BB35: 0 | BD35: 0 | BE35: 0 | BG35: 0 | BH35: 0 | BI35: 0 | BJ35: 0 | BK35: 0 | BL35: 0 | BM35: 0 | BN35: 0 | BO35: 0 | BP35: 0 | BQ35: 0 | BR35: 0 | BS35: 0 | BT35: 0 | BU35: 0 | BV35: 0 | BW35: 0
B36: ="Hitelösszeg ("&C35&")" -> Hitelösszeg (HUF) | C36: 150000000 | J36: TRUE | O36: 0 | P36: 0 | Q36: 0 | AA36: 00:00:00 | AB36: 0 | AC36: 0 | AD36: 0 | AE36: 0 | AH36: 30 | AK36: 0 | AL36: =IF(torlesztes="Egyedi",-SUMIFS(U$7:U$210,T$7:T$210,">"&AJ35,T$7:T$210,"<="&AJ36),IFERROR(IF(torlesztes="Egyenlő tőke",IF(COUNT($AK$7:AK36)>$D$15,"",-$AK$5/$D$15),0),"")) -> 0 | AM36: 0 | AN36: 0 | AO36: =IF(torlesztes="Egyedi",-SUMIFS(U$7:U$210,T$7:T$210,">"&AJ35,T$7:T$210,"<="&AJ36),IFERROR(IF(torlesztes="Egyenlő tőke",IF(COUNT($AN$7:AN36)>$D$15,"",-$AK$5/$D$15),0),"")) -> 0 | AP36: 0 | AR36: 0 | AW36: 0 | AX36: 0 | AY36: 0 | AZ36: 0 | BA36: 0 | BB36: 0 | BD36: 0 | BE36: 0 | BG36: 0 | BH36: 0 | BI36: 0 | BJ36: 0 | BK36: 0 | BL36: 0 | BM36: 0 | BN36: 0 | BO36: 0 | BP36: 0 | BQ36: 0 | BR36: 0 | BS36: 0 | BT36: 0 | BU36: 0 | BV36: 0 | BW36: 0
B37: ="EUR/"&C35&" árfolyam" -> EUR/HUF árfolyam | C37: 350 | J37: TRUE | O37: 0 | P37: 0 | Q37: 0 | AA37: 00:00:00 | AB37: 0 | AC37: 0 | AD37: 0 | AE37: 0 | AH37: 31 | AK37: 0 | AL37: =IF(torlesztes="Egyedi",-SUMIFS(U$7:U$210,T$7:T$210,">"&AJ36,T$7:T$210,"<="&AJ37),IFERROR(IF(torlesztes="Egyenlő tőke",IF(COUNT($AK$7:AK37)>$D$15,"",-$AK$5/$D$15),0),"")) -> 0 | AM37: 0 | AN37: 0 | AO37: =IF(torlesztes="Egyedi",-SUMIFS(U$7:U$210,T$7:T$210,">"&AJ36,T$7:T$210,"<="&AJ37),IFERROR(IF(torlesztes="Egyenlő tőke",IF(COUNT($AN$7:AN37)>$D$15,"",-$AK$5/$D$15),0),"")) -> 0 | AP37: 0 | AR37: 0 | AW37: 0 | AX37: 0 | AY37: 0 | AZ37: 0 | BA37: 0 | BB37: 0 | BD37: 0 | BE37: 0 | BG37: 0 | BH37: 0 | BI37: 0 | BJ37: 0 | BK37: 0 | BL37: 0 | BM37: 0 | BN37: 0 | BO37: 0 | BP37: 0 | BQ37: 0 | BR37: 0 | BS37: 0 | BT37: 0 | BU37: 0 | BV37: 0 | BW37: 0
B38: Hitel jóváhagyásának várható időpontja (EXIM döntés dátuma) | C38: 2016-11-01 | J38: TRUE | O38: 0 | P38: 0 | Q38: 0 | AA38: 00:00:00 | AB38: 0 | AC38: 0 | AD38: 0 | AE38: 0 | AH38: 32 | AK38: 0 | AL38: =IF(torlesztes="Egyedi",-SUMIFS(U$7:U$210,T$7:T$210,">"&AJ37,T$7:T$210,"<="&AJ38),IFERROR(IF(torlesztes="Egyenlő tőke",IF(COUNT($AK$7:AK38)>$D$15,"",-$AK$5/$D$15),0),"")) -> 0 | AM38: 0 | AN38: 0 | AO38: =IF(torlesztes="Egyedi",-SUMIFS(U$7:U$210,T$7:T$210,">"&AJ37,T$7:T$210,"<="&AJ38),IFERROR(IF(torlesztes="Egyenlő tőke",IF(COUNT($AN$7:AN38)>$D$15,"",-$AK$5/$D$15),0),"")) -> 0 | AP38: 0 | AR38: 0 | AW38: 0 | AX38: 0 | AY38: 0 | AZ38: 0 | BA38: 0 | BB38: 0 | BD38: 0 | BE38: 0 | BG38: 0 | BH38: 0 | BI38: 0 | BJ38: 0 | BK38: 0 | BL38: 0 | BM38: 0 | BN38: 0 | BO38: 0 | BP38: 0 | BQ38: 0 | BR38: 0 | BS38: 0 | BT38: 0 | BU38: 0 | BV38: 0 | BW38: 0
B39: Szerződéskötés várható dátuma | C39: 2016-01-01 | J39: TRUE | O39: 0 | P39: 0 | Q39: 0 | AA39: 00:00:00 | AB39: 0 | AC39: 0 | AD39: 0 | AE39: 0 | AH39: 33 | AK39: 0 | AL39: =IF(torlesztes="Egyedi",-SUMIFS(U$7:U$210,T$7:T$210,">"&AJ38,T$7:T$210,"<="&AJ39),IFERROR(IF(torlesztes="Egyenlő tőke",IF(COUNT($AK$7:AK39)>$D$15,"",-$AK$5/$D$15),0),"")) -> 0 | AM39: 0 | AN39: 0 | AO39: =IF(torlesztes="Egyedi",-SUMIFS(U$7:U$210,T$7:T$210,">"&AJ38,T$7:T$210,"<="&AJ39),IFERROR(IF(torlesztes="Egyenlő tőke",IF(COUNT($AN$7:AN39)>$D$15,"",-$AK$5/$D$15),0),"")) -> 0 | AP39: 0 | AR39: 0 | AW39: 0 | AX39: 0 | AY39: 0 | AZ39: 0 | BA39: 0 | BB39: 0 | BD39: 0 | BE39: 0 | BG39: 0 | BH39: 0 | BI39: 0 | BJ39: 0 | BK39: 0 | BL39: 0 | BM39: 0 | BN39: 0 | BO39: 0 | BP39: 0 | BQ39: 0 | BR39: 0 | BS39: 0 | BT39: 0 | BU39: 0 | BV39: 0 | BW39: 0
B40: Első törlesztés várható dátuma | C40: 2017-02-15 | J40: TRUE | O40: 0 | P40: 0 | Q40: 0 | AA40: 00:00:00 | AB40: 0 | AC40: 0 | AD40: 0 | AE40: 0 | AH40: 34 | AK40: 0 | AL40: =IF(torlesztes="Egyedi",-SUMIFS(U$7:U$210,T$7:T$210,">"&AJ39,T$7:T$210,"<="&AJ40),IFERROR(IF(torlesztes="Egyenlő tőke",IF(COUNT($AK$7:AK40)>$D$15,"",-$AK$5/$D$15),0),"")) -> 0 | AM40: 0 | AN40: 0 | AO40: =IF(torlesztes="Egyedi",-SUMIFS(U$7:U$210,T$7:T$210,">"&AJ39,T$7:T$210,"<="&AJ40),IFERROR(IF(torlesztes="Egyenlő tőke",IF(COUNT($AN$7:AN40)>$D$15,"",-$AK$5/$D$15),0),"")) -> 0 | AP40: 0 | AR40: 0 | AW40: 0 | AX40: 0 | AY40: 0 | AZ40: 0 | BA40: 0 | BB40: 0 | BD40: 0 | BE40: 0 | BG40: 0 | BH40: 0 | BI40: 0 | BJ40: 0 | BK40: 0 | BL40: 0 | BM40: 0 | BN40: 0 | BO40: 0 | BP40: 0 | BQ40: 0 | BR40: 0 | BS40: 0 | BT40: 0 | BU40: 0 | BV40: 0 | BW40: 0
B41: Hitel végső lejáratának várható dátuma | C41: 2019-01-15 | J41: TRUE | O41: 0 | P41: 0 | Q41: 0 | AA41: 00:00:00 | AB41: 0 | AC41: 0 | AD41: 0 | AE41: 0 | AH41: 35 | AK41: 0 | AL41: =IF(torlesztes="Egyedi",-SUMIFS(U$7:U$210,T$7:T$210,">"&AJ40,T$7:T$210,"<="&AJ41),IFERROR(IF(torlesztes="Egyenlő tőke",IF(COUNT($AK$7:AK41)>$D$15,"",-$AK$5/$D$15),0),"")) -> 0 | AM41: 0 | AN41: 0 | AO41: =IF(torlesztes="Egyedi",-SUMIFS(U$7:U$210,T$7:T$210,">"&AJ40,T$7:T$210,"<="&AJ41),IFERROR(IF(torlesztes="Egyenlő tőke",IF(COUNT($AN$7:AN41)>$D$15,"",-$AK$5/$D$15),0),"")) -> 0 | AP41: 0 | AR41: 0 | AW41: 0 | AX41: 0 | AY41: 0 | AZ41: 0 | BA41: 0 | BB41: 0 | BD41: 0 | BE41: 0 | BG41: 0 | BH41: 0 | BI41: 0 | BJ41: 0 | BK41: 0 | BL41: 0 | BM41: 0 | BN41: 0 | BO41: 0 | BP41: 0 | BQ41: 0 | BR41: 0 | BS41: 0 | BT41: 0 | BU41: 0 | BV41: 0 | BW41: 0
B42: Törlesztés módja | C42: Egyedi | J42: TRUE | O42: 0 | P42: 0 | Q42: 0 | AA42: 00:00:00 | AB42: 0 | AC42: 0 | AD42: 0 | AE42: 0 | AH42: 36 | AK42: 0 | AL42: =IF(torlesztes="Egyedi",-SUMIFS(U$7:U$210,T$7:T$210,">"&AJ41,T$7:T$210,"<="&AJ42),IFERROR(IF(torlesztes="Egyenlő tőke",IF(COUNT($AK$7:AK42)>$D$15,"",-$AK$5/$D$15),0),"")) -> 0 | AM42: 0 | AN42: 0 | AO42: =IF(torlesztes="Egyedi",-SUMIFS(U$7:U$210,T$7:T$210,">"&AJ41,T$7:T$210,"<="&AJ42),IFERROR(IF(torlesztes="Egyenlő tőke",IF(COUNT($AN$7:AN42)>$D$15,"",-$AK$5/$D$15),0),"")) -> 0 | AP42: 0 | AR42: 0 | AW42: 0 | AX42: 0 | AY42: 0 | AZ42: 0 | BA42: 0 | BB42: 0 | BD42: 0 | BE42: 0 | BG42: 0 | BH42: 0 | BI42: 0 | BJ42: 0 | BK42: 0 | BL42: 0 | BM42: 0 | BN42: 0 | BO42: 0 | BP42: 0 | BQ42: 0 | BR42: 0 | BS42: 0 | BT42: 0 | BU42: 0 | BV42: 0 | BW42: 0
B43: =IF(torlesztes="Egyenlő tőke","Kamatfizetés/tőketörlesztés gyakorisága","Kamatfizetés gyakorisága") -> Kamatfizetés gyakorisága | C43: Havi | J43: TRUE | O43: 0 | P43: 0 | Q43: 0 | AA43: 00:00:00 | AB43: 0 | AC43: 0 | AD43: 0 | AE43: 0 | AH43: 37 | AK43: 0 | AL43: =IF(torlesztes="Egyedi",-SUMIFS(U$7:U$210,T$7:T$210,">"&AJ42,T$7:T$210,"<="&AJ43),IFERROR(IF(torlesztes="Egyenlő tőke",IF(COUNT($AK$7:AK43)>$D$15,"",-$AK$5/$D$15),0),"")) -> 0 | AM43: 0 | AN43: 0 | AO43: =IF(torlesztes="Egyedi",-SUMIFS(U$7:U$210,T$7:T$210,">"&AJ42,T$7:T$210,"<="&AJ43),IFERROR(IF(torlesztes="Egyenlő tőke",IF(COUNT($AN$7:AN43)>$D$15,"",-$AK$5/$D$15),0),"")) -> 0 | AP43: 0 | AR43: 0 | AT43: =IFERROR(AJ43-AJ42,"") ->  | AW43: 0 | AX43: 0 | AY43: 0 | AZ43: 0 | BA43: 0 | BB43: 0 | BD43: 0 | BE43: 0 | BG43: 0 | BH43: 0 | BI43: 0 | BJ43: 0 | BK43: 0 | BL43: 0 | BM43: 0 | BN43: 0 | BO43: 0 | BP43: 0 | BQ43: 0 | BR43: 0 | BS43: 0 | BT43: 0 | BU43: 0 | BV43: 0 | BW43: 0
J44: TRUE | O44: 0 | P44: 0 | Q44: 0 | AA44: 00:00:00 | AB44: 0 | AC44: 0 | AD44: 0 | AE44: 0 | AH44: 38 | AK44: 0 | AL44: =IF(torlesztes="Egyedi",-SUMIFS(U$7:U$210,T$7:T$210,">"&AJ43,T$7:T$210,"<="&AJ44),IFERROR(IF(torlesztes="Egyenlő tőke",IF(COUNT($AK$7:AK44)>$D$15,"",-$AK$5/$D$15),0),"")) -> 0 | AM44: 0 | AN44: 0 | AO44: =IF(torlesztes="Egyedi",-SUMIFS(U$7:U$210,T$7:T$210,">"&AJ43,T$7:T$210,"<="&AJ44),IFERROR(IF(torlesztes="Egyenlő tőke",IF(COUNT($AN$7:AN44)>$D$15,"",-$AK$5/$D$15),0),"")) -> 0 | AP44: 0 | AR44: 0 | AW44: 0 | AX44: 0 | AY44: 0 | AZ44: 0 | BA44: 0 | BB44: 0 | BD44: 0 | BE44: 0 | BG44: 0 | BH44: 0 | BI44: 0 | BJ44: 0 | BK44: 0 | BL44: 0 | BM44: 0 | BN44: 0 | BO44: 0 | BP44: 0 | BQ44: 0 | BR44: 0 | BS44: 0 | BT44: 0 | BU44: 0 | BV44: 0 | BW44: 0
B45: Korábban megítélt támogatások adatai | J45: TRUE | N45: =IF(ISBLANK(L44),"",L44) ->  | O45: =IF(ISBLANK(L44),0,M44+O44) -> 0 | P45: 0 | Q45: 0 | AA45: 00:00:00 | AB45: 0 | AC45: 0 | AD45: 0 | AE45: 0 | AH45: 39 | AK45: 0 | AL45: =IF(torlesztes="Egyedi",-SUMIFS(U$7:U$210,T$7:T$210,">"&AJ44,T$7:T$210,"<="&AJ45),IFERROR(IF(torlesztes="Egyenlő tőke",IF(COUNT($AK$7:AK45)>$D$15,"",-$AK$5/$D$15),0),"")) -> 0 | AM45: 0 | AN45: 0 | AO45: =IF(torlesztes="Egyedi",-SUMIFS(U$7:U$210,T$7:T$210,">"&AJ44,T$7:T$210,"<="&AJ45),IFERROR(IF(torlesztes="Egyenlő tőke",IF(COUNT($AN$7:AN45)>$D$15,"",-$AK$5/$D$15),0),"")) -> 0 | AP45: 0 | AR45: 0 | AW45: 0 | AX45: 0 | AY45: 0 | AZ45: 0 | BA45: 0 | BB45: 0 | BD45: 0 | BE45: 0 | BG45: 0 | BH45: 0 | BI45: 0 | BJ45: 0 | BK45: 0 | BL45: 0 | BM45: 0 | BN45: 0 | BO45: 0 | BP45: 0 | BQ45: 0 | BR45: 0 | BS45: 0 | BT45: 0 | BU45: 0 | BV45: 0 | BW45: 0
B46: Hiteligénylő cég besorolása | C46: Mikró/Kis | J46: TRUE | O46: 0 | P46: 0 | Q46: 0 | AA46: 00:00:00 | AB46: 0 | AC46: 0 | AD46: 0 | AE46: 0 | AH46: 40 | AK46: 0 | AL46: =IF(torlesztes="Egyedi",-SUMIFS(U$7:U$210,T$7:T$210,">"&AJ45,T$7:T$210,"<="&AJ46),IFERROR(IF(torlesztes="Egyenlő tőke",IF(COUNT($AK$7:AK46)>$D$15,"",-$AK$5/$D$15),0),"")) -> 0 | AM46: 0 | AN46: 0 | AO46: =IF(torlesztes="Egyedi",-SUMIFS(U$7:U$210,T$7:T$210,">"&AJ45,T$7:T$210,"<="&AJ46),IFERROR(IF(torlesztes="Egyenlő tőke",IF(COUNT($AN$7:AN46)>$D$15,"",-$AK$5/$D$15),0),"")) -> 0 | AP46: 0 | AR46: 0 | AW46: 0 | AX46: 0 | AY46: 0 | AZ46: 0 | BA46: 0 | BB46: 0 | BD46: 0 | BE46: 0 | BG46: 0 | BH46: 0 | BI46: 0 | BJ46: 0 | BK46: 0 | BL46: 0 | BM46: 0 | BN46: 0 | BO46: 0 | BP46: 0 | BQ46: 0 | BR46: 0 | BS46: 0 | BT46: 0 | BU46: 0 | BV46: 0 | BW46: 0
B47: Beruházás helyszíne | C47: Közép_Magyarország | J47: TRUE | O47: 0 | P47: 0 | Q47: 0 | AA47: 00:00:00 | AB47: 0 | AC47: 0 | AD47: 0 | AE47: 0 | AH47: 41 | AK47: 0 | AL47: =IF(torlesztes="Egyedi",-SUMIFS(U$7:U$210,T$7:T$210,">"&AJ46,T$7:T$210,"<="&AJ47),IFERROR(IF(torlesztes="Egyenlő tőke",IF(COUNT($AK$7:AK47)>$D$15,"",-$AK$5/$D$15),0),"")) -> 0 | AM47: 0 | AN47: 0 | AO47: =IF(torlesztes="Egyedi",-SUMIFS(U$7:U$210,T$7:T$210,">"&AJ46,T$7:T$210,"<="&AJ47),IFERROR(IF(torlesztes="Egyenlő tőke",IF(COUNT($AN$7:AN47)>$D$15,"",-$AK$5/$D$15),0),"")) -> 0 | AP47: 0 | AR47: 0 | AW47: 0 | AX47: 0 | AY47: 0 | AZ47: 0 | BA47: 0 | BB47: 0 | BD47: 0 | BE47: 0 | BG47: 0 | BH47: 0 | BI47: 0 | BJ47: 0 | BK47: 0 | BL47: 0 | BM47: 0 | BN47: 0 | BO47: 0 | BP47: 0 | BQ47: 0 | BR47: 0 | BS47: 0 | BT47: 0 | BU47: 0 | BV47: 0 | BW47: 0
B48: Melyik település? | C48: Áporka | J48: TRUE | O48: 0 | P48: 0 | Q48: 0 | AA48: 00:00:00 | AB48: 0 | AC48: 0 | AD48: 0 | AE48: 0 | AH48: 42 | AK48: 0 | AL48: =IF(torlesztes="Egyedi",-SUMIFS(U$7:U$210,T$7:T$210,">"&AJ47,T$7:T$210,"<="&AJ48),IFERROR(IF(torlesztes="Egyenlő tőke",IF(COUNT($AK$7:AK48)>$D$15,"",-$AK$5/$D$15),0),"")) -> 0 | AM48: 0 | AN48: 0 | AO48: =IF(torlesztes="Egyedi",-SUMIFS(U$7:U$210,T$7:T$210,">"&AJ47,T$7:T$210,"<="&AJ48),IFERROR(IF(torlesztes="Egyenlő tőke",IF(COUNT($AN$7:AN48)>$D$15,"",-$AK$5/$D$15),0),"")) -> 0 | AP48: 0 | AR48: 0 | AW48: 0 | AX48: 0 | AY48: 0 | AZ48: 0 | BA48: 0 | BB48: 0 | BD48: 0 | BE48: 0 | BG48: 0 | BH48: 0 | BI48: 0 | BJ48: 0 | BK48: 0 | BL48: 0 | BM48: 0 | BN48: 0 | BO48: 0 | BP48: 0 | BQ48: 0 | BR48: 0 | BS48: 0 | BT48: 0 | BU48: 0 | BV48: 0 | BW48: 0
B49: Ugyanazon elszámolható költségre a COVID közlemény alapján megítélt állami támogatás | J49: TRUE | O49: 0 | P49: 0 | Q49: 0 | AA49: 00:00:00 | AB49: 0 | AC49: 0 | AD49: 0 | AE49: 0 | AH49: 43 | AK49: 0 | AL49: =IF(torlesztes="Egyedi",-SUMIFS(U$7:U$210,T$7:T$210,">"&AJ48,T$7:T$210,"<="&AJ49),IFERROR(IF(torlesztes="Egyenlő tőke",IF(COUNT($AK$7:AK49)>$D$15,"",-$AK$5/$D$15),0),"")) -> 0 | AM49: 0 | AN49: 0 | AO49: =IF(torlesztes="Egyedi",-SUMIFS(U$7:U$210,T$7:T$210,">"&AJ48,T$7:T$210,"<="&AJ49),IFERROR(IF(torlesztes="Egyenlő tőke",IF(COUNT($AN$7:AN49)>$D$15,"",-$AK$5/$D$15),0),"")) -> 0 | AP49: 0 | AR49: 0 | AW49: 0 | AX49: 0 | AY49: 0 | AZ49: 0 | BA49: 0 | BB49: 0 | BD49: 0 | BE49: 0 | BG49: 0 | BH49: 0 | BI49: 0 | BJ49: 0 | BK49: 0 | BL49: 0 | BM49: 0 | BN49: 0 | BO49: 0 | BP49: 0 | BQ49: 0 | BR49: 0 | BS49: 0 | BT49: 0 | BU49: 0 | BV49: 0 | BW49: 0
B50: Támogatás mértéke | C50: 0 | J50: TRUE | O50: 0 | P50: 0 | Q50: 0 | AA50: 00:00:00 | AB50: 0 | AC50: 0 | AD50: 0 | AE50: 0 | AH50: 44 | AK50: 0 | AL50: =IF(torlesztes="Egyedi",-SUMIFS(U$7:U$210,T$7:T$210,">"&AJ49,T$7:T$210,"<="&AJ50),IFERROR(IF(torlesztes="Egyenlő tőke",IF(COUNT($AK$7:AK50)>$D$15,"",-$AK$5/$D$15),0),"")) -> 0 | AM50: 0 | AN50: 0 | AO50: =IF(torlesztes="Egyedi",-SUMIFS(U$7:U$210,T$7:T$210,">"&AJ49,T$7:T$210,"<="&AJ50),IFERROR(IF(torlesztes="Egyenlő tőke",IF(COUNT($AN$7:AN50)>$D$15,"",-$AK$5/$D$15),0),"")) -> 0 | AP50: 0 | AR50: 0 | AW50: 0 | AX50: 0 | AY50: 0 | AZ50: 0 | BA50: 0 | BB50: 0 | BD50: 0 | BE50: 0 | BG50: 0 | BH50: 0 | BI50: 0 | BJ50: 0 | BK50: 0 | BL50: 0 | BM50: 0 | BN50: 0 | BO50: 0 | BP50: 0 | BQ50: 0 | BR50: 0 | BS50: 0 | BT50: 0 | BU50: 0 | BV50: 0 | BW50: 0
B51: De minimis alapon megítélt | J51: TRUE | O51: 0 | P51: 0 | Q51: 0 | AA51: 00:00:00 | AB51: 0 | AC51: 0 | AD51: 0 | AE51: 0 | AH51: 45 | AK51: 0 | AL51: =IF(torlesztes="Egyedi",-SUMIFS(U$7:U$210,T$7:T$210,">"&AJ50,T$7:T$210,"<="&AJ51),IFERROR(IF(torlesztes="Egyenlő tőke",IF(COUNT($AK$7:AK51)>$D$15,"",-$AK$5/$D$15),0),"")) -> 0 | AM51: 0 | AN51: 0 | AO51: =IF(torlesztes="Egyedi",-SUMIFS(U$7:U$210,T$7:T$210,">"&AJ50,T$7:T$210,"<="&AJ51),IFERROR(IF(torlesztes="Egyenlő tőke",IF(COUNT($AN$7:AN51)>$D$15,"",-$AK$5/$D$15),0),"")) -> 0 | AP51: 0 | AR51: 0 | AW51: 0 | AX51: 0 | AY51: 0 | AZ51: 0 | BA51: 0 | BB51: 0 | BD51: 0 | BE51: 0 | BG51: 0 | BH51: 0 | BI51: 0 | BJ51: 0 | BK51: 0 | BL51: 0 | BM51: 0 | BN51: 0 | BO51: 0 | BP51: 0 | BQ51: 0 | BR51: 0 | BS51: 0 | BT51: 0 | BU51: 0 | BV51: 0 | BW51: 0
B52: =IF(SUM(C52,C55,C58)<=200000,"De minimis alapon megítélt támogatások teljes összege (EUR)", "De minimis alapon megítélt támogatások teljes összege (EUR) - Összesen max 200 000 EUR!") -> De minimis alapon megítélt támogatások teljes összege (EUR) | C52: 0 | J52: TRUE | O52: 0 | P52: 0 | Q52: 0 | AA52: 00:00:00 | AB52: 0 | AC52: 0 | AD52: 0 | AE52: 0 | AH52: 46 | AK52: 0 | AL52: =IF(torlesztes="Egyedi",-SUMIFS(U$7:U$210,T$7:T$210,">"&AJ51,T$7:T$210,"<="&AJ52),IFERROR(IF(torlesztes="Egyenlő tőke",IF(COUNT($AK$7:AK52)>$D$15,"",-$AK$5/$D$15),0),"")) -> 0 | AM52: 0 | AN52: 0 | AO52: =IF(torlesztes="Egyedi",-SUMIFS(U$7:U$210,T$7:T$210,">"&AJ51,T$7:T$210,"<="&AJ52),IFERROR(IF(torlesztes="Egyenlő tőke",IF(COUNT($AN$7:AN52)>$D$15,"",-$AK$5/$D$15),0),"")) -> 0 | AP52: 0 | AR52: 0 | AW52: 0 | AX52: 0 | AY52: 0 | AZ52: 0 | BA52: 0 | BB52: 0 | BD52: 0 | BE52: 0 | BG52: 0 | BH52: 0 | BI52: 0 | BJ52: 0 | BK52: 0 | BL52: 0 | BM52: 0 | BN52: 0 | BO52: 0 | BP52: 0 | BQ52: 0 | BR52: 0 | BS52: 0 | BT52: 0 | BU52: 0 | BV52: 0 | BW52: 0
B53: Azonos megyében folytatott működés során megítélt regionális beruházási támogatások | J53: TRUE | O53: 0 | P53: 0 | Q53: 0 | AA53: 00:00:00 | AB53: 0 | AC53: 0 | AD53: 0 | AE53: 0 | AH53: 47 | AK53: 0 | AL53: =IF(torlesztes="Egyedi",-SUMIFS(U$7:U$210,T$7:T$210,">"&AJ52,T$7:T$210,"<="&AJ53),IFERROR(IF(torlesztes="Egyenlő tőke",IF(COUNT($AK$7:AK53)>$D$15,"",-$AK$5/$D$15),0),"")) -> 0 | AM53: 0 | AN53: 0 | AO53: =IF(torlesztes="Egyedi",-SUMIFS(U$7:U$210,T$7:T$210,">"&AJ52,T$7:T$210,"<="&AJ53),IFERROR(IF(torlesztes="Egyenlő tőke",IF(COUNT($AN$7:AN53)>$D$15,"",-$AK$5/$D$15),0),"")) -> 0 | AP53: 0 | AR53: 0 | AW53: 0 | AX53: 0 | AY53: 0 | AZ53: 0 | BA53: 0 | BB53: 0 | BD53: 0 | BE53: 0 | BG53: 0 | BH53: 0 | BI53: 0 | BJ53: 0 | BK53: 0 | BL53: 0 | BM53: 0 | BN53: 0 | BO53: 0 | BP53: 0 | BQ53: 0 | BR53: 0 | BS53: 0 | BT53: 0 | BU53: 0 | BV53: 0 | BW53: 0
B54: Regionális alapon megítélt beruházási támogatások teljes összege (14. cikk), az azonos tevékenységre, azonos megyében(EUR) | C54: 15000 | J54: TRUE | O54: 0 | P54: 0 | Q54: 0 | AA54: 00:00:00 | AB54: 0 | AC54: 0 | AD54: 0 | AE54: 0 | AH54: 48 | AK54: 0 | AL54: =IF(torlesztes="Egyedi",-SUMIFS(U$7:U$210,T$7:T$210,">"&AJ53,T$7:T$210,"<="&AJ54),IFERROR(IF(torlesztes="Egyenlő tőke",IF(COUNT($AK$7:AK54)>$D$15,"",-$AK$5/$D$15),0),"")) -> 0 | AM54: 0 | AN54: 0 | AO54: =IF(torlesztes="Egyedi",-SUMIFS(U$7:U$210,T$7:T$210,">"&AJ53,T$7:T$210,"<="&AJ54),IFERROR(IF(torlesztes="Egyenlő tőke",IF(COUNT($AN$7:AN54)>$D$15,"",-$AK$5/$D$15),0),"")) -> 0 | AP54: 0 | AR54: 0 | AW54: 0 | AX54: 0 | AY54: 0 | AZ54: 0 | BA54: 0 | BB54: 0 | BD54: 0 | BE54: 0 | BG54: 0 | BH54: 0 | BI54: 0 | BJ54: 0 | BK54: 0 | BL54: 0 | BM54: 0 | BN54: 0 | BO54: 0 | BP54: 0 | BQ54: 0 | BR54: 0 | BS54: 0 | BT54: 0 | BU54: 0 | BV54: 0 | BW54: 0
B55: =IF(SUM(C52,C55,C58)<=200000,"De minimis alapon megítélt támogatások (EUR)", "De minimis alapon megítélt támogatások (EUR) - Összesen max 200 000 EUR!") -> De minimis alapon megítélt támogatások (EUR) | C55: 0 | J55: TRUE | O55: 0 | P55: 0 | Q55: 0 | AA55: 00:00:00 | AB55: 0 | AC55: 0 | AD55: 0 | AE55: 0 | AH55: 49 | AK55: 0 | AL55: =IF(torlesztes="Egyedi",-SUMIFS(U$7:U$210,T$7:T$210,">"&AJ54,T$7:T$210,"<="&AJ55),IFERROR(IF(torlesztes="Egyenlő tőke",IF(COUNT($AK$7:AK55)>$D$15,"",-$AK$5/$D$15),0),"")) -> 0 | AM55: 0 | AN55: 0 | AO55: =IF(torlesztes="Egyedi",-SUMIFS(U$7:U$210,T$7:T$210,">"&AJ54,T$7:T$210,"<="&AJ55),IFERROR(IF(torlesztes="Egyenlő tőke",IF(COUNT($AN$7:AN55)>$D$15,"",-$AK$5/$D$15),0),"")) -> 0 | AP55: 0 | AR55: 0 | AW55: 0 | AX55: 0 | AY55: 0 | AZ55: 0 | BA55: 0 | BB55: 0 | BD55: 0 | BE55: 0 | BG55: 0 | BH55: 0 | BI55: 0 | BJ55: 0 | BK55: 0 | BL55: 0 | BM55: 0 | BN55: 0 | BO55: 0 | BP55: 0 | BQ55: 0 | BR55: 0 | BS55: 0 | BT55: 0 | BU55: 0 | BV55: 0 | BW55: 0
B56: KKV-ék részére megítélt beruházási támogatások | J56: TRUE | O56: 0 | P56: 0 | Q56: 0 | AA56: 00:00:00 | AB56: 0 | AC56: 0 | AD56: 0 | AE56: 0 | AH56: 50 | AK56: 0 | AL56: =IF(torlesztes="Egyedi",-SUMIFS(U$7:U$210,T$7:T$210,">"&AJ55,T$7:T$210,"<="&AJ56),IFERROR(IF(torlesztes="Egyenlő tőke",IF(COUNT($AK$7:AK56)>$D$15,"",-$AK$5/$D$15),0),"")) -> 0 | AM56: 0 | AN56: 0 | AO56: =IF(torlesztes="Egyedi",-SUMIFS(U$7:U$210,T$7:T$210,">"&AJ55,T$7:T$210,"<="&AJ56),IFERROR(IF(torlesztes="Egyenlő tőke",IF(COUNT($AN$7:AN56)>$D$15,"",-$AK$5/$D$15),0),"")) -> 0 | AP56: 0 | AR56: 0 | AW56: 0 | AX56: 0 | AY56: 0 | AZ56: 0 | BA56: 0 | BB56: 0 | BD56: 0 | BE56: 0 | BG56: 0 | BH56: 0 | BI56: 0 | BJ56: 0 | BK56: 0 | BL56: 0 | BM56: 0 | BN56: 0 | BO56: 0 | BP56: 0 | BQ56: 0 | BR56: 0 | BS56: 0 | BT56: 0 | BU56: 0 | BV56: 0 | BW56: 0
B57: 17-es cikk alapján elszámolható költségre (KKV-ék részére nyújtott beruházási támogatások) megítélt támogatások összege (EUR) | C57: 0 | J57: TRUE | O57: 0 | P57: 0 | Q57: 0 | AA57: 00:00:00 | AB57: 0 | AC57: 0 | AD57: 0 | AE57: 0 | AH57: 51 | AK57: 0 | AL57: =IF(torlesztes="Egyedi",-SUMIFS(U$7:U$210,T$7:T$210,">"&AJ56,T$7:T$210,"<="&AJ57),IFERROR(IF(torlesztes="Egyenlő tőke",IF(COUNT($AK$7:AK57)>$D$15,"",-$AK$5/$D$15),0),"")) -> 0 | AM57: 0 | AN57: 0 | AO57: =IF(torlesztes="Egyedi",-SUMIFS(U$7:U$210,T$7:T$210,">"&AJ56,T$7:T$210,"<="&AJ57),IFERROR(IF(torlesztes="Egyenlő tőke",IF(COUNT($AN$7:AN57)>$D$15,"",-$AK$5/$D$15),0),"")) -> 0 | AP57: 0 | AR57: 0 | AW57: 0 | AX57: 0 | AY57: 0 | AZ57: 0 | BA57: 0 | BB57: 0 | BD57: 0 | BE57: 0 | BG57: 0 | BH57: 0 | BI57: 0 | BJ57: 0 | BK57: 0 | BL57: 0 | BM57: 0 | BN57: 0 | BO57: 0 | BP57: 0 | BQ57: 0 | BR57: 0 | BS57: 0 | BT57: 0 | BU57: 0 | BV57: 0 | BW57: 0
B58: =IF(SUM(C52,C55,C58)<=200000,"De minimis alapon megítélt támogatások (EUR)", "De minimis alapon megítélt támogatások (EUR) - Összesen max 200 000 EUR!") -> De minimis alapon megítélt támogatások (EUR) | C58: 0 | J58: TRUE | O58: 0 | P58: 0 | Q58: 0 | AA58: 00:00:00 | AB58: 0 | AC58: 0 | AD58: 0 | AE58: 0 | AH58: 52 | AK58: 0 | AL58: =IF(torlesztes="Egyedi",-SUMIFS(U$7:U$210,T$7:T$210,">"&AJ57,T$7:T$210,"<="&AJ58),IFERROR(IF(torlesztes="Egyenlő tőke",IF(COUNT($AK$7:AK58)>$D$15,"",-$AK$5/$D$15),0),"")) -> 0 | AM58: 0 | AN58: 0 | AO58: =IF(torlesztes="Egyedi",-SUMIFS(U$7:U$210,T$7:T$210,">"&AJ57,T$7:T$210,"<="&AJ58),IFERROR(IF(torlesztes="Egyenlő tőke",IF(COUNT($AN$7:AN58)>$D$15,"",-$AK$5/$D$15),0),"")) -> 0 | AP58: 0 | AR58: 0 | AW58: 0 | AX58: 0 | AY58: 0 | AZ58: 0 | BA58: 0 | BB58: 0 | BD58: 0 | BE58: 0 | BG58: 0 | BH58: 0 | BI58: 0 | BJ58: 0 | BK58: 0 | BL58: 0 | BM58: 0 | BN58: 0 | BO58: 0 | BP58: 0 | BQ58: 0 | BR58: 0 | BS58: 0 | BT58: 0 | BU58: 0 | BV58: 0 | BW58: 0
J59: TRUE | O59: 0 | P59: 0 | Q59: 0 | AA59: 00:00:00 | AB59: 0 | AC59: 0 | AD59: 0 | AE59: 0 | AH59: 53 | AK59: 0 | AL59: =IF(torlesztes="Egyedi",-SUMIFS(U$7:U$210,T$7:T$210,">"&AJ58,T$7:T$210,"<="&AJ59),IFERROR(IF(torlesztes="Egyenlő tőke",IF(COUNT($AK$7:AK59)>$D$15,"",-$AK$5/$D$15),0),"")) -> 0 | AM59: 0 | AN59: 0 | AO59: =IF(torlesztes="Egyedi",-SUMIFS(U$7:U$210,T$7:T$210,">"&AJ58,T$7:T$210,"<="&AJ59),IFERROR(IF(torlesztes="Egyenlő tőke",IF(COUNT($AN$7:AN59)>$D$15,"",-$AK$5/$D$15),0),"")) -> 0 | AP59: 0 | AR59: 0 | AW59: 0 | AX59: 0 | AY59: 0 | AZ59: 0 | BA59: 0 | BB59: 0 | BD59: 0 | BE59: 0 | BG59: 0 | BH59: 0 | BI59: 0 | BJ59: 0 | BK59: 0 | BL59: 0 | BM59: 0 | BN59: 0 | BO59: 0 | BP59: 0 | BQ59: 0 | BR59: 0 | BS59: 0 | BT59: 0 | BU59: 0 | BV59: 0 | BW59: 0
J60: TRUE | O60: 0 | P60: 0 | Q60: 0 | AA60: 00:00:00 | AB60: 0 | AC60: 0 | AD60: 0 | AE60: 0 | AH60: 54 | AK60: 0 | AL60: =IF(torlesztes="Egyedi",-SUMIFS(U$7:U$210,T$7:T$210,">"&AJ59,T$7:T$210,"<="&AJ60),IFERROR(IF(torlesztes="Egyenlő tőke",IF(COUNT($AK$7:AK60)>$D$15,"",-$AK$5/$D$15),0),"")) -> 0 | AM60: 0 | AN60: 0 | AO60: =IF(torlesztes="Egyedi",-SUMIFS(U$7:U$210,T$7:T$210,">"&AJ59,T$7:T$210,"<="&AJ60),IFERROR(IF(torlesztes="Egyenlő tőke",IF(COUNT($AN$7:AN60)>$D$15,"",-$AK$5/$D$15),0),"")) -> 0 | AP60: 0 | AR60: 0 | AW60: 0 | AX60: 0 | AY60: 0 | AZ60: 0 | BA60: 0 | BB60: 0 | BD60: 0 | BE60: 0 | BG60: 0 | BH60: 0 | BI60: 0 | BJ60: 0 | BK60: 0 | BL60: 0 | BM60: 0 | BN60: 0 | BO60: 0 | BP60: 0 | BQ60: 0 | BR60: 0 | BS60: 0 | BT60: 0 | BU60: 0 | BV60: 0 | BW60: 0
J61: TRUE | O61: 0 | P61: 0 | Q61: 0 | AA61: 00:00:00 | AB61: 0 | AC61: 0 | AD61: 0 | AE61: 0 | AH61: 55 | AK61: 0 | AL61: =IF(torlesztes="Egyedi",-SUMIFS(U$7:U$210,T$7:T$210,">"&AJ60,T$7:T$210,"<="&AJ61),IFERROR(IF(torlesztes="Egyenlő tőke",IF(COUNT($AK$7:AK61)>$D$15,"",-$AK$5/$D$15),0),"")) -> 0 | AM61: 0 | AN61: 0 | AO61: =IF(torlesztes="Egyedi",-SUMIFS(U$7:U$210,T$7:T$210,">"&AJ60,T$7:T$210,"<="&AJ61),IFERROR(IF(torlesztes="Egyenlő tőke",IF(COUNT($AN$7:AN61)>$D$15,"",-$AK$5/$D$15),0),"")) -> 0 | AP61: 0 | AR61: 0 | AW61: 0 | AX61: 0 | AY61: 0 | AZ61: 0 | BA61: 0 | BB61: 0 | BD61: 0 | BE61: 0 | BG61: 0 | BH61: 0 | BI61: 0 | BJ61: 0 | BK61: 0 | BL61: 0 | BM61: 0 | BN61: 0 | BO61: 0 | BP61: 0 | BQ61: 0 | BR61: 0 | BS61: 0 | BT61: 0 | BU61: 0 | BV61: 0 | BW61: 0
J62: TRUE | O62: 0 | P62: 0 | Q62: 0 | AA62: 00:00:00 | AB62: 0 | AC62: 0 | AD62: 0 | AE62: 0 | AH62: 56 | AK62: 0 | AL62: =IF(torlesztes="Egyedi",-SUMIFS(U$7:U$210,T$7:T$210,">"&AJ61,T$7:T$210,"<="&AJ62),IFERROR(IF(torlesztes="Egyenlő tőke",IF(COUNT($AK$7:AK62)>$D$15,"",-$AK$5/$D$15),0),"")) -> 0 | AM62: 0 | AN62: 0 | AO62: =IF(torlesztes="Egyedi",-SUMIFS(U$7:U$210,T$7:T$210,">"&AJ61,T$7:T$210,"<="&AJ62),IFERROR(IF(torlesztes="Egyenlő tőke",IF(COUNT($AN$7:AN62)>$D$15,"",-$AK$5/$D$15),0),"")) -> 0 | AP62: 0 | AR62: 0 | AW62: 0 | AX62: 0 | AY62: 0 | AZ62: 0 | BA62: 0 | BB62: 0 | BD62: 0 | BE62: 0 | BG62: 0 | BH62: 0 | BI62: 0 | BJ62: 0 | BK62: 0 | BL62: 0 | BM62: 0 | BN62: 0 | BO62: 0 | BP62: 0 | BQ62: 0 | BR62: 0 | BS62: 0 | BT62: 0 | BU62: 0 | BV62: 0 | BW62: 0
J63: TRUE | O63: 0 | P63: 0 | Q63: 0 | AA63: 00:00:00 | AB63: 0 | AC63: 0 | AD63: 0 | AE63: 0 | AH63: 57 | AK63: 0 | AL63: =IF(torlesztes="Egyedi",-SUMIFS(U$7:U$210,T$7:T$210,">"&AJ62,T$7:T$210,"<="&AJ63),IFERROR(IF(torlesztes="Egyenlő tőke",IF(COUNT($AK$7:AK63)>$D$15,"",-$AK$5/$D$15),0),"")) -> 0 | AM63: 0 | AN63: 0 | AO63: =IF(torlesztes="Egyedi",-SUMIFS(U$7:U$210,T$7:T$210,">"&AJ62,T$7:T$210,"<="&AJ63),IFERROR(IF(torlesztes="Egyenlő tőke",IF(COUNT($AN$7:AN63)>$D$15,"",-$AK$5/$D$15),0),"")) -> 0 | AP63: 0 | AR63: 0 | AW63: 0 | AX63: 0 | AY63: 0 | AZ63: 0 | BA63: 0 | BB63: 0 | BD63: 0 | BE63: 0 | BG63: 0 | BH63: 0 | BI63: 0 | BJ63: 0 | BK63: 0 | BL63: 0 | BM63: 0 | BN63: 0 | BO63: 0 | BP63: 0 | BQ63: 0 | BR63: 0 | BS63: 0 | BT63: 0 | BU63: 0 | BV63: 0 | BW63: 0
J64: TRUE | O64: 0 | P64: 0 | Q64: 0 | AA64: 00:00:00 | AB64: 0 | AC64: 0 | AD64: 0 | AE64: 0 | AH64: 58 | AK64: 0 | AL64: =IF(torlesztes="Egyedi",-SUMIFS(U$7:U$210,T$7:T$210,">"&AJ63,T$7:T$210,"<="&AJ64),IFERROR(IF(torlesztes="Egyenlő tőke",IF(COUNT($AK$7:AK64)>$D$15,"",-$AK$5/$D$15),0),"")) -> 0 | AM64: 0 | AN64: 0 | AO64: =IF(torlesztes="Egyedi",-SUMIFS(U$7:U$210,T$7:T$210,">"&AJ63,T$7:T$210,"<="&AJ64),IFERROR(IF(torlesztes="Egyenlő tőke",IF(COUNT($AN$7:AN64)>$D$15,"",-$AK$5/$D$15),0),"")) -> 0 | AP64: 0 | AR64: 0 | AW64: 0 | AX64: 0 | AY64: 0 | AZ64: 0 | BA64: 0 | BB64: 0 | BD64: 0 | BE64: 0 | BG64: 0 | BH64: 0 | BI64: 0 | BJ64: 0 | BK64: 0 | BL64: 0 | BM64: 0 | BN64: 0 | BO64: 0 | BP64: 0 | BQ64: 0 | BR64: 0 | BS64: 0 | BT64: 0 | BU64: 0 | BV64: 0 | BW64: 0
J65: TRUE | O65: 0 | P65: 0 | Q65: 0 | AA65: 00:00:00 | AB65: 0 | AC65: 0 | AD65: 0 | AE65: 0 | AH65: 59 | AK65: 0 | AL65: =IF(torlesztes="Egyedi",-SUMIFS(U$7:U$210,T$7:T$210,">"&AJ64,T$7:T$210,"<="&AJ65),IFERROR(IF(torlesztes="Egyenlő tőke",IF(COUNT($AK$7:AK65)>$D$15,"",-$AK$5/$D$15),0),"")) -> 0 | AM65: 0 | AN65: 0 | AO65: =IF(torlesztes="Egyedi",-SUMIFS(U$7:U$210,T$7:T$210,">"&AJ64,T$7:T$210,"<="&AJ65),IFERROR(IF(torlesztes="Egyenlő tőke",IF(COUNT($AN$7:AN65)>$D$15,"",-$AK$5/$D$15),0),"")) -> 0 | AP65: 0 | AR65: 0 | AW65: 0 | AX65: 0 | AY65: 0 | AZ65: 0 | BA65: 0 | BB65: 0 | BD65: 0 | BE65: 0 | BG65: 0 | BH65: 0 | BI65: 0 | BJ65: 0 | BK65: 0 | BL65: 0 | BM65: 0 | BN65: 0 | BO65: 0 | BP65: 0 | BQ65: 0 | BR65: 0 | BS65: 0 | BT65: 0 | BU65: 0 | BV65: 0 | BW65: 0
J66: TRUE | O66: 0 | P66: 0 | Q66: 0 | AA66: 00:00:00 | AB66: 0 | AC66: 0 | AD66: 0 | AE66: 0 | AH66: 60 | AK66: 0 | AL66: =IF(torlesztes="Egyedi",-SUMIFS(U$7:U$210,T$7:T$210,">"&AJ65,T$7:T$210,"<="&AJ66),IFERROR(IF(torlesztes="Egyenlő tőke",IF(COUNT($AK$7:AK66)>$D$15,"",-$AK$5/$D$15),0),"")) -> 0 | AM66: 0 | AN66: 0 | AO66: =IF(torlesztes="Egyedi",-SUMIFS(U$7:U$210,T$7:T$210,">"&AJ65,T$7:T$210,"<="&AJ66),IFERROR(IF(torlesztes="Egyenlő tőke",IF(COUNT($AN$7:AN66)>$D$15,"",-$AK$5/$D$15),0),"")) -> 0 | AP66: 0 | AR66: 0 | AW66: 0 | AX66: 0 | AY66: 0 | AZ66: 0 | BA66: 0 | BB66: 0 | BD66: 0 | BE66: 0 | BG66: 0 | BH66: 0 | BI66: 0 | BJ66: 0 | BK66: 0 | BL66: 0 | BM66: 0 | BN66: 0 | BO66: 0 | BP66: 0 | BQ66: 0 | BR66: 0 | BS66: 0 | BT66: 0 | BU66: 0 | BV66: 0 | BW66: 0
J67: TRUE | O67: 0 | P67: 0 | Q67: 0 | AA67: 00:00:00 | AB67: 0 | AC67: 0 | AD67: 0 | AE67: 0 | AH67: 61 | AK67: 0 | AL67: =IF(torlesztes="Egyedi",-SUMIFS(U$7:U$210,T$7:T$210,">"&AJ66,T$7:T$210,"<="&AJ67),IFERROR(IF(torlesztes="Egyenlő tőke",IF(COUNT($AK$7:AK67)>$D$15,"",-$AK$5/$D$15),0),"")) -> 0 | AM67: 0 | AN67: 0 | AO67: =IF(torlesztes="Egyedi",-SUMIFS(U$7:U$210,T$7:T$210,">"&AJ66,T$7:T$210,"<="&AJ67),IFERROR(IF(torlesztes="Egyenlő tőke",IF(COUNT($AN$7:AN67)>$D$15,"",-$AK$5/$D$15),0),"")) -> 0 | AP67: 0 | AR67: 0 | AW67: 0 | AX67: 0 | AY67: 0 | AZ67: 0 | BA67: 0 | BB67: 0 | BD67: 0 | BE67: 0 | BG67: 0 | BH67: 0 | BI67: 0 | BJ67: 0 | BK67: 0 | BL67: 0 | BM67: 0 | BN67: 0 | BO67: 0 | BP67: 0 | BQ67: 0 | BR67: 0 | BS67: 0 | BT67: 0 | BU67: 0 | BV67: 0 | BW67: 0
J68: TRUE | O68: 0 | P68: 0 | Q68: 0 | AA68: 00:00:00 | AB68: 0 | AC68: 0 | AD68: 0 | AE68: 0 | AH68: 62 | AK68: 0 | AL68: =IF(torlesztes="Egyedi",-SUMIFS(U$7:U$210,T$7:T$210,">"&AJ67,T$7:T$210,"<="&AJ68),IFERROR(IF(torlesztes="Egyenlő tőke",IF(COUNT($AK$7:AK68)>$D$15,"",-$AK$5/$D$15),0),"")) -> 0 | AM68: 0 | AN68: 0 | AO68: =IF(torlesztes="Egyedi",-SUMIFS(U$7:U$210,T$7:T$210,">"&AJ67,T$7:T$210,"<="&AJ68),IFERROR(IF(torlesztes="Egyenlő tőke",IF(COUNT($AN$7:AN68)>$D$15,"",-$AK$5/$D$15),0),"")) -> 0 | AP68: 0 | AR68: 0 | AW68: 0 | AX68: 0 | AY68: 0 | AZ68: 0 | BA68: 0 | BB68: 0 | BD68: 0 | BE68: 0 | BG68: 0 | BH68: 0 | BI68: 0 | BJ68: 0 | BK68: 0 | BL68: 0 | BM68: 0 | BN68: 0 | BO68: 0 | BP68: 0 | BQ68: 0 | BR68: 0 | BS68: 0 | BT68: 0 | BU68: 0 | BV68: 0 | BW68: 0
J69: TRUE | O69: 0 | P69: 0 | Q69: 0 | AA69: 00:00:00 | AB69: 0 | AC69: 0 | AD69: 0 | AE69: 0 | AH69: 63 | AK69: 0 | AL69: =IF(torlesztes="Egyedi",-SUMIFS(U$7:U$210,T$7:T$210,">"&AJ68,T$7:T$210,"<="&AJ69),IFERROR(IF(torlesztes="Egyenlő tőke",IF(COUNT($AK$7:AK69)>$D$15,"",-$AK$5/$D$15),0),"")) -> 0 | AM69: 0 | AN69: 0 | AO69: =IF(torlesztes="Egyedi",-SUMIFS(U$7:U$210,T$7:T$210,">"&AJ68,T$7:T$210,"<="&AJ69),IFERROR(IF(torlesztes="Egyenlő tőke",IF(COUNT($AN$7:AN69)>$D$15,"",-$AK$5/$D$15),0),"")) -> 0 | AP69: 0 | AR69: 0 | AW69: 0 | AX69: 0 | AY69: 0 | AZ69: 0 | BA69: 0 | BB69: 0 | BD69: 0 | BE69: 0 | BG69: 0 | BH69: 0 | BI69: 0 | BJ69: 0 | BK69: 0 | BL69: 0 | BM69: 0 | BN69: 0 | BO69: 0 | BP69: 0 | BQ69: 0 | BR69: 0 | BS69: 0 | BT69: 0 | BU69: 0 | BV69: 0 | BW69: 0
J70: TRUE | O70: 0 | P70: 0 | Q70: 0 | AA70: 00:00:00 | AB70: 0 | AC70: 0 | AD70: 0 | AE70: 0 | AH70: 64 | AK70: 0 | AL70: =IF(torlesztes="Egyedi",-SUMIFS(U$7:U$210,T$7:T$210,">"&AJ69,T$7:T$210,"<="&AJ70),IFERROR(IF(torlesztes="Egyenlő tőke",IF(COUNT($AK$7:AK70)>$D$15,"",-$AK$5/$D$15),0),"")) -> 0 | AM70: 0 | AN70: 0 | AO70: =IF(torlesztes="Egyedi",-SUMIFS(U$7:U$210,T$7:T$210,">"&AJ69,T$7:T$210,"<="&AJ70),IFERROR(IF(torlesztes="Egyenlő tőke",IF(COUNT($AN$7:AN70)>$D$15,"",-$AK$5/$D$15),0),"")) -> 0 | AP70: 0 | AR70: 0 | AW70: 0 | AX70: 0 | AY70: 0 | AZ70: 0 | BA70: 0 | BB70: 0 | BD70: 0 | BE70: 0 | BG70: 0 | BH70: 0 | BI70: 0 | BJ70: 0 | BK70: 0 | BL70: 0 | BM70: 0 | BN70: 0 | BO70: 0 | BP70: 0 | BQ70: 0 | BR70: 0 | BS70: 0 | BT70: 0 | BU70: 0 | BV70: 0 | BW70: 0
J71: TRUE | O71: 0 | P71: =IF(AND(ISBLANK(L70),AH71<>1),0,IFERROR(-O71*piacikamat/365*(IF(ISBLANK(L71),$C$40,L71)-N71),"")) -> 0 | Q71: =IF(AND(ISBLANK(L70),AH71<>1),0,IFERROR(IF(IF(ISBLANK(L71),$C$40,L71)<=$D$28,-O71*tenylegeskamat1/365*(IF(ISBLANK(L71),$C$40,L71)-N71),IF(IF(ISBLANK(L71),$C$40,L71)<=$D$29,IF(N71>$D$28,-O71*tenylegeskamat2/365*(IF(ISBLANK(L71),$C$40,L71)-N71),(-O71*tenylegeskamat1/365*($D$28-N71))+(-O71*tenylegeskamat2/365*(IF(ISBLANK(L71),$C$40,L71)-$D$28))),IF(N71>$D$29,-O71*tenylegeskamat3/365*(IF(ISBLANK(L71),$C$40,L71)-N71),IF(N71<=$D$28,(-O71*tenylegeskamat1/365*($D$28-N71))+((-O71*tenylegeskamat2/365*($D$29-$D$28)))+(-O71*tenylegeskamat3/365*(IF(ISBLANK(L71),$C$40,L71)-$D$29)),(-O71*tenylegeskamat2/365*($D$29-N71))+(-O71*tenylegeskamat3/365*(IF(ISBLANK(L71),$C$40,L71)-$D$29)))))),"")) -> 0 | V71: =IF(ISNA(MAX(T70,INDEX(AJ$6:AJ$210,MATCH(T71-1,AJ$6:AJ$210,1)))),"",MAX(T70,INDEX(AJ$6:AJ$210,MATCH(T71-1,AJ$6:AJ$210,1)))) ->  | W71: =IF(ISNA(MIN(IF(OR(ISBLANK(W70),W70=""),INDEX(AK$7:AK$210,MATCH(T71,AJ$7:AJ$210,1)),W70-U70),INDEX(AK$7:AK$210,MATCH(T71,AJ$7:AJ$210,1)))),"",MIN(IF(OR(ISBLANK(W70),W70=""),INDEX(AK$7:AK$210,MATCH(T71,AJ$7:AJ$210,1)),W70-U70),INDEX(AK$7:AK$210,MATCH(T71,AJ$7:AJ$210,1)))) ->  | X71: =IFERROR(-W71*piacikamat/365*(T71-V71),"") ->  | Y71: =IFERROR(IF(T71<=$D$28,-W71*tenylegeskamat1/365*(T71-V71),IF(T71<=$D$29,IF(V71>$D$28,-W71*tenylegeskamat2/365*(T71-V71),(-W71*tenylegeskamat1/365*($D$28-V71))+(-W71*tenylegeskamat2/365*(T71-$D$28))),IF(V71>$D$29,-W71*tenylegeskamat3/365*(T71-V71),IF(V71<=$D$28,(-W71*tenylegeskamat1/365*($D$28-V71))+(-W71*tenylegeskamat2/365*($D$29-$D$28))+(-W71*tenylegeskamat3/365*(T71-$D$29)),(-W71*tenylegeskamat2/365*($D$29-V71))+(-W71*tenylegeskamat3/365*(T71-$D$29)))))),"") ->  | Z71: =IFERROR(T71-V71,"") ->  | AA71: =MAX(AJ70,IF(ISNA(INDEX(T$7:T$210,MATCH(AJ71,T$7:T$210,1))),0,INDEX(T$7:T$210,MATCH(AJ71,T$7:T$210,1)))) -> 00:00:00 | AB71: =IF(ISNA(INDEX(U$7:U$210,MATCH(AJ71,T$7:T$210,1))),0,INDEX(U$7:U$210,MATCH(AJ71,T$7:T$210,1))) -> 0 | AC71: =IF(ISNA(INDEX(W$7:W$210,MATCH(AJ71,T$7:T$210,1))),AK71,INDEX(W$7:W$210,MATCH(AJ71,T$7:T$210,1))) -> 0 | AD71: =IFERROR(-(AC71-AB71)*piacikamat/365*(AJ71-AA71),0) -> 0 | AE71: =IFERROR(IF(AJ71<=$D$28,-(AC71-AB71)*tenylegeskamat1/365*(AJ71-AA71),IF(AJ71<=$D$29,IF(AA71>$D$28,-(AC71-AB71)*tenylegeskamat2/365*(AJ71-AA71),(-(AC71-AB71)*tenylegeskamat1/365*($D$28-AA71))+(-(AC71-AB71)*tenylegeskamat2/365*(AJ71-$D$28))),IF(AA71>$D$29,-(AC71-AB71)*tenylegeskamat3/365*(AJ71-AA71),IF(AA71<=$D$28,(-(AC71-AB71)*tenylegeskamat1/365*($D$28-AA71))+(-(AC71-AB71)*tenylegeskamat2/365*($D$29-$D$28))+(-(AC71-AB71)*tenylegeskamat3/365*(AJ71-$D$29)),(-(AC71-AB71)*tenylegeskamat2/365*($D$29-AA71))+(-(AC71-AB71)*tenylegeskamat3/365*(AJ71-$D$29)))))),0) -> 0 | AF71: =IFERROR(AJ71-AA71,"") ->  | AH71: 65 | AK71: 0 | AL71: =IF(torlesztes="Egyedi",-SUMIFS(U$7:U$210,T$7:T$210,">"&AJ70,T$7:T$210,"<="&AJ71),IFERROR(IF(torlesztes="Egyenlő tőke",IF(COUNT($AK$7:AK71)>$D$15,"",-$AK$5/$D$15),0),"")) -> 0 | AM71: 0 | AN71: 0 | AO71: =IF(torlesztes="Egyedi",-SUMIFS(U$7:U$210,T$7:T$210,">"&AJ70,T$7:T$210,"<="&AJ71),IFERROR(IF(torlesztes="Egyenlő tőke",IF(COUNT($AN$7:AN71)>$D$15,"",-$AK$5/$D$15),0),"")) -> 0 | AP71: 0 | AR71: 0 | AW71: =IF(AND(ISBLANK(L70),AH71<>1),0,IFERROR(IF(IF(ISBLANK(L71),$C$40,L71)<=$D$28,-O71*piacikamat/365*(IF(ISBLANK(L71),$C$40,L71)-N71),IF(IF(ISBLANK(L71),$C$40,L71)<=$D$29,IF(N71>$D$28,0,(-O71*piacikamat/365*($D$28-N71))),IF(N71>$D$29,0,IF(N71<=$D$28,(-O71*piacikamat/365*($D$28-N71)),0)))),"")) -> 0 | AX71: =IF(AND(ISBLANK(L70),AH71<>1),0,IFERROR(IF(IF(ISBLANK(L71),$C$40,L71)<=$D$28,0,IF(IF(ISBLANK(L71),$C$40,L71)<=$D$29,IF(N71>$D$28,-O71*piacikamat/365*(IF(ISBLANK(L71),$C$40,L71)-N71),(-O71*piacikamat/365*(IF(ISBLANK(L71),$C$40,L71)-$D$28))),IF(N71>$D$29,0,IF(N71<=$D$28,(-O71*piacikamat/365*($D$29-$D$28)),(-O71*piacikamat/365*($D$29-N71)))))),"")) -> 0 | AY71: =IF(AND(ISBLANK(L70),AH71<>1),0,IFERROR(IF(IF(ISBLANK(L71),$C$40,L71)<=$D$28,0,IF(IF(ISBLANK(L71),$C$40,L71)<=$D$29,IF(N71>$D$28,0,0),IF(N71>$D$29,-O71*piacikamat/365*(IF(ISBLANK(L71),$C$40,L71)-N71),IF(N71<=$D$28,(-O71*piacikamat/365*(IF(ISBLANK(L71),$C$40,L71)-$D$29)),(-O71*piacikamat/365*(IF(ISBLANK(L71),$C$40,L71)-$D$29)))))),"")) -> 0 | AZ71: =IF(AND(ISBLANK(L70),AH71<>1),0,IFERROR(IF(IF(ISBLANK(L71),$C$40,L71)<=$D$28,-O71*tenylegeskamat1/365*(IF(ISBLANK(L71),$C$40,L71)-N71),IF(IF(ISBLANK(L71),$C$40,L71)<=$D$29,IF(N71>$D$28,0,(-O71*tenylegeskamat1/365*($D$28-N71))),IF(N71>$D$29,0,IF(N71<=$D$28,(-O71*tenylegeskamat1/365*($D$28-N71)),0)))),"")) -> 0 | BA71: =IF(AND(ISBLANK(L70),AH71<>1),0,IFERROR(IF(IF(ISBLANK(L71),$C$40,L71)<=$D$28,0,IF(IF(ISBLANK(L71),$C$40,L71)<=$D$29,IF(N71>$D$28,-O71*tenylegeskamat2/365*(IF(ISBLANK(L71),$C$40,L71)-N71),(-O71*tenylegeskamat2/365*(IF(ISBLANK(L71),$C$40,L71)-$D$28))),IF(N71>$D$29,0,IF(N71<=$D$28,((-O71*tenylegeskamat2/365*($D$29-$D$28))),(-O71*tenylegeskamat2/365*($D$29-N71)))))),"")) -> 0 | BB71: =IF(AND(ISBLANK(L70),AH71<>1),0,IFERROR(IF(IF(ISBLANK(L71),$C$40,L71)<=$D$28,0,IF(IF(ISBLANK(L71),$C$40,L71)<=$D$29,IF(N71>$D$28,0,0),IF(N71>$D$29,-O71*tenylegeskamat3/365*(IF(ISBLANK(L71),$C$40,L71)-N71),IF(N71<=$D$28,(-O71*tenylegeskamat3/365*(IF(ISBLANK(L71),$C$40,L71)-$D$29)),(-O71*tenylegeskamat3/365*(IF(ISBLANK(L71),$C$40,L71)-$D$29)))))),"")) -> 0 | BC71: =IFERROR(IF(T71<=$D$28,-W71*piacikamat/365*(T71-V71),IF(T71<=$D$29,IF(V71>$D$28,0,(-W71*piacikamat/365*($D$28-V71))),IF(V71>$D$29,0,IF(V71<=$D$28,(-W71*piacikamat/365*($D$28-V71)),0)))),"") ->  | BD71: =IFERROR(IF(T71<=$D$28,0,IF(T71<=$D$29,IF(V71>$D$28,-W71*piacikamat/365*(T71-V71),(-W71*piacikamat/365*(T71-$D$28))),IF(V71>$D$29,0,IF(V71<=$D$28,(-W71*piacikamat/365*($D$29-$D$28)),(-W71*piacikamat/365*($D$29-V71)))))),"") -> 0 | BE71: =IFERROR(IF(T71<=$D$28,0,IF(T71<=$D$29,IF(V71>$D$28,0,0),IF(V71>$D$29,-W71*piacikamat/365*(T71-V71),IF(V71<=$D$28,(-W71*piacikamat/365*(T71-$D$29)),(-W71*piacikamat/365*(T71-$D$29)))))),"") -> 0 | BF71: =IFERROR(IF(T71<=$D$28,-W71*tenylegeskamat1/365*(T71-V71),IF(T71<=$D$29,IF(V71>$D$28,0,(-W71*tenylegeskamat1/365*($D$28-V71))),IF(V71>$D$29,0,IF(V71<=$D$28,(-W71*tenylegeskamat1/365*($D$28-V71)),0)))),"") ->  | BG71: =IFERROR(IF(T71<=$D$28,0,IF(T71<=$D$29,IF(V71>$D$28,-W71*tenylegeskamat2/365*(T71-V71),(-W71*tenylegeskamat2/365*(T71-$D$28))),IF(V71>$D$29,0,IF(V71<=$D$28,(-W71*tenylegeskamat2/365*($D$29-$D$28)),(-W71*tenylegeskamat2/365*($D$29-V71)))))),"") -> 0 | BH71: =IFERROR(IF(T71<=$D$28,0,IF(T71<=$D$29,IF(V71>$D$28,0,0),IF(V71>$D$29,-W71*tenylegeskamat3/365*(T71-V71),IF(V71<=$D$28,(-W71*tenylegeskamat3/365*(T71-$D$29)),(-W71*tenylegeskamat3/365*(T71-$D$29)))))),"") -> 0 | BI71: =IFERROR(IF(AJ71<=$D$28,-(AC71-AB71)*piacikamat/365*(AJ71-AA71),IF(AJ71<=$D$29,IF(AA71>$D$28,0,(-(AC71-AB71)*piacikamat/365*($D$28-AA71))),IF(AA71>$D$29,0,IF(AA71<=$D$28,(-(AC71-AB71)*piacikamat/365*($D$28-AA71)),0)))),0) -> 0 | BJ71: =IFERROR(IF(AJ71<=$D$28,0,IF(AJ71<=$D$29,IF(AA71>$D$28,-(AC71-AB71)*piacikamat/365*(AJ71-AA71),(-(AC71-AB71)*piacikamat/365*(AJ71-$D$28))),IF(AA71>$D$29,0,IF(AA71<=$D$28,(-(AC71-AB71)*piacikamat/365*($D$29-$D$28)),(-(AC71-AB71)*piacikamat/365*($D$29-AA71)))))),0) -> 0 | BK71: =IFERROR(IF(AJ71<=$D$28,0,IF(AJ71<=$D$29,IF(AA71>$D$28,0,0),IF(AA71>$D$29,-(AC71-AB71)*piacikamat/365*(AJ71-AA71),IF(AA71<=$D$28,(-(AC71-AB71)*piacikamat/365*(AJ71-$D$29)),(-(AC71-AB71)*piacikamat/365*(AJ71-$D$29)))))),0) -> 0 | BL71: =IFERROR(IF(AJ71<=$D$28,-(AC71-AB71)*tenylegeskamat1/365*(AJ71-AA71),IF(AJ71<=$D$29,IF(AA71>$D$28,0,(-(AC71-AB71)*tenylegeskamat1/365*($D$28-AA71))),IF(AA71>$D$29,0,IF(AA71<=$D$28,(-(AC71-AB71)*tenylegeskamat1/365*($D$28-AA71)),0)))),0) -> 0 | BM71: =IFERROR(IF(AJ71<=$D$28,0,IF(AJ71<=$D$29,IF(AA71>$D$28,-(AC71-AB71)*tenylegeskamat2/365*(AJ71-AA71),(-(AC71-AB71)*tenylegeskamat2/365*(AJ71-$D$28))),IF(AA71>$D$29,0,IF(AA71<=$D$28,(-(AC71-AB71)*tenylegeskamat2/365*($D$29-$D$28)),(-(AC71-AB71)*tenylegeskamat2/365*($D$29-AA71)))))),0) -> 0 | BN71: =IFERROR(IF(AJ71<=$D$28,0,IF(AJ71<=$D$29,IF(AA71>$D$28,0,0),IF(AA71>$D$29,-(AC71-AB71)*tenylegeskamat3/365*(AJ71-AA71),IF(AA71<=$D$28,(-(AC71-AB71)*tenylegeskamat3/365*(AJ71-$D$29)),(-(AC71-AB71)*tenylegeskamat3/365*(AJ71-$D$29)))))),0) -> 0 | BO71: 0 | BP71: 0 | BQ71: 0 | BR71: 0 | BS71: 0 | BT71: 0 | BU71: 0 | BV71: 0 | BW71: 0
J72: =AI72>$D$15 -> TRUE | O72: 0 | P72: 0 | Q72: 0 | AA72: 00:00:00 | AB72: 0 | AC72: 0 | AD72: 0 | AE72: 0 | AH72: 66 | AJ72: =IF(OR(AJ71=$C$41,AJ71=""),"",IFERROR(IF(EDATE($C$40,(AH72-1)*12/$D$19)<=$C$41,EDATE($C$40,(AH72-1)*12/$D$19),$C$41),"")) ->  | AK72: =+IF(COUNT(AK71)<>0,SUM(AK71:AL71)*(1-J72),"") -> 0 | AL72: =IF(torlesztes="Egyedi",-SUMIFS(U$7:U$210,T$7:T$210,">"&AJ71,T$7:T$210,"<="&AJ72),IFERROR(IF(torlesztes="Egyenlő tőke",IF(COUNT($AK$7:AK72)>$D$15,"",-$AK$5/$D$15),0),"")) -> 0 | AM72: =IF(torlesztes="Egyedi",SUMIFS(X$7:X$210,T$7:T$210,">"&AJ71,T$7:T$210,"<="&AJ72)+AD72,IFERROR(-AK72*piacikamat/365*(AJ72-AJ71),"")) -> 0 | AN72: =+IF(COUNT(AN71)<>0,SUM(AN71:AO71)*(1-J72),"") -> 0 | AO72: =IF(torlesztes="Egyedi",-SUMIFS(U$7:U$210,T$7:T$210,">"&AJ71,T$7:T$210,"<="&AJ72),IFERROR(IF(torlesztes="Egyenlő tőke",IF(COUNT($AN$7:AN72)>$D$15,"",-$AK$5/$D$15),0),"")) -> 0 | AP72: =IF(torlesztes="Egyedi",SUMIFS(Y$7:Y$210,T$7:T$210,">"&AJ71,T$7:T$210,"<="&AJ72)+AE72,IFERROR(IF(AJ72<=$D$28,-AN72*tenylegeskamat1/365*(AJ72-AJ71),IF(AJ72<=$D$29,IF(AJ71>$D$28,-AK72*tenylegeskamat2/365*(AJ72-AJ71),(-AN72*tenylegeskamat1/365*($D$28-AJ71))+(-AN72*tenylegeskamat2/365*(AJ72-$D$28))),IF(AJ71>$D$29,-AK72*tenylegeskamat3/365*(AJ72-AJ71),IF(AJ71<=$D$28,(-AN72*tenylegeskamat1/365*($D$28-AJ71))+(-AN72*tenylegeskamat2/365*($D$29-$D$28))+(-AN72*tenylegeskamat3/365*(AJ72-$D$29)),(-AN72*tenylegeskamat2/365*($D$29-AJ71))+(-AN72*tenylegeskamat3/365*(AJ72-$D$29)))))),"")) -> 0 | AR72: =IFERROR(MAX((ABS(AM72)-ABS(AP72)),0),"") -> 0 | AS72: =IFERROR(AR72/POWER(1+($C$15+1%)/$D$19,AI72-1)/(1+($C$15+1%)/365*($AJ$7-$C$38)),"") ->  | AW72: 0 | AX72: 0 | AY72: 0 | AZ72: 0 | BA72: 0 | BB72: 0 | BD72: 0 | BE72: 0 | BG72: 0 | BH72: 0 | BI72: 0 | BJ72: 0 | BK72: 0 | BL72: 0 | BM72: 0 | BN72: 0 | BO72: =IF(torlesztes="Egyedi",SUMIFS(BC$7:BC$210,T$7:T$210,">"&AJ71,T$7:T$210,"<="&AJ72)+BI72,IFERROR(IF(AJ72<=$D$28,-AK72*piacikamat/365*(AJ72-AJ71),IF(AJ72<=$D$29,IF(AJ71>$D$28,0,(-AK72*piacikamat/365*($D$28-AJ71))),IF(AJ71>$D$29,0,IF(AJ71<=$D$28,(-AK72*piacikamat/365*($D$28-AJ71)),0)))),"")) -> 0 | BP72: =IF(torlesztes="Egyedi",SUMIFS(BD$7:BD$210,T$7:T$210,">"&AJ71,T$7:T$210,"<="&AJ72)+BJ72,IFERROR(IF(AJ72<=$D$28,0,IF(AJ72<=$D$29,IF(AJ71>$D$28,-AK72*piacikamat/365*(AJ72-AJ71),(-AK72*piacikamat/365*(AJ72-$D$28))),IF(AJ71>$D$29,0,IF(AJ71<=$D$28,(-AK72*piacikamat/365*($D$29-$D$28)),(-AK72*piacikamat/365*($D$29-AJ71)))))),"")) -> 0 | BQ72: =IF(torlesztes="Egyedi",SUMIFS(BE$7:BE$210,T$7:T$210,">"&AJ71,T$7:T$210,"<="&AJ72)+BK72,IFERROR(IF(AJ72<=$D$28,0,IF(AJ72<=$D$29,IF(AJ71>$D$28,0,0),IF(AJ71>$D$29,-AK72*piacikamat/365*(AJ72-AJ71),IF(AJ71<=$D$28,(-AK72*piacikamat/365*(AJ72-$D$29)),(-AK72*piacikamat/365*(AJ72-$D$29)))))),"")) -> 0 | BR72: =IF(torlesztes="Egyedi",SUMIFS(BF$7:BF$210,T$7:T$210,">"&AJ71,T$7:T$210,"<="&AJ72)+BL72,IFERROR(IF(AJ72<=$D$28,-AN72*tenylegeskamat1/365*(AJ72-AJ71),IF(AJ72<=$D$29,IF(AJ71>$D$28,0,(-AN72*tenylegeskamat1/365*($D$28-AJ71))),IF(AJ71>$D$29,0,IF(AJ71<=$D$28,(-AN72*tenylegeskamat1/365*($D$28-AJ71)),0)))),"")) -> 0 | BS72: =IF(torlesztes="Egyedi",SUMIFS(BG$7:BG$210,T$7:T$210,">"&AJ71,T$7:T$210,"<="&AJ72)+BM72,IFERROR(IF(AJ72<=$D$28,0,IF(AJ72<=$D$29,IF(AJ71>$D$28,-AK72*tenylegeskamat2/365*(AJ72-AJ71),(-AN72*tenylegeskamat2/365*(AJ72-$D$28))),IF(AJ71>$D$29,0,IF(AJ71<=$D$28,(-AN72*tenylegeskamat2/365*($D$29-$D$28)),(-AN72*tenylegeskamat2/365*($D$29-AJ71)))))),"")) -> 0 | BT72: =IF(torlesztes="Egyedi",SUMIFS(BH$7:BH$210,T$7:T$210,">"&AJ71,T$7:T$210,"<="&AJ72)+BN72,IFERROR(IF(AJ72<=$D$28,0,IF(AJ72<=$D$29,IF(AJ71>$D$28,0,0),IF(AJ71>$D$29,-AK72*tenylegeskamat3/365*(AJ72-AJ71),IF(AJ71<=$D$28,(-AN72*tenylegeskamat3/365*(AJ72-$D$29)),(-AN72*tenylegeskamat3/365*(AJ72-$D$29)))))),"")) -> 0 | BU72: =IFERROR(MAX((ABS(BO72)-ABS(BR72)),0),"") -> 0 | BV72: =IFERROR(MAX((ABS(BP72)-ABS(BS72)),0),"") -> 0 | BW72: =IFERROR(MAX((ABS(BQ72)-ABS(BT72)),0),"") -> 0 | BX72: =IFERROR(BU72/POWER(1+($C$15+1%)/$D$19,AI72-1)/(1+($C$15+1%)/365*($AJ$7-$C$38)),"") ->  | BY72: =IFERROR(BV72/POWER(1+($C$15+1%)/$D$19,AI72-1)/(1+($C$15+1%)/365*($AJ$7-$C$38)),"") ->  | BZ72: =IFERROR(BW72/POWER(1+($C$15+1%)/$D$19,AI72-1)/(1+($C$15+1%)/365*($AJ$7-$C$38)),"") -> 
J73: TRUE | O73: 0 | P73: 0 | Q73: 0 | AA73: 00:00:00 | AB73: 0 | AC73: 0 | AD73: 0 | AE73: 0 | AH73: 67 | AI73: =IF(COUNT(AJ73)=1,AI72+1,"") ->  | AK73: 0 | AL73: =IF(torlesztes="Egyedi",-SUMIFS(U$7:U$210,T$7:T$210,">"&AJ72,T$7:T$210,"<="&AJ73),IFERROR(IF(torlesztes="Egyenlő tőke",IF(COUNT($AK$7:AK73)>$D$15,"",-$AK$5/$D$15),0),"")) -> 0 | AM73: 0 | AN73: 0 | AO73: =IF(torlesztes="Egyedi",-SUMIFS(U$7:U$210,T$7:T$210,">"&AJ72,T$7:T$210,"<="&AJ73),IFERROR(IF(torlesztes="Egyenlő tőke",IF(COUNT($AN$7:AN73)>$D$15,"",-$AK$5/$D$15),0),"")) -> 0 | AP73: 0 | AR73: 0 | AW73: 0 | AX73: 0 | AY73: 0 | AZ73: 0 | BA73: 0 | BB73: 0 | BD73: 0 | BE73: 0 | BG73: 0 | BH73: 0 | BI73: 0 | BJ73: 0 | BK73: 0 | BL73: 0 | BM73: 0 | BN73: 0 | BO73: 0 | BP73: 0 | BQ73: 0 | BR73: 0 | BS73: 0 | BT73: 0 | BU73: 0 | BV73: 0 | BW73: 0
J74: TRUE | O74: 0 | P74: 0 | Q74: 0 | AA74: 00:00:00 | AB74: 0 | AC74: 0 | AD74: 0 | AE74: 0 | AH74: 68 | AK74: 0 | AL74: =IF(torlesztes="Egyedi",-SUMIFS(U$7:U$210,T$7:T$210,">"&AJ73,T$7:T$210,"<="&AJ74),IFERROR(IF(torlesztes="Egyenlő tőke",IF(COUNT($AK$7:AK74)>$D$15,"",-$AK$5/$D$15),0),"")) -> 0 | AM74: 0 | AN74: 0 | AO74: =IF(torlesztes="Egyedi",-SUMIFS(U$7:U$210,T$7:T$210,">"&AJ73,T$7:T$210,"<="&AJ74),IFERROR(IF(torlesztes="Egyenlő tőke",IF(COUNT($AN$7:AN74)>$D$15,"",-$AK$5/$D$15),0),"")) -> 0 | AP74: 0 | AR74: 0 | AW74: 0 | AX74: 0 | AY74: 0 | AZ74: 0 | BA74: 0 | BB74: 0 | BD74: 0 | BE74: 0 | BG74: 0 | BH74: 0 | BI74: 0 | BJ74: 0 | BK74: 0 | BL74: 0 | BM74: 0 | BN74: 0 | BO74: 0 | BP74: 0 | BQ74: 0 | BR74: 0 | BS74: 0 | BT74: 0 | BU74: 0 | BV74: 0 | BW74: 0
J75: TRUE | O75: 0 | P75: 0 | Q75: 0 | AA75: 00:00:00 | AB75: 0 | AC75: 0 | AD75: 0 | AE75: 0 | AH75: 69 | AK75: 0 | AL75: =IF(torlesztes="Egyedi",-SUMIFS(U$7:U$210,T$7:T$210,">"&AJ74,T$7:T$210,"<="&AJ75),IFERROR(IF(torlesztes="Egyenlő tőke",IF(COUNT($AK$7:AK75)>$D$15,"",-$AK$5/$D$15),0),"")) -> 0 | AM75: 0 | AN75: 0 | AO75: =IF(torlesztes="Egyedi",-SUMIFS(U$7:U$210,T$7:T$210,">"&AJ74,T$7:T$210,"<="&AJ75),IFERROR(IF(torlesztes="Egyenlő tőke",IF(COUNT($AN$7:AN75)>$D$15,"",-$AK$5/$D$15),0),"")) -> 0 | AP75: 0 | AR75: 0 | AW75: 0 | AX75: 0 | AY75: 0 | AZ75: 0 | BA75: 0 | BB75: 0 | BD75: 0 | BE75: 0 | BG75: 0 | BH75: 0 | BI75: 0 | BJ75: 0 | BK75: 0 | BL75: 0 | BM75: 0 | BN75: 0 | BO75: 0 | BP75: 0 | BQ75: 0 | BR75: 0 | BS75: 0 | BT75: 0 | BU75: 0 | BV75: 0 | BW75: 0
J76: TRUE | O76: 0 | P76: 0 | Q76: 0 | AA76: 00:00:00 | AB76: 0 | AC76: 0 | AD76: 0 | AE76: 0 | AH76: 70 | AK76: 0 | AL76: =IF(torlesztes="Egyedi",-SUMIFS(U$7:U$210,T$7:T$210,">"&AJ75,T$7:T$210,"<="&AJ76),IFERROR(IF(torlesztes="Egyenlő tőke",IF(COUNT($AK$7:AK76)>$D$15,"",-$AK$5/$D$15),0),"")) -> 0 | AM76: 0 | AN76: 0 | AO76: =IF(torlesztes="Egyedi",-SUMIFS(U$7:U$210,T$7:T$210,">"&AJ75,T$7:T$210,"<="&AJ76),IFERROR(IF(torlesztes="Egyenlő tőke",IF(COUNT($AN$7:AN76)>$D$15,"",-$AK$5/$D$15),0),"")) -> 0 | AP76: 0 | AR76: 0 | AW76: 0 | AX76: 0 | AY76: 0 | AZ76: 0 | BA76: 0 | BB76: 0 | BD76: 0 | BE76: 0 | BG76: 0 | BH76: 0 | BI76: 0 | BJ76: 0 | BK76: 0 | BL76: 0 | BM76: 0 | BN76: 0 | BO76: 0 | BP76: 0 | BQ76: 0 | BR76: 0 | BS76: 0 | BT76: 0 | BU76: 0 | BV76: 0 | BW76: 0
J77: TRUE | O77: 0 | P77: 0 | Q77: 0 | AA77: 00:00:00 | AB77: 0 | AC77: 0 | AD77: 0 | AE77: 0 | AH77: 71 | AK77: 0 | AL77: =IF(torlesztes="Egyedi",-SUMIFS(U$7:U$210,T$7:T$210,">"&AJ76,T$7:T$210,"<="&AJ77),IFERROR(IF(torlesztes="Egyenlő tőke",IF(COUNT($AK$7:AK77)>$D$15,"",-$AK$5/$D$15),0),"")) -> 0 | AM77: 0 | AN77: 0 | AO77: =IF(torlesztes="Egyedi",-SUMIFS(U$7:U$210,T$7:T$210,">"&AJ76,T$7:T$210,"<="&AJ77),IFERROR(IF(torlesztes="Egyenlő tőke",IF(COUNT($AN$7:AN77)>$D$15,"",-$AK$5/$D$15),0),"")) -> 0 | AP77: 0 | AR77: 0 | AW77: 0 | AX77: 0 | AY77: 0 | AZ77: 0 | BA77: 0 | BB77: 0 | BD77: 0 | BE77: 0 | BG77: 0 | BH77: 0 | BI77: 0 | BJ77: 0 | BK77: 0 | BL77: 0 | BM77: 0 | BN77: 0 | BO77: 0 | BP77: 0 | BQ77: 0 | BR77: 0 | BS77: 0 | BT77: 0 | BU77: 0 | BV77: 0 | BW77: 0
J78: TRUE | O78: 0 | P78: 0 | Q78: 0 | AA78: 00:00:00 | AB78: 0 | AC78: 0 | AD78: 0 | AE78: 0 | AH78: 72 | AK78: 0 | AL78: =IF(torlesztes="Egyedi",-SUMIFS(U$7:U$210,T$7:T$210,">"&AJ77,T$7:T$210,"<="&AJ78),IFERROR(IF(torlesztes="Egyenlő tőke",IF(COUNT($AK$7:AK78)>$D$15,"",-$AK$5/$D$15),0),"")) -> 0 | AM78: 0 | AN78: 0 | AO78: =IF(torlesztes="Egyedi",-SUMIFS(U$7:U$210,T$7:T$210,">"&AJ77,T$7:T$210,"<="&AJ78),IFERROR(IF(torlesztes="Egyenlő tőke",IF(COUNT($AN$7:AN78)>$D$15,"",-$AK$5/$D$15),0),"")) -> 0 | AP78: 0 | AR78: 0 | AW78: 0 | AX78: 0 | AY78: 0 | AZ78: 0 | BA78: 0 | BB78: 0 | BD78: 0 | BE78: 0 | BG78: 0 | BH78: 0 | BI78: 0 | BJ78: 0 | BK78: 0 | BL78: 0 | BM78: 0 | BN78: 0 | BO78: 0 | BP78: 0 | BQ78: 0 | BR78: 0 | BS78: 0 | BT78: 0 | BU78: 0 | BV78: 0 | BW78: 0
J79: TRUE | O79: 0 | P79: 0 | Q79: 0 | AA79: 00:00:00 | AB79: 0 | AC79: 0 | AD79: 0 | AE79: 0 | AH79: 73 | AK79: 0 | AL79: =IF(torlesztes="Egyedi",-SUMIFS(U$7:U$210,T$7:T$210,">"&AJ78,T$7:T$210,"<="&AJ79),IFERROR(IF(torlesztes="Egyenlő tőke",IF(COUNT($AK$7:AK79)>$D$15,"",-$AK$5/$D$15),0),"")) -> 0 | AM79: 0 | AN79: 0 | AO79: =IF(torlesztes="Egyedi",-SUMIFS(U$7:U$210,T$7:T$210,">"&AJ78,T$7:T$210,"<="&AJ79),IFERROR(IF(torlesztes="Egyenlő tőke",IF(COUNT($AN$7:AN79)>$D$15,"",-$AK$5/$D$15),0),"")) -> 0 | AP79: 0 | AR79: 0 | AW79: 0 | AX79: 0 | AY79: 0 | AZ79: 0 | BA79: 0 | BB79: 0 | BD79: 0 | BE79: 0 | BG79: 0 | BH79: 0 | BI79: 0 | BJ79: 0 | BK79: 0 | BL79: 0 | BM79: 0 | BN79: 0 | BO79: 0 | BP79: 0 | BQ79: 0 | BR79: 0 | BS79: 0 | BT79: 0 | BU79: 0 | BV79: 0 | BW79: 0
J80: TRUE | O80: 0 | P80: 0 | Q80: 0 | AA80: 00:00:00 | AB80: 0 | AC80: 0 | AD80: 0 | AE80: 0 | AH80: 74 | AK80: 0 | AL80: =IF(torlesztes="Egyedi",-SUMIFS(U$7:U$210,T$7:T$210,">"&AJ79,T$7:T$210,"<="&AJ80),IFERROR(IF(torlesztes="Egyenlő tőke",IF(COUNT($AK$7:AK80)>$D$15,"",-$AK$5/$D$15),0),"")) -> 0 | AM80: 0 | AN80: 0 | AO80: =IF(torlesztes="Egyedi",-SUMIFS(U$7:U$210,T$7:T$210,">"&AJ79,T$7:T$210,"<="&AJ80),IFERROR(IF(torlesztes="Egyenlő tőke",IF(COUNT($AN$7:AN80)>$D$15,"",-$AK$5/$D$15),0),"")) -> 0 | AP80: 0 | AR80: 0 | AW80: 0 | AX80: 0 | AY80: 0 | AZ80: 0 | BA80: 0 | BB80: 0 | BD80: 0 | BE80: 0 | BG80: 0 | BH80: 0 | BI80: 0 | BJ80: 0 | BK80: 0 | BL80: 0 | BM80: 0 | BN80: 0 | BO80: 0 | BP80: 0 | BQ80: 0 | BR80: 0 | BS80: 0 | BT80: 0 | BU80: 0 | BV80: 0 | BW80: 0
J81: TRUE | O81: 0 | P81: 0 | Q81: 0 | AA81: 00:00:00 | AB81: 0 | AC81: 0 | AD81: 0 | AE81: 0 | AH81: 75 | AK81: 0 | AL81: =IF(torlesztes="Egyedi",-SUMIFS(U$7:U$210,T$7:T$210,">"&AJ80,T$7:T$210,"<="&AJ81),IFERROR(IF(torlesztes="Egyenlő tőke",IF(COUNT($AK$7:AK81)>$D$15,"",-$AK$5/$D$15),0),"")) -> 0 | AM81: 0 | AN81: 0 | AO81: =IF(torlesztes="Egyedi",-SUMIFS(U$7:U$210,T$7:T$210,">"&AJ80,T$7:T$210,"<="&AJ81),IFERROR(IF(torlesztes="Egyenlő tőke",IF(COUNT($AN$7:AN81)>$D$15,"",-$AK$5/$D$15),0),"")) -> 0 | AP81: 0 | AR81: 0 | AW81: 0 | AX81: 0 | AY81: 0 | AZ81: 0 | BA81: 0 | BB81: 0 | BD81: 0 | BE81: 0 | BG81: 0 | BH81: 0 | BI81: 0 | BJ81: 0 | BK81: 0 | BL81: 0 | BM81: 0 | BN81: 0 | BO81: 0 | BP81: 0 | BQ81: 0 | BR81: 0 | BS81: 0 | BT81: 0 | BU81: 0 | BV81: 0 | BW81: 0
J82: TRUE | O82: 0 | P82: 0 | Q82: 0 | AA82: 00:00:00 | AB82: 0 | AC82: 0 | AD82: 0 | AE82: 0 | AH82: 76 | AK82: 0 | AL82: =IF(torlesztes="Egyedi",-SUMIFS(U$7:U$210,T$7:T$210,">"&AJ81,T$7:T$210,"<="&AJ82),IFERROR(IF(torlesztes="Egyenlő tőke",IF(COUNT($AK$7:AK82)>$D$15,"",-$AK$5/$D$15),0),"")) -> 0 | AM82: 0 | AN82: 0 | AO82: =IF(torlesztes="Egyedi",-SUMIFS(U$7:U$210,T$7:T$210,">"&AJ81,T$7:T$210,"<="&AJ82),IFERROR(IF(torlesztes="Egyenlő tőke",IF(COUNT($AN$7:AN82)>$D$15,"",-$AK$5/$D$15),0),"")) -> 0 | AP82: 0 | AR82: 0 | AW82: 0 | AX82: 0 | AY82: 0 | AZ82: 0 | BA82: 0 | BB82: 0 | BD82: 0 | BE82: 0 | BG82: 0 | BH82: 0 | BI82: 0 | BJ82: 0 | BK82: 0 | BL82: 0 | BM82: 0 | BN82: 0 | BO82: 0 | BP82: 0 | BQ82: 0 | BR82: 0 | BS82: 0 | BT82: 0 | BU82: 0 | BV82: 0 | BW82: 0
J83: TRUE | O83: 0 | P83: 0 | Q83: 0 | AA83: 00:00:00 | AB83: 0 | AC83: 0 | AD83: 0 | AE83: 0 | AH83: 77 | AK83: 0 | AL83: =IF(torlesztes="Egyedi",-SUMIFS(U$7:U$210,T$7:T$210,">"&AJ82,T$7:T$210,"<="&AJ83),IFERROR(IF(torlesztes="Egyenlő tőke",IF(COUNT($AK$7:AK83)>$D$15,"",-$AK$5/$D$15),0),"")) -> 0 | AM83: 0 | AN83: 0 | AO83: =IF(torlesztes="Egyedi",-SUMIFS(U$7:U$210,T$7:T$210,">"&AJ82,T$7:T$210,"<="&AJ83),IFERROR(IF(torlesztes="Egyenlő tőke",IF(COUNT($AN$7:AN83)>$D$15,"",-$AK$5/$D$15),0),"")) -> 0 | AP83: 0 | AR83: 0 | AW83: 0 | AX83: 0 | AY83: 0 | AZ83: 0 | BA83: 0 | BB83: 0 | BD83: 0 | BE83: 0 | BG83: 0 | BH83: 0 | BI83: 0 | BJ83: 0 | BK83: 0 | BL83: 0 | BM83: 0 | BN83: 0 | BO83: 0 | BP83: 0 | BQ83: 0 | BR83: 0 | BS83: 0 | BT83: 0 | BU83: 0 | BV83: 0 | BW83: 0
J84: TRUE | O84: 0 | P84: 0 | Q84: 0 | AA84: 00:00:00 | AB84: 0 | AC84: 0 | AD84: 0 | AE84: 0 | AH84: 78 | AK84: 0 | AL84: =IF(torlesztes="Egyedi",-SUMIFS(U$7:U$210,T$7:T$210,">"&AJ83,T$7:T$210,"<="&AJ84),IFERROR(IF(torlesztes="Egyenlő tőke",IF(COUNT($AK$7:AK84)>$D$15,"",-$AK$5/$D$15),0),"")) -> 0 | AM84: 0 | AN84: 0 | AO84: =IF(torlesztes="Egyedi",-SUMIFS(U$7:U$210,T$7:T$210,">"&AJ83,T$7:T$210,"<="&AJ84),IFERROR(IF(torlesztes="Egyenlő tőke",IF(COUNT($AN$7:AN84)>$D$15,"",-$AK$5/$D$15),0),"")) -> 0 | AP84: 0 | AR84: 0 | AW84: 0 | AX84: 0 | AY84: 0 | AZ84: 0 | BA84: 0 | BB84: 0 | BD84: 0 | BE84: 0 | BG84: 0 | BH84: 0 | BI84: 0 | BJ84: 0 | BK84: 0 | BL84: 0 | BM84: 0 | BN84: 0 | BO84: 0 | BP84: 0 | BQ84: 0 | BR84: 0 | BS84: 0 | BT84: 0 | BU84: 0 | BV84: 0 | BW84: 0
J85: TRUE | O85: 0 | P85: 0 | Q85: 0 | AA85: 00:00:00 | AB85: 0 | AC85: 0 | AD85: 0 | AE85: 0 | AH85: 79 | AK85: 0 | AL85: =IF(torlesztes="Egyedi",-SUMIFS(U$7:U$210,T$7:T$210,">"&AJ84,T$7:T$210,"<="&AJ85),IFERROR(IF(torlesztes="Egyenlő tőke",IF(COUNT($AK$7:AK85)>$D$15,"",-$AK$5/$D$15),0),"")) -> 0 | AM85: 0 | AN85: 0 | AO85: =IF(torlesztes="Egyedi",-SUMIFS(U$7:U$210,T$7:T$210,">"&AJ84,T$7:T$210,"<="&AJ85),IFERROR(IF(torlesztes="Egyenlő tőke",IF(COUNT($AN$7:AN85)>$D$15,"",-$AK$5/$D$15),0),"")) -> 0 | AP85: 0 | AR85: 0 | AW85: 0 | AX85: 0 | AY85: 0 | AZ85: 0 | BA85: 0 | BB85: 0 | BD85: 0 | BE85: 0 | BG85: 0 | BH85: 0 | BI85: 0 | BJ85: 0 | BK85: 0 | BL85: 0 | BM85: 0 | BN85: 0 | BO85: 0 | BP85: 0 | BQ85: 0 | BR85: 0 | BS85: 0 | BT85: 0 | BU85: 0 | BV85: 0 | BW85: 0
J86: TRUE | O86: 0 | P86: 0 | Q86: 0 | AA86: 00:00:00 | AB86: 0 | AC86: 0 | AD86: 0 | AE86: 0 | AH86: 80 | AK86: 0 | AL86: =IF(torlesztes="Egyedi",-SUMIFS(U$7:U$210,T$7:T$210,">"&AJ85,T$7:T$210,"<="&AJ86),IFERROR(IF(torlesztes="Egyenlő tőke",IF(COUNT($AK$7:AK86)>$D$15,"",-$AK$5/$D$15),0),"")) -> 0 | AM86: 0 | AN86: 0 | AO86: =IF(torlesztes="Egyedi",-SUMIFS(U$7:U$210,T$7:T$210,">"&AJ85,T$7:T$210,"<="&AJ86),IFERROR(IF(torlesztes="Egyenlő tőke",IF(COUNT($AN$7:AN86)>$D$15,"",-$AK$5/$D$15),0),"")) -> 0 | AP86: 0 | AR86: 0 | AW86: 0 | AX86: 0 | AY86: 0 | AZ86: 0 | BA86: 0 | BB86: 0 | BD86: 0 | BE86: 0 | BG86: 0 | BH86: 0 | BI86: 0 | BJ86: 0 | BK86: 0 | BL86: 0 | BM86: 0 | BN86: 0 | BO86: 0 | BP86: 0 | BQ86: 0 | BR86: 0 | BS86: 0 | BT86: 0 | BU86: 0 | BV86: 0 | BW86: 0
J87: TRUE | O87: 0 | P87: 0 | Q87: 0 | AA87: 00:00:00 | AB87: 0 | AC87: 0 | AD87: 0 | AE87: 0 | AH87: 81 | AK87: 0 | AL87: =IF(torlesztes="Egyedi",-SUMIFS(U$7:U$210,T$7:T$210,">"&AJ86,T$7:T$210,"<="&AJ87),IFERROR(IF(torlesztes="Egyenlő tőke",IF(COUNT($AK$7:AK87)>$D$15,"",-$AK$5/$D$15),0),"")) -> 0 | AM87: 0 | AN87: 0 | AO87: =IF(torlesztes="Egyedi",-SUMIFS(U$7:U$210,T$7:T$210,">"&AJ86,T$7:T$210,"<="&AJ87),IFERROR(IF(torlesztes="Egyenlő tőke",IF(COUNT($AN$7:AN87)>$D$15,"",-$AK$5/$D$15),0),"")) -> 0 | AP87: 0 | AR87: 0 | AW87: 0 | AX87: 0 | AY87: 0 | AZ87: 0 | BA87: 0 | BB87: 0 | BD87: 0 | BE87: 0 | BG87: 0 | BH87: 0 | BI87: 0 | BJ87: 0 | BK87: 0 | BL87: 0 | BM87: 0 | BN87: 0 | BO87: 0 | BP87: 0 | BQ87: 0 | BR87: 0 | BS87: 0 | BT87: 0 | BU87: 0 | BV87: 0 | BW87: 0
J88: TRUE | O88: 0 | P88: 0 | Q88: 0 | AA88: 00:00:00 | AB88: 0 | AC88: 0 | AD88: 0 | AE88: 0 | AH88: 82 | AK88: 0 | AL88: =IF(torlesztes="Egyedi",-SUMIFS(U$7:U$210,T$7:T$210,">"&AJ87,T$7:T$210,"<="&AJ88),IFERROR(IF(torlesztes="Egyenlő tőke",IF(COUNT($AK$7:AK88)>$D$15,"",-$AK$5/$D$15),0),"")) -> 0 | AM88: 0 | AN88: 0 | AO88: =IF(torlesztes="Egyedi",-SUMIFS(U$7:U$210,T$7:T$210,">"&AJ87,T$7:T$210,"<="&AJ88),IFERROR(IF(torlesztes="Egyenlő tőke",IF(COUNT($AN$7:AN88)>$D$15,"",-$AK$5/$D$15),0),"")) -> 0 | AP88: 0 | AR88: 0 | AW88: 0 | AX88: 0 | AY88: 0 | AZ88: 0 | BA88: 0 | BB88: 0 | BD88: 0 | BE88: 0 | BG88: 0 | BH88: 0 | BI88: 0 | BJ88: 0 | BK88: 0 | BL88: 0 | BM88: 0 | BN88: 0 | BO88: 0 | BP88: 0 | BQ88: 0 | BR88: 0 | BS88: 0 | BT88: 0 | BU88: 0 | BV88: 0 | BW88: 0
J89: TRUE | O89: 0 | P89: 0 | Q89: 0 | AA89: 00:00:00 | AB89: 0 | AC89: 0 | AD89: 0 | AE89: 0 | AH89: 83 | AK89: 0 | AL89: =IF(torlesztes="Egyedi",-SUMIFS(U$7:U$210,T$7:T$210,">"&AJ88,T$7:T$210,"<="&AJ89),IFERROR(IF(torlesztes="Egyenlő tőke",IF(COUNT($AK$7:AK89)>$D$15,"",-$AK$5/$D$15),0),"")) -> 0 | AM89: 0 | AN89: 0 | AO89: =IF(torlesztes="Egyedi",-SUMIFS(U$7:U$210,T$7:T$210,">"&AJ88,T$7:T$210,"<="&AJ89),IFERROR(IF(torlesztes="Egyenlő tőke",IF(COUNT($AN$7:AN89)>$D$15,"",-$AK$5/$D$15),0),"")) -> 0 | AP89: 0 | AR89: 0 | AW89: 0 | AX89: 0 | AY89: 0 | AZ89: 0 | BA89: 0 | BB89: 0 | BD89: 0 | BE89: 0 | BG89: 0 | BH89: 0 | BI89: 0 | BJ89: 0 | BK89: 0 | BL89: 0 | BM89: 0 | BN89: 0 | BO89: 0 | BP89: 0 | BQ89: 0 | BR89: 0 | BS89: 0 | BT89: 0 | BU89: 0 | BV89: 0 | BW89: 0
J90: TRUE | O90: 0 | P90: 0 | Q90: 0 | AA90: 00:00:00 | AB90: 0 | AC90: 0 | AD90: 0 | AE90: 0 | AH90: 84 | AK90: 0 | AL90: =IF(torlesztes="Egyedi",-SUMIFS(U$7:U$210,T$7:T$210,">"&AJ89,T$7:T$210,"<="&AJ90),IFERROR(IF(torlesztes="Egyenlő tőke",IF(COUNT($AK$7:AK90)>$D$15,"",-$AK$5/$D$15),0),"")) -> 0 | AM90: 0 | AN90: 0 | AO90: =IF(torlesztes="Egyedi",-SUMIFS(U$7:U$210,T$7:T$210,">"&AJ89,T$7:T$210,"<="&AJ90),IFERROR(IF(torlesztes="Egyenlő tőke",IF(COUNT($AN$7:AN90)>$D$15,"",-$AK$5/$D$15),0),"")) -> 0 | AP90: 0 | AR90: 0 | AW90: 0 | AX90: 0 | AY90: 0 | AZ90: 0 | BA90: 0 | BB90: 0 | BD90: 0 | BE90: 0 | BG90: 0 | BH90: 0 | BI90: 0 | BJ90: 0 | BK90: 0 | BL90: 0 | BM90: 0 | BN90: 0 | BO90: 0 | BP90: 0 | BQ90: 0 | BR90: 0 | BS90: 0 | BT90: 0 | BU90: 0 | BV90: 0 | BW90: 0
J91: TRUE | O91: 0 | P91: 0 | Q91: 0 | AA91: 00:00:00 | AB91: 0 | AC91: 0 | AD91: 0 | AE91: 0 | AH91: 85 | AK91: 0 | AL91: =IF(torlesztes="Egyedi",-SUMIFS(U$7:U$210,T$7:T$210,">"&AJ90,T$7:T$210,"<="&AJ91),IFERROR(IF(torlesztes="Egyenlő tőke",IF(COUNT($AK$7:AK91)>$D$15,"",-$AK$5/$D$15),0),"")) -> 0 | AM91: 0 | AN91: 0 | AO91: =IF(torlesztes="Egyedi",-SUMIFS(U$7:U$210,T$7:T$210,">"&AJ90,T$7:T$210,"<="&AJ91),IFERROR(IF(torlesztes="Egyenlő tőke",IF(COUNT($AN$7:AN91)>$D$15,"",-$AK$5/$D$15),0),"")) -> 0 | AP91: 0 | AR91: 0 | AW91: 0 | AX91: 0 | AY91: 0 | AZ91: 0 | BA91: 0 | BB91: 0 | BD91: 0 | BE91: 0 | BG91: 0 | BH91: 0 | BI91: 0 | BJ91: 0 | BK91: 0 | BL91: 0 | BM91: 0 | BN91: 0 | BO91: 0 | BP91: 0 | BQ91: 0 | BR91: 0 | BS91: 0 | BT91: 0 | BU91: 0 | BV91: 0 | BW91: 0
J92: TRUE | O92: 0 | P92: 0 | Q92: 0 | AA92: 00:00:00 | AB92: 0 | AC92: 0 | AD92: 0 | AE92: 0 | AH92: 86 | AK92: 0 | AL92: =IF(torlesztes="Egyedi",-SUMIFS(U$7:U$210,T$7:T$210,">"&AJ91,T$7:T$210,"<="&AJ92),IFERROR(IF(torlesztes="Egyenlő tőke",IF(COUNT($AK$7:AK92)>$D$15,"",-$AK$5/$D$15),0),"")) -> 0 | AM92: 0 | AN92: 0 | AO92: =IF(torlesztes="Egyedi",-SUMIFS(U$7:U$210,T$7:T$210,">"&AJ91,T$7:T$210,"<="&AJ92),IFERROR(IF(torlesztes="Egyenlő tőke",IF(COUNT($AN$7:AN92)>$D$15,"",-$AK$5/$D$15),0),"")) -> 0 | AP92: 0 | AR92: 0 | AW92: 0 | AX92: 0 | AY92: 0 | AZ92: 0 | BA92: 0 | BB92: 0 | BD92: 0 | BE92: 0 | BG92: 0 | BH92: 0 | BI92: 0 | BJ92: 0 | BK92: 0 | BL92: 0 | BM92: 0 | BN92: 0 | BO92: 0 | BP92: 0 | BQ92: 0 | BR92: 0 | BS92: 0 | BT92: 0 | BU92: 0 | BV92: 0 | BW92: 0
J93: TRUE | O93: 0 | P93: 0 | Q93: 0 | AA93: 00:00:00 | AB93: 0 | AC93: 0 | AD93: 0 | AE93: 0 | AH93: 87 | AK93: 0 | AL93: =IF(torlesztes="Egyedi",-SUMIFS(U$7:U$210,T$7:T$210,">"&AJ92,T$7:T$210,"<="&AJ93),IFERROR(IF(torlesztes="Egyenlő tőke",IF(COUNT($AK$7:AK93)>$D$15,"",-$AK$5/$D$15),0),"")) -> 0 | AM93: 0 | AN93: 0 | AO93: =IF(torlesztes="Egyedi",-SUMIFS(U$7:U$210,T$7:T$210,">"&AJ92,T$7:T$210,"<="&AJ93),IFERROR(IF(torlesztes="Egyenlő tőke",IF(COUNT($AN$7:AN93)>$D$15,"",-$AK$5/$D$15),0),"")) -> 0 | AP93: 0 | AR93: 0 | AW93: 0 | AX93: 0 | AY93: 0 | AZ93: 0 | BA93: 0 | BB93: 0 | BD93: 0 | BE93: 0 | BG93: 0 | BH93: 0 | BI93: 0 | BJ93: 0 | BK93: 0 | BL93: 0 | BM93: 0 | BN93: 0 | BO93: 0 | BP93: 0 | BQ93: 0 | BR93: 0 | BS93: 0 | BT93: 0 | BU93: 0 | BV93: 0 | BW93: 0
J94: TRUE | O94: 0 | P94: 0 | Q94: 0 | AA94: 00:00:00 | AB94: 0 | AC94: 0 | AD94: 0 | AE94: 0 | AH94: 88 | AK94: 0 | AL94: =IF(torlesztes="Egyedi",-SUMIFS(U$7:U$210,T$7:T$210,">"&AJ93,T$7:T$210,"<="&AJ94),IFERROR(IF(torlesztes="Egyenlő tőke",IF(COUNT($AK$7:AK94)>$D$15,"",-$AK$5/$D$15),0),"")) -> 0 | AM94: 0 | AN94: 0 | AO94: =IF(torlesztes="Egyedi",-SUMIFS(U$7:U$210,T$7:T$210,">"&AJ93,T$7:T$210,"<="&AJ94),IFERROR(IF(torlesztes="Egyenlő tőke",IF(COUNT($AN$7:AN94)>$D$15,"",-$AK$5/$D$15),0),"")) -> 0 | AP94: 0 | AR94: 0 | AW94: 0 | AX94: 0 | AY94: 0 | AZ94: 0 | BA94: 0 | BB94: 0 | BD94: 0 | BE94: 0 | BG94: 0 | BH94: 0 | BI94: 0 | BJ94: 0 | BK94: 0 | BL94: 0 | BM94: 0 | BN94: 0 | BO94: 0 | BP94: 0 | BQ94: 0 | BR94: 0 | BS94: 0 | BT94: 0 | BU94: 0 | BV94: 0 | BW94: 0
J95: TRUE | O95: 0 | P95: 0 | Q95: 0 | AA95: 00:00:00 | AB95: 0 | AC95: 0 | AD95: 0 | AE95: 0 | AH95: 89 | AK95: 0 | AL95: =IF(torlesztes="Egyedi",-SUMIFS(U$7:U$210,T$7:T$210,">"&AJ94,T$7:T$210,"<="&AJ95),IFERROR(IF(torlesztes="Egyenlő tőke",IF(COUNT($AK$7:AK95)>$D$15,"",-$AK$5/$D$15),0),"")) -> 0 | AM95: 0 | AN95: 0 | AO95: =IF(torlesztes="Egyedi",-SUMIFS(U$7:U$210,T$7:T$210,">"&AJ94,T$7:T$210,"<="&AJ95),IFERROR(IF(torlesztes="Egyenlő tőke",IF(COUNT($AN$7:AN95)>$D$15,"",-$AK$5/$D$15),0),"")) -> 0 | AP95: 0 | AR95: 0 | AW95: 0 | AX95: 0 | AY95: 0 | AZ95: 0 | BA95: 0 | BB95: 0 | BD95: 0 | BE95: 0 | BG95: 0 | BH95: 0 | BI95: 0 | BJ95: 0 | BK95: 0 | BL95: 0 | BM95: 0 | BN95: 0 | BO95: 0 | BP95: 0 | BQ95: 0 | BR95: 0 | BS95: 0 | BT95: 0 | BU95: 0 | BV95: 0 | BW95: 0
J96: TRUE | O96: 0 | P96: 0 | Q96: 0 | AA96: 00:00:00 | AB96: 0 | AC96: 0 | AD96: 0 | AE96: 0 | AH96: 90 | AK96: 0 | AL96: =IF(torlesztes="Egyedi",-SUMIFS(U$7:U$210,T$7:T$210,">"&AJ95,T$7:T$210,"<="&AJ96),IFERROR(IF(torlesztes="Egyenlő tőke",IF(COUNT($AK$7:AK96)>$D$15,"",-$AK$5/$D$15),0),"")) -> 0 | AM96: 0 | AN96: 0 | AO96: =IF(torlesztes="Egyedi",-SUMIFS(U$7:U$210,T$7:T$210,">"&AJ95,T$7:T$210,"<="&AJ96),IFERROR(IF(torlesztes="Egyenlő tőke",IF(COUNT($AN$7:AN96)>$D$15,"",-$AK$5/$D$15),0),"")) -> 0 | AP96: 0 | AR96: 0 | AW96: 0 | AX96: 0 | AY96: 0 | AZ96: 0 | BA96: 0 | BB96: 0 | BD96: 0 | BE96: 0 | BG96: 0 | BH96: 0 | BI96: 0 | BJ96: 0 | BK96: 0 | BL96: 0 | BM96: 0 | BN96: 0 | BO96: 0 | BP96: 0 | BQ96: 0 | BR96: 0 | BS96: 0 | BT96: 0 | BU96: 0 | BV96: 0 | BW96: 0
J97: TRUE | O97: 0 | P97: 0 | Q97: 0 | AA97: 00:00:00 | AB97: 0 | AC97: 0 | AD97: 0 | AE97: 0 | AH97: 91 | AK97: 0 | AL97: =IF(torlesztes="Egyedi",-SUMIFS(U$7:U$210,T$7:T$210,">"&AJ96,T$7:T$210,"<="&AJ97),IFERROR(IF(torlesztes="Egyenlő tőke",IF(COUNT($AK$7:AK97)>$D$15,"",-$AK$5/$D$15),0),"")) -> 0 | AM97: 0 | AN97: 0 | AO97: =IF(torlesztes="Egyedi",-SUMIFS(U$7:U$210,T$7:T$210,">"&AJ96,T$7:T$210,"<="&AJ97),IFERROR(IF(torlesztes="Egyenlő tőke",IF(COUNT($AN$7:AN97)>$D$15,"",-$AK$5/$D$15),0),"")) -> 0 | AP97: 0 | AR97: 0 | AW97: 0 | AX97: 0 | AY97: 0 | AZ97: 0 | BA97: 0 | BB97: 0 | BD97: 0 | BE97: 0 | BG97: 0 | BH97: 0 | BI97: 0 | BJ97: 0 | BK97: 0 | BL97: 0 | BM97: 0 | BN97: 0 | BO97: 0 | BP97: 0 | BQ97: 0 | BR97: 0 | BS97: 0 | BT97: 0 | BU97: 0 | BV97: 0 | BW97: 0
J98: TRUE | O98: 0 | P98: 0 | Q98: 0 | AA98: 00:00:00 | AB98: 0 | AC98: 0 | AD98: 0 | AE98: 0 | AH98: 92 | AK98: 0 | AL98: =IF(torlesztes="Egyedi",-SUMIFS(U$7:U$210,T$7:T$210,">"&AJ97,T$7:T$210,"<="&AJ98),IFERROR(IF(torlesztes="Egyenlő tőke",IF(COUNT($AK$7:AK98)>$D$15,"",-$AK$5/$D$15),0),"")) -> 0 | AM98: 0 | AN98: 0 | AO98: =IF(torlesztes="Egyedi",-SUMIFS(U$7:U$210,T$7:T$210,">"&AJ97,T$7:T$210,"<="&AJ98),IFERROR(IF(torlesztes="Egyenlő tőke",IF(COUNT($AN$7:AN98)>$D$15,"",-$AK$5/$D$15),0),"")) -> 0 | AP98: 0 | AR98: 0 | AW98: 0 | AX98: 0 | AY98: 0 | AZ98: 0 | BA98: 0 | BB98: 0 | BD98: 0 | BE98: 0 | BG98: 0 | BH98: 0 | BI98: 0 | BJ98: 0 | BK98: 0 | BL98: 0 | BM98: 0 | BN98: 0 | BO98: 0 | BP98: 0 | BQ98: 0 | BR98: 0 | BS98: 0 | BT98: 0 | BU98: 0 | BV98: 0 | BW98: 0
J99: TRUE | O99: 0 | P99: 0 | Q99: 0 | AA99: 00:00:00 | AB99: 0 | AC99: 0 | AD99: 0 | AE99: 0 | AH99: 93 | AK99: 0 | AL99: =IF(torlesztes="Egyedi",-SUMIFS(U$7:U$210,T$7:T$210,">"&AJ98,T$7:T$210,"<="&AJ99),IFERROR(IF(torlesztes="Egyenlő tőke",IF(COUNT($AK$7:AK99)>$D$15,"",-$AK$5/$D$15),0),"")) -> 0 | AM99: 0 | AN99: 0 | AO99: =IF(torlesztes="Egyedi",-SUMIFS(U$7:U$210,T$7:T$210,">"&AJ98,T$7:T$210,"<="&AJ99),IFERROR(IF(torlesztes="Egyenlő tőke",IF(COUNT($AN$7:AN99)>$D$15,"",-$AK$5/$D$15),0),"")) -> 0 | AP99: 0 | AR99: 0 | AW99: 0 | AX99: 0 | AY99: 0 | AZ99: 0 | BA99: 0 | BB99: 0 | BD99: 0 | BE99: 0 | BG99: 0 | BH99: 0 | BI99: 0 | BJ99: 0 | BK99: 0 | BL99: 0 | BM99: 0 | BN99: 0 | BO99: 0 | BP99: 0 | BQ99: 0 | BR99: 0 | BS99: 0 | BT99: 0 | BU99: 0 | BV99: 0 | BW99: 0
J100: TRUE | O100: 0 | P100: 0 | Q100: 0 | AA100: 00:00:00 | AB100: 0 | AC100: 0 | AD100: 0 | AE100: 0 | AH100: 94 | AK100: 0 | AL100: =IF(torlesztes="Egyedi",-SUMIFS(U$7:U$210,T$7:T$210,">"&AJ99,T$7:T$210,"<="&AJ100),IFERROR(IF(torlesztes="Egyenlő tőke",IF(COUNT($AK$7:AK100)>$D$15,"",-$AK$5/$D$15),0),"")) -> 0 | AM100: 0 | AN100: 0 | AO100: =IF(torlesztes="Egyedi",-SUMIFS(U$7:U$210,T$7:T$210,">"&AJ99,T$7:T$210,"<="&AJ100),IFERROR(IF(torlesztes="Egyenlő tőke",IF(COUNT($AN$7:AN100)>$D$15,"",-$AK$5/$D$15),0),"")) -> 0 | AP100: 0 | AR100: 0 | AW100: 0 | AX100: 0 | AY100: 0 | AZ100: 0 | BA100: 0 | BB100: 0 | BD100: 0 | BE100: 0 | BG100: 0 | BH100: 0 | BI100: 0 | BJ100: 0 | BK100: 0 | BL100: 0 | BM100: 0 | BN100: 0 | BO100: 0 | BP100: 0 | BQ100: 0 | BR100: 0 | BS100: 0 | BT100: 0 | BU100: 0 | BV100: 0 | BW100: 0
J101: TRUE | O101: 0 | P101: 0 | Q101: 0 | AA101: 00:00:00 | AB101: 0 | AC101: 0 | AD101: 0 | AE101: 0 | AH101: 95 | AK101: 0 | AL101: =IF(torlesztes="Egyedi",-SUMIFS(U$7:U$210,T$7:T$210,">"&AJ100,T$7:T$210,"<="&AJ101),IFERROR(IF(torlesztes="Egyenlő tőke",IF(COUNT($AK$7:AK101)>$D$15,"",-$AK$5/$D$15),0),"")) -> 0 | AM101: 0 | AN101: 0 | AO101: =IF(torlesztes="Egyedi",-SUMIFS(U$7:U$210,T$7:T$210,">"&AJ100,T$7:T$210,"<="&AJ101),IFERROR(IF(torlesztes="Egyenlő tőke",IF(COUNT($AN$7:AN101)>$D$15,"",-$AK$5/$D$15),0),"")) -> 0 | AP101: 0 | AR101: 0 | AW101: 0 | AX101: 0 | AY101: 0 | AZ101: 0 | BA101: 0 | BB101: 0 | BD101: 0 | BE101: 0 | BG101: 0 | BH101: 0 | BI101: 0 | BJ101: 0 | BK101: 0 | BL101: 0 | BM101: 0 | BN101: 0 | BO101: 0 | BP101: 0 | BQ101: 0 | BR101: 0 | BS101: 0 | BT101: 0 | BU101: 0 | BV101: 0 | BW101: 0
J102: TRUE | O102: 0 | P102: 0 | Q102: 0 | AA102: 00:00:00 | AB102: 0 | AC102: 0 | AD102: 0 | AE102: 0 | AH102: 96 | AK102: 0 | AL102: =IF(torlesztes="Egyedi",-SUMIFS(U$7:U$210,T$7:T$210,">"&AJ101,T$7:T$210,"<="&AJ102),IFERROR(IF(torlesztes="Egyenlő tőke",IF(COUNT($AK$7:AK102)>$D$15,"",-$AK$5/$D$15),0),"")) -> 0 | AM102: 0 | AN102: 0 | AO102: =IF(torlesztes="Egyedi",-SUMIFS(U$7:U$210,T$7:T$210,">"&AJ101,T$7:T$210,"<="&AJ102),IFERROR(IF(torlesztes="Egyenlő tőke",IF(COUNT($AN$7:AN102)>$D$15,"",-$AK$5/$D$15),0),"")) -> 0 | AP102: 0 | AR102: 0 | AW102: 0 | AX102: 0 | AY102: 0 | AZ102: 0 | BA102: 0 | BB102: 0 | BD102: 0 | BE102: 0 | BG102: 0 | BH102: 0 | BI102: 0 | BJ102: 0 | BK102: 0 | BL102: 0 | BM102: 0 | BN102: 0 | BO102: 0 | BP102: 0 | BQ102: 0 | BR102: 0 | BS102: 0 | BT102: 0 | BU102: 0 | BV102: 0 | BW102: 0
J103: TRUE | O103: 0 | P103: 0 | Q103: 0 | AA103: 00:00:00 | AB103: 0 | AC103: 0 | AD103: 0 | AE103: 0 | AH103: 97 | AK103: 0 | AL103: =IF(torlesztes="Egyedi",-SUMIFS(U$7:U$210,T$7:T$210,">"&AJ102,T$7:T$210,"<="&AJ103),IFERROR(IF(torlesztes="Egyenlő tőke",IF(COUNT($AK$7:AK103)>$D$15,"",-$AK$5/$D$15),0),"")) -> 0 | AM103: 0 | AN103: 0 | AO103: =IF(torlesztes="Egyedi",-SUMIFS(U$7:U$210,T$7:T$210,">"&AJ102,T$7:T$210,"<="&AJ103),IFERROR(IF(torlesztes="Egyenlő tőke",IF(COUNT($AN$7:AN103)>$D$15,"",-$AK$5/$D$15),0),"")) -> 0 | AP103: 0 | AR103: 0 | AW103: 0 | AX103: 0 | AY103: 0 | AZ103: 0 | BA103: 0 | BB103: 0 | BD103: 0 | BE103: 0 | BG103: 0 | BH103: 0 | BI103: 0 | BJ103: 0 | BK103: 0 | BL103: 0 | BM103: 0 | BN103: 0 | BO103: 0 | BP103: 0 | BQ103: 0 | BR103: 0 | BS103: 0 | BT103: 0 | BU103: 0 | BV103: 0 | BW103: 0
J104: TRUE | O104: 0 | P104: 0 | Q104: 0 | AA104: 00:00:00 | AB104: 0 | AC104: 0 | AD104: 0 | AE104: 0 | AH104: 98 | AK104: 0 | AL104: =IF(torlesztes="Egyedi",-SUMIFS(U$7:U$210,T$7:T$210,">"&AJ103,T$7:T$210,"<="&AJ104),IFERROR(IF(torlesztes="Egyenlő tőke",IF(COUNT($AK$7:AK104)>$D$15,"",-$AK$5/$D$15),0),"")) -> 0 | AM104: 0 | AN104: 0 | AO104: =IF(torlesztes="Egyedi",-SUMIFS(U$7:U$210,T$7:T$210,">"&AJ103,T$7:T$210,"<="&AJ104),IFERROR(IF(torlesztes="Egyenlő tőke",IF(COUNT($AN$7:AN104)>$D$15,"",-$AK$5/$D$15),0),"")) -> 0 | AP104: 0 | AR104: 0 | AW104: 0 | AX104: 0 | AY104: 0 | AZ104: 0 | BA104: 0 | BB104: 0 | BD104: 0 | BE104: 0 | BG104: 0 | BH104: 0 | BI104: 0 | BJ104: 0 | BK104: 0 | BL104: 0 | BM104: 0 | BN104: 0 | BO104: 0 | BP104: 0 | BQ104: 0 | BR104: 0 | BS104: 0 | BT104: 0 | BU104: 0 | BV104: 0 | BW104: 0
J105: TRUE | O105: 0 | P105: 0 | Q105: 0 | AA105: 00:00:00 | AB105: 0 | AC105: 0 | AD105: 0 | AE105: 0 | AH105: 99 | AK105: 0 | AL105: =IF(torlesztes="Egyedi",-SUMIFS(U$7:U$210,T$7:T$210,">"&AJ104,T$7:T$210,"<="&AJ105),IFERROR(IF(torlesztes="Egyenlő tőke",IF(COUNT($AK$7:AK105)>$D$15,"",-$AK$5/$D$15),0),"")) -> 0 | AM105: 0 | AN105: 0 | AO105: =IF(torlesztes="Egyedi",-SUMIFS(U$7:U$210,T$7:T$210,">"&AJ104,T$7:T$210,"<="&AJ105),IFERROR(IF(torlesztes="Egyenlő tőke",IF(COUNT($AN$7:AN105)>$D$15,"",-$AK$5/$D$15),0),"")) -> 0 | AP105: 0 | AR105: 0 | AW105: 0 | AX105: 0 | AY105: 0 | AZ105: 0 | BA105: 0 | BB105: 0 | BD105: 0 | BE105: 0 | BG105: 0 | BH105: 0 | BI105: 0 | BJ105: 0 | BK105: 0 | BL105: 0 | BM105: 0 | BN105: 0 | BO105: 0 | BP105: 0 | BQ105: 0 | BR105: 0 | BS105: 0 | BT105: 0 | BU105: 0 | BV105: 0 | BW105: 0
J106: TRUE | O106: 0 | P106: 0 | Q106: 0 | AA106: 00:00:00 | AB106: 0 | AC106: 0 | AD106: 0 | AE106: 0 | AH106: 100 | AK106: 0 | AL106: =IF(torlesztes="Egyedi",-SUMIFS(U$7:U$210,T$7:T$210,">"&AJ105,T$7:T$210,"<="&AJ106),IFERROR(IF(torlesztes="Egyenlő tőke",IF(COUNT($AK$7:AK106)>$D$15,"",-$AK$5/$D$15),0),"")) -> 0 | AM106: 0 | AN106: 0 | AO106: =IF(torlesztes="Egyedi",-SUMIFS(U$7:U$210,T$7:T$210,">"&AJ105,T$7:T$210,"<="&AJ106),IFERROR(IF(torlesztes="Egyenlő tőke",IF(COUNT($AN$7:AN106)>$D$15,"",-$AK$5/$D$15),0),"")) -> 0 | AP106: 0 | AR106: 0 | AW106: 0 | AX106: 0 | AY106: 0 | AZ106: 0 | BA106: 0 | BB106: 0 | BD106: 0 | BE106: 0 | BG106: 0 | BH106: 0 | BI106: 0 | BJ106: 0 | BK106: 0 | BL106: 0 | BM106: 0 | BN106: 0 | BO106: 0 | BP106: 0 | BQ106: 0 | BR106: 0 | BS106: 0 | BT106: 0 | BU106: 0 | BV106: 0 | BW106: 0
J107: TRUE | O107: 0 | P107: 0 | Q107: 0 | AA107: 00:00:00 | AB107: 0 | AC107: 0 | AD107: 0 | AE107: 0 | AH107: 101 | AK107: 0 | AL107: =IF(torlesztes="Egyedi",-SUMIFS(U$7:U$210,T$7:T$210,">"&AJ106,T$7:T$210,"<="&AJ107),IFERROR(IF(torlesztes="Egyenlő tőke",IF(COUNT($AK$7:AK107)>$D$15,"",-$AK$5/$D$15),0),"")) -> 0 | AM107: 0 | AN107: 0 | AO107: =IF(torlesztes="Egyedi",-SUMIFS(U$7:U$210,T$7:T$210,">"&AJ106,T$7:T$210,"<="&AJ107),IFERROR(IF(torlesztes="Egyenlő tőke",IF(COUNT($AN$7:AN107)>$D$15,"",-$AK$5/$D$15),0),"")) -> 0 | AP107: 0 | AR107: 0 | AT107: =IFERROR(AJ107-AJ106,"") ->  | AW107: 0 | AX107: 0 | AY107: 0 | AZ107: 0 | BA107: 0 | BB107: 0 | BD107: 0 | BE107: 0 | BG107: 0 | BH107: 0 | BI107: 0 | BJ107: 0 | BK107: 0 | BL107: 0 | BM107: 0 | BN107: 0 | BO107: 0 | BP107: 0 | BQ107: 0 | BR107: 0 | BS107: 0 | BT107: 0 | BU107: 0 | BV107: 0 | BW107: 0
J108: TRUE | O108: 0 | P108: 0 | Q108: 0 | AA108: 00:00:00 | AB108: 0 | AC108: 0 | AD108: 0 | AE108: 0 | AH108: 102 | AK108: 0 | AL108: =IF(torlesztes="Egyedi",-SUMIFS(U$7:U$210,T$7:T$210,">"&AJ107,T$7:T$210,"<="&AJ108),IFERROR(IF(torlesztes="Egyenlő tőke",IF(COUNT($AK$7:AK108)>$D$15,"",-$AK$5/$D$15),0),"")) -> 0 | AM108: 0 | AN108: 0 | AO108: =IF(torlesztes="Egyedi",-SUMIFS(U$7:U$210,T$7:T$210,">"&AJ107,T$7:T$210,"<="&AJ108),IFERROR(IF(torlesztes="Egyenlő tőke",IF(COUNT($AN$7:AN108)>$D$15,"",-$AK$5/$D$15),0),"")) -> 0 | AP108: 0 | AR108: 0 | AW108: 0 | AX108: 0 | AY108: 0 | AZ108: 0 | BA108: 0 | BB108: 0 | BD108: 0 | BE108: 0 | BG108: 0 | BH108: 0 | BI108: 0 | BJ108: 0 | BK108: 0 | BL108: 0 | BM108: 0 | BN108: 0 | BO108: 0 | BP108: 0 | BQ108: 0 | BR108: 0 | BS108: 0 | BT108: 0 | BU108: 0 | BV108: 0 | BW108: 0
J109: TRUE | N109: =IF(ISBLANK(L108),"",L108) ->  | O109: =IF(ISBLANK(L108),0,M108+O108) -> 0 | P109: 0 | Q109: 0 | AA109: 00:00:00 | AB109: 0 | AC109: 0 | AD109: 0 | AE109: 0 | AH109: 103 | AK109: 0 | AL109: =IF(torlesztes="Egyedi",-SUMIFS(U$7:U$210,T$7:T$210,">"&AJ108,T$7:T$210,"<="&AJ109),IFERROR(IF(torlesztes="Egyenlő tőke",IF(COUNT($AK$7:AK109)>$D$15,"",-$AK$5/$D$15),0),"")) -> 0 | AM109: 0 | AN109: 0 | AO109: =IF(torlesztes="Egyedi",-SUMIFS(U$7:U$210,T$7:T$210,">"&AJ108,T$7:T$210,"<="&AJ109),IFERROR(IF(torlesztes="Egyenlő tőke",IF(COUNT($AN$7:AN109)>$D$15,"",-$AK$5/$D$15),0),"")) -> 0 | AP109: 0 | AR109: 0 | AW109: 0 | AX109: 0 | AY109: 0 | AZ109: 0 | BA109: 0 | BB109: 0 | BD109: 0 | BE109: 0 | BG109: 0 | BH109: 0 | BI109: 0 | BJ109: 0 | BK109: 0 | BL109: 0 | BM109: 0 | BN109: 0 | BO109: 0 | BP109: 0 | BQ109: 0 | BR109: 0 | BS109: 0 | BT109: 0 | BU109: 0 | BV109: 0 | BW109: 0
J110: TRUE | O110: 0 | P110: 0 | Q110: 0 | AA110: 00:00:00 | AB110: 0 | AC110: 0 | AD110: 0 | AE110: 0 | AH110: 104 | AK110: 0 | AL110: =IF(torlesztes="Egyedi",-SUMIFS(U$7:U$210,T$7:T$210,">"&AJ109,T$7:T$210,"<="&AJ110),IFERROR(IF(torlesztes="Egyenlő tőke",IF(COUNT($AK$7:AK110)>$D$15,"",-$AK$5/$D$15),0),"")) -> 0 | AM110: 0 | AN110: 0 | AO110: =IF(torlesztes="Egyedi",-SUMIFS(U$7:U$210,T$7:T$210,">"&AJ109,T$7:T$210,"<="&AJ110),IFERROR(IF(torlesztes="Egyenlő tőke",IF(COUNT($AN$7:AN110)>$D$15,"",-$AK$5/$D$15),0),"")) -> 0 | AP110: 0 | AR110: 0 | AW110: 0 | AX110: 0 | AY110: 0 | AZ110: 0 | BA110: 0 | BB110: 0 | BD110: 0 | BE110: 0 | BG110: 0 | BH110: 0 | BI110: 0 | BJ110: 0 | BK110: 0 | BL110: 0 | BM110: 0 | BN110: 0 | BO110: 0 | BP110: 0 | BQ110: 0 | BR110: 0 | BS110: 0 | BT110: 0 | BU110: 0 | BV110: 0 | BW110: 0
J111: TRUE | O111: 0 | P111: 0 | Q111: 0 | AA111: 00:00:00 | AB111: 0 | AC111: 0 | AD111: 0 | AE111: 0 | AH111: 105 | AK111: 0 | AL111: =IF(torlesztes="Egyedi",-SUMIFS(U$7:U$210,T$7:T$210,">"&AJ110,T$7:T$210,"<="&AJ111),IFERROR(IF(torlesztes="Egyenlő tőke",IF(COUNT($AK$7:AK111)>$D$15,"",-$AK$5/$D$15),0),"")) -> 0 | AM111: 0 | AN111: 0 | AO111: =IF(torlesztes="Egyedi",-SUMIFS(U$7:U$210,T$7:T$210,">"&AJ110,T$7:T$210,"<="&AJ111),IFERROR(IF(torlesztes="Egyenlő tőke",IF(COUNT($AN$7:AN111)>$D$15,"",-$AK$5/$D$15),0),"")) -> 0 | AP111: 0 | AR111: 0 | AW111: 0 | AX111: 0 | AY111: 0 | AZ111: 0 | BA111: 0 | BB111: 0 | BD111: 0 | BE111: 0 | BG111: 0 | BH111: 0 | BI111: 0 | BJ111: 0 | BK111: 0 | BL111: 0 | BM111: 0 | BN111: 0 | BO111: 0 | BP111: 0 | BQ111: 0 | BR111: 0 | BS111: 0 | BT111: 0 | BU111: 0 | BV111: 0 | BW111: 0
J112: TRUE | O112: 0 | P112: 0 | Q112: 0 | AA112: 00:00:00 | AB112: 0 | AC112: 0 | AD112: 0 | AE112: 0 | AH112: 106 | AK112: 0 | AL112: =IF(torlesztes="Egyedi",-SUMIFS(U$7:U$210,T$7:T$210,">"&AJ111,T$7:T$210,"<="&AJ112),IFERROR(IF(torlesztes="Egyenlő tőke",IF(COUNT($AK$7:AK112)>$D$15,"",-$AK$5/$D$15),0),"")) -> 0 | AM112: 0 | AN112: 0 | AO112: =IF(torlesztes="Egyedi",-SUMIFS(U$7:U$210,T$7:T$210,">"&AJ111,T$7:T$210,"<="&AJ112),IFERROR(IF(torlesztes="Egyenlő tőke",IF(COUNT($AN$7:AN112)>$D$15,"",-$AK$5/$D$15),0),"")) -> 0 | AP112: 0 | AR112: 0 | AW112: 0 | AX112: 0 | AY112: 0 | AZ112: 0 | BA112: 0 | BB112: 0 | BD112: 0 | BE112: 0 | BG112: 0 | BH112: 0 | BI112: 0 | BJ112: 0 | BK112: 0 | BL112: 0 | BM112: 0 | BN112: 0 | BO112: 0 | BP112: 0 | BQ112: 0 | BR112: 0 | BS112: 0 | BT112: 0 | BU112: 0 | BV112: 0 | BW112: 0
J113: TRUE | O113: 0 | P113: 0 | Q113: 0 | AA113: 00:00:00 | AB113: 0 | AC113: 0 | AD113: 0 | AE113: 0 | AH113: 107 | AK113: 0 | AL113: =IF(torlesztes="Egyedi",-SUMIFS(U$7:U$210,T$7:T$210,">"&AJ112,T$7:T$210,"<="&AJ113),IFERROR(IF(torlesztes="Egyenlő tőke",IF(COUNT($AK$7:AK113)>$D$15,"",-$AK$5/$D$15),0),"")) -> 0 | AM113: 0 | AN113: 0 | AO113: =IF(torlesztes="Egyedi",-SUMIFS(U$7:U$210,T$7:T$210,">"&AJ112,T$7:T$210,"<="&AJ113),IFERROR(IF(torlesztes="Egyenlő tőke",IF(COUNT($AN$7:AN113)>$D$15,"",-$AK$5/$D$15),0),"")) -> 0 | AP113: 0 | AR113: 0 | AW113: 0 | AX113: 0 | AY113: 0 | AZ113: 0 | BA113: 0 | BB113: 0 | BD113: 0 | BE113: 0 | BG113: 0 | BH113: 0 | BI113: 0 | BJ113: 0 | BK113: 0 | BL113: 0 | BM113: 0 | BN113: 0 | BO113: 0 | BP113: 0 | BQ113: 0 | BR113: 0 | BS113: 0 | BT113: 0 | BU113: 0 | BV113: 0 | BW113: 0
J114: TRUE | O114: 0 | P114: 0 | Q114: 0 | AA114: 00:00:00 | AB114: 0 | AC114: 0 | AD114: 0 | AE114: 0 | AH114: 108 | AK114: 0 | AL114: =IF(torlesztes="Egyedi",-SUMIFS(U$7:U$210,T$7:T$210,">"&AJ113,T$7:T$210,"<="&AJ114),IFERROR(IF(torlesztes="Egyenlő tőke",IF(COUNT($AK$7:AK114)>$D$15,"",-$AK$5/$D$15),0),"")) -> 0 | AM114: 0 | AN114: 0 | AO114: =IF(torlesztes="Egyedi",-SUMIFS(U$7:U$210,T$7:T$210,">"&AJ113,T$7:T$210,"<="&AJ114),IFERROR(IF(torlesztes="Egyenlő tőke",IF(COUNT($AN$7:AN114)>$D$15,"",-$AK$5/$D$15),0),"")) -> 0 | AP114: 0 | AR114: 0 | AW114: 0 | AX114: 0 | AY114: 0 | AZ114: 0 | BA114: 0 | BB114: 0 | BD114: 0 | BE114: 0 | BG114: 0 | BH114: 0 | BI114: 0 | BJ114: 0 | BK114: 0 | BL114: 0 | BM114: 0 | BN114: 0 | BO114: 0 | BP114: 0 | BQ114: 0 | BR114: 0 | BS114: 0 | BT114: 0 | BU114: 0 | BV114: 0 | BW114: 0
J115: TRUE | O115: 0 | P115: 0 | Q115: 0 | AA115: 00:00:00 | AB115: 0 | AC115: 0 | AD115: 0 | AE115: 0 | AH115: 109 | AK115: 0 | AL115: =IF(torlesztes="Egyedi",-SUMIFS(U$7:U$210,T$7:T$210,">"&AJ114,T$7:T$210,"<="&AJ115),IFERROR(IF(torlesztes="Egyenlő tőke",IF(COUNT($AK$7:AK115)>$D$15,"",-$AK$5/$D$15),0),"")) -> 0 | AM115: 0 | AN115: 0 | AO115: =IF(torlesztes="Egyedi",-SUMIFS(U$7:U$210,T$7:T$210,">"&AJ114,T$7:T$210,"<="&AJ115),IFERROR(IF(torlesztes="Egyenlő tőke",IF(COUNT($AN$7:AN115)>$D$15,"",-$AK$5/$D$15),0),"")) -> 0 | AP115: 0 | AR115: 0 | AW115: 0 | AX115: 0 | AY115: 0 | AZ115: 0 | BA115: 0 | BB115: 0 | BD115: 0 | BE115: 0 | BG115: 0 | BH115: 0 | BI115: 0 | BJ115: 0 | BK115: 0 | BL115: 0 | BM115: 0 | BN115: 0 | BO115: 0 | BP115: 0 | BQ115: 0 | BR115: 0 | BS115: 0 | BT115: 0 | BU115: 0 | BV115: 0 | BW115: 0
J116: TRUE | O116: 0 | P116: 0 | Q116: 0 | AA116: 00:00:00 | AB116: 0 | AC116: 0 | AD116: 0 | AE116: 0 | AH116: 110 | AK116: 0 | AL116: =IF(torlesztes="Egyedi",-SUMIFS(U$7:U$210,T$7:T$210,">"&AJ115,T$7:T$210,"<="&AJ116),IFERROR(IF(torlesztes="Egyenlő tőke",IF(COUNT($AK$7:AK116)>$D$15,"",-$AK$5/$D$15),0),"")) -> 0 | AM116: 0 | AN116: 0 | AO116: =IF(torlesztes="Egyedi",-SUMIFS(U$7:U$210,T$7:T$210,">"&AJ115,T$7:T$210,"<="&AJ116),IFERROR(IF(torlesztes="Egyenlő tőke",IF(COUNT($AN$7:AN116)>$D$15,"",-$AK$5/$D$15),0),"")) -> 0 | AP116: 0 | AR116: 0 | AW116: 0 | AX116: 0 | AY116: 0 | AZ116: 0 | BA116: 0 | BB116: 0 | BD116: 0 | BE116: 0 | BG116: 0 | BH116: 0 | BI116: 0 | BJ116: 0 | BK116: 0 | BL116: 0 | BM116: 0 | BN116: 0 | BO116: 0 | BP116: 0 | BQ116: 0 | BR116: 0 | BS116: 0 | BT116: 0 | BU116: 0 | BV116: 0 | BW116: 0
J117: TRUE | O117: 0 | P117: 0 | Q117: 0 | AA117: 00:00:00 | AB117: 0 | AC117: 0 | AD117: 0 | AE117: 0 | AH117: 111 | AK117: 0 | AL117: =IF(torlesztes="Egyedi",-SUMIFS(U$7:U$210,T$7:T$210,">"&AJ116,T$7:T$210,"<="&AJ117),IFERROR(IF(torlesztes="Egyenlő tőke",IF(COUNT($AK$7:AK117)>$D$15,"",-$AK$5/$D$15),0),"")) -> 0 | AM117: 0 | AN117: 0 | AO117: =IF(torlesztes="Egyedi",-SUMIFS(U$7:U$210,T$7:T$210,">"&AJ116,T$7:T$210,"<="&AJ117),IFERROR(IF(torlesztes="Egyenlő tőke",IF(COUNT($AN$7:AN117)>$D$15,"",-$AK$5/$D$15),0),"")) -> 0 | AP117: 0 | AR117: 0 | AW117: 0 | AX117: 0 | AY117: 0 | AZ117: 0 | BA117: 0 | BB117: 0 | BD117: 0 | BE117: 0 | BG117: 0 | BH117: 0 | BI117: 0 | BJ117: 0 | BK117: 0 | BL117: 0 | BM117: 0 | BN117: 0 | BO117: 0 | BP117: 0 | BQ117: 0 | BR117: 0 | BS117: 0 | BT117: 0 | BU117: 0 | BV117: 0 | BW117: 0
J118: TRUE | O118: 0 | P118: 0 | Q118: 0 | AA118: 00:00:00 | AB118: 0 | AC118: 0 | AD118: 0 | AE118: 0 | AH118: 112 | AK118: 0 | AL118: =IF(torlesztes="Egyedi",-SUMIFS(U$7:U$210,T$7:T$210,">"&AJ117,T$7:T$210,"<="&AJ118),IFERROR(IF(torlesztes="Egyenlő tőke",IF(COUNT($AK$7:AK118)>$D$15,"",-$AK$5/$D$15),0),"")) -> 0 | AM118: 0 | AN118: 0 | AO118: =IF(torlesztes="Egyedi",-SUMIFS(U$7:U$210,T$7:T$210,">"&AJ117,T$7:T$210,"<="&AJ118),IFERROR(IF(torlesztes="Egyenlő tőke",IF(COUNT($AN$7:AN118)>$D$15,"",-$AK$5/$D$15),0),"")) -> 0 | AP118: 0 | AR118: 0 | AW118: 0 | AX118: 0 | AY118: 0 | AZ118: 0 | BA118: 0 | BB118: 0 | BD118: 0 | BE118: 0 | BG118: 0 | BH118: 0 | BI118: 0 | BJ118: 0 | BK118: 0 | BL118: 0 | BM118: 0 | BN118: 0 | BO118: 0 | BP118: 0 | BQ118: 0 | BR118: 0 | BS118: 0 | BT118: 0 | BU118: 0 | BV118: 0 | BW118: 0
J119: TRUE | O119: 0 | P119: 0 | Q119: 0 | AA119: 00:00:00 | AB119: 0 | AC119: 0 | AD119: 0 | AE119: 0 | AH119: 113 | AK119: 0 | AL119: =IF(torlesztes="Egyedi",-SUMIFS(U$7:U$210,T$7:T$210,">"&AJ118,T$7:T$210,"<="&AJ119),IFERROR(IF(torlesztes="Egyenlő tőke",IF(COUNT($AK$7:AK119)>$D$15,"",-$AK$5/$D$15),0),"")) -> 0 | AM119: 0 | AN119: 0 | AO119: =IF(torlesztes="Egyedi",-SUMIFS(U$7:U$210,T$7:T$210,">"&AJ118,T$7:T$210,"<="&AJ119),IFERROR(IF(torlesztes="Egyenlő tőke",IF(COUNT($AN$7:AN119)>$D$15,"",-$AK$5/$D$15),0),"")) -> 0 | AP119: 0 | AR119: 0 | AW119: 0 | AX119: 0 | AY119: 0 | AZ119: 0 | BA119: 0 | BB119: 0 | BD119: 0 | BE119: 0 | BG119: 0 | BH119: 0 | BI119: 0 | BJ119: 0 | BK119: 0 | BL119: 0 | BM119: 0 | BN119: 0 | BO119: 0 | BP119: 0 | BQ119: 0 | BR119: 0 | BS119: 0 | BT119: 0 | BU119: 0 | BV119: 0 | BW119: 0
J120: TRUE | O120: 0 | P120: 0 | Q120: 0 | AA120: 00:00:00 | AB120: 0 | AC120: 0 | AD120: 0 | AE120: 0 | AH120: 114 | AK120: 0 | AL120: =IF(torlesztes="Egyedi",-SUMIFS(U$7:U$210,T$7:T$210,">"&AJ119,T$7:T$210,"<="&AJ120),IFERROR(IF(torlesztes="Egyenlő tőke",IF(COUNT($AK$7:AK120)>$D$15,"",-$AK$5/$D$15),0),"")) -> 0 | AM120: 0 | AN120: 0 | AO120: =IF(torlesztes="Egyedi",-SUMIFS(U$7:U$210,T$7:T$210,">"&AJ119,T$7:T$210,"<="&AJ120),IFERROR(IF(torlesztes="Egyenlő tőke",IF(COUNT($AN$7:AN120)>$D$15,"",-$AK$5/$D$15),0),"")) -> 0 | AP120: 0 | AR120: 0 | AW120: 0 | AX120: 0 | AY120: 0 | AZ120: 0 | BA120: 0 | BB120: 0 | BD120: 0 | BE120: 0 | BG120: 0 | BH120: 0 | BI120: 0 | BJ120: 0 | BK120: 0 | BL120: 0 | BM120: 0 | BN120: 0 | BO120: 0 | BP120: 0 | BQ120: 0 | BR120: 0 | BS120: 0 | BT120: 0 | BU120: 0 | BV120: 0 | BW120: 0
J121: TRUE | O121: 0 | P121: 0 | Q121: 0 | AA121: 00:00:00 | AB121: 0 | AC121: 0 | AD121: 0 | AE121: 0 | AH121: 115 | AK121: 0 | AL121: =IF(torlesztes="Egyedi",-SUMIFS(U$7:U$210,T$7:T$210,">"&AJ120,T$7:T$210,"<="&AJ121),IFERROR(IF(torlesztes="Egyenlő tőke",IF(COUNT($AK$7:AK121)>$D$15,"",-$AK$5/$D$15),0),"")) -> 0 | AM121: 0 | AN121: 0 | AO121: =IF(torlesztes="Egyedi",-SUMIFS(U$7:U$210,T$7:T$210,">"&AJ120,T$7:T$210,"<="&AJ121),IFERROR(IF(torlesztes="Egyenlő tőke",IF(COUNT($AN$7:AN121)>$D$15,"",-$AK$5/$D$15),0),"")) -> 0 | AP121: 0 | AR121: 0 | AW121: 0 | AX121: 0 | AY121: 0 | AZ121: 0 | BA121: 0 | BB121: 0 | BD121: 0 | BE121: 0 | BG121: 0 | BH121: 0 | BI121: 0 | BJ121: 0 | BK121: 0 | BL121: 0 | BM121: 0 | BN121: 0 | BO121: 0 | BP121: 0 | BQ121: 0 | BR121: 0 | BS121: 0 | BT121: 0 | BU121: 0 | BV121: 0 | BW121: 0
J122: TRUE | O122: 0 | P122: 0 | Q122: 0 | AA122: 00:00:00 | AB122: 0 | AC122: 0 | AD122: 0 | AE122: 0 | AH122: 116 | AK122: 0 | AL122: =IF(torlesztes="Egyedi",-SUMIFS(U$7:U$210,T$7:T$210,">"&AJ121,T$7:T$210,"<="&AJ122),IFERROR(IF(torlesztes="Egyenlő tőke",IF(COUNT($AK$7:AK122)>$D$15,"",-$AK$5/$D$15),0),"")) -> 0 | AM122: 0 | AN122: 0 | AO122: =IF(torlesztes="Egyedi",-SUMIFS(U$7:U$210,T$7:T$210,">"&AJ121,T$7:T$210,"<="&AJ122),IFERROR(IF(torlesztes="Egyenlő tőke",IF(COUNT($AN$7:AN122)>$D$15,"",-$AK$5/$D$15),0),"")) -> 0 | AP122: 0 | AR122: 0 | AW122: 0 | AX122: 0 | AY122: 0 | AZ122: 0 | BA122: 0 | BB122: 0 | BD122: 0 | BE122: 0 | BG122: 0 | BH122: 0 | BI122: 0 | BJ122: 0 | BK122: 0 | BL122: 0 | BM122: 0 | BN122: 0 | BO122: 0 | BP122: 0 | BQ122: 0 | BR122: 0 | BS122: 0 | BT122: 0 | BU122: 0 | BV122: 0 | BW122: 0
J123: TRUE | O123: 0 | P123: 0 | Q123: 0 | AA123: 00:00:00 | AB123: 0 | AC123: 0 | AD123: 0 | AE123: 0 | AH123: 117 | AK123: 0 | AL123: =IF(torlesztes="Egyedi",-SUMIFS(U$7:U$210,T$7:T$210,">"&AJ122,T$7:T$210,"<="&AJ123),IFERROR(IF(torlesztes="Egyenlő tőke",IF(COUNT($AK$7:AK123)>$D$15,"",-$AK$5/$D$15),0),"")) -> 0 | AM123: 0 | AN123: 0 | AO123: =IF(torlesztes="Egyedi",-SUMIFS(U$7:U$210,T$7:T$210,">"&AJ122,T$7:T$210,"<="&AJ123),IFERROR(IF(torlesztes="Egyenlő tőke",IF(COUNT($AN$7:AN123)>$D$15,"",-$AK$5/$D$15),0),"")) -> 0 | AP123: 0 | AR123: 0 | AW123: 0 | AX123: 0 | AY123: 0 | AZ123: 0 | BA123: 0 | BB123: 0 | BD123: 0 | BE123: 0 | BG123: 0 | BH123: 0 | BI123: 0 | BJ123: 0 | BK123: 0 | BL123: 0 | BM123: 0 | BN123: 0 | BO123: 0 | BP123: 0 | BQ123: 0 | BR123: 0 | BS123: 0 | BT123: 0 | BU123: 0 | BV123: 0 | BW123: 0
J124: TRUE | O124: 0 | P124: 0 | Q124: 0 | AA124: 00:00:00 | AB124: 0 | AC124: 0 | AD124: 0 | AE124: 0 | AH124: 118 | AK124: 0 | AL124: =IF(torlesztes="Egyedi",-SUMIFS(U$7:U$210,T$7:T$210,">"&AJ123,T$7:T$210,"<="&AJ124),IFERROR(IF(torlesztes="Egyenlő tőke",IF(COUNT($AK$7:AK124)>$D$15,"",-$AK$5/$D$15),0),"")) -> 0 | AM124: 0 | AN124: 0 | AO124: =IF(torlesztes="Egyedi",-SUMIFS(U$7:U$210,T$7:T$210,">"&AJ123,T$7:T$210,"<="&AJ124),IFERROR(IF(torlesztes="Egyenlő tőke",IF(COUNT($AN$7:AN124)>$D$15,"",-$AK$5/$D$15),0),"")) -> 0 | AP124: 0 | AR124: 0 | AW124: 0 | AX124: 0 | AY124: 0 | AZ124: 0 | BA124: 0 | BB124: 0 | BD124: 0 | BE124: 0 | BG124: 0 | BH124: 0 | BI124: 0 | BJ124: 0 | BK124: 0 | BL124: 0 | BM124: 0 | BN124: 0 | BO124: 0 | BP124: 0 | BQ124: 0 | BR124: 0 | BS124: 0 | BT124: 0 | BU124: 0 | BV124: 0 | BW124: 0
J125: TRUE | O125: 0 | P125: 0 | Q125: 0 | AA125: 00:00:00 | AB125: 0 | AC125: 0 | AD125: 0 | AE125: 0 | AH125: 119 | AK125: 0 | AL125: =IF(torlesztes="Egyedi",-SUMIFS(U$7:U$210,T$7:T$210,">"&AJ124,T$7:T$210,"<="&AJ125),IFERROR(IF(torlesztes="Egyenlő tőke",IF(COUNT($AK$7:AK125)>$D$15,"",-$AK$5/$D$15),0),"")) -> 0 | AM125: 0 | AN125: 0 | AO125: =IF(torlesztes="Egyedi",-SUMIFS(U$7:U$210,T$7:T$210,">"&AJ124,T$7:T$210,"<="&AJ125),IFERROR(IF(torlesztes="Egyenlő tőke",IF(COUNT($AN$7:AN125)>$D$15,"",-$AK$5/$D$15),0),"")) -> 0 | AP125: 0 | AR125: 0 | AW125: 0 | AX125: 0 | AY125: 0 | AZ125: 0 | BA125: 0 | BB125: 0 | BD125: 0 | BE125: 0 | BG125: 0 | BH125: 0 | BI125: 0 | BJ125: 0 | BK125: 0 | BL125: 0 | BM125: 0 | BN125: 0 | BO125: 0 | BP125: 0 | BQ125: 0 | BR125: 0 | BS125: 0 | BT125: 0 | BU125: 0 | BV125: 0 | BW125: 0
J126: TRUE | O126: 0 | P126: 0 | Q126: 0 | AA126: 00:00:00 | AB126: 0 | AC126: 0 | AD126: 0 | AE126: 0 | AH126: 120 | AK126: 0 | AL126: =IF(torlesztes="Egyedi",-SUMIFS(U$7:U$210,T$7:T$210,">"&AJ125,T$7:T$210,"<="&AJ126),IFERROR(IF(torlesztes="Egyenlő tőke",IF(COUNT($AK$7:AK126)>$D$15,"",-$AK$5/$D$15),0),"")) -> 0 | AM126: 0 | AN126: 0 | AO126: =IF(torlesztes="Egyedi",-SUMIFS(U$7:U$210,T$7:T$210,">"&AJ125,T$7:T$210,"<="&AJ126),IFERROR(IF(torlesztes="Egyenlő tőke",IF(COUNT($AN$7:AN126)>$D$15,"",-$AK$5/$D$15),0),"")) -> 0 | AP126: 0 | AR126: 0 | AW126: 0 | AX126: 0 | AY126: 0 | AZ126: 0 | BA126: 0 | BB126: 0 | BD126: 0 | BE126: 0 | BG126: 0 | BH126: 0 | BI126: 0 | BJ126: 0 | BK126: 0 | BL126: 0 | BM126: 0 | BN126: 0 | BO126: 0 | BP126: 0 | BQ126: 0 | BR126: 0 | BS126: 0 | BT126: 0 | BU126: 0 | BV126: 0 | BW126: 0
J127: TRUE | O127: 0 | P127: 0 | Q127: 0 | AA127: 00:00:00 | AB127: 0 | AC127: 0 | AD127: 0 | AE127: 0 | AH127: 121 | AK127: 0 | AL127: =IF(torlesztes="Egyedi",-SUMIFS(U$7:U$210,T$7:T$210,">"&AJ126,T$7:T$210,"<="&AJ127),IFERROR(IF(torlesztes="Egyenlő tőke",IF(COUNT($AK$7:AK127)>$D$15,"",-$AK$5/$D$15),0),"")) -> 0 | AM127: 0 | AN127: 0 | AO127: =IF(torlesztes="Egyedi",-SUMIFS(U$7:U$210,T$7:T$210,">"&AJ126,T$7:T$210,"<="&AJ127),IFERROR(IF(torlesztes="Egyenlő tőke",IF(COUNT($AN$7:AN127)>$D$15,"",-$AK$5/$D$15),0),"")) -> 0 | AP127: 0 | AR127: 0 | AW127: 0 | AX127: 0 | AY127: 0 | AZ127: 0 | BA127: 0 | BB127: 0 | BD127: 0 | BE127: 0 | BG127: 0 | BH127: 0 | BI127: 0 | BJ127: 0 | BK127: 0 | BL127: 0 | BM127: 0 | BN127: 0 | BO127: 0 | BP127: 0 | BQ127: 0 | BR127: 0 | BS127: 0 | BT127: 0 | BU127: 0 | BV127: 0 | BW127: 0
J128: TRUE | O128: 0 | P128: 0 | Q128: 0 | AA128: 00:00:00 | AB128: 0 | AC128: 0 | AD128: 0 | AE128: 0 | AH128: 122 | AK128: 0 | AL128: =IF(torlesztes="Egyedi",-SUMIFS(U$7:U$210,T$7:T$210,">"&AJ127,T$7:T$210,"<="&AJ128),IFERROR(IF(torlesztes="Egyenlő tőke",IF(COUNT($AK$7:AK128)>$D$15,"",-$AK$5/$D$15),0),"")) -> 0 | AM128: 0 | AN128: 0 | AO128: =IF(torlesztes="Egyedi",-SUMIFS(U$7:U$210,T$7:T$210,">"&AJ127,T$7:T$210,"<="&AJ128),IFERROR(IF(torlesztes="Egyenlő tőke",IF(COUNT($AN$7:AN128)>$D$15,"",-$AK$5/$D$15),0),"")) -> 0 | AP128: 0 | AR128: 0 | AW128: 0 | AX128: 0 | AY128: 0 | AZ128: 0 | BA128: 0 | BB128: 0 | BD128: 0 | BE128: 0 | BG128: 0 | BH128: 0 | BI128: 0 | BJ128: 0 | BK128: 0 | BL128: 0 | BM128: 0 | BN128: 0 | BO128: 0 | BP128: 0 | BQ128: 0 | BR128: 0 | BS128: 0 | BT128: 0 | BU128: 0 | BV128: 0 | BW128: 0
J129: TRUE | O129: 0 | P129: 0 | Q129: 0 | AA129: 00:00:00 | AB129: 0 | AC129: 0 | AD129: 0 | AE129: 0 | AH129: 123 | AK129: 0 | AL129: =IF(torlesztes="Egyedi",-SUMIFS(U$7:U$210,T$7:T$210,">"&AJ128,T$7:T$210,"<="&AJ129),IFERROR(IF(torlesztes="Egyenlő tőke",IF(COUNT($AK$7:AK129)>$D$15,"",-$AK$5/$D$15),0),"")) -> 0 | AM129: 0 | AN129: 0 | AO129: =IF(torlesztes="Egyedi",-SUMIFS(U$7:U$210,T$7:T$210,">"&AJ128,T$7:T$210,"<="&AJ129),IFERROR(IF(torlesztes="Egyenlő tőke",IF(COUNT($AN$7:AN129)>$D$15,"",-$AK$5/$D$15),0),"")) -> 0 | AP129: 0 | AR129: 0 | AW129: 0 | AX129: 0 | AY129: 0 | AZ129: 0 | BA129: 0 | BB129: 0 | BD129: 0 | BE129: 0 | BG129: 0 | BH129: 0 | BI129: 0 | BJ129: 0 | BK129: 0 | BL129: 0 | BM129: 0 | BN129: 0 | BO129: 0 | BP129: 0 | BQ129: 0 | BR129: 0 | BS129: 0 | BT129: 0 | BU129: 0 | BV129: 0 | BW129: 0
J130: TRUE | O130: 0 | P130: 0 | Q130: 0 | AA130: 00:00:00 | AB130: 0 | AC130: 0 | AD130: 0 | AE130: 0 | AH130: 124 | AK130: 0 | AL130: =IF(torlesztes="Egyedi",-SUMIFS(U$7:U$210,T$7:T$210,">"&AJ129,T$7:T$210,"<="&AJ130),IFERROR(IF(torlesztes="Egyenlő tőke",IF(COUNT($AK$7:AK130)>$D$15,"",-$AK$5/$D$15),0),"")) -> 0 | AM130: 0 | AN130: 0 | AO130: =IF(torlesztes="Egyedi",-SUMIFS(U$7:U$210,T$7:T$210,">"&AJ129,T$7:T$210,"<="&AJ130),IFERROR(IF(torlesztes="Egyenlő tőke",IF(COUNT($AN$7:AN130)>$D$15,"",-$AK$5/$D$15),0),"")) -> 0 | AP130: 0 | AR130: 0 | AW130: 0 | AX130: 0 | AY130: 0 | AZ130: 0 | BA130: 0 | BB130: 0 | BD130: 0 | BE130: 0 | BG130: 0 | BH130: 0 | BI130: 0 | BJ130: 0 | BK130: 0 | BL130: 0 | BM130: 0 | BN130: 0 | BO130: 0 | BP130: 0 | BQ130: 0 | BR130: 0 | BS130: 0 | BT130: 0 | BU130: 0 | BV130: 0 | BW130: 0
J131: TRUE | O131: 0 | P131: 0 | Q131: 0 | AA131: 00:00:00 | AB131: 0 | AC131: 0 | AD131: 0 | AE131: 0 | AH131: 125 | AK131: 0 | AL131: =IF(torlesztes="Egyedi",-SUMIFS(U$7:U$210,T$7:T$210,">"&AJ130,T$7:T$210,"<="&AJ131),IFERROR(IF(torlesztes="Egyenlő tőke",IF(COUNT($AK$7:AK131)>$D$15,"",-$AK$5/$D$15),0),"")) -> 0 | AM131: 0 | AN131: 0 | AO131: =IF(torlesztes="Egyedi",-SUMIFS(U$7:U$210,T$7:T$210,">"&AJ130,T$7:T$210,"<="&AJ131),IFERROR(IF(torlesztes="Egyenlő tőke",IF(COUNT($AN$7:AN131)>$D$15,"",-$AK$5/$D$15),0),"")) -> 0 | AP131: 0 | AR131: 0 | AW131: 0 | AX131: 0 | AY131: 0 | AZ131: 0 | BA131: 0 | BB131: 0 | BD131: 0 | BE131: 0 | BG131: 0 | BH131: 0 | BI131: 0 | BJ131: 0 | BK131: 0 | BL131: 0 | BM131: 0 | BN131: 0 | BO131: 0 | BP131: 0 | BQ131: 0 | BR131: 0 | BS131: 0 | BT131: 0 | BU131: 0 | BV131: 0 | BW131: 0
J132: TRUE | O132: 0 | P132: 0 | Q132: 0 | AA132: 00:00:00 | AB132: 0 | AC132: 0 | AD132: 0 | AE132: 0 | AH132: 126 | AK132: 0 | AL132: =IF(torlesztes="Egyedi",-SUMIFS(U$7:U$210,T$7:T$210,">"&AJ131,T$7:T$210,"<="&AJ132),IFERROR(IF(torlesztes="Egyenlő tőke",IF(COUNT($AK$7:AK132)>$D$15,"",-$AK$5/$D$15),0),"")) -> 0 | AM132: 0 | AN132: 0 | AO132: =IF(torlesztes="Egyedi",-SUMIFS(U$7:U$210,T$7:T$210,">"&AJ131,T$7:T$210,"<="&AJ132),IFERROR(IF(torlesztes="Egyenlő tőke",IF(COUNT($AN$7:AN132)>$D$15,"",-$AK$5/$D$15),0),"")) -> 0 | AP132: 0 | AR132: 0 | AW132: 0 | AX132: 0 | AY132: 0 | AZ132: 0 | BA132: 0 | BB132: 0 | BD132: 0 | BE132: 0 | BG132: 0 | BH132: 0 | BI132: 0 | BJ132: 0 | BK132: 0 | BL132: 0 | BM132: 0 | BN132: 0 | BO132: 0 | BP132: 0 | BQ132: 0 | BR132: 0 | BS132: 0 | BT132: 0 | BU132: 0 | BV132: 0 | BW132: 0
J133: TRUE | O133: 0 | P133: 0 | Q133: 0 | AA133: 00:00:00 | AB133: 0 | AC133: 0 | AD133: 0 | AE133: 0 | AH133: 127 | AK133: 0 | AL133: =IF(torlesztes="Egyedi",-SUMIFS(U$7:U$210,T$7:T$210,">"&AJ132,T$7:T$210,"<="&AJ133),IFERROR(IF(torlesztes="Egyenlő tőke",IF(COUNT($AK$7:AK133)>$D$15,"",-$AK$5/$D$15),0),"")) -> 0 | AM133: 0 | AN133: 0 | AO133: =IF(torlesztes="Egyedi",-SUMIFS(U$7:U$210,T$7:T$210,">"&AJ132,T$7:T$210,"<="&AJ133),IFERROR(IF(torlesztes="Egyenlő tőke",IF(COUNT($AN$7:AN133)>$D$15,"",-$AK$5/$D$15),0),"")) -> 0 | AP133: 0 | AR133: 0 | AW133: 0 | AX133: 0 | AY133: 0 | AZ133: 0 | BA133: 0 | BB133: 0 | BD133: 0 | BE133: 0 | BG133: 0 | BH133: 0 | BI133: 0 | BJ133: 0 | BK133: 0 | BL133: 0 | BM133: 0 | BN133: 0 | BO133: 0 | BP133: 0 | BQ133: 0 | BR133: 0 | BS133: 0 | BT133: 0 | BU133: 0 | BV133: 0 | BW133: 0
J134: TRUE | O134: 0 | P134: 0 | Q134: 0 | AA134: 00:00:00 | AB134: 0 | AC134: 0 | AD134: 0 | AE134: 0 | AH134: 128 | AK134: 0 | AL134: =IF(torlesztes="Egyedi",-SUMIFS(U$7:U$210,T$7:T$210,">"&AJ133,T$7:T$210,"<="&AJ134),IFERROR(IF(torlesztes="Egyenlő tőke",IF(COUNT($AK$7:AK134)>$D$15,"",-$AK$5/$D$15),0),"")) -> 0 | AM134: 0 | AN134: 0 | AO134: =IF(torlesztes="Egyedi",-SUMIFS(U$7:U$210,T$7:T$210,">"&AJ133,T$7:T$210,"<="&AJ134),IFERROR(IF(torlesztes="Egyenlő tőke",IF(COUNT($AN$7:AN134)>$D$15,"",-$AK$5/$D$15),0),"")) -> 0 | AP134: 0 | AR134: 0 | AW134: 0 | AX134: 0 | AY134: 0 | AZ134: 0 | BA134: 0 | BB134: 0 | BD134: 0 | BE134: 0 | BG134: 0 | BH134: 0 | BI134: 0 | BJ134: 0 | BK134: 0 | BL134: 0 | BM134: 0 | BN134: 0 | BO134: 0 | BP134: 0 | BQ134: 0 | BR134: 0 | BS134: 0 | BT134: 0 | BU134: 0 | BV134: 0 | BW134: 0
J135: TRUE | O135: 0 | P135: =IF(AND(ISBLANK(L134),AH135<>1),0,IFERROR(-O135*piacikamat/365*(IF(ISBLANK(L135),$C$40,L135)-N135),"")) -> 0 | Q135: =IF(AND(ISBLANK(L134),AH135<>1),0,IFERROR(IF(IF(ISBLANK(L135),$C$40,L135)<=$D$28,-O135*tenylegeskamat1/365*(IF(ISBLANK(L135),$C$40,L135)-N135),IF(IF(ISBLANK(L135),$C$40,L135)<=$D$29,IF(N135>$D$28,-O135*tenylegeskamat2/365*(IF(ISBLANK(L135),$C$40,L135)-N135),(-O135*tenylegeskamat1/365*($D$28-N135))+(-O135*tenylegeskamat2/365*(IF(ISBLANK(L135),$C$40,L135)-$D$28))),IF(N135>$D$29,-O135*tenylegeskamat3/365*(IF(ISBLANK(L135),$C$40,L135)-N135),IF(N135<=$D$28,(-O135*tenylegeskamat1/365*($D$28-N135))+((-O135*tenylegeskamat2/365*($D$29-$D$28)))+(-O135*tenylegeskamat3/365*(IF(ISBLANK(L135),$C$40,L135)-$D$29)),(-O135*tenylegeskamat2/365*($D$29-N135))+(-O135*tenylegeskamat3/365*(IF(ISBLANK(L135),$C$40,L135)-$D$29)))))),"")) -> 0 | V135: =IF(ISNA(MAX(T134,INDEX(AJ$6:AJ$210,MATCH(T135-1,AJ$6:AJ$210,1)))),"",MAX(T134,INDEX(AJ$6:AJ$210,MATCH(T135-1,AJ$6:AJ$210,1)))) ->  | W135: =IF(ISNA(MIN(IF(OR(ISBLANK(W134),W134=""),INDEX(AK$7:AK$210,MATCH(T135,AJ$7:AJ$210,1)),W134-U134),INDEX(AK$7:AK$210,MATCH(T135,AJ$7:AJ$210,1)))),"",MIN(IF(OR(ISBLANK(W134),W134=""),INDEX(AK$7:AK$210,MATCH(T135,AJ$7:AJ$210,1)),W134-U134),INDEX(AK$7:AK$210,MATCH(T135,AJ$7:AJ$210,1)))) ->  | X135: =IFERROR(-W135*piacikamat/365*(T135-V135),"") ->  | Y135: =IFERROR(IF(T135<=$D$28,-W135*tenylegeskamat1/365*(T135-V135),IF(T135<=$D$29,IF(V135>$D$28,-W135*tenylegeskamat2/365*(T135-V135),(-W135*tenylegeskamat1/365*($D$28-V135))+(-W135*tenylegeskamat2/365*(T135-$D$28))),IF(V135>$D$29,-W135*tenylegeskamat3/365*(T135-V135),IF(V135<=$D$28,(-W135*tenylegeskamat1/365*($D$28-V135))+(-W135*tenylegeskamat2/365*($D$29-$D$28))+(-W135*tenylegeskamat3/365*(T135-$D$29)),(-W135*tenylegeskamat2/365*($D$29-V135))+(-W135*tenylegeskamat3/365*(T135-$D$29)))))),"") ->  | Z135: =IFERROR(T135-V135,"") ->  | AA135: =MAX(AJ134,IF(ISNA(INDEX(T$7:T$210,MATCH(AJ135,T$7:T$210,1))),0,INDEX(T$7:T$210,MATCH(AJ135,T$7:T$210,1)))) -> 00:00:00 | AB135: =IF(ISNA(INDEX(U$7:U$210,MATCH(AJ135,T$7:T$210,1))),0,INDEX(U$7:U$210,MATCH(AJ135,T$7:T$210,1))) -> 0 | AC135: =IF(ISNA(INDEX(W$7:W$210,MATCH(AJ135,T$7:T$210,1))),AK135,INDEX(W$7:W$210,MATCH(AJ135,T$7:T$210,1))) -> 0 | AD135: =IFERROR(-(AC135-AB135)*piacikamat/365*(AJ135-AA135),0) -> 0 | AE135: =IFERROR(IF(AJ135<=$D$28,-(AC135-AB135)*tenylegeskamat1/365*(AJ135-AA135),IF(AJ135<=$D$29,IF(AA135>$D$28,-(AC135-AB135)*tenylegeskamat2/365*(AJ135-AA135),(-(AC135-AB135)*tenylegeskamat1/365*($D$28-AA135))+(-(AC135-AB135)*tenylegeskamat2/365*(AJ135-$D$28))),IF(AA135>$D$29,-(AC135-AB135)*tenylegeskamat3/365*(AJ135-AA135),IF(AA135<=$D$28,(-(AC135-AB135)*tenylegeskamat1/365*($D$28-AA135))+(-(AC135-AB135)*tenylegeskamat2/365*($D$29-$D$28))+(-(AC135-AB135)*tenylegeskamat3/365*(AJ135-$D$29)),(-(AC135-AB135)*tenylegeskamat2/365*($D$29-AA135))+(-(AC135-AB135)*tenylegeskamat3/365*(AJ135-$D$29)))))),0) -> 0 | AF135: =IFERROR(AJ135-AA135,"") ->  | AH135: 129 | AK135: 0 | AL135: =IF(torlesztes="Egyedi",-SUMIFS(U$7:U$210,T$7:T$210,">"&AJ134,T$7:T$210,"<="&AJ135),IFERROR(IF(torlesztes="Egyenlő tőke",IF(COUNT($AK$7:AK135)>$D$15,"",-$AK$5/$D$15),0),"")) -> 0 | AM135: 0 | AN135: 0 | AO135: =IF(torlesztes="Egyedi",-SUMIFS(U$7:U$210,T$7:T$210,">"&AJ134,T$7:T$210,"<="&AJ135),IFERROR(IF(torlesztes="Egyenlő tőke",IF(COUNT($AN$7:AN135)>$D$15,"",-$AK$5/$D$15),0),"")) -> 0 | AP135: 0 | AR135: 0 | AW135: =IF(AND(ISBLANK(L134),AH135<>1),0,IFERROR(IF(IF(ISBLANK(L135),$C$40,L135)<=$D$28,-O135*piacikamat/365*(IF(ISBLANK(L135),$C$40,L135)-N135),IF(IF(ISBLANK(L135),$C$40,L135)<=$D$29,IF(N135>$D$28,0,(-O135*piacikamat/365*($D$28-N135))),IF(N135>$D$29,0,IF(N135<=$D$28,(-O135*piacikamat/365*($D$28-N135)),0)))),"")) -> 0 | AX135: =IF(AND(ISBLANK(L134),AH135<>1),0,IFERROR(IF(IF(ISBLANK(L135),$C$40,L135)<=$D$28,0,IF(IF(ISBLANK(L135),$C$40,L135)<=$D$29,IF(N135>$D$28,-O135*piacikamat/365*(IF(ISBLANK(L135),$C$40,L135)-N135),(-O135*piacikamat/365*(IF(ISBLANK(L135),$C$40,L135)-$D$28))),IF(N135>$D$29,0,IF(N135<=$D$28,(-O135*piacikamat/365*($D$29-$D$28)),(-O135*piacikamat/365*($D$29-N135)))))),"")) -> 0 | AY135: =IF(AND(ISBLANK(L134),AH135<>1),0,IFERROR(IF(IF(ISBLANK(L135),$C$40,L135)<=$D$28,0,IF(IF(ISBLANK(L135),$C$40,L135)<=$D$29,IF(N135>$D$28,0,0),IF(N135>$D$29,-O135*piacikamat/365*(IF(ISBLANK(L135),$C$40,L135)-N135),IF(N135<=$D$28,(-O135*piacikamat/365*(IF(ISBLANK(L135),$C$40,L135)-$D$29)),(-O135*piacikamat/365*(IF(ISBLANK(L135),$C$40,L135)-$D$29)))))),"")) -> 0 | AZ135: =IF(AND(ISBLANK(L134),AH135<>1),0,IFERROR(IF(IF(ISBLANK(L135),$C$40,L135)<=$D$28,-O135*tenylegeskamat1/365*(IF(ISBLANK(L135),$C$40,L135)-N135),IF(IF(ISBLANK(L135),$C$40,L135)<=$D$29,IF(N135>$D$28,0,(-O135*tenylegeskamat1/365*($D$28-N135))),IF(N135>$D$29,0,IF(N135<=$D$28,(-O135*tenylegeskamat1/365*($D$28-N135)),0)))),"")) -> 0 | BA135: =IF(AND(ISBLANK(L134),AH135<>1),0,IFERROR(IF(IF(ISBLANK(L135),$C$40,L135)<=$D$28,0,IF(IF(ISBLANK(L135),$C$40,L135)<=$D$29,IF(N135>$D$28,-O135*tenylegeskamat2/365*(IF(ISBLANK(L135),$C$40,L135)-N135),(-O135*tenylegeskamat2/365*(IF(ISBLANK(L135),$C$40,L135)-$D$28))),IF(N135>$D$29,0,IF(N135<=$D$28,((-O135*tenylegeskamat2/365*($D$29-$D$28))),(-O135*tenylegeskamat2/365*($D$29-N135)))))),"")) -> 0 | BB135: =IF(AND(ISBLANK(L134),AH135<>1),0,IFERROR(IF(IF(ISBLANK(L135),$C$40,L135)<=$D$28,0,IF(IF(ISBLANK(L135),$C$40,L135)<=$D$29,IF(N135>$D$28,0,0),IF(N135>$D$29,-O135*tenylegeskamat3/365*(IF(ISBLANK(L135),$C$40,L135)-N135),IF(N135<=$D$28,(-O135*tenylegeskamat3/365*(IF(ISBLANK(L135),$C$40,L135)-$D$29)),(-O135*tenylegeskamat3/365*(IF(ISBLANK(L135),$C$40,L135)-$D$29)))))),"")) -> 0 | BC135: =IFERROR(IF(T135<=$D$28,-W135*piacikamat/365*(T135-V135),IF(T135<=$D$29,IF(V135>$D$28,0,(-W135*piacikamat/365*($D$28-V135))),IF(V135>$D$29,0,IF(V135<=$D$28,(-W135*piacikamat/365*($D$28-V135)),0)))),"") ->  | BD135: =IFERROR(IF(T135<=$D$28,0,IF(T135<=$D$29,IF(V135>$D$28,-W135*piacikamat/365*(T135-V135),(-W135*piacikamat/365*(T135-$D$28))),IF(V135>$D$29,0,IF(V135<=$D$28,(-W135*piacikamat/365*($D$29-$D$28)),(-W135*piacikamat/365*($D$29-V135)))))),"") -> 0 | BE135: =IFERROR(IF(T135<=$D$28,0,IF(T135<=$D$29,IF(V135>$D$28,0,0),IF(V135>$D$29,-W135*piacikamat/365*(T135-V135),IF(V135<=$D$28,(-W135*piacikamat/365*(T135-$D$29)),(-W135*piacikamat/365*(T135-$D$29)))))),"") -> 0 | BF135: =IFERROR(IF(T135<=$D$28,-W135*tenylegeskamat1/365*(T135-V135),IF(T135<=$D$29,IF(V135>$D$28,0,(-W135*tenylegeskamat1/365*($D$28-V135))),IF(V135>$D$29,0,IF(V135<=$D$28,(-W135*tenylegeskamat1/365*($D$28-V135)),0)))),"") ->  | BG135: =IFERROR(IF(T135<=$D$28,0,IF(T135<=$D$29,IF(V135>$D$28,-W135*tenylegeskamat2/365*(T135-V135),(-W135*tenylegeskamat2/365*(T135-$D$28))),IF(V135>$D$29,0,IF(V135<=$D$28,(-W135*tenylegeskamat2/365*($D$29-$D$28)),(-W135*tenylegeskamat2/365*($D$29-V135)))))),"") -> 0 | BH135: =IFERROR(IF(T135<=$D$28,0,IF(T135<=$D$29,IF(V135>$D$28,0,0),IF(V135>$D$29,-W135*tenylegeskamat3/365*(T135-V135),IF(V135<=$D$28,(-W135*tenylegeskamat3/365*(T135-$D$29)),(-W135*tenylegeskamat3/365*(T135-$D$29)))))),"") -> 0 | BI135: =IFERROR(IF(AJ135<=$D$28,-(AC135-AB135)*piacikamat/365*(AJ135-AA135),IF(AJ135<=$D$29,IF(AA135>$D$28,0,(-(AC135-AB135)*piacikamat/365*($D$28-AA135))),IF(AA135>$D$29,0,IF(AA135<=$D$28,(-(AC135-AB135)*piacikamat/365*($D$28-AA135)),0)))),0) -> 0 | BJ135: =IFERROR(IF(AJ135<=$D$28,0,IF(AJ135<=$D$29,IF(AA135>$D$28,-(AC135-AB135)*piacikamat/365*(AJ135-AA135),(-(AC135-AB135)*piacikamat/365*(AJ135-$D$28))),IF(AA135>$D$29,0,IF(AA135<=$D$28,(-(AC135-AB135)*piacikamat/365*($D$29-$D$28)),(-(AC135-AB135)*piacikamat/365*($D$29-AA135)))))),0) -> 0 | BK135: =IFERROR(IF(AJ135<=$D$28,0,IF(AJ135<=$D$29,IF(AA135>$D$28,0,0),IF(AA135>$D$29,-(AC135-AB135)*piacikamat/365*(AJ135-AA135),IF(AA135<=$D$28,(-(AC135-AB135)*piacikamat/365*(AJ135-$D$29)),(-(AC135-AB135)*piacikamat/365*(AJ135-$D$29)))))),0) -> 0 | BL135: =IFERROR(IF(AJ135<=$D$28,-(AC135-AB135)*tenylegeskamat1/365*(AJ135-AA135),IF(AJ135<=$D$29,IF(AA135>$D$28,0,(-(AC135-AB135)*tenylegeskamat1/365*($D$28-AA135))),IF(AA135>$D$29,0,IF(AA135<=$D$28,(-(AC135-AB135)*tenylegeskamat1/365*($D$28-AA135)),0)))),0) -> 0 | BM135: =IFERROR(IF(AJ135<=$D$28,0,IF(AJ135<=$D$29,IF(AA135>$D$28,-(AC135-AB135)*tenylegeskamat2/365*(AJ135-AA135),(-(AC135-AB135)*tenylegeskamat2/365*(AJ135-$D$28))),IF(AA135>$D$29,0,IF(AA135<=$D$28,(-(AC135-AB135)*tenylegeskamat2/365*($D$29-$D$28)),(-(AC135-AB135)*tenylegeskamat2/365*($D$29-AA135)))))),0) -> 0 | BN135: =IFERROR(IF(AJ135<=$D$28,0,IF(AJ135<=$D$29,IF(AA135>$D$28,0,0),IF(AA135>$D$29,-(AC135-AB135)*tenylegeskamat3/365*(AJ135-AA135),IF(AA135<=$D$28,(-(AC135-AB135)*tenylegeskamat3/365*(AJ135-$D$29)),(-(AC135-AB135)*tenylegeskamat3/365*(AJ135-$D$29)))))),0) -> 0 | BO135: 0 | BP135: 0 | BQ135: 0 | BR135: 0 | BS135: 0 | BT135: 0 | BU135: 0 | BV135: 0 | BW135: 0
J136: =AI136>$D$15 -> TRUE | O136: 0 | P136: 0 | Q136: 0 | AA136: 00:00:00 | AB136: 0 | AC136: 0 | AD136: 0 | AE136: 0 | AH136: 130 | AJ136: =IF(OR(AJ135=$C$41,AJ135=""),"",IFERROR(IF(EDATE($C$40,(AH136-1)*12/$D$19)<=$C$41,EDATE($C$40,(AH136-1)*12/$D$19),$C$41),"")) ->  | AK136: =+IF(COUNT(AK135)<>0,SUM(AK135:AL135)*(1-J136),"") -> 0 | AL136: =IF(torlesztes="Egyedi",-SUMIFS(U$7:U$210,T$7:T$210,">"&AJ135,T$7:T$210,"<="&AJ136),IFERROR(IF(torlesztes="Egyenlő tőke",IF(COUNT($AK$7:AK136)>$D$15,"",-$AK$5/$D$15),0),"")) -> 0 | AM136: =IF(torlesztes="Egyedi",SUMIFS(X$7:X$210,T$7:T$210,">"&AJ135,T$7:T$210,"<="&AJ136)+AD136,IFERROR(-AK136*piacikamat/365*(AJ136-AJ135),"")) -> 0 | AN136: =+IF(COUNT(AN135)<>0,SUM(AN135:AO135)*(1-J136),"") -> 0 | AO136: =IF(torlesztes="Egyedi",-SUMIFS(U$7:U$210,T$7:T$210,">"&AJ135,T$7:T$210,"<="&AJ136),IFERROR(IF(torlesztes="Egyenlő tőke",IF(COUNT($AN$7:AN136)>$D$15,"",-$AK$5/$D$15),0),"")) -> 0 | AP136: =IF(torlesztes="Egyedi",SUMIFS(Y$7:Y$210,T$7:T$210,">"&AJ135,T$7:T$210,"<="&AJ136)+AE136,IFERROR(IF(AJ136<=$D$28,-AN136*tenylegeskamat1/365*(AJ136-AJ135),IF(AJ136<=$D$29,IF(AJ135>$D$28,-AK136*tenylegeskamat2/365*(AJ136-AJ135),(-AN136*tenylegeskamat1/365*($D$28-AJ135))+(-AN136*tenylegeskamat2/365*(AJ136-$D$28))),IF(AJ135>$D$29,-AK136*tenylegeskamat3/365*(AJ136-AJ135),IF(AJ135<=$D$28,(-AN136*tenylegeskamat1/365*($D$28-AJ135))+(-AN136*tenylegeskamat2/365*($D$29-$D$28))+(-AN136*tenylegeskamat3/365*(AJ136-$D$29)),(-AN136*tenylegeskamat2/365*($D$29-AJ135))+(-AN136*tenylegeskamat3/365*(AJ136-$D$29)))))),"")) -> 0 | AR136: =IFERROR(MAX((ABS(AM136)-ABS(AP136)),0),"") -> 0 | AS136: =IFERROR(AR136/POWER(1+($C$15+1%)/$D$19,AI136-1)/(1+($C$15+1%)/365*($AJ$7-$C$38)),"") ->  | AW136: 0 | AX136: 0 | AY136: 0 | AZ136: 0 | BA136: 0 | BB136: 0 | BD136: 0 | BE136: 0 | BG136: 0 | BH136: 0 | BI136: 0 | BJ136: 0 | BK136: 0 | BL136: 0 | BM136: 0 | BN136: 0 | BO136: =IF(torlesztes="Egyedi",SUMIFS(BC$7:BC$210,T$7:T$210,">"&AJ135,T$7:T$210,"<="&AJ136)+BI136,IFERROR(IF(AJ136<=$D$28,-AK136*piacikamat/365*(AJ136-AJ135),IF(AJ136<=$D$29,IF(AJ135>$D$28,0,(-AK136*piacikamat/365*($D$28-AJ135))),IF(AJ135>$D$29,0,IF(AJ135<=$D$28,(-AK136*piacikamat/365*($D$28-AJ135)),0)))),"")) -> 0 | BP136: =IF(torlesztes="Egyedi",SUMIFS(BD$7:BD$210,T$7:T$210,">"&AJ135,T$7:T$210,"<="&AJ136)+BJ136,IFERROR(IF(AJ136<=$D$28,0,IF(AJ136<=$D$29,IF(AJ135>$D$28,-AK136*piacikamat/365*(AJ136-AJ135),(-AK136*piacikamat/365*(AJ136-$D$28))),IF(AJ135>$D$29,0,IF(AJ135<=$D$28,(-AK136*piacikamat/365*($D$29-$D$28)),(-AK136*piacikamat/365*($D$29-AJ135)))))),"")) -> 0 | BQ136: =IF(torlesztes="Egyedi",SUMIFS(BE$7:BE$210,T$7:T$210,">"&AJ135,T$7:T$210,"<="&AJ136)+BK136,IFERROR(IF(AJ136<=$D$28,0,IF(AJ136<=$D$29,IF(AJ135>$D$28,0,0),IF(AJ135>$D$29,-AK136*piacikamat/365*(AJ136-AJ135),IF(AJ135<=$D$28,(-AK136*piacikamat/365*(AJ136-$D$29)),(-AK136*piacikamat/365*(AJ136-$D$29)))))),"")) -> 0 | BR136: =IF(torlesztes="Egyedi",SUMIFS(BF$7:BF$210,T$7:T$210,">"&AJ135,T$7:T$210,"<="&AJ136)+BL136,IFERROR(IF(AJ136<=$D$28,-AN136*tenylegeskamat1/365*(AJ136-AJ135),IF(AJ136<=$D$29,IF(AJ135>$D$28,0,(-AN136*tenylegeskamat1/365*($D$28-AJ135))),IF(AJ135>$D$29,0,IF(AJ135<=$D$28,(-AN136*tenylegeskamat1/365*($D$28-AJ135)),0)))),"")) -> 0 | BS136: =IF(torlesztes="Egyedi",SUMIFS(BG$7:BG$210,T$7:T$210,">"&AJ135,T$7:T$210,"<="&AJ136)+BM136,IFERROR(IF(AJ136<=$D$28,0,IF(AJ136<=$D$29,IF(AJ135>$D$28,-AK136*tenylegeskamat2/365*(AJ136-AJ135),(-AN136*tenylegeskamat2/365*(AJ136-$D$28))),IF(AJ135>$D$29,0,IF(AJ135<=$D$28,(-AN136*tenylegeskamat2/365*($D$29-$D$28)),(-AN136*tenylegeskamat2/365*($D$29-AJ135)))))),"")) -> 0 | BT136: =IF(torlesztes="Egyedi",SUMIFS(BH$7:BH$210,T$7:T$210,">"&AJ135,T$7:T$210,"<="&AJ136)+BN136,IFERROR(IF(AJ136<=$D$28,0,IF(AJ136<=$D$29,IF(AJ135>$D$28,0,0),IF(AJ135>$D$29,-AK136*tenylegeskamat3/365*(AJ136-AJ135),IF(AJ135<=$D$28,(-AN136*tenylegeskamat3/365*(AJ136-$D$29)),(-AN136*tenylegeskamat3/365*(AJ136-$D$29)))))),"")) -> 0 | BU136: =IFERROR(MAX((ABS(BO136)-ABS(BR136)),0),"") -> 0 | BV136: =IFERROR(MAX((ABS(BP136)-ABS(BS136)),0),"") -> 0 | BW136: =IFERROR(MAX((ABS(BQ136)-ABS(BT136)),0),"") -> 0 | BX136: =IFERROR(BU136/POWER(1+($C$15+1%)/$D$19,AI136-1)/(1+($C$15+1%)/365*($AJ$7-$C$38)),"") ->  | BY136: =IFERROR(BV136/POWER(1+($C$15+1%)/$D$19,AI136-1)/(1+($C$15+1%)/365*($AJ$7-$C$38)),"") ->  | BZ136: =IFERROR(BW136/POWER(1+($C$15+1%)/$D$19,AI136-1)/(1+($C$15+1%)/365*($AJ$7-$C$38)),"") -> 
J137: TRUE | O137: 0 | P137: 0 | Q137: 0 | AA137: 00:00:00 | AB137: 0 | AC137: 0 | AD137: 0 | AE137: 0 | AH137: 131 | AI137: =IF(COUNT(AJ137)=1,AI136+1,"") ->  | AK137: 0 | AL137: =IF(torlesztes="Egyedi",-SUMIFS(U$7:U$210,T$7:T$210,">"&AJ136,T$7:T$210,"<="&AJ137),IFERROR(IF(torlesztes="Egyenlő tőke",IF(COUNT($AK$7:AK137)>$D$15,"",-$AK$5/$D$15),0),"")) -> 0 | AM137: 0 | AN137: 0 | AO137: =IF(torlesztes="Egyedi",-SUMIFS(U$7:U$210,T$7:T$210,">"&AJ136,T$7:T$210,"<="&AJ137),IFERROR(IF(torlesztes="Egyenlő tőke",IF(COUNT($AN$7:AN137)>$D$15,"",-$AK$5/$D$15),0),"")) -> 0 | AP137: 0 | AR137: 0 | AW137: 0 | AX137: 0 | AY137: 0 | AZ137: 0 | BA137: 0 | BB137: 0 | BD137: 0 | BE137: 0 | BG137: 0 | BH137: 0 | BI137: 0 | BJ137: 0 | BK137: 0 | BL137: 0 | BM137: 0 | BN137: 0 | BO137: 0 | BP137: 0 | BQ137: 0 | BR137: 0 | BS137: 0 | BT137: 0 | BU137: 0 | BV137: 0 | BW137: 0
J138: TRUE | O138: 0 | P138: 0 | Q138: 0 | AA138: 00:00:00 | AB138: 0 | AC138: 0 | AD138: 0 | AE138: 0 | AH138: 132 | AK138: 0 | AL138: =IF(torlesztes="Egyedi",-SUMIFS(U$7:U$210,T$7:T$210,">"&AJ137,T$7:T$210,"<="&AJ138),IFERROR(IF(torlesztes="Egyenlő tőke",IF(COUNT($AK$7:AK138)>$D$15,"",-$AK$5/$D$15),0),"")) -> 0 | AM138: 0 | AN138: 0 | AO138: =IF(torlesztes="Egyedi",-SUMIFS(U$7:U$210,T$7:T$210,">"&AJ137,T$7:T$210,"<="&AJ138),IFERROR(IF(torlesztes="Egyenlő tőke",IF(COUNT($AN$7:AN138)>$D$15,"",-$AK$5/$D$15),0),"")) -> 0 | AP138: 0 | AR138: 0 | AW138: 0 | AX138: 0 | AY138: 0 | AZ138: 0 | BA138: 0 | BB138: 0 | BD138: 0 | BE138: 0 | BG138: 0 | BH138: 0 | BI138: 0 | BJ138: 0 | BK138: 0 | BL138: 0 | BM138: 0 | BN138: 0 | BO138: 0 | BP138: 0 | BQ138: 0 | BR138: 0 | BS138: 0 | BT138: 0 | BU138: 0 | BV138: 0 | BW138: 0
J139: TRUE | O139: 0 | P139: 0 | Q139: 0 | AA139: 00:00:00 | AB139: 0 | AC139: 0 | AD139: 0 | AE139: 0 | AH139: 133 | AK139: 0 | AL139: =IF(torlesztes="Egyedi",-SUMIFS(U$7:U$210,T$7:T$210,">"&AJ138,T$7:T$210,"<="&AJ139),IFERROR(IF(torlesztes="Egyenlő tőke",IF(COUNT($AK$7:AK139)>$D$15,"",-$AK$5/$D$15),0),"")) -> 0 | AM139: 0 | AN139: 0 | AO139: =IF(torlesztes="Egyedi",-SUMIFS(U$7:U$210,T$7:T$210,">"&AJ138,T$7:T$210,"<="&AJ139),IFERROR(IF(torlesztes="Egyenlő tőke",IF(COUNT($AN$7:AN139)>$D$15,"",-$AK$5/$D$15),0),"")) -> 0 | AP139: 0 | AR139: 0 | AW139: 0 | AX139: 0 | AY139: 0 | AZ139: 0 | BA139: 0 | BB139: 0 | BD139: 0 | BE139: 0 | BG139: 0 | BH139: 0 | BI139: 0 | BJ139: 0 | BK139: 0 | BL139: 0 | BM139: 0 | BN139: 0 | BO139: 0 | BP139: 0 | BQ139: 0 | BR139: 0 | BS139: 0 | BT139: 0 | BU139: 0 | BV139: 0 | BW139: 0
J140: TRUE | O140: 0 | P140: 0 | Q140: 0 | AA140: 00:00:00 | AB140: 0 | AC140: 0 | AD140: 0 | AE140: 0 | AH140: 134 | AK140: 0 | AL140: =IF(torlesztes="Egyedi",-SUMIFS(U$7:U$210,T$7:T$210,">"&AJ139,T$7:T$210,"<="&AJ140),IFERROR(IF(torlesztes="Egyenlő tőke",IF(COUNT($AK$7:AK140)>$D$15,"",-$AK$5/$D$15),0),"")) -> 0 | AM140: 0 | AN140: 0 | AO140: =IF(torlesztes="Egyedi",-SUMIFS(U$7:U$210,T$7:T$210,">"&AJ139,T$7:T$210,"<="&AJ140),IFERROR(IF(torlesztes="Egyenlő tőke",IF(COUNT($AN$7:AN140)>$D$15,"",-$AK$5/$D$15),0),"")) -> 0 | AP140: 0 | AR140: 0 | AW140: 0 | AX140: 0 | AY140: 0 | AZ140: 0 | BA140: 0 | BB140: 0 | BD140: 0 | BE140: 0 | BG140: 0 | BH140: 0 | BI140: 0 | BJ140: 0 | BK140: 0 | BL140: 0 | BM140: 0 | BN140: 0 | BO140: 0 | BP140: 0 | BQ140: 0 | BR140: 0 | BS140: 0 | BT140: 0 | BU140: 0 | BV140: 0 | BW140: 0
J141: TRUE | O141: 0 | P141: 0 | Q141: 0 | AA141: 00:00:00 | AB141: 0 | AC141: 0 | AD141: 0 | AE141: 0 | AH141: 135 | AK141: 0 | AL141: =IF(torlesztes="Egyedi",-SUMIFS(U$7:U$210,T$7:T$210,">"&AJ140,T$7:T$210,"<="&AJ141),IFERROR(IF(torlesztes="Egyenlő tőke",IF(COUNT($AK$7:AK141)>$D$15,"",-$AK$5/$D$15),0),"")) -> 0 | AM141: 0 | AN141: 0 | AO141: =IF(torlesztes="Egyedi",-SUMIFS(U$7:U$210,T$7:T$210,">"&AJ140,T$7:T$210,"<="&AJ141),IFERROR(IF(torlesztes="Egyenlő tőke",IF(COUNT($AN$7:AN141)>$D$15,"",-$AK$5/$D$15),0),"")) -> 0 | AP141: 0 | AR141: 0 | AW141: 0 | AX141: 0 | AY141: 0 | AZ141: 0 | BA141: 0 | BB141: 0 | BD141: 0 | BE141: 0 | BG141: 0 | BH141: 0 | BI141: 0 | BJ141: 0 | BK141: 0 | BL141: 0 | BM141: 0 | BN141: 0 | BO141: 0 | BP141: 0 | BQ141: 0 | BR141: 0 | BS141: 0 | BT141: 0 | BU141: 0 | BV141: 0 | BW141: 0
J142: TRUE | O142: 0 | P142: 0 | Q142: 0 | AA142: 00:00:00 | AB142: 0 | AC142: 0 | AD142: 0 | AE142: 0 | AH142: 136 | AK142: 0 | AL142: =IF(torlesztes="Egyedi",-SUMIFS(U$7:U$210,T$7:T$210,">"&AJ141,T$7:T$210,"<="&AJ142),IFERROR(IF(torlesztes="Egyenlő tőke",IF(COUNT($AK$7:AK142)>$D$15,"",-$AK$5/$D$15),0),"")) -> 0 | AM142: 0 | AN142: 0 | AO142: =IF(torlesztes="Egyedi",-SUMIFS(U$7:U$210,T$7:T$210,">"&AJ141,T$7:T$210,"<="&AJ142),IFERROR(IF(torlesztes="Egyenlő tőke",IF(COUNT($AN$7:AN142)>$D$15,"",-$AK$5/$D$15),0),"")) -> 0 | AP142: 0 | AR142: 0 | AW142: 0 | AX142: 0 | AY142: 0 | AZ142: 0 | BA142: 0 | BB142: 0 | BD142: 0 | BE142: 0 | BG142: 0 | BH142: 0 | BI142: 0 | BJ142: 0 | BK142: 0 | BL142: 0 | BM142: 0 | BN142: 0 | BO142: 0 | BP142: 0 | BQ142: 0 | BR142: 0 | BS142: 0 | BT142: 0 | BU142: 0 | BV142: 0 | BW142: 0
J143: TRUE | O143: 0 | P143: 0 | Q143: 0 | AA143: 00:00:00 | AB143: 0 | AC143: 0 | AD143: 0 | AE143: 0 | AH143: 137 | AK143: 0 | AL143: =IF(torlesztes="Egyedi",-SUMIFS(U$7:U$210,T$7:T$210,">"&AJ142,T$7:T$210,"<="&AJ143),IFERROR(IF(torlesztes="Egyenlő tőke",IF(COUNT($AK$7:AK143)>$D$15,"",-$AK$5/$D$15),0),"")) -> 0 | AM143: 0 | AN143: 0 | AO143: =IF(torlesztes="Egyedi",-SUMIFS(U$7:U$210,T$7:T$210,">"&AJ142,T$7:T$210,"<="&AJ143),IFERROR(IF(torlesztes="Egyenlő tőke",IF(COUNT($AN$7:AN143)>$D$15,"",-$AK$5/$D$15),0),"")) -> 0 | AP143: 0 | AR143: 0 | AW143: 0 | AX143: 0 | AY143: 0 | AZ143: 0 | BA143: 0 | BB143: 0 | BD143: 0 | BE143: 0 | BG143: 0 | BH143: 0 | BI143: 0 | BJ143: 0 | BK143: 0 | BL143: 0 | BM143: 0 | BN143: 0 | BO143: 0 | BP143: 0 | BQ143: 0 | BR143: 0 | BS143: 0 | BT143: 0 | BU143: 0 | BV143: 0 | BW143: 0
J144: TRUE | O144: 0 | P144: 0 | Q144: 0 | AA144: 00:00:00 | AB144: 0 | AC144: 0 | AD144: 0 | AE144: 0 | AH144: 138 | AK144: 0 | AL144: =IF(torlesztes="Egyedi",-SUMIFS(U$7:U$210,T$7:T$210,">"&AJ143,T$7:T$210,"<="&AJ144),IFERROR(IF(torlesztes="Egyenlő tőke",IF(COUNT($AK$7:AK144)>$D$15,"",-$AK$5/$D$15),0),"")) -> 0 | AM144: 0 | AN144: 0 | AO144: =IF(torlesztes="Egyedi",-SUMIFS(U$7:U$210,T$7:T$210,">"&AJ143,T$7:T$210,"<="&AJ144),IFERROR(IF(torlesztes="Egyenlő tőke",IF(COUNT($AN$7:AN144)>$D$15,"",-$AK$5/$D$15),0),"")) -> 0 | AP144: 0 | AR144: 0 | AW144: 0 | AX144: 0 | AY144: 0 | AZ144: 0 | BA144: 0 | BB144: 0 | BD144: 0 | BE144: 0 | BG144: 0 | BH144: 0 | BI144: 0 | BJ144: 0 | BK144: 0 | BL144: 0 | BM144: 0 | BN144: 0 | BO144: 0 | BP144: 0 | BQ144: 0 | BR144: 0 | BS144: 0 | BT144: 0 | BU144: 0 | BV144: 0 | BW144: 0
J145: TRUE | O145: 0 | P145: 0 | Q145: 0 | AA145: 00:00:00 | AB145: 0 | AC145: 0 | AD145: 0 | AE145: 0 | AH145: 139 | AK145: 0 | AL145: =IF(torlesztes="Egyedi",-SUMIFS(U$7:U$210,T$7:T$210,">"&AJ144,T$7:T$210,"<="&AJ145),IFERROR(IF(torlesztes="Egyenlő tőke",IF(COUNT($AK$7:AK145)>$D$15,"",-$AK$5/$D$15),0),"")) -> 0 | AM145: 0 | AN145: 0 | AO145: =IF(torlesztes="Egyedi",-SUMIFS(U$7:U$210,T$7:T$210,">"&AJ144,T$7:T$210,"<="&AJ145),IFERROR(IF(torlesztes="Egyenlő tőke",IF(COUNT($AN$7:AN145)>$D$15,"",-$AK$5/$D$15),0),"")) -> 0 | AP145: 0 | AR145: 0 | AW145: 0 | AX145: 0 | AY145: 0 | AZ145: 0 | BA145: 0 | BB145: 0 | BD145: 0 | BE145: 0 | BG145: 0 | BH145: 0 | BI145: 0 | BJ145: 0 | BK145: 0 | BL145: 0 | BM145: 0 | BN145: 0 | BO145: 0 | BP145: 0 | BQ145: 0 | BR145: 0 | BS145: 0 | BT145: 0 | BU145: 0 | BV145: 0 | BW145: 0
J146: TRUE | O146: 0 | P146: 0 | Q146: 0 | AA146: 00:00:00 | AB146: 0 | AC146: 0 | AD146: 0 | AE146: 0 | AH146: 140 | AK146: 0 | AL146: =IF(torlesztes="Egyedi",-SUMIFS(U$7:U$210,T$7:T$210,">"&AJ145,T$7:T$210,"<="&AJ146),IFERROR(IF(torlesztes="Egyenlő tőke",IF(COUNT($AK$7:AK146)>$D$15,"",-$AK$5/$D$15),0),"")) -> 0 | AM146: 0 | AN146: 0 | AO146: =IF(torlesztes="Egyedi",-SUMIFS(U$7:U$210,T$7:T$210,">"&AJ145,T$7:T$210,"<="&AJ146),IFERROR(IF(torlesztes="Egyenlő tőke",IF(COUNT($AN$7:AN146)>$D$15,"",-$AK$5/$D$15),0),"")) -> 0 | AP146: 0 | AR146: 0 | AW146: 0 | AX146: 0 | AY146: 0 | AZ146: 0 | BA146: 0 | BB146: 0 | BD146: 0 | BE146: 0 | BG146: 0 | BH146: 0 | BI146: 0 | BJ146: 0 | BK146: 0 | BL146: 0 | BM146: 0 | BN146: 0 | BO146: 0 | BP146: 0 | BQ146: 0 | BR146: 0 | BS146: 0 | BT146: 0 | BU146: 0 | BV146: 0 | BW146: 0
J147: TRUE | O147: 0 | P147: 0 | Q147: 0 | AA147: 00:00:00 | AB147: 0 | AC147: 0 | AD147: 0 | AE147: 0 | AH147: 141 | AK147: 0 | AL147: =IF(torlesztes="Egyedi",-SUMIFS(U$7:U$210,T$7:T$210,">"&AJ146,T$7:T$210,"<="&AJ147),IFERROR(IF(torlesztes="Egyenlő tőke",IF(COUNT($AK$7:AK147)>$D$15,"",-$AK$5/$D$15),0),"")) -> 0 | AM147: 0 | AN147: 0 | AO147: =IF(torlesztes="Egyedi",-SUMIFS(U$7:U$210,T$7:T$210,">"&AJ146,T$7:T$210,"<="&AJ147),IFERROR(IF(torlesztes="Egyenlő tőke",IF(COUNT($AN$7:AN147)>$D$15,"",-$AK$5/$D$15),0),"")) -> 0 | AP147: 0 | AR147: 0 | AW147: 0 | AX147: 0 | AY147: 0 | AZ147: 0 | BA147: 0 | BB147: 0 | BD147: 0 | BE147: 0 | BG147: 0 | BH147: 0 | BI147: 0 | BJ147: 0 | BK147: 0 | BL147: 0 | BM147: 0 | BN147: 0 | BO147: 0 | BP147: 0 | BQ147: 0 | BR147: 0 | BS147: 0 | BT147: 0 | BU147: 0 | BV147: 0 | BW147: 0
J148: TRUE | O148: 0 | P148: 0 | Q148: 0 | AA148: 00:00:00 | AB148: 0 | AC148: 0 | AD148: 0 | AE148: 0 | AH148: 142 | AK148: 0 | AL148: =IF(torlesztes="Egyedi",-SUMIFS(U$7:U$210,T$7:T$210,">"&AJ147,T$7:T$210,"<="&AJ148),IFERROR(IF(torlesztes="Egyenlő tőke",IF(COUNT($AK$7:AK148)>$D$15,"",-$AK$5/$D$15),0),"")) -> 0 | AM148: 0 | AN148: 0 | AO148: =IF(torlesztes="Egyedi",-SUMIFS(U$7:U$210,T$7:T$210,">"&AJ147,T$7:T$210,"<="&AJ148),IFERROR(IF(torlesztes="Egyenlő tőke",IF(COUNT($AN$7:AN148)>$D$15,"",-$AK$5/$D$15),0),"")) -> 0 | AP148: 0 | AR148: 0 | AW148: 0 | AX148: 0 | AY148: 0 | AZ148: 0 | BA148: 0 | BB148: 0 | BD148: 0 | BE148: 0 | BG148: 0 | BH148: 0 | BI148: 0 | BJ148: 0 | BK148: 0 | BL148: 0 | BM148: 0 | BN148: 0 | BO148: 0 | BP148: 0 | BQ148: 0 | BR148: 0 | BS148: 0 | BT148: 0 | BU148: 0 | BV148: 0 | BW148: 0
J149: TRUE | O149: 0 | P149: 0 | Q149: 0 | AA149: 00:00:00 | AB149: 0 | AC149: 0 | AD149: 0 | AE149: 0 | AH149: 143 | AK149: 0 | AL149: =IF(torlesztes="Egyedi",-SUMIFS(U$7:U$210,T$7:T$210,">"&AJ148,T$7:T$210,"<="&AJ149),IFERROR(IF(torlesztes="Egyenlő tőke",IF(COUNT($AK$7:AK149)>$D$15,"",-$AK$5/$D$15),0),"")) -> 0 | AM149: 0 | AN149: 0 | AO149: =IF(torlesztes="Egyedi",-SUMIFS(U$7:U$210,T$7:T$210,">"&AJ148,T$7:T$210,"<="&AJ149),IFERROR(IF(torlesztes="Egyenlő tőke",IF(COUNT($AN$7:AN149)>$D$15,"",-$AK$5/$D$15),0),"")) -> 0 | AP149: 0 | AR149: 0 | AW149: 0 | AX149: 0 | AY149: 0 | AZ149: 0 | BA149: 0 | BB149: 0 | BD149: 0 | BE149: 0 | BG149: 0 | BH149: 0 | BI149: 0 | BJ149: 0 | BK149: 0 | BL149: 0 | BM149: 0 | BN149: 0 | BO149: 0 | BP149: 0 | BQ149: 0 | BR149: 0 | BS149: 0 | BT149: 0 | BU149: 0 | BV149: 0 | BW149: 0
J150: TRUE | O150: 0 | P150: 0 | Q150: 0 | AA150: 00:00:00 | AB150: 0 | AC150: 0 | AD150: 0 | AE150: 0 | AH150: 144 | AK150: 0 | AL150: =IF(torlesztes="Egyedi",-SUMIFS(U$7:U$210,T$7:T$210,">"&AJ149,T$7:T$210,"<="&AJ150),IFERROR(IF(torlesztes="Egyenlő tőke",IF(COUNT($AK$7:AK150)>$D$15,"",-$AK$5/$D$15),0),"")) -> 0 | AM150: 0 | AN150: 0 | AO150: =IF(torlesztes="Egyedi",-SUMIFS(U$7:U$210,T$7:T$210,">"&AJ149,T$7:T$210,"<="&AJ150),IFERROR(IF(torlesztes="Egyenlő tőke",IF(COUNT($AN$7:AN150)>$D$15,"",-$AK$5/$D$15),0),"")) -> 0 | AP150: 0 | AR150: 0 | AW150: 0 | AX150: 0 | AY150: 0 | AZ150: 0 | BA150: 0 | BB150: 0 | BD150: 0 | BE150: 0 | BG150: 0 | BH150: 0 | BI150: 0 | BJ150: 0 | BK150: 0 | BL150: 0 | BM150: 0 | BN150: 0 | BO150: 0 | BP150: 0 | BQ150: 0 | BR150: 0 | BS150: 0 | BT150: 0 | BU150: 0 | BV150: 0 | BW150: 0
J151: TRUE | O151: 0 | P151: 0 | Q151: 0 | AA151: 00:00:00 | AB151: 0 | AC151: 0 | AD151: 0 | AE151: 0 | AH151: 145 | AK151: 0 | AL151: =IF(torlesztes="Egyedi",-SUMIFS(U$7:U$210,T$7:T$210,">"&AJ150,T$7:T$210,"<="&AJ151),IFERROR(IF(torlesztes="Egyenlő tőke",IF(COUNT($AK$7:AK151)>$D$15,"",-$AK$5/$D$15),0),"")) -> 0 | AM151: 0 | AN151: 0 | AO151: =IF(torlesztes="Egyedi",-SUMIFS(U$7:U$210,T$7:T$210,">"&AJ150,T$7:T$210,"<="&AJ151),IFERROR(IF(torlesztes="Egyenlő tőke",IF(COUNT($AN$7:AN151)>$D$15,"",-$AK$5/$D$15),0),"")) -> 0 | AP151: 0 | AR151: 0 | AW151: 0 | AX151: 0 | AY151: 0 | AZ151: 0 | BA151: 0 | BB151: 0 | BD151: 0 | BE151: 0 | BG151: 0 | BH151: 0 | BI151: 0 | BJ151: 0 | BK151: 0 | BL151: 0 | BM151: 0 | BN151: 0 | BO151: 0 | BP151: 0 | BQ151: 0 | BR151: 0 | BS151: 0 | BT151: 0 | BU151: 0 | BV151: 0 | BW151: 0
J152: TRUE | O152: 0 | P152: 0 | Q152: 0 | AA152: 00:00:00 | AB152: 0 | AC152: 0 | AD152: 0 | AE152: 0 | AH152: 146 | AK152: 0 | AL152: =IF(torlesztes="Egyedi",-SUMIFS(U$7:U$210,T$7:T$210,">"&AJ151,T$7:T$210,"<="&AJ152),IFERROR(IF(torlesztes="Egyenlő tőke",IF(COUNT($AK$7:AK152)>$D$15,"",-$AK$5/$D$15),0),"")) -> 0 | AM152: 0 | AN152: 0 | AO152: =IF(torlesztes="Egyedi",-SUMIFS(U$7:U$210,T$7:T$210,">"&AJ151,T$7:T$210,"<="&AJ152),IFERROR(IF(torlesztes="Egyenlő tőke",IF(COUNT($AN$7:AN152)>$D$15,"",-$AK$5/$D$15),0),"")) -> 0 | AP152: 0 | AR152: 0 | AW152: 0 | AX152: 0 | AY152: 0 | AZ152: 0 | BA152: 0 | BB152: 0 | BD152: 0 | BE152: 0 | BG152: 0 | BH152: 0 | BI152: 0 | BJ152: 0 | BK152: 0 | BL152: 0 | BM152: 0 | BN152: 0 | BO152: 0 | BP152: 0 | BQ152: 0 | BR152: 0 | BS152: 0 | BT152: 0 | BU152: 0 | BV152: 0 | BW152: 0
J153: TRUE | O153: 0 | P153: 0 | Q153: 0 | AA153: 00:00:00 | AB153: 0 | AC153: 0 | AD153: 0 | AE153: 0 | AH153: 147 | AK153: 0 | AL153: =IF(torlesztes="Egyedi",-SUMIFS(U$7:U$210,T$7:T$210,">"&AJ152,T$7:T$210,"<="&AJ153),IFERROR(IF(torlesztes="Egyenlő tőke",IF(COUNT($AK$7:AK153)>$D$15,"",-$AK$5/$D$15),0),"")) -> 0 | AM153: 0 | AN153: 0 | AO153: =IF(torlesztes="Egyedi",-SUMIFS(U$7:U$210,T$7:T$210,">"&AJ152,T$7:T$210,"<="&AJ153),IFERROR(IF(torlesztes="Egyenlő tőke",IF(COUNT($AN$7:AN153)>$D$15,"",-$AK$5/$D$15),0),"")) -> 0 | AP153: 0 | AR153: 0 | AW153: 0 | AX153: 0 | AY153: 0 | AZ153: 0 | BA153: 0 | BB153: 0 | BD153: 0 | BE153: 0 | BG153: 0 | BH153: 0 | BI153: 0 | BJ153: 0 | BK153: 0 | BL153: 0 | BM153: 0 | BN153: 0 | BO153: 0 | BP153: 0 | BQ153: 0 | BR153: 0 | BS153: 0 | BT153: 0 | BU153: 0 | BV153: 0 | BW153: 0
J154: TRUE | O154: 0 | P154: 0 | Q154: 0 | AA154: 00:00:00 | AB154: 0 | AC154: 0 | AD154: 0 | AE154: 0 | AH154: 148 | AK154: 0 | AL154: =IF(torlesztes="Egyedi",-SUMIFS(U$7:U$210,T$7:T$210,">"&AJ153,T$7:T$210,"<="&AJ154),IFERROR(IF(torlesztes="Egyenlő tőke",IF(COUNT($AK$7:AK154)>$D$15,"",-$AK$5/$D$15),0),"")) -> 0 | AM154: 0 | AN154: 0 | AO154: =IF(torlesztes="Egyedi",-SUMIFS(U$7:U$210,T$7:T$210,">"&AJ153,T$7:T$210,"<="&AJ154),IFERROR(IF(torlesztes="Egyenlő tőke",IF(COUNT($AN$7:AN154)>$D$15,"",-$AK$5/$D$15),0),"")) -> 0 | AP154: 0 | AR154: 0 | AW154: 0 | AX154: 0 | AY154: 0 | AZ154: 0 | BA154: 0 | BB154: 0 | BD154: 0 | BE154: 0 | BG154: 0 | BH154: 0 | BI154: 0 | BJ154: 0 | BK154: 0 | BL154: 0 | BM154: 0 | BN154: 0 | BO154: 0 | BP154: 0 | BQ154: 0 | BR154: 0 | BS154: 0 | BT154: 0 | BU154: 0 | BV154: 0 | BW154: 0
J155: TRUE | O155: 0 | P155: 0 | Q155: 0 | AA155: 00:00:00 | AB155: 0 | AC155: 0 | AD155: 0 | AE155: 0 | AH155: 149 | AK155: 0 | AL155: =IF(torlesztes="Egyedi",-SUMIFS(U$7:U$210,T$7:T$210,">"&AJ154,T$7:T$210,"<="&AJ155),IFERROR(IF(torlesztes="Egyenlő tőke",IF(COUNT($AK$7:AK155)>$D$15,"",-$AK$5/$D$15),0),"")) -> 0 | AM155: 0 | AN155: 0 | AO155: =IF(torlesztes="Egyedi",-SUMIFS(U$7:U$210,T$7:T$210,">"&AJ154,T$7:T$210,"<="&AJ155),IFERROR(IF(torlesztes="Egyenlő tőke",IF(COUNT($AN$7:AN155)>$D$15,"",-$AK$5/$D$15),0),"")) -> 0 | AP155: 0 | AR155: 0 | AW155: 0 | AX155: 0 | AY155: 0 | AZ155: 0 | BA155: 0 | BB155: 0 | BD155: 0 | BE155: 0 | BG155: 0 | BH155: 0 | BI155: 0 | BJ155: 0 | BK155: 0 | BL155: 0 | BM155: 0 | BN155: 0 | BO155: 0 | BP155: 0 | BQ155: 0 | BR155: 0 | BS155: 0 | BT155: 0 | BU155: 0 | BV155: 0 | BW155: 0
J156: TRUE | O156: 0 | P156: 0 | Q156: 0 | AA156: 00:00:00 | AB156: 0 | AC156: 0 | AD156: 0 | AE156: 0 | AH156: 150 | AK156: 0 | AL156: =IF(torlesztes="Egyedi",-SUMIFS(U$7:U$210,T$7:T$210,">"&AJ155,T$7:T$210,"<="&AJ156),IFERROR(IF(torlesztes="Egyenlő tőke",IF(COUNT($AK$7:AK156)>$D$15,"",-$AK$5/$D$15),0),"")) -> 0 | AM156: 0 | AN156: 0 | AO156: =IF(torlesztes="Egyedi",-SUMIFS(U$7:U$210,T$7:T$210,">"&AJ155,T$7:T$210,"<="&AJ156),IFERROR(IF(torlesztes="Egyenlő tőke",IF(COUNT($AN$7:AN156)>$D$15,"",-$AK$5/$D$15),0),"")) -> 0 | AP156: 0 | AR156: 0 | AW156: 0 | AX156: 0 | AY156: 0 | AZ156: 0 | BA156: 0 | BB156: 0 | BD156: 0 | BE156: 0 | BG156: 0 | BH156: 0 | BI156: 0 | BJ156: 0 | BK156: 0 | BL156: 0 | BM156: 0 | BN156: 0 | BO156: 0 | BP156: 0 | BQ156: 0 | BR156: 0 | BS156: 0 | BT156: 0 | BU156: 0 | BV156: 0 | BW156: 0
J157: TRUE | O157: 0 | P157: 0 | Q157: 0 | AA157: 00:00:00 | AB157: 0 | AC157: 0 | AD157: 0 | AE157: 0 | AH157: 151 | AK157: 0 | AL157: =IF(torlesztes="Egyedi",-SUMIFS(U$7:U$210,T$7:T$210,">"&AJ156,T$7:T$210,"<="&AJ157),IFERROR(IF(torlesztes="Egyenlő tőke",IF(COUNT($AK$7:AK157)>$D$15,"",-$AK$5/$D$15),0),"")) -> 0 | AM157: 0 | AN157: 0 | AO157: =IF(torlesztes="Egyedi",-SUMIFS(U$7:U$210,T$7:T$210,">"&AJ156,T$7:T$210,"<="&AJ157),IFERROR(IF(torlesztes="Egyenlő tőke",IF(COUNT($AN$7:AN157)>$D$15,"",-$AK$5/$D$15),0),"")) -> 0 | AP157: 0 | AR157: 0 | AW157: 0 | AX157: 0 | AY157: 0 | AZ157: 0 | BA157: 0 | BB157: 0 | BD157: 0 | BE157: 0 | BG157: 0 | BH157: 0 | BI157: 0 | BJ157: 0 | BK157: 0 | BL157: 0 | BM157: 0 | BN157: 0 | BO157: 0 | BP157: 0 | BQ157: 0 | BR157: 0 | BS157: 0 | BT157: 0 | BU157: 0 | BV157: 0 | BW157: 0
J158: TRUE | O158: 0 | P158: 0 | Q158: 0 | AA158: 00:00:00 | AB158: 0 | AC158: 0 | AD158: 0 | AE158: 0 | AH158: 152 | AK158: 0 | AL158: =IF(torlesztes="Egyedi",-SUMIFS(U$7:U$210,T$7:T$210,">"&AJ157,T$7:T$210,"<="&AJ158),IFERROR(IF(torlesztes="Egyenlő tőke",IF(COUNT($AK$7:AK158)>$D$15,"",-$AK$5/$D$15),0),"")) -> 0 | AM158: 0 | AN158: 0 | AO158: =IF(torlesztes="Egyedi",-SUMIFS(U$7:U$210,T$7:T$210,">"&AJ157,T$7:T$210,"<="&AJ158),IFERROR(IF(torlesztes="Egyenlő tőke",IF(COUNT($AN$7:AN158)>$D$15,"",-$AK$5/$D$15),0),"")) -> 0 | AP158: 0 | AR158: 0 | AW158: 0 | AX158: 0 | AY158: 0 | AZ158: 0 | BA158: 0 | BB158: 0 | BD158: 0 | BE158: 0 | BG158: 0 | BH158: 0 | BI158: 0 | BJ158: 0 | BK158: 0 | BL158: 0 | BM158: 0 | BN158: 0 | BO158: 0 | BP158: 0 | BQ158: 0 | BR158: 0 | BS158: 0 | BT158: 0 | BU158: 0 | BV158: 0 | BW158: 0
J159: TRUE | O159: 0 | P159: 0 | Q159: 0 | AA159: 00:00:00 | AB159: 0 | AC159: 0 | AD159: 0 | AE159: 0 | AH159: 153 | AK159: 0 | AL159: =IF(torlesztes="Egyedi",-SUMIFS(U$7:U$210,T$7:T$210,">"&AJ158,T$7:T$210,"<="&AJ159),IFERROR(IF(torlesztes="Egyenlő tőke",IF(COUNT($AK$7:AK159)>$D$15,"",-$AK$5/$D$15),0),"")) -> 0 | AM159: 0 | AN159: 0 | AO159: =IF(torlesztes="Egyedi",-SUMIFS(U$7:U$210,T$7:T$210,">"&AJ158,T$7:T$210,"<="&AJ159),IFERROR(IF(torlesztes="Egyenlő tőke",IF(COUNT($AN$7:AN159)>$D$15,"",-$AK$5/$D$15),0),"")) -> 0 | AP159: 0 | AR159: 0 | AW159: 0 | AX159: 0 | AY159: 0 | AZ159: 0 | BA159: 0 | BB159: 0 | BD159: 0 | BE159: 0 | BG159: 0 | BH159: 0 | BI159: 0 | BJ159: 0 | BK159: 0 | BL159: 0 | BM159: 0 | BN159: 0 | BO159: 0 | BP159: 0 | BQ159: 0 | BR159: 0 | BS159: 0 | BT159: 0 | BU159: 0 | BV159: 0 | BW159: 0
J160: TRUE | O160: 0 | P160: 0 | Q160: 0 | AA160: 00:00:00 | AB160: 0 | AC160: 0 | AD160: 0 | AE160: 0 | AH160: 154 | AK160: 0 | AL160: =IF(torlesztes="Egyedi",-SUMIFS(U$7:U$210,T$7:T$210,">"&AJ159,T$7:T$210,"<="&AJ160),IFERROR(IF(torlesztes="Egyenlő tőke",IF(COUNT($AK$7:AK160)>$D$15,"",-$AK$5/$D$15),0),"")) -> 0 | AM160: 0 | AN160: 0 | AO160: =IF(torlesztes="Egyedi",-SUMIFS(U$7:U$210,T$7:T$210,">"&AJ159,T$7:T$210,"<="&AJ160),IFERROR(IF(torlesztes="Egyenlő tőke",IF(COUNT($AN$7:AN160)>$D$15,"",-$AK$5/$D$15),0),"")) -> 0 | AP160: 0 | AR160: 0 | AW160: 0 | AX160: 0 | AY160: 0 | AZ160: 0 | BA160: 0 | BB160: 0 | BD160: 0 | BE160: 0 | BG160: 0 | BH160: 0 | BI160: 0 | BJ160: 0 | BK160: 0 | BL160: 0 | BM160: 0 | BN160: 0 | BO160: 0 | BP160: 0 | BQ160: 0 | BR160: 0 | BS160: 0 | BT160: 0 | BU160: 0 | BV160: 0 | BW160: 0
J161: TRUE | O161: 0 | P161: 0 | Q161: 0 | AA161: 00:00:00 | AB161: 0 | AC161: 0 | AD161: 0 | AE161: 0 | AH161: 155 | AK161: 0 | AL161: =IF(torlesztes="Egyedi",-SUMIFS(U$7:U$210,T$7:T$210,">"&AJ160,T$7:T$210,"<="&AJ161),IFERROR(IF(torlesztes="Egyenlő tőke",IF(COUNT($AK$7:AK161)>$D$15,"",-$AK$5/$D$15),0),"")) -> 0 | AM161: 0 | AN161: 0 | AO161: =IF(torlesztes="Egyedi",-SUMIFS(U$7:U$210,T$7:T$210,">"&AJ160,T$7:T$210,"<="&AJ161),IFERROR(IF(torlesztes="Egyenlő tőke",IF(COUNT($AN$7:AN161)>$D$15,"",-$AK$5/$D$15),0),"")) -> 0 | AP161: 0 | AR161: 0 | AW161: 0 | AX161: 0 | AY161: 0 | AZ161: 0 | BA161: 0 | BB161: 0 | BD161: 0 | BE161: 0 | BG161: 0 | BH161: 0 | BI161: 0 | BJ161: 0 | BK161: 0 | BL161: 0 | BM161: 0 | BN161: 0 | BO161: 0 | BP161: 0 | BQ161: 0 | BR161: 0 | BS161: 0 | BT161: 0 | BU161: 0 | BV161: 0 | BW161: 0
J162: TRUE | O162: 0 | P162: 0 | Q162: 0 | AA162: 00:00:00 | AB162: 0 | AC162: 0 | AD162: 0 | AE162: 0 | AH162: 156 | AK162: 0 | AL162: =IF(torlesztes="Egyedi",-SUMIFS(U$7:U$210,T$7:T$210,">"&AJ161,T$7:T$210,"<="&AJ162),IFERROR(IF(torlesztes="Egyenlő tőke",IF(COUNT($AK$7:AK162)>$D$15,"",-$AK$5/$D$15),0),"")) -> 0 | AM162: 0 | AN162: 0 | AO162: =IF(torlesztes="Egyedi",-SUMIFS(U$7:U$210,T$7:T$210,">"&AJ161,T$7:T$210,"<="&AJ162),IFERROR(IF(torlesztes="Egyenlő tőke",IF(COUNT($AN$7:AN162)>$D$15,"",-$AK$5/$D$15),0),"")) -> 0 | AP162: 0 | AR162: 0 | AW162: 0 | AX162: 0 | AY162: 0 | AZ162: 0 | BA162: 0 | BB162: 0 | BD162: 0 | BE162: 0 | BG162: 0 | BH162: 0 | BI162: 0 | BJ162: 0 | BK162: 0 | BL162: 0 | BM162: 0 | BN162: 0 | BO162: 0 | BP162: 0 | BQ162: 0 | BR162: 0 | BS162: 0 | BT162: 0 | BU162: 0 | BV162: 0 | BW162: 0
J163: TRUE | O163: 0 | P163: 0 | Q163: 0 | AA163: 00:00:00 | AB163: 0 | AC163: 0 | AD163: 0 | AE163: 0 | AH163: 157 | AK163: 0 | AL163: =IF(torlesztes="Egyedi",-SUMIFS(U$7:U$210,T$7:T$210,">"&AJ162,T$7:T$210,"<="&AJ163),IFERROR(IF(torlesztes="Egyenlő tőke",IF(COUNT($AK$7:AK163)>$D$15,"",-$AK$5/$D$15),0),"")) -> 0 | AM163: 0 | AN163: 0 | AO163: =IF(torlesztes="Egyedi",-SUMIFS(U$7:U$210,T$7:T$210,">"&AJ162,T$7:T$210,"<="&AJ163),IFERROR(IF(torlesztes="Egyenlő tőke",IF(COUNT($AN$7:AN163)>$D$15,"",-$AK$5/$D$15),0),"")) -> 0 | AP163: 0 | AR163: 0 | AW163: 0 | AX163: 0 | AY163: 0 | AZ163: 0 | BA163: 0 | BB163: 0 | BD163: 0 | BE163: 0 | BG163: 0 | BH163: 0 | BI163: 0 | BJ163: 0 | BK163: 0 | BL163: 0 | BM163: 0 | BN163: 0 | BO163: 0 | BP163: 0 | BQ163: 0 | BR163: 0 | BS163: 0 | BT163: 0 | BU163: 0 | BV163: 0 | BW163: 0
J164: TRUE | O164: 0 | P164: 0 | Q164: 0 | AA164: 00:00:00 | AB164: 0 | AC164: 0 | AD164: 0 | AE164: 0 | AH164: 158 | AK164: 0 | AL164: =IF(torlesztes="Egyedi",-SUMIFS(U$7:U$210,T$7:T$210,">"&AJ163,T$7:T$210,"<="&AJ164),IFERROR(IF(torlesztes="Egyenlő tőke",IF(COUNT($AK$7:AK164)>$D$15,"",-$AK$5/$D$15),0),"")) -> 0 | AM164: 0 | AN164: 0 | AO164: =IF(torlesztes="Egyedi",-SUMIFS(U$7:U$210,T$7:T$210,">"&AJ163,T$7:T$210,"<="&AJ164),IFERROR(IF(torlesztes="Egyenlő tőke",IF(COUNT($AN$7:AN164)>$D$15,"",-$AK$5/$D$15),0),"")) -> 0 | AP164: 0 | AR164: 0 | AW164: 0 | AX164: 0 | AY164: 0 | AZ164: 0 | BA164: 0 | BB164: 0 | BD164: 0 | BE164: 0 | BG164: 0 | BH164: 0 | BI164: 0 | BJ164: 0 | BK164: 0 | BL164: 0 | BM164: 0 | BN164: 0 | BO164: 0 | BP164: 0 | BQ164: 0 | BR164: 0 | BS164: 0 | BT164: 0 | BU164: 0 | BV164: 0 | BW164: 0
J165: TRUE | O165: 0 | P165: 0 | Q165: 0 | AA165: 00:00:00 | AB165: 0 | AC165: 0 | AD165: 0 | AE165: 0 | AH165: 159 | AK165: 0 | AL165: =IF(torlesztes="Egyedi",-SUMIFS(U$7:U$210,T$7:T$210,">"&AJ164,T$7:T$210,"<="&AJ165),IFERROR(IF(torlesztes="Egyenlő tőke",IF(COUNT($AK$7:AK165)>$D$15,"",-$AK$5/$D$15),0),"")) -> 0 | AM165: 0 | AN165: 0 | AO165: =IF(torlesztes="Egyedi",-SUMIFS(U$7:U$210,T$7:T$210,">"&AJ164,T$7:T$210,"<="&AJ165),IFERROR(IF(torlesztes="Egyenlő tőke",IF(COUNT($AN$7:AN165)>$D$15,"",-$AK$5/$D$15),0),"")) -> 0 | AP165: 0 | AR165: 0 | AW165: 0 | AX165: 0 | AY165: 0 | AZ165: 0 | BA165: 0 | BB165: 0 | BD165: 0 | BE165: 0 | BG165: 0 | BH165: 0 | BI165: 0 | BJ165: 0 | BK165: 0 | BL165: 0 | BM165: 0 | BN165: 0 | BO165: 0 | BP165: 0 | BQ165: 0 | BR165: 0 | BS165: 0 | BT165: 0 | BU165: 0 | BV165: 0 | BW165: 0
J166: TRUE | O166: 0 | P166: 0 | Q166: 0 | AA166: 00:00:00 | AB166: 0 | AC166: 0 | AD166: 0 | AE166: 0 | AH166: 160 | AK166: 0 | AL166: =IF(torlesztes="Egyedi",-SUMIFS(U$7:U$210,T$7:T$210,">"&AJ165,T$7:T$210,"<="&AJ166),IFERROR(IF(torlesztes="Egyenlő tőke",IF(COUNT($AK$7:AK166)>$D$15,"",-$AK$5/$D$15),0),"")) -> 0 | AM166: 0 | AN166: 0 | AO166: =IF(torlesztes="Egyedi",-SUMIFS(U$7:U$210,T$7:T$210,">"&AJ165,T$7:T$210,"<="&AJ166),IFERROR(IF(torlesztes="Egyenlő tőke",IF(COUNT($AN$7:AN166)>$D$15,"",-$AK$5/$D$15),0),"")) -> 0 | AP166: 0 | AR166: 0 | AW166: 0 | AX166: 0 | AY166: 0 | AZ166: 0 | BA166: 0 | BB166: 0 | BD166: 0 | BE166: 0 | BG166: 0 | BH166: 0 | BI166: 0 | BJ166: 0 | BK166: 0 | BL166: 0 | BM166: 0 | BN166: 0 | BO166: 0 | BP166: 0 | BQ166: 0 | BR166: 0 | BS166: 0 | BT166: 0 | BU166: 0 | BV166: 0 | BW166: 0
J167: TRUE | O167: 0 | P167: 0 | Q167: 0 | AA167: 00:00:00 | AB167: 0 | AC167: 0 | AD167: 0 | AE167: 0 | AH167: 161 | AK167: 0 | AL167: =IF(torlesztes="Egyedi",-SUMIFS(U$7:U$210,T$7:T$210,">"&AJ166,T$7:T$210,"<="&AJ167),IFERROR(IF(torlesztes="Egyenlő tőke",IF(COUNT($AK$7:AK167)>$D$15,"",-$AK$5/$D$15),0),"")) -> 0 | AM167: 0 | AN167: 0 | AO167: =IF(torlesztes="Egyedi",-SUMIFS(U$7:U$210,T$7:T$210,">"&AJ166,T$7:T$210,"<="&AJ167),IFERROR(IF(torlesztes="Egyenlő tőke",IF(COUNT($AN$7:AN167)>$D$15,"",-$AK$5/$D$15),0),"")) -> 0 | AP167: 0 | AR167: 0 | AW167: 0 | AX167: 0 | AY167: 0 | AZ167: 0 | BA167: 0 | BB167: 0 | BD167: 0 | BE167: 0 | BG167: 0 | BH167: 0 | BI167: 0 | BJ167: 0 | BK167: 0 | BL167: 0 | BM167: 0 | BN167: 0 | BO167: 0 | BP167: 0 | BQ167: 0 | BR167: 0 | BS167: 0 | BT167: 0 | BU167: 0 | BV167: 0 | BW167: 0
J168: TRUE | O168: 0 | P168: 0 | Q168: 0 | AA168: 00:00:00 | AB168: 0 | AC168: 0 | AD168: 0 | AE168: 0 | AH168: 162 | AK168: 0 | AL168: =IF(torlesztes="Egyedi",-SUMIFS(U$7:U$210,T$7:T$210,">"&AJ167,T$7:T$210,"<="&AJ168),IFERROR(IF(torlesztes="Egyenlő tőke",IF(COUNT($AK$7:AK168)>$D$15,"",-$AK$5/$D$15),0),"")) -> 0 | AM168: 0 | AN168: 0 | AO168: =IF(torlesztes="Egyedi",-SUMIFS(U$7:U$210,T$7:T$210,">"&AJ167,T$7:T$210,"<="&AJ168),IFERROR(IF(torlesztes="Egyenlő tőke",IF(COUNT($AN$7:AN168)>$D$15,"",-$AK$5/$D$15),0),"")) -> 0 | AP168: 0 | AR168: 0 | AW168: 0 | AX168: 0 | AY168: 0 | AZ168: 0 | BA168: 0 | BB168: 0 | BD168: 0 | BE168: 0 | BG168: 0 | BH168: 0 | BI168: 0 | BJ168: 0 | BK168: 0 | BL168: 0 | BM168: 0 | BN168: 0 | BO168: 0 | BP168: 0 | BQ168: 0 | BR168: 0 | BS168: 0 | BT168: 0 | BU168: 0 | BV168: 0 | BW168: 0
J169: TRUE | O169: 0 | P169: 0 | Q169: 0 | AA169: 00:00:00 | AB169: 0 | AC169: 0 | AD169: 0 | AE169: 0 | AH169: 163 | AK169: 0 | AL169: =IF(torlesztes="Egyedi",-SUMIFS(U$7:U$210,T$7:T$210,">"&AJ168,T$7:T$210,"<="&AJ169),IFERROR(IF(torlesztes="Egyenlő tőke",IF(COUNT($AK$7:AK169)>$D$15,"",-$AK$5/$D$15),0),"")) -> 0 | AM169: 0 | AN169: 0 | AO169: =IF(torlesztes="Egyedi",-SUMIFS(U$7:U$210,T$7:T$210,">"&AJ168,T$7:T$210,"<="&AJ169),IFERROR(IF(torlesztes="Egyenlő tőke",IF(COUNT($AN$7:AN169)>$D$15,"",-$AK$5/$D$15),0),"")) -> 0 | AP169: 0 | AR169: 0 | AW169: 0 | AX169: 0 | AY169: 0 | AZ169: 0 | BA169: 0 | BB169: 0 | BD169: 0 | BE169: 0 | BG169: 0 | BH169: 0 | BI169: 0 | BJ169: 0 | BK169: 0 | BL169: 0 | BM169: 0 | BN169: 0 | BO169: 0 | BP169: 0 | BQ169: 0 | BR169: 0 | BS169: 0 | BT169: 0 | BU169: 0 | BV169: 0 | BW169: 0
J170: TRUE | O170: 0 | P170: 0 | Q170: 0 | AA170: 00:00:00 | AB170: 0 | AC170: 0 | AD170: 0 | AE170: 0 | AH170: 164 | AK170: 0 | AL170: =IF(torlesztes="Egyedi",-SUMIFS(U$7:U$210,T$7:T$210,">"&AJ169,T$7:T$210,"<="&AJ170),IFERROR(IF(torlesztes="Egyenlő tőke",IF(COUNT($AK$7:AK170)>$D$15,"",-$AK$5/$D$15),0),"")) -> 0 | AM170: 0 | AN170: 0 | AO170: =IF(torlesztes="Egyedi",-SUMIFS(U$7:U$210,T$7:T$210,">"&AJ169,T$7:T$210,"<="&AJ170),IFERROR(IF(torlesztes="Egyenlő tőke",IF(COUNT($AN$7:AN170)>$D$15,"",-$AK$5/$D$15),0),"")) -> 0 | AP170: 0 | AR170: 0 | AW170: 0 | AX170: 0 | AY170: 0 | AZ170: 0 | BA170: 0 | BB170: 0 | BD170: 0 | BE170: 0 | BG170: 0 | BH170: 0 | BI170: 0 | BJ170: 0 | BK170: 0 | BL170: 0 | BM170: 0 | BN170: 0 | BO170: 0 | BP170: 0 | BQ170: 0 | BR170: 0 | BS170: 0 | BT170: 0 | BU170: 0 | BV170: 0 | BW170: 0
J171: TRUE | O171: 0 | P171: 0 | Q171: 0 | AA171: 00:00:00 | AB171: 0 | AC171: 0 | AD171: 0 | AE171: 0 | AH171: 165 | AK171: 0 | AL171: =IF(torlesztes="Egyedi",-SUMIFS(U$7:U$210,T$7:T$210,">"&AJ170,T$7:T$210,"<="&AJ171),IFERROR(IF(torlesztes="Egyenlő tőke",IF(COUNT($AK$7:AK171)>$D$15,"",-$AK$5/$D$15),0),"")) -> 0 | AM171: 0 | AN171: 0 | AO171: =IF(torlesztes="Egyedi",-SUMIFS(U$7:U$210,T$7:T$210,">"&AJ170,T$7:T$210,"<="&AJ171),IFERROR(IF(torlesztes="Egyenlő tőke",IF(COUNT($AN$7:AN171)>$D$15,"",-$AK$5/$D$15),0),"")) -> 0 | AP171: 0 | AR171: 0 | AT171: =IFERROR(AJ171-AJ170,"") ->  | AW171: 0 | AX171: 0 | AY171: 0 | AZ171: 0 | BA171: 0 | BB171: 0 | BD171: 0 | BE171: 0 | BG171: 0 | BH171: 0 | BI171: 0 | BJ171: 0 | BK171: 0 | BL171: 0 | BM171: 0 | BN171: 0 | BO171: 0 | BP171: 0 | BQ171: 0 | BR171: 0 | BS171: 0 | BT171: 0 | BU171: 0 | BV171: 0 | BW171: 0
J172: TRUE | O172: 0 | P172: 0 | Q172: 0 | AA172: 00:00:00 | AB172: 0 | AC172: 0 | AD172: 0 | AE172: 0 | AH172: 166 | AK172: 0 | AL172: =IF(torlesztes="Egyedi",-SUMIFS(U$7:U$210,T$7:T$210,">"&AJ171,T$7:T$210,"<="&AJ172),IFERROR(IF(torlesztes="Egyenlő tőke",IF(COUNT($AK$7:AK172)>$D$15,"",-$AK$5/$D$15),0),"")) -> 0 | AM172: 0 | AN172: 0 | AO172: =IF(torlesztes="Egyedi",-SUMIFS(U$7:U$210,T$7:T$210,">"&AJ171,T$7:T$210,"<="&AJ172),IFERROR(IF(torlesztes="Egyenlő tőke",IF(COUNT($AN$7:AN172)>$D$15,"",-$AK$5/$D$15),0),"")) -> 0 | AP172: 0 | AR172: 0 | AW172: 0 | AX172: 0 | AY172: 0 | AZ172: 0 | BA172: 0 | BB172: 0 | BD172: 0 | BE172: 0 | BG172: 0 | BH172: 0 | BI172: 0 | BJ172: 0 | BK172: 0 | BL172: 0 | BM172: 0 | BN172: 0 | BO172: 0 | BP172: 0 | BQ172: 0 | BR172: 0 | BS172: 0 | BT172: 0 | BU172: 0 | BV172: 0 | BW172: 0
J173: TRUE | N173: =IF(ISBLANK(L172),"",L172) ->  | O173: =IF(ISBLANK(L172),0,M172+O172) -> 0 | P173: 0 | Q173: 0 | AA173: 00:00:00 | AB173: 0 | AC173: 0 | AD173: 0 | AE173: 0 | AH173: 167 | AK173: 0 | AL173: =IF(torlesztes="Egyedi",-SUMIFS(U$7:U$210,T$7:T$210,">"&AJ172,T$7:T$210,"<="&AJ173),IFERROR(IF(torlesztes="Egyenlő tőke",IF(COUNT($AK$7:AK173)>$D$15,"",-$AK$5/$D$15),0),"")) -> 0 | AM173: 0 | AN173: 0 | AO173: =IF(torlesztes="Egyedi",-SUMIFS(U$7:U$210,T$7:T$210,">"&AJ172,T$7:T$210,"<="&AJ173),IFERROR(IF(torlesztes="Egyenlő tőke",IF(COUNT($AN$7:AN173)>$D$15,"",-$AK$5/$D$15),0),"")) -> 0 | AP173: 0 | AR173: 0 | AW173: 0 | AX173: 0 | AY173: 0 | AZ173: 0 | BA173: 0 | BB173: 0 | BD173: 0 | BE173: 0 | BG173: 0 | BH173: 0 | BI173: 0 | BJ173: 0 | BK173: 0 | BL173: 0 | BM173: 0 | BN173: 0 | BO173: 0 | BP173: 0 | BQ173: 0 | BR173: 0 | BS173: 0 | BT173: 0 | BU173: 0 | BV173: 0 | BW173: 0
J174: TRUE | O174: 0 | P174: 0 | Q174: 0 | AA174: 00:00:00 | AB174: 0 | AC174: 0 | AD174: 0 | AE174: 0 | AH174: 168 | AK174: 0 | AL174: =IF(torlesztes="Egyedi",-SUMIFS(U$7:U$210,T$7:T$210,">"&AJ173,T$7:T$210,"<="&AJ174),IFERROR(IF(torlesztes="Egyenlő tőke",IF(COUNT($AK$7:AK174)>$D$15,"",-$AK$5/$D$15),0),"")) -> 0 | AM174: 0 | AN174: 0 | AO174: =IF(torlesztes="Egyedi",-SUMIFS(U$7:U$210,T$7:T$210,">"&AJ173,T$7:T$210,"<="&AJ174),IFERROR(IF(torlesztes="Egyenlő tőke",IF(COUNT($AN$7:AN174)>$D$15,"",-$AK$5/$D$15),0),"")) -> 0 | AP174: 0 | AR174: 0 | AW174: 0 | AX174: 0 | AY174: 0 | AZ174: 0 | BA174: 0 | BB174: 0 | BD174: 0 | BE174: 0 | BG174: 0 | BH174: 0 | BI174: 0 | BJ174: 0 | BK174: 0 | BL174: 0 | BM174: 0 | BN174: 0 | BO174: 0 | BP174: 0 | BQ174: 0 | BR174: 0 | BS174: 0 | BT174: 0 | BU174: 0 | BV174: 0 | BW174: 0
J175: TRUE | O175: 0 | P175: 0 | Q175: 0 | AA175: 00:00:00 | AB175: 0 | AC175: 0 | AD175: 0 | AE175: 0 | AH175: 169 | AK175: 0 | AL175: =IF(torlesztes="Egyedi",-SUMIFS(U$7:U$210,T$7:T$210,">"&AJ174,T$7:T$210,"<="&AJ175),IFERROR(IF(torlesztes="Egyenlő tőke",IF(COUNT($AK$7:AK175)>$D$15,"",-$AK$5/$D$15),0),"")) -> 0 | AM175: 0 | AN175: 0 | AO175: =IF(torlesztes="Egyedi",-SUMIFS(U$7:U$210,T$7:T$210,">"&AJ174,T$7:T$210,"<="&AJ175),IFERROR(IF(torlesztes="Egyenlő tőke",IF(COUNT($AN$7:AN175)>$D$15,"",-$AK$5/$D$15),0),"")) -> 0 | AP175: 0 | AR175: 0 | AW175: 0 | AX175: 0 | AY175: 0 | AZ175: 0 | BA175: 0 | BB175: 0 | BD175: 0 | BE175: 0 | BG175: 0 | BH175: 0 | BI175: 0 | BJ175: 0 | BK175: 0 | BL175: 0 | BM175: 0 | BN175: 0 | BO175: 0 | BP175: 0 | BQ175: 0 | BR175: 0 | BS175: 0 | BT175: 0 | BU175: 0 | BV175: 0 | BW175: 0
J176: TRUE | O176: 0 | P176: 0 | Q176: 0 | AA176: 00:00:00 | AB176: 0 | AC176: 0 | AD176: 0 | AE176: 0 | AH176: 170 | AK176: 0 | AL176: =IF(torlesztes="Egyedi",-SUMIFS(U$7:U$210,T$7:T$210,">"&AJ175,T$7:T$210,"<="&AJ176),IFERROR(IF(torlesztes="Egyenlő tőke",IF(COUNT($AK$7:AK176)>$D$15,"",-$AK$5/$D$15),0),"")) -> 0 | AM176: 0 | AN176: 0 | AO176: =IF(torlesztes="Egyedi",-SUMIFS(U$7:U$210,T$7:T$210,">"&AJ175,T$7:T$210,"<="&AJ176),IFERROR(IF(torlesztes="Egyenlő tőke",IF(COUNT($AN$7:AN176)>$D$15,"",-$AK$5/$D$15),0),"")) -> 0 | AP176: 0 | AR176: 0 | AW176: 0 | AX176: 0 | AY176: 0 | AZ176: 0 | BA176: 0 | BB176: 0 | BD176: 0 | BE176: 0 | BG176: 0 | BH176: 0 | BI176: 0 | BJ176: 0 | BK176: 0 | BL176: 0 | BM176: 0 | BN176: 0 | BO176: 0 | BP176: 0 | BQ176: 0 | BR176: 0 | BS176: 0 | BT176: 0 | BU176: 0 | BV176: 0 | BW176: 0
J177: TRUE | O177: 0 | P177: 0 | Q177: 0 | AA177: 00:00:00 | AB177: 0 | AC177: 0 | AD177: 0 | AE177: 0 | AH177: 171 | AK177: 0 | AL177: =IF(torlesztes="Egyedi",-SUMIFS(U$7:U$210,T$7:T$210,">"&AJ176,T$7:T$210,"<="&AJ177),IFERROR(IF(torlesztes="Egyenlő tőke",IF(COUNT($AK$7:AK177)>$D$15,"",-$AK$5/$D$15),0),"")) -> 0 | AM177: 0 | AN177: 0 | AO177: =IF(torlesztes="Egyedi",-SUMIFS(U$7:U$210,T$7:T$210,">"&AJ176,T$7:T$210,"<="&AJ177),IFERROR(IF(torlesztes="Egyenlő tőke",IF(COUNT($AN$7:AN177)>$D$15,"",-$AK$5/$D$15),0),"")) -> 0 | AP177: 0 | AR177: 0 | AW177: 0 | AX177: 0 | AY177: 0 | AZ177: 0 | BA177: 0 | BB177: 0 | BD177: 0 | BE177: 0 | BG177: 0 | BH177: 0 | BI177: 0 | BJ177: 0 | BK177: 0 | BL177: 0 | BM177: 0 | BN177: 0 | BO177: 0 | BP177: 0 | BQ177: 0 | BR177: 0 | BS177: 0 | BT177: 0 | BU177: 0 | BV177: 0 | BW177: 0
J178: TRUE | O178: 0 | P178: 0 | Q178: 0 | AA178: 00:00:00 | AB178: 0 | AC178: 0 | AD178: 0 | AE178: 0 | AH178: 172 | AK178: 0 | AL178: =IF(torlesztes="Egyedi",-SUMIFS(U$7:U$210,T$7:T$210,">"&AJ177,T$7:T$210,"<="&AJ178),IFERROR(IF(torlesztes="Egyenlő tőke",IF(COUNT($AK$7:AK178)>$D$15,"",-$AK$5/$D$15),0),"")) -> 0 | AM178: 0 | AN178: 0 | AO178: =IF(torlesztes="Egyedi",-SUMIFS(U$7:U$210,T$7:T$210,">"&AJ177,T$7:T$210,"<="&AJ178),IFERROR(IF(torlesztes="Egyenlő tőke",IF(COUNT($AN$7:AN178)>$D$15,"",-$AK$5/$D$15),0),"")) -> 0 | AP178: 0 | AR178: 0 | AW178: 0 | AX178: 0 | AY178: 0 | AZ178: 0 | BA178: 0 | BB178: 0 | BD178: 0 | BE178: 0 | BG178: 0 | BH178: 0 | BI178: 0 | BJ178: 0 | BK178: 0 | BL178: 0 | BM178: 0 | BN178: 0 | BO178: 0 | BP178: 0 | BQ178: 0 | BR178: 0 | BS178: 0 | BT178: 0 | BU178: 0 | BV178: 0 | BW178: 0
J179: TRUE | O179: 0 | P179: 0 | Q179: 0 | AA179: 00:00:00 | AB179: 0 | AC179: 0 | AD179: 0 | AE179: 0 | AH179: 173 | AK179: 0 | AL179: =IF(torlesztes="Egyedi",-SUMIFS(U$7:U$210,T$7:T$210,">"&AJ178,T$7:T$210,"<="&AJ179),IFERROR(IF(torlesztes="Egyenlő tőke",IF(COUNT($AK$7:AK179)>$D$15,"",-$AK$5/$D$15),0),"")) -> 0 | AM179: 0 | AN179: 0 | AO179: =IF(torlesztes="Egyedi",-SUMIFS(U$7:U$210,T$7:T$210,">"&AJ178,T$7:T$210,"<="&AJ179),IFERROR(IF(torlesztes="Egyenlő tőke",IF(COUNT($AN$7:AN179)>$D$15,"",-$AK$5/$D$15),0),"")) -> 0 | AP179: 0 | AR179: 0 | AW179: 0 | AX179: 0 | AY179: 0 | AZ179: 0 | BA179: 0 | BB179: 0 | BD179: 0 | BE179: 0 | BG179: 0 | BH179: 0 | BI179: 0 | BJ179: 0 | BK179: 0 | BL179: 0 | BM179: 0 | BN179: 0 | BO179: 0 | BP179: 0 | BQ179: 0 | BR179: 0 | BS179: 0 | BT179: 0 | BU179: 0 | BV179: 0 | BW179: 0
J180: TRUE | O180: 0 | P180: 0 | Q180: 0 | AA180: 00:00:00 | AB180: 0 | AC180: 0 | AD180: 0 | AE180: 0 | AH180: 174 | AK180: 0 | AL180: =IF(torlesztes="Egyedi",-SUMIFS(U$7:U$210,T$7:T$210,">"&AJ179,T$7:T$210,"<="&AJ180),IFERROR(IF(torlesztes="Egyenlő tőke",IF(COUNT($AK$7:AK180)>$D$15,"",-$AK$5/$D$15),0),"")) -> 0 | AM180: 0 | AN180: 0 | AO180: =IF(torlesztes="Egyedi",-SUMIFS(U$7:U$210,T$7:T$210,">"&AJ179,T$7:T$210,"<="&AJ180),IFERROR(IF(torlesztes="Egyenlő tőke",IF(COUNT($AN$7:AN180)>$D$15,"",-$AK$5/$D$15),0),"")) -> 0 | AP180: 0 | AR180: 0 | AW180: 0 | AX180: 0 | AY180: 0 | AZ180: 0 | BA180: 0 | BB180: 0 | BD180: 0 | BE180: 0 | BG180: 0 | BH180: 0 | BI180: 0 | BJ180: 0 | BK180: 0 | BL180: 0 | BM180: 0 | BN180: 0 | BO180: 0 | BP180: 0 | BQ180: 0 | BR180: 0 | BS180: 0 | BT180: 0 | BU180: 0 | BV180: 0 | BW180: 0
J181: TRUE | O181: 0 | P181: 0 | Q181: 0 | AA181: 00:00:00 | AB181: 0 | AC181: 0 | AD181: 0 | AE181: 0 | AH181: 175 | AK181: 0 | AL181: =IF(torlesztes="Egyedi",-SUMIFS(U$7:U$210,T$7:T$210,">"&AJ180,T$7:T$210,"<="&AJ181),IFERROR(IF(torlesztes="Egyenlő tőke",IF(COUNT($AK$7:AK181)>$D$15,"",-$AK$5/$D$15),0),"")) -> 0 | AM181: 0 | AN181: 0 | AO181: =IF(torlesztes="Egyedi",-SUMIFS(U$7:U$210,T$7:T$210,">"&AJ180,T$7:T$210,"<="&AJ181),IFERROR(IF(torlesztes="Egyenlő tőke",IF(COUNT($AN$7:AN181)>$D$15,"",-$AK$5/$D$15),0),"")) -> 0 | AP181: 0 | AR181: 0 | AW181: 0 | AX181: 0 | AY181: 0 | AZ181: 0 | BA181: 0 | BB181: 0 | BD181: 0 | BE181: 0 | BG181: 0 | BH181: 0 | BI181: 0 | BJ181: 0 | BK181: 0 | BL181: 0 | BM181: 0 | BN181: 0 | BO181: 0 | BP181: 0 | BQ181: 0 | BR181: 0 | BS181: 0 | BT181: 0 | BU181: 0 | BV181: 0 | BW181: 0
J182: TRUE | O182: 0 | P182: 0 | Q182: 0 | AA182: 00:00:00 | AB182: 0 | AC182: 0 | AD182: 0 | AE182: 0 | AH182: 176 | AK182: 0 | AL182: =IF(torlesztes="Egyedi",-SUMIFS(U$7:U$210,T$7:T$210,">"&AJ181,T$7:T$210,"<="&AJ182),IFERROR(IF(torlesztes="Egyenlő tőke",IF(COUNT($AK$7:AK182)>$D$15,"",-$AK$5/$D$15),0),"")) -> 0 | AM182: 0 | AN182: 0 | AO182: =IF(torlesztes="Egyedi",-SUMIFS(U$7:U$210,T$7:T$210,">"&AJ181,T$7:T$210,"<="&AJ182),IFERROR(IF(torlesztes="Egyenlő tőke",IF(COUNT($AN$7:AN182)>$D$15,"",-$AK$5/$D$15),0),"")) -> 0 | AP182: 0 | AR182: 0 | AW182: 0 | AX182: 0 | AY182: 0 | AZ182: 0 | BA182: 0 | BB182: 0 | BD182: 0 | BE182: 0 | BG182: 0 | BH182: 0 | BI182: 0 | BJ182: 0 | BK182: 0 | BL182: 0 | BM182: 0 | BN182: 0 | BO182: 0 | BP182: 0 | BQ182: 0 | BR182: 0 | BS182: 0 | BT182: 0 | BU182: 0 | BV182: 0 | BW182: 0
J183: TRUE | O183: 0 | P183: 0 | Q183: 0 | AA183: 00:00:00 | AB183: 0 | AC183: 0 | AD183: 0 | AE183: 0 | AH183: 177 | AK183: 0 | AL183: =IF(torlesztes="Egyedi",-SUMIFS(U$7:U$210,T$7:T$210,">"&AJ182,T$7:T$210,"<="&AJ183),IFERROR(IF(torlesztes="Egyenlő tőke",IF(COUNT($AK$7:AK183)>$D$15,"",-$AK$5/$D$15),0),"")) -> 0 | AM183: 0 | AN183: 0 | AO183: =IF(torlesztes="Egyedi",-SUMIFS(U$7:U$210,T$7:T$210,">"&AJ182,T$7:T$210,"<="&AJ183),IFERROR(IF(torlesztes="Egyenlő tőke",IF(COUNT($AN$7:AN183)>$D$15,"",-$AK$5/$D$15),0),"")) -> 0 | AP183: 0 | AR183: 0 | AW183: 0 | AX183: 0 | AY183: 0 | AZ183: 0 | BA183: 0 | BB183: 0 | BD183: 0 | BE183: 0 | BG183: 0 | BH183: 0 | BI183: 0 | BJ183: 0 | BK183: 0 | BL183: 0 | BM183: 0 | BN183: 0 | BO183: 0 | BP183: 0 | BQ183: 0 | BR183: 0 | BS183: 0 | BT183: 0 | BU183: 0 | BV183: 0 | BW183: 0
J184: TRUE | O184: 0 | P184: 0 | Q184: 0 | AA184: 00:00:00 | AB184: 0 | AC184: 0 | AD184: 0 | AE184: 0 | AH184: 178 | AK184: 0 | AL184: =IF(torlesztes="Egyedi",-SUMIFS(U$7:U$210,T$7:T$210,">"&AJ183,T$7:T$210,"<="&AJ184),IFERROR(IF(torlesztes="Egyenlő tőke",IF(COUNT($AK$7:AK184)>$D$15,"",-$AK$5/$D$15),0),"")) -> 0 | AM184: 0 | AN184: 0 | AO184: =IF(torlesztes="Egyedi",-SUMIFS(U$7:U$210,T$7:T$210,">"&AJ183,T$7:T$210,"<="&AJ184),IFERROR(IF(torlesztes="Egyenlő tőke",IF(COUNT($AN$7:AN184)>$D$15,"",-$AK$5/$D$15),0),"")) -> 0 | AP184: 0 | AR184: 0 | AW184: 0 | AX184: 0 | AY184: 0 | AZ184: 0 | BA184: 0 | BB184: 0 | BD184: 0 | BE184: 0 | BG184: 0 | BH184: 0 | BI184: 0 | BJ184: 0 | BK184: 0 | BL184: 0 | BM184: 0 | BN184: 0 | BO184: 0 | BP184: 0 | BQ184: 0 | BR184: 0 | BS184: 0 | BT184: 0 | BU184: 0 | BV184: 0 | BW184: 0
J185: TRUE | O185: 0 | P185: 0 | Q185: 0 | AA185: 00:00:00 | AB185: 0 | AC185: 0 | AD185: 0 | AE185: 0 | AH185: 179 | AK185: 0 | AL185: =IF(torlesztes="Egyedi",-SUMIFS(U$7:U$210,T$7:T$210,">"&AJ184,T$7:T$210,"<="&AJ185),IFERROR(IF(torlesztes="Egyenlő tőke",IF(COUNT($AK$7:AK185)>$D$15,"",-$AK$5/$D$15),0),"")) -> 0 | AM185: 0 | AN185: 0 | AO185: =IF(torlesztes="Egyedi",-SUMIFS(U$7:U$210,T$7:T$210,">"&AJ184,T$7:T$210,"<="&AJ185),IFERROR(IF(torlesztes="Egyenlő tőke",IF(COUNT($AN$7:AN185)>$D$15,"",-$AK$5/$D$15),0),"")) -> 0 | AP185: 0 | AR185: 0 | AW185: 0 | AX185: 0 | AY185: 0 | AZ185: 0 | BA185: 0 | BB185: 0 | BD185: 0 | BE185: 0 | BG185: 0 | BH185: 0 | BI185: 0 | BJ185: 0 | BK185: 0 | BL185: 0 | BM185: 0 | BN185: 0 | BO185: 0 | BP185: 0 | BQ185: 0 | BR185: 0 | BS185: 0 | BT185: 0 | BU185: 0 | BV185: 0 | BW185: 0
J186: TRUE | O186: 0 | P186: 0 | Q186: 0 | AA186: 00:00:00 | AB186: 0 | AC186: 0 | AD186: 0 | AE186: 0 | AH186: 180 | AI186: =IF(COUNT(AJ186)=1,AI185+1,"") ->  | AK186: 0 | AL186: =IF(torlesztes="Egyedi",-SUMIFS(U$7:U$210,T$7:T$210,">"&AJ185,T$7:T$210,"<="&AJ186),IFERROR(IF(torlesztes="Egyenlő tőke",IF(COUNT($AK$7:AK186)>$D$15,"",-$AK$5/$D$15),0),"")) -> 0 | AM186: 0 | AN186: 0 | AO186: =IF(torlesztes="Egyedi",-SUMIFS(U$7:U$210,T$7:T$210,">"&AJ185,T$7:T$210,"<="&AJ186),IFERROR(IF(torlesztes="Egyenlő tőke",IF(COUNT($AN$7:AN186)>$D$15,"",-$AK$5/$D$15),0),"")) -> 0 | AP186: 0 | AR186: 0 | AW186: 0 | AX186: 0 | AY186: 0 | AZ186: 0 | BA186: 0 | BB186: 0 | BD186: 0 | BE186: 0 | BG186: 0 | BH186: 0 | BI186: 0 | BJ186: 0 | BK186: 0 | BL186: 0 | BM186: 0 | BN186: 0 | BO186: 0 | BP186: 0 | BQ186: 0 | BR186: 0 | BS186: 0 | BT186: 0 | BU186: 0 | BV186: 0 | BW186: 0
J187: TRUE | O187: 0 | P187: 0 | Q187: 0 | AA187: 00:00:00 | AB187: 0 | AC187: 0 | AD187: 0 | AE187: 0 | AH187: 181 | AI187: =IF(COUNT(AJ187)=1,AI186+1,"") ->  | AK187: 0 | AL187: =IF(torlesztes="Egyedi",-SUMIFS(U$7:U$210,T$7:T$210,">"&AJ186,T$7:T$210,"<="&AJ187),IFERROR(IF(torlesztes="Egyenlő tőke",IF(COUNT($AK$7:AK187)>$D$15,"",-$AK$5/$D$15),0),"")) -> 0 | AM187: 0 | AN187: 0 | AO187: =IF(torlesztes="Egyedi",-SUMIFS(U$7:U$210,T$7:T$210,">"&AJ186,T$7:T$210,"<="&AJ187),IFERROR(IF(torlesztes="Egyenlő tőke",IF(COUNT($AN$7:AN187)>$D$15,"",-$AK$5/$D$15),0),"")) -> 0 | AP187: 0 | AR187: 0 | AW187: 0 | AX187: 0 | AY187: 0 | AZ187: 0 | BA187: 0 | BB187: 0 | BD187: 0 | BE187: 0 | BG187: 0 | BH187: 0 | BI187: 0 | BJ187: 0 | BK187: 0 | BL187: 0 | BM187: 0 | BN187: 0 | BO187: 0 | BP187: 0 | BQ187: 0 | BR187: 0 | BS187: 0 | BT187: 0 | BU187: 0 | BV187: 0 | BW187: 0
J188: TRUE | O188: 0 | P188: 0 | Q188: 0 | AA188: 00:00:00 | AB188: 0 | AC188: 0 | AD188: 0 | AE188: 0 | AH188: 182 | AI188: =IF(COUNT(AJ188)=1,AI187+1,"") ->  | AK188: 0 | AL188: =IF(torlesztes="Egyedi",-SUMIFS(U$7:U$210,T$7:T$210,">"&AJ187,T$7:T$210,"<="&AJ188),IFERROR(IF(torlesztes="Egyenlő tőke",IF(COUNT($AK$7:AK188)>$D$15,"",-$AK$5/$D$15),0),"")) -> 0 | AM188: 0 | AN188: 0 | AO188: =IF(torlesztes="Egyedi",-SUMIFS(U$7:U$210,T$7:T$210,">"&AJ187,T$7:T$210,"<="&AJ188),IFERROR(IF(torlesztes="Egyenlő tőke",IF(COUNT($AN$7:AN188)>$D$15,"",-$AK$5/$D$15),0),"")) -> 0 | AP188: 0 | AR188: 0 | AW188: 0 | AX188: 0 | AY188: 0 | AZ188: 0 | BA188: 0 | BB188: 0 | BD188: 0 | BE188: 0 | BG188: 0 | BH188: 0 | BI188: 0 | BJ188: 0 | BK188: 0 | BL188: 0 | BM188: 0 | BN188: 0 | BO188: 0 | BP188: 0 | BQ188: 0 | BR188: 0 | BS188: 0 | BT188: 0 | BU188: 0 | BV188: 0 | BW188: 0
J189: TRUE | O189: 0 | P189: 0 | Q189: 0 | AA189: 00:00:00 | AB189: 0 | AC189: 0 | AD189: 0 | AE189: 0 | AH189: 183 | AK189: 0 | AL189: =IF(torlesztes="Egyedi",-SUMIFS(U$7:U$210,T$7:T$210,">"&AJ188,T$7:T$210,"<="&AJ189),IFERROR(IF(torlesztes="Egyenlő tőke",IF(COUNT($AK$7:AK189)>$D$15,"",-$AK$5/$D$15),0),"")) -> 0 | AM189: 0 | AN189: 0 | AO189: =IF(torlesztes="Egyedi",-SUMIFS(U$7:U$210,T$7:T$210,">"&AJ188,T$7:T$210,"<="&AJ189),IFERROR(IF(torlesztes="Egyenlő tőke",IF(COUNT($AN$7:AN189)>$D$15,"",-$AK$5/$D$15),0),"")) -> 0 | AP189: 0 | AR189: 0 | AW189: 0 | AX189: 0 | AY189: 0 | AZ189: 0 | BA189: 0 | BB189: 0 | BD189: 0 | BE189: 0 | BG189: 0 | BH189: 0 | BI189: 0 | BJ189: 0 | BK189: 0 | BL189: 0 | BM189: 0 | BN189: 0 | BO189: 0 | BP189: 0 | BQ189: 0 | BR189: 0 | BS189: 0 | BT189: 0 | BU189: 0 | BV189: 0 | BW189: 0
J190: TRUE | O190: 0 | P190: 0 | Q190: 0 | AA190: 00:00:00 | AB190: 0 | AC190: 0 | AD190: 0 | AE190: 0 | AH190: 184 | AK190: 0 | AL190: =IF(torlesztes="Egyedi",-SUMIFS(U$7:U$210,T$7:T$210,">"&AJ189,T$7:T$210,"<="&AJ190),IFERROR(IF(torlesztes="Egyenlő tőke",IF(COUNT($AK$7:AK190)>$D$15,"",-$AK$5/$D$15),0),"")) -> 0 | AM190: 0 | AN190: 0 | AO190: =IF(torlesztes="Egyedi",-SUMIFS(U$7:U$210,T$7:T$210,">"&AJ189,T$7:T$210,"<="&AJ190),IFERROR(IF(torlesztes="Egyenlő tőke",IF(COUNT($AN$7:AN190)>$D$15,"",-$AK$5/$D$15),0),"")) -> 0 | AP190: 0 | AR190: 0 | AW190: 0 | AX190: 0 | AY190: 0 | AZ190: 0 | BA190: 0 | BB190: 0 | BD190: 0 | BE190: 0 | BG190: 0 | BH190: 0 | BI190: 0 | BJ190: 0 | BK190: 0 | BL190: 0 | BM190: 0 | BN190: 0 | BO190: 0 | BP190: 0 | BQ190: 0 | BR190: 0 | BS190: 0 | BT190: 0 | BU190: 0 | BV190: 0 | BW190: 0
J191: TRUE | O191: 0 | P191: 0 | Q191: 0 | AA191: 00:00:00 | AB191: 0 | AC191: 0 | AD191: 0 | AE191: 0 | AH191: 185 | AK191: 0 | AL191: =IF(torlesztes="Egyedi",-SUMIFS(U$7:U$210,T$7:T$210,">"&AJ190,T$7:T$210,"<="&AJ191),IFERROR(IF(torlesztes="Egyenlő tőke",IF(COUNT($AK$7:AK191)>$D$15,"",-$AK$5/$D$15),0),"")) -> 0 | AM191: 0 | AN191: 0 | AO191: =IF(torlesztes="Egyedi",-SUMIFS(U$7:U$210,T$7:T$210,">"&AJ190,T$7:T$210,"<="&AJ191),IFERROR(IF(torlesztes="Egyenlő tőke",IF(COUNT($AN$7:AN191)>$D$15,"",-$AK$5/$D$15),0),"")) -> 0 | AP191: 0 | AR191: 0 | AW191: 0 | AX191: 0 | AY191: 0 | AZ191: 0 | BA191: 0 | BB191: 0 | BD191: 0 | BE191: 0 | BG191: 0 | BH191: 0 | BI191: 0 | BJ191: 0 | BK191: 0 | BL191: 0 | BM191: 0 | BN191: 0 | BO191: 0 | BP191: 0 | BQ191: 0 | BR191: 0 | BS191: 0 | BT191: 0 | BU191: 0 | BV191: 0 | BW191: 0
J192: TRUE | O192: 0 | P192: 0 | Q192: 0 | AA192: 00:00:00 | AB192: 0 | AC192: 0 | AD192: 0 | AE192: 0 | AH192: 186 | AK192: 0 | AL192: =IF(torlesztes="Egyedi",-SUMIFS(U$7:U$210,T$7:T$210,">"&AJ191,T$7:T$210,"<="&AJ192),IFERROR(IF(torlesztes="Egyenlő tőke",IF(COUNT($AK$7:AK192)>$D$15,"",-$AK$5/$D$15),0),"")) -> 0 | AM192: 0 | AN192: 0 | AO192: =IF(torlesztes="Egyedi",-SUMIFS(U$7:U$210,T$7:T$210,">"&AJ191,T$7:T$210,"<="&AJ192),IFERROR(IF(torlesztes="Egyenlő tőke",IF(COUNT($AN$7:AN192)>$D$15,"",-$AK$5/$D$15),0),"")) -> 0 | AP192: 0 | AR192: 0 | AW192: 0 | AX192: 0 | AY192: 0 | AZ192: 0 | BA192: 0 | BB192: 0 | BD192: 0 | BE192: 0 | BG192: 0 | BH192: 0 | BI192: 0 | BJ192: 0 | BK192: 0 | BL192: 0 | BM192: 0 | BN192: 0 | BO192: 0 | BP192: 0 | BQ192: 0 | BR192: 0 | BS192: 0 | BT192: 0 | BU192: 0 | BV192: 0 | BW192: 0
J193: TRUE | O193: 0 | P193: 0 | Q193: 0 | AA193: 00:00:00 | AB193: 0 | AC193: 0 | AD193: 0 | AE193: 0 | AH193: 187 | AK193: 0 | AL193: =IF(torlesztes="Egyedi",-SUMIFS(U$7:U$210,T$7:T$210,">"&AJ192,T$7:T$210,"<="&AJ193),IFERROR(IF(torlesztes="Egyenlő tőke",IF(COUNT($AK$7:AK193)>$D$15,"",-$AK$5/$D$15),0),"")) -> 0 | AM193: 0 | AN193: 0 | AO193: =IF(torlesztes="Egyedi",-SUMIFS(U$7:U$210,T$7:T$210,">"&AJ192,T$7:T$210,"<="&AJ193),IFERROR(IF(torlesztes="Egyenlő tőke",IF(COUNT($AN$7:AN193)>$D$15,"",-$AK$5/$D$15),0),"")) -> 0 | AP193: 0 | AR193: 0 | AW193: 0 | AX193: 0 | AY193: 0 | AZ193: 0 | BA193: 0 | BB193: 0 | BD193: 0 | BE193: 0 | BG193: 0 | BH193: 0 | BI193: 0 | BJ193: 0 | BK193: 0 | BL193: 0 | BM193: 0 | BN193: 0 | BO193: 0 | BP193: 0 | BQ193: 0 | BR193: 0 | BS193: 0 | BT193: 0 | BU193: 0 | BV193: 0 | BW193: 0
J194: TRUE | O194: 0 | P194: 0 | Q194: 0 | AA194: 00:00:00 | AB194: 0 | AC194: 0 | AD194: 0 | AE194: 0 | AH194: 188 | AK194: 0 | AL194: =IF(torlesztes="Egyedi",-SUMIFS(U$7:U$210,T$7:T$210,">"&AJ193,T$7:T$210,"<="&AJ194),IFERROR(IF(torlesztes="Egyenlő tőke",IF(COUNT($AK$7:AK194)>$D$15,"",-$AK$5/$D$15),0),"")) -> 0 | AM194: 0 | AN194: 0 | AO194: =IF(torlesztes="Egyedi",-SUMIFS(U$7:U$210,T$7:T$210,">"&AJ193,T$7:T$210,"<="&AJ194),IFERROR(IF(torlesztes="Egyenlő tőke",IF(COUNT($AN$7:AN194)>$D$15,"",-$AK$5/$D$15),0),"")) -> 0 | AP194: 0 | AR194: 0 | AW194: 0 | AX194: 0 | AY194: 0 | AZ194: 0 | BA194: 0 | BB194: 0 | BD194: 0 | BE194: 0 | BG194: 0 | BH194: 0 | BI194: 0 | BJ194: 0 | BK194: 0 | BL194: 0 | BM194: 0 | BN194: 0 | BO194: 0 | BP194: 0 | BQ194: 0 | BR194: 0 | BS194: 0 | BT194: 0 | BU194: 0 | BV194: 0 | BW194: 0
J195: TRUE | O195: 0 | P195: 0 | Q195: 0 | AA195: 00:00:00 | AB195: 0 | AC195: 0 | AD195: 0 | AE195: 0 | AH195: 189 | AK195: 0 | AL195: =IF(torlesztes="Egyedi",-SUMIFS(U$7:U$210,T$7:T$210,">"&AJ194,T$7:T$210,"<="&AJ195),IFERROR(IF(torlesztes="Egyenlő tőke",IF(COUNT($AK$7:AK195)>$D$15,"",-$AK$5/$D$15),0),"")) -> 0 | AM195: 0 | AN195: 0 | AO195: =IF(torlesztes="Egyedi",-SUMIFS(U$7:U$210,T$7:T$210,">"&AJ194,T$7:T$210,"<="&AJ195),IFERROR(IF(torlesztes="Egyenlő tőke",IF(COUNT($AN$7:AN195)>$D$15,"",-$AK$5/$D$15),0),"")) -> 0 | AP195: 0 | AR195: 0 | AW195: 0 | AX195: 0 | AY195: 0 | AZ195: 0 | BA195: 0 | BB195: 0 | BD195: 0 | BE195: 0 | BG195: 0 | BH195: 0 | BI195: 0 | BJ195: 0 | BK195: 0 | BL195: 0 | BM195: 0 | BN195: 0 | BO195: 0 | BP195: 0 | BQ195: 0 | BR195: 0 | BS195: 0 | BT195: 0 | BU195: 0 | BV195: 0 | BW195: 0
J196: TRUE | O196: 0 | P196: 0 | Q196: 0 | AA196: 00:00:00 | AB196: 0 | AC196: 0 | AD196: 0 | AE196: 0 | AH196: 190 | AK196: 0 | AL196: =IF(torlesztes="Egyedi",-SUMIFS(U$7:U$210,T$7:T$210,">"&AJ195,T$7:T$210,"<="&AJ196),IFERROR(IF(torlesztes="Egyenlő tőke",IF(COUNT($AK$7:AK196)>$D$15,"",-$AK$5/$D$15),0),"")) -> 0 | AM196: 0 | AN196: 0 | AO196: =IF(torlesztes="Egyedi",-SUMIFS(U$7:U$210,T$7:T$210,">"&AJ195,T$7:T$210,"<="&AJ196),IFERROR(IF(torlesztes="Egyenlő tőke",IF(COUNT($AN$7:AN196)>$D$15,"",-$AK$5/$D$15),0),"")) -> 0 | AP196: 0 | AR196: 0 | AW196: 0 | AX196: 0 | AY196: 0 | AZ196: 0 | BA196: 0 | BB196: 0 | BD196: 0 | BE196: 0 | BG196: 0 | BH196: 0 | BI196: 0 | BJ196: 0 | BK196: 0 | BL196: 0 | BM196: 0 | BN196: 0 | BO196: 0 | BP196: 0 | BQ196: 0 | BR196: 0 | BS196: 0 | BT196: 0 | BU196: 0 | BV196: 0 | BW196: 0
J197: TRUE | O197: 0 | P197: 0 | Q197: 0 | AA197: 00:00:00 | AB197: 0 | AC197: 0 | AD197: 0 | AE197: 0 | AH197: 191 | AK197: 0 | AL197: =IF(torlesztes="Egyedi",-SUMIFS(U$7:U$210,T$7:T$210,">"&AJ196,T$7:T$210,"<="&AJ197),IFERROR(IF(torlesztes="Egyenlő tőke",IF(COUNT($AK$7:AK197)>$D$15,"",-$AK$5/$D$15),0),"")) -> 0 | AM197: 0 | AN197: 0 | AO197: =IF(torlesztes="Egyedi",-SUMIFS(U$7:U$210,T$7:T$210,">"&AJ196,T$7:T$210,"<="&AJ197),IFERROR(IF(torlesztes="Egyenlő tőke",IF(COUNT($AN$7:AN197)>$D$15,"",-$AK$5/$D$15),0),"")) -> 0 | AP197: 0 | AR197: 0 | AW197: 0 | AX197: 0 | AY197: 0 | AZ197: 0 | BA197: 0 | BB197: 0 | BD197: 0 | BE197: 0 | BG197: 0 | BH197: 0 | BI197: 0 | BJ197: 0 | BK197: 0 | BL197: 0 | BM197: 0 | BN197: 0 | BO197: 0 | BP197: 0 | BQ197: 0 | BR197: 0 | BS197: 0 | BT197: 0 | BU197: 0 | BV197: 0 | BW197: 0
J198: TRUE | O198: 0 | P198: 0 | Q198: 0 | AA198: 00:00:00 | AB198: 0 | AC198: 0 | AD198: 0 | AE198: 0 | AH198: 192 | AK198: 0 | AL198: =IF(torlesztes="Egyedi",-SUMIFS(U$7:U$210,T$7:T$210,">"&AJ197,T$7:T$210,"<="&AJ198),IFERROR(IF(torlesztes="Egyenlő tőke",IF(COUNT($AK$7:AK198)>$D$15,"",-$AK$5/$D$15),0),"")) -> 0 | AM198: 0 | AN198: 0 | AO198: =IF(torlesztes="Egyedi",-SUMIFS(U$7:U$210,T$7:T$210,">"&AJ197,T$7:T$210,"<="&AJ198),IFERROR(IF(torlesztes="Egyenlő tőke",IF(COUNT($AN$7:AN198)>$D$15,"",-$AK$5/$D$15),0),"")) -> 0 | AP198: 0 | AR198: 0 | AW198: 0 | AX198: 0 | AY198: 0 | AZ198: 0 | BA198: 0 | BB198: 0 | BD198: 0 | BE198: 0 | BG198: 0 | BH198: 0 | BI198: 0 | BJ198: 0 | BK198: 0 | BL198: 0 | BM198: 0 | BN198: 0 | BO198: 0 | BP198: 0 | BQ198: 0 | BR198: 0 | BS198: 0 | BT198: 0 | BU198: 0 | BV198: 0 | BW198: 0
J199: TRUE | O199: 0 | P199: =IF(AND(ISBLANK(L198),AH199<>1),0,IFERROR(-O199*piacikamat/365*(IF(ISBLANK(L199),$C$40,L199)-N199),"")) -> 0 | Q199: =IF(AND(ISBLANK(L198),AH199<>1),0,IFERROR(IF(IF(ISBLANK(L199),$C$40,L199)<=$D$28,-O199*tenylegeskamat1/365*(IF(ISBLANK(L199),$C$40,L199)-N199),IF(IF(ISBLANK(L199),$C$40,L199)<=$D$29,IF(N199>$D$28,-O199*tenylegeskamat2/365*(IF(ISBLANK(L199),$C$40,L199)-N199),(-O199*tenylegeskamat1/365*($D$28-N199))+(-O199*tenylegeskamat2/365*(IF(ISBLANK(L199),$C$40,L199)-$D$28))),IF(N199>$D$29,-O199*tenylegeskamat3/365*(IF(ISBLANK(L199),$C$40,L199)-N199),IF(N199<=$D$28,(-O199*tenylegeskamat1/365*($D$28-N199))+((-O199*tenylegeskamat2/365*($D$29-$D$28)))+(-O199*tenylegeskamat3/365*(IF(ISBLANK(L199),$C$40,L199)-$D$29)),(-O199*tenylegeskamat2/365*($D$29-N199))+(-O199*tenylegeskamat3/365*(IF(ISBLANK(L199),$C$40,L199)-$D$29)))))),"")) -> 0 | V199: =IF(ISNA(MAX(T198,INDEX(AJ$6:AJ$210,MATCH(T199-1,AJ$6:AJ$210,1)))),"",MAX(T198,INDEX(AJ$6:AJ$210,MATCH(T199-1,AJ$6:AJ$210,1)))) ->  | W199: =IF(ISNA(MIN(IF(OR(ISBLANK(W198),W198=""),INDEX(AK$7:AK$210,MATCH(T199,AJ$7:AJ$210,1)),W198-U198),INDEX(AK$7:AK$210,MATCH(T199,AJ$7:AJ$210,1)))),"",MIN(IF(OR(ISBLANK(W198),W198=""),INDEX(AK$7:AK$210,MATCH(T199,AJ$7:AJ$210,1)),W198-U198),INDEX(AK$7:AK$210,MATCH(T199,AJ$7:AJ$210,1)))) ->  | X199: =IFERROR(-W199*piacikamat/365*(T199-V199),"") ->  | Y199: =IFERROR(IF(T199<=$D$28,-W199*tenylegeskamat1/365*(T199-V199),IF(T199<=$D$29,IF(V199>$D$28,-W199*tenylegeskamat2/365*(T199-V199),(-W199*tenylegeskamat1/365*($D$28-V199))+(-W199*tenylegeskamat2/365*(T199-$D$28))),IF(V199>$D$29,-W199*tenylegeskamat3/365*(T199-V199),IF(V199<=$D$28,(-W199*tenylegeskamat1/365*($D$28-V199))+(-W199*tenylegeskamat2/365*($D$29-$D$28))+(-W199*tenylegeskamat3/365*(T199-$D$29)),(-W199*tenylegeskamat2/365*($D$29-V199))+(-W199*tenylegeskamat3/365*(T199-$D$29)))))),"") ->  | Z199: =IFERROR(T199-V199,"") ->  | AA199: =MAX(AJ198,IF(ISNA(INDEX(T$7:T$210,MATCH(AJ199,T$7:T$210,1))),0,INDEX(T$7:T$210,MATCH(AJ199,T$7:T$210,1)))) -> 00:00:00 | AB199: =IF(ISNA(INDEX(U$7:U$210,MATCH(AJ199,T$7:T$210,1))),0,INDEX(U$7:U$210,MATCH(AJ199,T$7:T$210,1))) -> 0 | AC199: =IF(ISNA(INDEX(W$7:W$210,MATCH(AJ199,T$7:T$210,1))),AK199,INDEX(W$7:W$210,MATCH(AJ199,T$7:T$210,1))) -> 0 | AD199: =IFERROR(-(AC199-AB199)*piacikamat/365*(AJ199-AA199),0) -> 0 | AE199: =IFERROR(IF(AJ199<=$D$28,-(AC199-AB199)*tenylegeskamat1/365*(AJ199-AA199),IF(AJ199<=$D$29,IF(AA199>$D$28,-(AC199-AB199)*tenylegeskamat2/365*(AJ199-AA199),(-(AC199-AB199)*tenylegeskamat1/365*($D$28-AA199))+(-(AC199-AB199)*tenylegeskamat2/365*(AJ199-$D$28))),IF(AA199>$D$29,-(AC199-AB199)*tenylegeskamat3/365*(AJ199-AA199),IF(AA199<=$D$28,(-(AC199-AB199)*tenylegeskamat1/365*($D$28-AA199))+(-(AC199-AB199)*tenylegeskamat2/365*($D$29-$D$28))+(-(AC199-AB199)*tenylegeskamat3/365*(AJ199-$D$29)),(-(AC199-AB199)*tenylegeskamat2/365*($D$29-AA199))+(-(AC199-AB199)*tenylegeskamat3/365*(AJ199-$D$29)))))),0) -> 0 | AF199: =IFERROR(AJ199-AA199,"") ->  | AH199: 193 | AK199: 0 | AL199: =IF(torlesztes="Egyedi",-SUMIFS(U$7:U$210,T$7:T$210,">"&AJ198,T$7:T$210,"<="&AJ199),IFERROR(IF(torlesztes="Egyenlő tőke",IF(COUNT($AK$7:AK199)>$D$15,"",-$AK$5/$D$15),0),"")) -> 0 | AM199: 0 | AN199: 0 | AO199: =IF(torlesztes="Egyedi",-SUMIFS(U$7:U$210,T$7:T$210,">"&AJ198,T$7:T$210,"<="&AJ199),IFERROR(IF(torlesztes="Egyenlő tőke",IF(COUNT($AN$7:AN199)>$D$15,"",-$AK$5/$D$15),0),"")) -> 0 | AP199: 0 | AR199: 0 | AW199: =IF(AND(ISBLANK(L198),AH199<>1),0,IFERROR(IF(IF(ISBLANK(L199),$C$40,L199)<=$D$28,-O199*piacikamat/365*(IF(ISBLANK(L199),$C$40,L199)-N199),IF(IF(ISBLANK(L199),$C$40,L199)<=$D$29,IF(N199>$D$28,0,(-O199*piacikamat/365*($D$28-N199))),IF(N199>$D$29,0,IF(N199<=$D$28,(-O199*piacikamat/365*($D$28-N199)),0)))),"")) -> 0 | AX199: =IF(AND(ISBLANK(L198),AH199<>1),0,IFERROR(IF(IF(ISBLANK(L199),$C$40,L199)<=$D$28,0,IF(IF(ISBLANK(L199),$C$40,L199)<=$D$29,IF(N199>$D$28,-O199*piacikamat/365*(IF(ISBLANK(L199),$C$40,L199)-N199),(-O199*piacikamat/365*(IF(ISBLANK(L199),$C$40,L199)-$D$28))),IF(N199>$D$29,0,IF(N199<=$D$28,(-O199*piacikamat/365*($D$29-$D$28)),(-O199*piacikamat/365*($D$29-N199)))))),"")) -> 0 | AY199: =IF(AND(ISBLANK(L198),AH199<>1),0,IFERROR(IF(IF(ISBLANK(L199),$C$40,L199)<=$D$28,0,IF(IF(ISBLANK(L199),$C$40,L199)<=$D$29,IF(N199>$D$28,0,0),IF(N199>$D$29,-O199*piacikamat/365*(IF(ISBLANK(L199),$C$40,L199)-N199),IF(N199<=$D$28,(-O199*piacikamat/365*(IF(ISBLANK(L199),$C$40,L199)-$D$29)),(-O199*piacikamat/365*(IF(ISBLANK(L199),$C$40,L199)-$D$29)))))),"")) -> 0 | AZ199: =IF(AND(ISBLANK(L198),AH199<>1),0,IFERROR(IF(IF(ISBLANK(L199),$C$40,L199)<=$D$28,-O199*tenylegeskamat1/365*(IF(ISBLANK(L199),$C$40,L199)-N199),IF(IF(ISBLANK(L199),$C$40,L199)<=$D$29,IF(N199>$D$28,0,(-O199*tenylegeskamat1/365*($D$28-N199))),IF(N199>$D$29,0,IF(N199<=$D$28,(-O199*tenylegeskamat1/365*($D$28-N199)),0)))),"")) -> 0 | BA199: =IF(AND(ISBLANK(L198),AH199<>1),0,IFERROR(IF(IF(ISBLANK(L199),$C$40,L199)<=$D$28,0,IF(IF(ISBLANK(L199),$C$40,L199)<=$D$29,IF(N199>$D$28,-O199*tenylegeskamat2/365*(IF(ISBLANK(L199),$C$40,L199)-N199),(-O199*tenylegeskamat2/365*(IF(ISBLANK(L199),$C$40,L199)-$D$28))),IF(N199>$D$29,0,IF(N199<=$D$28,((-O199*tenylegeskamat2/365*($D$29-$D$28))),(-O199*tenylegeskamat2/365*($D$29-N199)))))),"")) -> 0 | BB199: =IF(AND(ISBLANK(L198),AH199<>1),0,IFERROR(IF(IF(ISBLANK(L199),$C$40,L199)<=$D$28,0,IF(IF(ISBLANK(L199),$C$40,L199)<=$D$29,IF(N199>$D$28,0,0),IF(N199>$D$29,-O199*tenylegeskamat3/365*(IF(ISBLANK(L199),$C$40,L199)-N199),IF(N199<=$D$28,(-O199*tenylegeskamat3/365*(IF(ISBLANK(L199),$C$40,L199)-$D$29)),(-O199*tenylegeskamat3/365*(IF(ISBLANK(L199),$C$40,L199)-$D$29)))))),"")) -> 0 | BC199: =IFERROR(IF(T199<=$D$28,-W199*piacikamat/365*(T199-V199),IF(T199<=$D$29,IF(V199>$D$28,0,(-W199*piacikamat/365*($D$28-V199))),IF(V199>$D$29,0,IF(V199<=$D$28,(-W199*piacikamat/365*($D$28-V199)),0)))),"") ->  | BD199: =IFERROR(IF(T199<=$D$28,0,IF(T199<=$D$29,IF(V199>$D$28,-W199*piacikamat/365*(T199-V199),(-W199*piacikamat/365*(T199-$D$28))),IF(V199>$D$29,0,IF(V199<=$D$28,(-W199*piacikamat/365*($D$29-$D$28)),(-W199*piacikamat/365*($D$29-V199)))))),"") -> 0 | BE199: =IFERROR(IF(T199<=$D$28,0,IF(T199<=$D$29,IF(V199>$D$28,0,0),IF(V199>$D$29,-W199*piacikamat/365*(T199-V199),IF(V199<=$D$28,(-W199*piacikamat/365*(T199-$D$29)),(-W199*piacikamat/365*(T199-$D$29)))))),"") -> 0 | BF199: =IFERROR(IF(T199<=$D$28,-W199*tenylegeskamat1/365*(T199-V199),IF(T199<=$D$29,IF(V199>$D$28,0,(-W199*tenylegeskamat1/365*($D$28-V199))),IF(V199>$D$29,0,IF(V199<=$D$28,(-W199*tenylegeskamat1/365*($D$28-V199)),0)))),"") ->  | BG199: =IFERROR(IF(T199<=$D$28,0,IF(T199<=$D$29,IF(V199>$D$28,-W199*tenylegeskamat2/365*(T199-V199),(-W199*tenylegeskamat2/365*(T199-$D$28))),IF(V199>$D$29,0,IF(V199<=$D$28,(-W199*tenylegeskamat2/365*($D$29-$D$28)),(-W199*tenylegeskamat2/365*($D$29-V199)))))),"") -> 0 | BH199: =IFERROR(IF(T199<=$D$28,0,IF(T199<=$D$29,IF(V199>$D$28,0,0),IF(V199>$D$29,-W199*tenylegeskamat3/365*(T199-V199),IF(V199<=$D$28,(-W199*tenylegeskamat3/365*(T199-$D$29)),(-W199*tenylegeskamat3/365*(T199-$D$29)))))),"") -> 0 | BI199: =IFERROR(IF(AJ199<=$D$28,-(AC199-AB199)*piacikamat/365*(AJ199-AA199),IF(AJ199<=$D$29,IF(AA199>$D$28,0,(-(AC199-AB199)*piacikamat/365*($D$28-AA199))),IF(AA199>$D$29,0,IF(AA199<=$D$28,(-(AC199-AB199)*piacikamat/365*($D$28-AA199)),0)))),0) -> 0 | BJ199: =IFERROR(IF(AJ199<=$D$28,0,IF(AJ199<=$D$29,IF(AA199>$D$28,-(AC199-AB199)*piacikamat/365*(AJ199-AA199),(-(AC199-AB199)*piacikamat/365*(AJ199-$D$28))),IF(AA199>$D$29,0,IF(AA199<=$D$28,(-(AC199-AB199)*piacikamat/365*($D$29-$D$28)),(-(AC199-AB199)*piacikamat/365*($D$29-AA199)))))),0) -> 0 | BK199: =IFERROR(IF(AJ199<=$D$28,0,IF(AJ199<=$D$29,IF(AA199>$D$28,0,0),IF(AA199>$D$29,-(AC199-AB199)*piacikamat/365*(AJ199-AA199),IF(AA199<=$D$28,(-(AC199-AB199)*piacikamat/365*(AJ199-$D$29)),(-(AC199-AB199)*piacikamat/365*(AJ199-$D$29)))))),0) -> 0 | BL199: =IFERROR(IF(AJ199<=$D$28,-(AC199-AB199)*tenylegeskamat1/365*(AJ199-AA199),IF(AJ199<=$D$29,IF(AA199>$D$28,0,(-(AC199-AB199)*tenylegeskamat1/365*($D$28-AA199))),IF(AA199>$D$29,0,IF(AA199<=$D$28,(-(AC199-AB199)*tenylegeskamat1/365*($D$28-AA199)),0)))),0) -> 0 | BM199: =IFERROR(IF(AJ199<=$D$28,0,IF(AJ199<=$D$29,IF(AA199>$D$28,-(AC199-AB199)*tenylegeskamat2/365*(AJ199-AA199),(-(AC199-AB199)*tenylegeskamat2/365*(AJ199-$D$28))),IF(AA199>$D$29,0,IF(AA199<=$D$28,(-(AC199-AB199)*tenylegeskamat2/365*($D$29-$D$28)),(-(AC199-AB199)*tenylegeskamat2/365*($D$29-AA199)))))),0) -> 0 | BN199: =IFERROR(IF(AJ199<=$D$28,0,IF(AJ199<=$D$29,IF(AA199>$D$28,0,0),IF(AA199>$D$29,-(AC199-AB199)*tenylegeskamat3/365*(AJ199-AA199),IF(AA199<=$D$28,(-(AC199-AB199)*tenylegeskamat3/365*(AJ199-$D$29)),(-(AC199-AB199)*tenylegeskamat3/365*(AJ199-$D$29)))))),0) -> 0 | BO199: 0 | BP199: 0 | BQ199: 0 | BR199: 0 | BS199: 0 | BT199: 0 | BU199: 0 | BV199: 0 | BW199: 0
J200: =AI200>$D$15 -> TRUE | O200: 0 | P200: 0 | Q200: 0 | AA200: 00:00:00 | AB200: 0 | AC200: 0 | AD200: 0 | AE200: 0 | AH200: 194 | AJ200: =IF(OR(AJ199=$C$41,AJ199=""),"",IFERROR(IF(EDATE($C$40,(AH200-1)*12/$D$19)<=$C$41,EDATE($C$40,(AH200-1)*12/$D$19),$C$41),"")) ->  | AK200: =+IF(COUNT(AK199)<>0,SUM(AK199:AL199)*(1-J200),"") -> 0 | AL200: =IF(torlesztes="Egyedi",-SUMIFS(U$7:U$210,T$7:T$210,">"&AJ199,T$7:T$210,"<="&AJ200),IFERROR(IF(torlesztes="Egyenlő tőke",IF(COUNT($AK$7:AK200)>$D$15,"",-$AK$5/$D$15),0),"")) -> 0 | AM200: =IF(torlesztes="Egyedi",SUMIFS(X$7:X$210,T$7:T$210,">"&AJ199,T$7:T$210,"<="&AJ200)+AD200,IFERROR(-AK200*piacikamat/365*(AJ200-AJ199),"")) -> 0 | AN200: =+IF(COUNT(AN199)<>0,SUM(AN199:AO199)*(1-J200),"") -> 0 | AO200: =IF(torlesztes="Egyedi",-SUMIFS(U$7:U$210,T$7:T$210,">"&AJ199,T$7:T$210,"<="&AJ200),IFERROR(IF(torlesztes="Egyenlő tőke",IF(COUNT($AN$7:AN200)>$D$15,"",-$AK$5/$D$15),0),"")) -> 0 | AP200: =IF(torlesztes="Egyedi",SUMIFS(Y$7:Y$210,T$7:T$210,">"&AJ199,T$7:T$210,"<="&AJ200)+AE200,IFERROR(IF(AJ200<=$D$28,-AN200*tenylegeskamat1/365*(AJ200-AJ199),IF(AJ200<=$D$29,IF(AJ199>$D$28,-AK200*tenylegeskamat2/365*(AJ200-AJ199),(-AN200*tenylegeskamat1/365*($D$28-AJ199))+(-AN200*tenylegeskamat2/365*(AJ200-$D$28))),IF(AJ199>$D$29,-AK200*tenylegeskamat3/365*(AJ200-AJ199),IF(AJ199<=$D$28,(-AN200*tenylegeskamat1/365*($D$28-AJ199))+(-AN200*tenylegeskamat2/365*($D$29-$D$28))+(-AN200*tenylegeskamat3/365*(AJ200-$D$29)),(-AN200*tenylegeskamat2/365*($D$29-AJ199))+(-AN200*tenylegeskamat3/365*(AJ200-$D$29)))))),"")) -> 0 | AR200: =IFERROR(MAX((ABS(AM200)-ABS(AP200)),0),"") -> 0 | AS200: =IFERROR(AR200/POWER(1+($C$15+1%)/$D$19,AI200-1)/(1+($C$15+1%)/365*($AJ$7-$C$38)),"") ->  | AW200: 0 | AX200: 0 | AY200: 0 | AZ200: 0 | BA200: 0 | BB200: 0 | BD200: 0 | BE200: 0 | BG200: 0 | BH200: 0 | BI200: 0 | BJ200: 0 | BK200: 0 | BL200: 0 | BM200: 0 | BN200: 0 | BO200: =IF(torlesztes="Egyedi",SUMIFS(BC$7:BC$210,T$7:T$210,">"&AJ199,T$7:T$210,"<="&AJ200)+BI200,IFERROR(IF(AJ200<=$D$28,-AK200*piacikamat/365*(AJ200-AJ199),IF(AJ200<=$D$29,IF(AJ199>$D$28,0,(-AK200*piacikamat/365*($D$28-AJ199))),IF(AJ199>$D$29,0,IF(AJ199<=$D$28,(-AK200*piacikamat/365*($D$28-AJ199)),0)))),"")) -> 0 | BP200: =IF(torlesztes="Egyedi",SUMIFS(BD$7:BD$210,T$7:T$210,">"&AJ199,T$7:T$210,"<="&AJ200)+BJ200,IFERROR(IF(AJ200<=$D$28,0,IF(AJ200<=$D$29,IF(AJ199>$D$28,-AK200*piacikamat/365*(AJ200-AJ199),(-AK200*piacikamat/365*(AJ200-$D$28))),IF(AJ199>$D$29,0,IF(AJ199<=$D$28,(-AK200*piacikamat/365*($D$29-$D$28)),(-AK200*piacikamat/365*($D$29-AJ199)))))),"")) -> 0 | BQ200: =IF(torlesztes="Egyedi",SUMIFS(BE$7:BE$210,T$7:T$210,">"&AJ199,T$7:T$210,"<="&AJ200)+BK200,IFERROR(IF(AJ200<=$D$28,0,IF(AJ200<=$D$29,IF(AJ199>$D$28,0,0),IF(AJ199>$D$29,-AK200*piacikamat/365*(AJ200-AJ199),IF(AJ199<=$D$28,(-AK200*piacikamat/365*(AJ200-$D$29)),(-AK200*piacikamat/365*(AJ200-$D$29)))))),"")) -> 0 | BR200: =IF(torlesztes="Egyedi",SUMIFS(BF$7:BF$210,T$7:T$210,">"&AJ199,T$7:T$210,"<="&AJ200)+BL200,IFERROR(IF(AJ200<=$D$28,-AN200*tenylegeskamat1/365*(AJ200-AJ199),IF(AJ200<=$D$29,IF(AJ199>$D$28,0,(-AN200*tenylegeskamat1/365*($D$28-AJ199))),IF(AJ199>$D$29,0,IF(AJ199<=$D$28,(-AN200*tenylegeskamat1/365*($D$28-AJ199)),0)))),"")) -> 0 | BS200: =IF(torlesztes="Egyedi",SUMIFS(BG$7:BG$210,T$7:T$210,">"&AJ199,T$7:T$210,"<="&AJ200)+BM200,IFERROR(IF(AJ200<=$D$28,0,IF(AJ200<=$D$29,IF(AJ199>$D$28,-AK200*tenylegeskamat2/365*(AJ200-AJ199),(-AN200*tenylegeskamat2/365*(AJ200-$D$28))),IF(AJ199>$D$29,0,IF(AJ199<=$D$28,(-AN200*tenylegeskamat2/365*($D$29-$D$28)),(-AN200*tenylegeskamat2/365*($D$29-AJ199)))))),"")) -> 0 | BT200: =IF(torlesztes="Egyedi",SUMIFS(BH$7:BH$210,T$7:T$210,">"&AJ199,T$7:T$210,"<="&AJ200)+BN200,IFERROR(IF(AJ200<=$D$28,0,IF(AJ200<=$D$29,IF(AJ199>$D$28,0,0),IF(AJ199>$D$29,-AK200*tenylegeskamat3/365*(AJ200-AJ199),IF(AJ199<=$D$28,(-AN200*tenylegeskamat3/365*(AJ200-$D$29)),(-AN200*tenylegeskamat3/365*(AJ200-$D$29)))))),"")) -> 0 | BU200: =IFERROR(MAX((ABS(BO200)-ABS(BR200)),0),"") -> 0 | BV200: =IFERROR(MAX((ABS(BP200)-ABS(BS200)),0),"") -> 0 | BW200: =IFERROR(MAX((ABS(BQ200)-ABS(BT200)),0),"") -> 0 | BX200: =IFERROR(BU200/POWER(1+($C$15+1%)/$D$19,AI200-1)/(1+($C$15+1%)/365*($AJ$7-$C$38)),"") ->  | BY200: =IFERROR(BV200/POWER(1+($C$15+1%)/$D$19,AI200-1)/(1+($C$15+1%)/365*($AJ$7-$C$38)),"") ->  | BZ200: =IFERROR(BW200/POWER(1+($C$15+1%)/$D$19,AI200-1)/(1+($C$15+1%)/365*($AJ$7-$C$38)),"") -> 
J201: TRUE | O201: 0 | P201: 0 | Q201: 0 | AA201: 00:00:00 | AB201: 0 | AC201: 0 | AD201: 0 | AE201: 0 | AH201: 195 | AK201: 0 | AL201: =IF(torlesztes="Egyedi",-SUMIFS(U$7:U$210,T$7:T$210,">"&AJ200,T$7:T$210,"<="&AJ201),IFERROR(IF(torlesztes="Egyenlő tőke",IF(COUNT($AK$7:AK201)>$D$15,"",-$AK$5/$D$15),0),"")) -> 0 | AM201: 0 | AN201: 0 | AO201: =IF(torlesztes="Egyedi",-SUMIFS(U$7:U$210,T$7:T$210,">"&AJ200,T$7:T$210,"<="&AJ201),IFERROR(IF(torlesztes="Egyenlő tőke",IF(COUNT($AN$7:AN201)>$D$15,"",-$AK$5/$D$15),0),"")) -> 0 | AP201: 0 | AR201: 0 | AW201: 0 | AX201: 0 | AY201: 0 | AZ201: 0 | BA201: 0 | BB201: 0 | BD201: 0 | BE201: 0 | BG201: 0 | BH201: 0 | BI201: 0 | BJ201: 0 | BK201: 0 | BL201: 0 | BM201: 0 | BN201: 0 | BO201: 0 | BP201: 0 | BQ201: 0 | BR201: 0 | BS201: 0 | BT201: 0 | BU201: 0 | BV201: 0 | BW201: 0
... 9 more rows

Sheet Szamitasok (hidden)
A1: Kizárók és KO-k
C2: Hitelforma | D2: Váll. Méret | E2: Halászat/akvakultúra | F2: Fuvarozás | G2: Szélessávú infrasrtukúra | H2: Kutatási infrastruktúra | I2: Külföldi hálózathoz? | J2: Mezőgazdasági termékek? | K2: Teherszállító járművek? | L2: Katonai berendezések | M2: Fizetésképtelen? | N2: Kollektív fizetésképtelen? | O2: Nehéz helyzetben? | P2: Hasonló tevékenységet szüntetett meg? | Q2: 25%-os önerő? | R2: A létesítményt bezárták | S2: Az eszközöket a vevőtől független harmadik felektől vásárolnák | T2: Az üzletet piaci feltételek mellett bonyolítják le a vásárlást | U2: Amennyiben immateriális eszköz beruházásáról van szó, akkor értékcsökkenést lehet rá elszámolni | V2: Megkezdte a beruházást az Eximbankhoz történő hitelkérelem beadását megelőzően?
A3: Szorzó értéke | C3: Beruházási hitel | D3: =Tamogatastartalom!C46 -> Mikró/Kis | E3: Nem | F3: Nem | G3: Nem | H3: Nem | I3: Nem | J3: Nem | K3: Nem | L3: Nem | M3: Nem | N3: Nem | O3: Nem | P3: Nem | Q3: Igen | R3: Igen | S3: Igen | T3: Igen | U3: Igen | V3: Nem
A4: =PRODUCT(C4:V4) -> 1 | B4: De minimis | E4: =IF($E$3="Igen",0,1) -> 1 | G4: =IF(G3="Igen",0,1) -> 1 | I4: =IF($I$3="Igen",0,1) -> 1 | J4: =IF($J$3="Igen",0,1) -> 1 | K4: =IF($K$3="Igen",0,1) -> 1 | L4: =IF($L$3="Igen",0,1) -> 1 | M4: =IF($M$3="Igen",0,1) -> 1 | N4: =IF($N$3="Igen",0,1) -> 1
A5: =PRODUCT(C5:V5) -> 1 | B5: 14-es | C5: =IF(OR(C3="Beruházási hitel",C3="Lízing"),1,0) -> 1 | E5: =IF($E$3="Igen",0,1) -> 1 | F5: =IF(F3="Igen",0,1) -> 1 | G5: =IF(G3="Igen",0,1) -> 1 | H5: =IF(H3="Igen",0,1) -> 1 | I5: =IF($I$3="Igen",0,1) -> 1 | J5: =IF($J$3="Igen",0,1) -> 1 | K5: =IF($K$3="Igen",0,1) -> 1 | L5: =IF($L$3="Igen",0,1) -> 1 | M5: =IF($M$3="Igen",0,1) -> 1 | N5: =IF($N$3="Igen",0,1) -> 1 | O5: =IF($O$3="Igen",0,1) -> 1 | P5: =IF($P$3="Igen",0,1) -> 1 | Q5: =IF($Q$3="Igen",1,0) -> 1 | R5: =IF($R$3="Nem",0,1) -> 1 | S5: =IF($S$3="Nem",0,1) -> 1 | T5: =IF($T$3="Nem",0,1) -> 1 | U5: =IF($U$3="Nem",0,1) -> 1 | V5: =IF($V$3="Igen",0,1) -> 1
A6: =PRODUCT(C6:V6) -> 1 | B6: 17-es | C6: =IF(OR(C3="Beruházási hitel",C3="Lízing"),1,0) -> 1 | D6: =IF(D3="Nagy",0,1) -> 1 | E6: =IF($E$3="Igen",0,1) -> 1 | G6: =IF(G3="Igen",0,1) -> 1 | H6: =IF(H3="Igen",0,1) -> 1 | I6: =IF($I$3="Igen",0,1) -> 1 | J6: =IF($J$3="Igen",0,1) -> 1 | L6: =IF($L$3="Igen",0,1) -> 1 | M6: =IF($M$3="Igen",0,1) -> 1 | N6: =IF($N$3="Igen",0,1) -> 1 | O6: =IF($O$3="Igen",0,1) -> 1 | P6: =IF($P$3="Igen",0,1) -> 1 | R6: =IF($R$3="Nem",0,1) -> 1 | S6: =IF($S$3="Nem",0,1) -> 1 | T6: =IF($T$3="Nem",0,1) -> 1 | U6: =IF($U$3="Nem",0,1) -> 1 | V6: =IF($V$3="Igen",0,1) -> 1
A7: 14-es cikk
A8: R szorzó értéke
A9: Elszámolható ktg-ek EUR-ban | B9: =Tamogatastartalom!G16/IF(Tamogatastartalom!C35<>"EUR",arfolyam,1) -> 4000000
A10: A Elszámolható költségek | B10: =IF((B9-C10)>0,C10,B9) -> 4000000 | C10: 50000000
A11: B Elszámolható költségek | B11: =IF(B10<C10,0,IF(B9-C11<0,B9-C10,C10)) -> 0 | C11: 100000000
A12: C elszámolható költségek | B12: nincs!
A13: KKV bónusz | B13: =IF(D3="Mikró/Kis",0.2,IF(D3="Közepes",0.1,0))*IF(B9<50*10^6,1,0) -> 0.2
A14: Kaphat? | B14: =IF(B15>0,1,0) -> 1
A15: Alap intenzitás | B15: =VLOOKUP(Tamogatastartalom!C47,Adatok!A21:B216,2,FALSE)+IF(Tamogatastartalom!C47="Közép_Magyarország",VLOOKUP(Tamogatastartalom!C48,Adatok!A21:'Adatok'!B216,2,FALSE)) -> 0.35
A16: R szorzó értéke a támogatási térkép alapján | B16: =(B15+B13)*B14 -> 0.55
A17: Max. TT (EUR) | B17: =VLOOKUP(B15,Adatok!D12:E16,2,FALSE)*10^6 -> 26250000
A18: 17-es cikk
A19: Vállalatméret-szorzó | B19: =IF(D3="Nagy",0,IF(D3="Mikró/Kis",0.2,0.1)) -> 0.2
A20: =Tamogatastartalom!C35&" érték" -> HUF érték
A21: ="Elszámolható ktg-ek "&Tamogatastartalom!C35&"-ban" -> Elszámolható ktg-ek HUF-ban | B21: =IF(Tamogatastartalom!C35="EUR",Tamogatastartalom!G16*arfolyam,Tamogatastartalom!G16) -> 1400000000
A22: Hitel/támogatástartalom arány
A23: Hitelösszeg | B23: =Tamogatastartalom!C36 -> 150000000
A24: Támogatástartalom a futamidő alatt | B24: =Tamogatastartalom!AS5 -> 8009414.114
A25: Hitelösszeg/támogatástartalom | B25: =B23/B24 -> 18.7279616

Sheet Adatok (hidden)
A1: Felárak | M1: Segédszámítások
D2: Piaci referencia | J2: Refin kamatok | M2: Törlesztés | P2: Törlesztésgyakoriság | S2: Select
A3: EU Referencia alapkamat (2020. január 1.) | F3: Fedezettség | M3: Egyenlő összeg | N3: 1 | P3: Havi | Q3: 12 | S3: Beruházási hitel
F4: Magas | G4: Általános | H4: Alacsony | J4: Min 1 | K4: =refkam-3.5% -> -0.032 | M4: Egyenlő tőke | N4: 2 | P4: Negyedéves | Q4: 4 | S4: Forgóeszközhitel
A5: EUR | B5: -0.0031 | D5: Hitelminősítés | E5: Kiváló | F5: 60 | G5: 75 | H5: 100 | J5: Min2 | K5: 0.001 | M5: Egyedi | N5: 0 | P5: Féléves | Q5: 2 | S5: Lízing
A6: HUF | B6: 0.003 | E6: Jó | F6: 75 | G6: 100 | H6: 220 | J6: Tényleges min | K6: =MAX(K4:K5) -> 0.001
A7: USD | B7: 0.02 | E7: Kielégítő | F7: 100 | G7: 220 | H7: 400 | J7: Max | K7: =refkammin+4% -> 0.041
E8: Gyenge | F8: 220 | G8: 400 | H8: 650
E9: Rossz | F9: 400 | G9: 650 | H9: 1000
A10: Regionális támogatási intenzitások
B11: Nagyvállalat | D11: Intenzitás | E11: MAX Támogatástartalom (mio EUR) | I11: Minimum ügyfélkamat marzs (referenciaráta felett)
A12: Select | B12: 0 | D12: 0.5 | E12: 37.5 | J12: 1. év | K12: 2-3. év | L12: 4-6. év
A13: Dél-Alföld | B13: 0.5 | D13: 0.35 | E13: 26.25 | I13: KKV | J13: 25 | K13: 50 | L13: 100
A14: Dél-Dunántúl | B14: 0.5 | D14: 0.25 | E14: 18.75 | I14: Nagy | J14: 50 | K14: 100 | L14: 200
A15: Észak-Alföld | B15: 0.5 | D15: 0.2 | E15: 15 | J15: max. 12 hónap | K15: max. 24 hónap | L15: max. 36 hónap | M15: max. 48 hónap | N15: max. 60 hónap | O15: max. 72 hónap
A16: Észak-Magyarország | B16: 0.5 | D16: 0 | E16: 0 | I16: KKV | J16: 41 | K16: 47 | L16: 49 | M16: 69 | N16: 79 | O16: 86
A17: Közép-Dunántúl | B17: 0.35 | I17: Nagy | J17: 51 | K17: 81 | L17: 91 | M17: 136 | N17: 161 | O17: 176
A18: Közép_Magyarország | B18: 0
A19: Nyugat-Dunántúl | B19: 0.25
B20: 14-es cikk
A21: Select | B21: 0
A22: Budapest | B22: 0
A23: Abony | B23: 0.35
A24: Acsa | B24: 0
A25: Albertirsa | B25: 0
A26: Alsónémedi | B26: 0.35
A27: Apaj | B27: 0
A28: Áporka | B28: 0.35
A29: Aszód | B29: 0.35
A30: Bag | B30: 0.35
A31: Bénye | B31: 0
A32: Bernecebaráti | B32: 0.35
A33: Biatorbágy | B33: 0
A34: Budajenő | B34: 0
A35: Budakalász | B35: 0
A36: Budakeszi | B36: 0
A37: Budaörs | B37: 0
A38: Budapest | B38: 0
A39: Bugyi | B39: 0
A40: Cegléd | B40: 0.35
A41: Ceglédbercel | B41: 0
A42: Csemő | B42: 0.35
A43: Csévharaszt | B43: 0
A44: Csobánka | B44: 0
A45: Csomád | B45: 0
A46: Csömör | B46: 0
A47: Csörög | B47: 0
A48: Csővár | B48: 0
A49: Dabas | B49: 0.35
A50: Dánszentmiklós | B50: 0
A51: Dány | B51: 0
A52: Délegyháza | B52: 0
A53: Diósd | B53: 0
A54: Domony | B54: 0.35
A55: Dömösd | B55: 0
A56: Dunabogdány | B56: 0
A57: Dunaharaszti | B57: 0.35
A58: Dunakeszi | B58: 0
A59: Dunavarsány | B59: 0
A60: Ecser | B60: 0.35
A61: Érd | B61: 0.35
A62: Erdőkertes | B62: 0
A63: Farmos | B63: 0.35
A64: Felsőpakony | B64: 0.35
A65: Fót | B65: 0
A66: Galagyörk | B66: 0
A67: Galahévíz | B67: 0
A68: Galamácsa | B68: 0
A69: Gomba | B69: 0
A70: Göd | B70: 0.35
A71: Gödöllő | B71: 0.35
A72: Gyál | B72: 0.35
A73: Gyömörő | B73: 0
A74: Halásztelek | B74: 0.35
A75: Herceghalom | B75: 0
A76: Hernád | B76: 0
A77: Hévizgyörk | B77: 0
A78: Iklad | B78: 0.35
A79: Inárcs | B79: 0
A80: Ipolydamásd | B80: 0.35
A81: Ipolytölgyes | B81: 0.35
A82: Isaszeg | B82: 0
A83: Jászkarajenő | B83: 0.35
A84: Kakucs | B84: 0
A85: Kartal | B85: 0.35
A86: Káva | B86: 0
A87: Kemence | B87: 0.35
A88: Kerepes | B88: 0
A89: Kiskunlacháza | B89: 0.35
A90: Kismaros | B90: 0
A91: Kisnémedi | B91: 0.35
A92: Kisoroszi | B92: 0
A93: Kistarcsa | B93: 0
A94: Kocsér | B94: 0.35
A95: Kóka | B95: 0
A96: Kosd | B96: 0
A97: Kóspallag | B97: 0.35
A98: Kőröstételen | B98: 0
A99: Leányfalu | B99: 0
A100: Letkés | B100: 0.35
A101: Lórév | B101: 0.35
A102: Maglód | B102: 0.35
A103: Majosháza | B103: 0
A104: Makád | B104: 0.35
A105: Márianosztra | B105: 0.35
A106: Mende | B106: 0
A107: Mikebuda | B107: 0.35
A108: Mogyoród | B108: 0
A109: Monor | B109: 0.35
A110: Nagybörzsöny | B110: 0.35
A111: Nagykáta | B111: 0.35
A112: Nagykovácsi | B112: 0
A113: Nagykőrös | B113: 0.35
A114: Nagymaros | B114: 0
A115: Nagytarcsa | B115: 0.35
A116: Nyáregyháza | B116: 0
A117: Nyársapát | B117: 0.35
A118: Ócsa | B118: 0.35
A119: Őrbottyán | B119: 0
A120: Örkény | B120: 0.35
A121: Pánd | B121: 0
A122: Páty | B122: 0
A123: Pécel | B123: 0.35
A124: Penc | B124: 0
A125: Perbál | B125: 0
A126: Perőcsény | B126: 0.35
A127: Péteri | B127: 0.35
A128: Pilis | B128: 0
A129: Pilisborosjenő | B129: 0
A130: Piliscsaba | B130: 0.2
A131: Pilisjászfalu | B131: 0.2
A132: Pilisszántó | B132: 0
A133: Pilisszentiván | B133: 0
A134: Pilisszentkereszt | B134: 0
A135: Pilisszentlászló | B135: 0
A136: Pilisvörösvár | B136: 0
A137: Pócsmegyer | B137: 0
A138: Pomáz | B138: 0
A139: Pusztavacs | B139: 0
A140: Pusztazámor | B140: 0
A141: Püspökhatvan | B141: 0.35
A142: Püspökszilágy | B142: 0.35
A143: Ráckeve | B143: 0.35
A144: Rád | B144: 0
A145: Remeteszőlős | B145: 0
A146: Solymár | B146: 0
A147: Sóskút | B147: 0
A148: Sülysáp | B148: 0
A149: Szada | B149: 0
A150: Százhalombatta | B150: 0
A151: Szentendre | B151: 0
A152: Szentmártonkáta | B152: 0.35
A153: Szentlőrinckáta | B153: 0
A154: Szigetbecse | B154: 0.35
A155: Szigetcsép | B155: 0
A156: Szigethalom | B156: 0
A157: Szigetmonostor | B157: 0
A158: Szigetszentmárton | B158: 0
A159: Szigetszentmiklós | B159: 0.35
A160: Szigetújfalu | B160: 0
A161: Szob | B161: 0.35
A162: Szokolya | B162: 0.35
A163: Sződ | B163: 0
A164: Sződliget | B164: 0.35
A165: Táborfalva | B165: 0.35
A166: Tahitótfalu | B166: 0
A167: Taksony | B167: 0
A168: Tápióbicske | B168: 0.35
A169: Tápiógyörgye | B169: 0.35
A170: Tápióság | B170: 0.35
A171: Tápiószecső | B171: 0
A172: Tápiószele | B172: 0.35
A173: Tápiószentmárton | B173: 0.35
A174: Tápiószőlős | B174: 0.35
A175: Tárnok | B175: 0
A176: Tatárszentgyörgy | B176: 0.35
A177: Telki | B177: 0
A178: Tésa | B178: 0.35
A179: Tinnye | B179: 0
A180: Tóalmás | B180: 0
A181: Tök | B181: 0
A182: Tököl | B182: 0
A183: Törökbálint | B183: 0
A184: Törtel | B184: 0.35
A185: Tura | B185: 0.35
A186: Újhartyán | B186: 0.35
A187: Újlengyel | B187: 0
A188: Újszilvás | B188: 0.35
A189: Úri | B189: 0
A190: Üllő | B190: 0.35
A191: Üröm | B191: 0
A192: Vác | B192: 0.35
A193: Vácduka | B193: 0
A194: Vácegres | B194: 0
A195: Váchartyán | B195: 0
A196: Váckisújfalu | B196: 0.35
A197: Vácrátót | B197: 0
A198: Vácaszentlászló | B198: 0
A199: Valkó | B199: 0.35
A200: Vámosmikola | B200: 0.35
... 16 more rows
